Workbook

Sheet Print (hidden)
A2: Cost of Service Model Printing
A4: This worksheet has the Page Setup properties used by the print macros which are triggered by the buttons on the other worksheets.
A5: For example, when Rate Base button is hit, macro will print RB1 and RB2 below.
A6: There are 5 print buttons on Detail tab, 1 on Summary tab, 1 on Factors tab.
B9: RATE BASE | G9: REVENUE REQUIREMENTS | M9: SUMMARY PAGES
C11: Total $ By Schedule | D11: Classification %'s | E11: Classif. $'s/Commodity $ | F11: Demand $/Customer $ | G11: Total $ By Schedule | H11: Classification %'s | I11: Classif. $'s/Commodity $ | J11: Demand $/Customer $ | K11: Labor $ and Classif. %'s | L11: Labor $ by Schedule | M11: General Summary | N11: Allocation Factors
C12: GoTo | D12: GoTo | E12: GoTo | F12: GoTo | G12: GoTo | H12: GoTo | I12: GoTo | J12: GoTo | K12: GoTo | L12: GoTo | M12: GoTo | N12: GoTo
A14: Scenario Title | B14: Base Case
C15: RB1 | D15: RB2 | E15: RB3 | F15: RB4 | G15: RR1 | H15: RR2 | I15: RR3 | J15: RR4 | K15: RR5 | L15: RR6 | M15: SUM1 | N15: SUM2
C16: 1 print button | E16: 1 print button | G16: 1 print button | I16: 1 print button | K16: 1 print button | M16: 1 print button | N16: 1 print button
A18: Print Area | B18: 0 | C18: $E$7:$P$148 | D18: $Q$7:$AH$148 | E18: $AK$7:$AY$148 | F18: $BA$7:$BO$148 | G18: $E$165:$P$433 | H18: $Q$165:$AH$433 | I18: $AK$165:$AY$433 | J18: $BA$165:$BO$433 | K18: $BQ$165:$CK$333 | L18: $CK$165:$CR$333 | M18: $A$5:$K$52,$A$105:$K$179,$A$183:$K$257 | N18: $A$4:$Q$51,$A$67:$J$107
A19: Print Title Rows | B19: 1 | C19: $1:$6 | D19: =C19 -> $1:$6 | E19: =C19 -> $1:$6 | F19: =C19 -> $1:$6 | G19: $159:$164 | H19: =G19 -> $159:$164 | I19: =G19 -> $159:$164 | J19: =G19 -> $159:$164 | K19: =H19 -> $159:$164 | L19: =I19 -> $159:$164 | M19: $1:$4 | N19: $1:$3
A20: Print Title Columns | B20: 2 | C20: $A:$D | D20: =$C20 -> $A:$D | E20: =$C20 -> $A:$D | F20: =$C20 -> $A:$D | G20: $A:$D | H20: =$G20 -> $A:$D | I20: =$G20 -> $A:$D | J20: =$G20 -> $A:$D | L20: $BQ:$BR
A21: Fit Pgs Wide | B21: 3 | C21: 1 | D21: =C21 -> 1 | E21: =C21 -> 1 | F21: =C21 -> 1 | G21: 1 | H21: =G21 -> 1 | I21: =G21 -> 1 | J21: =G21 -> 1 | K21: =H21 -> 1 | L21: =I21 -> 1 | M21: =J21 -> 1 | N21: =K21 -> 1
A22: Fit Pgs Tall | B22: 4 | C22: 2 | D22: =C22 -> 2 | E22: =C22 -> 2 | F22: =C22 -> 2 | G22: 4 | H22: =G22 -> 4 | I22: =G22 -> 4 | J22: =G22 -> 4 | K22: 3 | L22: 3 | M22: 1 | N22: 1
A23: Zoom | B23: 5 | C23: FALSE | D23: =C23 -> FALSE | E23: =C23 -> FALSE | F23: =C23 -> FALSE | G23: FALSE | H23: =G23 -> FALSE | I23: =G23 -> FALSE | J23: =G23 -> FALSE | K23: =H23 -> FALSE | L23: =I23 -> FALSE | M23: =J23 -> FALSE | N23: =K23 -> FALSE
A24: Orientation | B24: 6 | C24: Landscape | D24: =C24 -> Landscape | E24: =C24 -> Landscape | F24: =C24 -> Landscape | G24: Landscape | H24: =G24 -> Landscape | I24: =G24 -> Landscape | J24: =G24 -> Landscape | K24: =H24 -> Landscape | L24: =I24 -> Landscape | M24: Portrait | N24: Landscape
A25: Left Header | B25: 7 | C25: ="AVISTA UTILITIES -- "&Scen&CHAR(10)&"Pro-Forma Rate Base Dollars" -> AVISTA UTILITIES -- Base Case Pro-Forma Rate Base Dollars | D25: ="AVISTA UTILITIES -- "&Scen&CHAR(10)&"Rate Base Classification %'s" -> AVISTA UTILITIES -- Base Case Rate Base Classification %'s | E25: ="AVISTA UTILITIES -- "&Scen&CHAR(10)&"Classification Dollars" -> AVISTA UTILITIES -- Base Case Classification Dollars | F25: =E25 -> AVISTA UTILITIES -- Base Case Classification Dollars | G25: ="AVISTA UTILITIES -- "&Scen&CHAR(10)&"Pro-Forma Revenue Requirement Dollars" -> AVISTA UTILITIES -- Base Case Pro-Forma Revenue Requirement Dollars | H25: ="AVISTA UTILITIES -- "&Scen&CHAR(10)&"Revenue Requirement Classification %'s" -> AVISTA UTILITIES -- Base Case Revenue Requirement Classification %'s | I25: ="AVISTA UTILITIES -- "&Scen&CHAR(10)&"Classification Dollars" -> AVISTA UTILITIES -- Base Case Classification Dollars | J25: =I25 -> AVISTA UTILITIES -- Base Case Classification Dollars | K25: ="AVISTA UTILITIES -- "&Scen&CHAR(10)&"Pro-Forma Labor Expense" -> AVISTA UTILITIES -- Base Case Pro-Forma Labor Expense | L25: ="AVISTA UTILITIES -- "&Scen&CHAR(10)&"Pro-Forma Labor Expense" -> AVISTA UTILITIES -- Base Case Pro-Forma Labor Expense | M25: ="AVISTA UTILITIES -- "&Scen&CHAR(10)&"Cost of Service General Summary" -> AVISTA UTILITIES -- Base Case Cost of Service General Summary | N25: ="AVISTA UTILITIES -- "&Scen&CHAR(10)&"Allocation Percentages" -> AVISTA UTILITIES -- Base Case Allocation Percentages
A26: Center Header | B26: 8
A27: Right Header | B27: 9 | C27: WA Gas | D27: =$C27 -> WA Gas | E27: =$C27 -> WA Gas | F27: =$C27 -> WA Gas | G27: WA Gas | H27: =$G27 -> WA Gas | I27: WA Gas | J27: WA Gas | K27: WA Gas | L27: WA Gas | M27: WA Gas | N27: WA Gas
A28: Left Footer | B28: 10 | C28: =MID(C42,C44+1,C46-1)&" "&C47 -> Exhibit No. ___ (CTM-5) - Natural Gas Cost of Service.xlsm Detail | D28: =MID(D42,D44+1,D46-1)&" "&D47 -> Exhibit No. ___ (CTM-5) - Natural Gas Cost of Service.xlsm Detail | E28: Exhibit No. ___ (CTM-5) - Natural Gas Cost of Service.xlsm Detail | F28: Exhibit No. ___ (CTM-5) - Natural Gas Cost of Service.xlsm Detail | G28: Exhibit No. ___ (CTM-5) - Natural Gas Cost of Service.xlsm Detail | H28: Exhibit No. ___ (CTM-5) - Natural Gas Cost of Service.xlsm Detail | I28: Exhibit No. ___ (CTM-5) - Natural Gas Cost of Service.xlsm Detail | J28: Exhibit No. ___ (CTM-5) - Natural Gas Cost of Service.xlsm Detail | K28: Exhibit No. ___ (CTM-5) - Natural Gas Cost of Service.xlsm Detail | L28: Exhibit No. ___ (CTM-5) - Natural Gas Cost of Service.xlsm Detail | M28: Exhibit No. ___ (CTM-5) - Natural Gas Cost of Service.xlsm Summary | N28: Exhibit No. ___ (CTM-5) - Natural Gas Cost of Service.xlsm Factors
A29: Center Footer | B29: 11 | C29: =TODAY() -> 2012-09-17 | D29: =$C$29 -> 2012-09-17 | E29: =$C$29 -> 2012-09-17 | F29: 2012-09-17 | G29: 2012-09-17 | H29: 2012-09-17 | I29: 2012-09-17 | J29: 2012-09-17 | K29: 2012-09-17 | L29: 2012-09-17 | M29: 2012-09-17 | N29: 2012-09-17
A30: Right Footer | B30: 12 | C30: ="Page &P of "&$P$35 -> Page &P of 35 | D30: Page &P of 35 | E30: Page &P of 35 | F30: Page &P of 35 | G30: Page &P of 35 | H30: Page &P of 35 | I30: Page &P of 35 | J30: Page &P of 35 | K30: Page &P of 35 | L30: Page &P of 35 | M30: Page &P of 35 | N30: Page &P of 35
A31: 1st Pg # | B31: 13 | C31: =M35+1 -> 4 | D31: =C31+C35 -> 6 | E31: =H31+H35 -> 16 | F31: =E31+E35 -> 18 | G31: =D31+D35 -> 8 | H31: =G31+G35 -> 12 | I31: =F31+F35 -> 20 | J31: =I31+I35 -> 24 | K31: =J31+J35 -> 28 | L31: =K31+K35 -> 31 | M31: 1 | N31: =L31+L35 -> 34
A32: Preview (False=Print) | B32: 14 | C32: TRUE | D32: =$C$32 -> TRUE | E32: TRUE | F32: TRUE | G32: TRUE | H32: TRUE | I32: TRUE | J32: TRUE | K32: TRUE | L32: TRUE | M32: TRUE | N32: TRUE
A33: Zoom % w/print to fit | B33: 15
A35: Total Pages | C35: =C21*C22 -> 2 | D35: =D21*D22 -> 2 | E35: 2 | F35: 2 | G35: 4 | H35: 4 | I35: 4 | J35: 4 | K35: 3 | L35: 3 | M35: 3 | N35: 2 | P35: =SUM(C35:O35) -> 35
A37: H/F examples: | C37: "&F" & Chr(10) & "&A" | D37: would print FileName on one line and TabName on next
C38: "Page &P of &N" | D38: would print: Page 1 of 3
C39: "&D , &T" | D39: would print: 1/31/08, 18:00 in whatever format
A42: Path of Filename | C42: =CELL("filename",$A$1) -> H:\Testimony & DRs\Avista\[Exhibit No. ___ (CTM-5) - Natural Gas Cost of Service.xlsm]Print | D42: =CELL("filename",$A$1) -> H:\Testimony & DRs\Avista\[Exhibit No. ___ (CTM-5) - Natural Gas Cost of Service.xlsm]Print | E42: H:\Testimony & DRs\Avista\[Exhibit No. ___ (CTM-5) - Natural Gas Cost of Service.xlsm]Print | F42: H:\Testimony & DRs\Avista\[Exhibit No. ___ (CTM-5) - Natural Gas Cost of Service.xlsm]Print | G42: H:\Testimony & DRs\Avista\[Exhibit No. ___ (CTM-5) - Natural Gas Cost of Service.xlsm]Print | H42: H:\Testimony & DRs\Avista\[Exhibit No. ___ (CTM-5) - Natural Gas Cost of Service.xlsm]Print | I42: H:\Testimony & DRs\Avista\[Exhibit No. ___ (CTM-5) - Natural Gas Cost of Service.xlsm]Print | J42: H:\Testimony & DRs\Avista\[Exhibit No. ___ (CTM-5) - Natural Gas Cost of Service.xlsm]Print | K42: H:\Testimony & DRs\Avista\[Exhibit No. ___ (CTM-5) - Natural Gas Cost of Service.xlsm]Print | L42: H:\Testimony & DRs\Avista\[Exhibit No. ___ (CTM-5) - Natural Gas Cost of Service.xlsm]Print | M42: H:\Testimony & DRs\Avista\[Exhibit No. ___ (CTM-5) - Natural Gas Cost of Service.xlsm]Print | N42: H:\Testimony & DRs\Avista\[Exhibit No. ___ (CTM-5) - Natural Gas Cost of Service.xlsm]Print
A43: Length of Path | C43: =LEN(C42) -> 91 | D43: =$C43 -> 91 | E43: =$C43 -> 91 | F43: 91 | G43: 91 | H43: 91 | I43: 91 | J43: 91 | K43: 91 | L43: 91 | M43: 91 | N43: 91
A44: Filename start pt | C44: =FIND("[",C42,1) -> 27 | D44: =$C44 -> 27 | E44: 27 | F44: 27 | G44: 27 | H44: 27 | I44: 27 | J44: 27 | K44: 27 | L44: 27 | M44: 27 | N44: 27
A45: Filename end pt | C45: =FIND("]",C42,1) -> 86 | D45: 86 | E45: 86 | F45: 86 | G45: 86 | H45: 86 | I45: 86 | J45: 86 | K45: 86 | L45: 86 | M45: 86 | N45: 86
A46: Filename length | C46: =C45-C44 -> 59 | D46: 59 | E46: 59 | F46: 59 | G46: 59 | H46: 59 | I46: 59 | J46: 59 | K46: 59 | L46: 59 | M46: 59 | N46: 59
A47: Tab Name | C47: Detail | D47: Detail | E47: Detail | F47: Detail | G47: Detail | H47: Detail | I47: Detail | J47: Detail | K47: Detail | L47: Detail | M47: Summary | N47: Factors

Sheet Factors (hidden)
A1: =ColHdr -> A | B1: =ColHdr -> B | C1: C | D1: D | E1: E | F1: F | G1: G | H1: H | I1: I | J1: J | K1: K | L1: L | M1: M | N1: N | O1: O | P1: P | Q1: Q | R1: R | S1: S | T1: T
A2: =Pg2Row+ROW(A2) -> 536 | E2: 1 | F2: 2 | G2: 3 | H2: 4 | I2: 5 | J2: 6
A3: 537 | B3: Allocation Factor | C3: Abbrev | D3: Total | E3: Sch 101 | F3: Sch 111 | G3: Sch 121 | H3: Sch 131 | I3: Sch 146 | J3: Open | K3: allocation basis
A4: 538 | B4: Throughput - All Schedules | C4: E01 | D4: =SUM(E4:J4) -> 200950761 | E4: =E$41 -> 119024606 | F4: 45569603 | G4: 6264998 | H4: 642905 | I4: 29448649 | J4: 0 | K4: =K41 -> Input from Proforma Revenue Study
A5: 539 | B5: Sales - Excludes 146 | C5: E04 | D5: =SUM(E5:J5) -> 171502112 | E5: =E$41 -> 119024606 | F5: =F$41 -> 45569603 | G5: =G$41 -> 6264998 | H5: =H$41 -> 642905 | I5: 0 | J5: =J$41 -> 0 | K5: same as Throughput, less Transport
A6: 540 | B6: Throughput - Excludes 131 & 146 | C6: E06 | D6: 170859207 | E6: =E$41 -> 119024606 | F6: =F$41 -> 45569603 | G6: =G$41 -> 6264998 | H6: 0 | I6: 0 | J6: =J$41 -> 0 | K6: same as Throughput, less Transport & Interruptible
A7: 541 | B7: Purchased Gas - Commodity | C7: E07 | D7: =SUM(E7:J7) -> 61653295 | E7: 42788156 | F7: 16381817 | G7: 2252204 | H7: 231118 | I7: 0 | J7: 0 | K7: Input from Proforma Gas Supply
A8: 542 | B8: GTI Expense | C8: E08 | D8: =SUM(E8:J8) -> 75380 | E8: 55942 | F8: 17316 | G8: 1942 | H8: 180 | I8: 0 | J8: 0 | K8: Input GTI Contributions
A9: 543 | B9: Coincident Peak - All | C9: D01 | D9: 1516564 | E9: =E$42 -> 983461 | F9: 370770 | G9: 25373 | H9: 5009 | I9: 131951 | J9: 0 | K9: Input from Peak Study
A10: 544 | B10: Coincident Peak - All w/o 131 | C10: D02 | D10: 1511555 | E10: =E$9 -> 983461 | F10: =F$9 -> 370770 | G10: =G$9 -> 25373 | H10: 0 | I10: =I9 -> 131951 | J10: =J$9 -> 0 | K10: Input from Peak Study, D.A. for Int/Transp from Peak Study & Mains Study
A11: 545 | B11: Purchased Gas - Demand | C11: D05 | D11: =SUM(E11:J11) -> 18353780 | E11: 12935594 | F11: 4802580 | G11: 556019 | H11: 43685 | I11: 15902 | J11: 0 | K11: Input from Proforma Gas Supply
A12: 546 | B12: DA 131 | C12: D06 | D12: 100 | E12: 0 | F12: 0 | G12: 0 | H12: 100 | I12: 0 | J12: 0 | K12: Direct Assignment Schedule 131
A13: 547 | B13: DA 146 | C13: D07 | D13: 100 | E13: 0 | F13: 0 | G13: 0 | H13: 0 | I13: 100 | J13: 0 | K13: Direct Assignment Schedule 146
A14: 548 | B14: All Customers | C14: C01 | D14: 1777807 | E14: =E$43*E46 -> 1748256 | F14: 28783 | G14: 312 | H14: 12 | I14: 444 | J14: 0 | K14: Unweighted Customers
A15: 549 | B15: Service Cost | C15: C02 | D15: 1781563 | E15: =E$43*E47 -> 1748256 | F15: 28783 | G15: 936 | H15: 36 | I15: =I$43*I47 -> 3552 | J15: 0 | K15: Wtd Avg Service Cost
A16: 550 | B16: Meter Cost | C16: C03 | D16: 2040552.85 | E16: 1748256 | F16: 247245.97 | G16: 8058.96 | H16: 1836 | I16: 35155.92 | J16: 0 | K16: Weighted Average Meter Cost
A17: 551 | B17: Regulator Cost | C17: C04 | D17: 1777807 | E17: =E$43*E49 -> 1748256 | F17: =F$43*F49 -> 28783 | G17: 312 | H17: 12 | I17: 444 | J17: 0 | K17: - not used -
A18: 552 | B18: Ind Meas & Reg Cost | C18: C06 | D18: 36628.36 | E18: =E$43*E51 -> 0 | F18: =F$43*F51 -> 28783 | G18: 1397.76 | H18: 320.4 | I18: 6127.2 | J18: 0 | K18: Direct Assigned to Handbilled Customers
A19: 553 | B19: DA 101 | C19: C10 | D19: =SUM(E19:J19) -> 100 | E19: 100 | F19: 0 | G19: 0 | H19: 0 | I19: 0 | J19: 0 | K19: Direct Assigned to Residential
A20: 554 | B20: Revenues From Retail Rates | C20: R01 | D20: 144083973 | E20: 105608050 | F20: 32015490 | G20: 3894096 | H20: 365060 | I20: 2201277 | J20: 0 | K20: Input Revenue From Rates
A21: 555
A22: 556 | B22: Throughput | C22: E01 | D22: =SUM(E22:J22) -> 1 | E22: =E4/$D4 -> 0.5923073165 | F22: =F4/$D4 -> 0.2267699947 | G22: 0.03117678166 | H22: 0.003199316075 | I22: 0.1465465911 | J22: 0
A23: 557 | B23: Sales | C23: E04 | D23: =SUM(E23:J23) -> 1 | E23: 0.6940124796 | F23: 0.2657086987 | G23: 0.03653015072 | H23: 0.003748671037 | I23: 0 | J23: 0
A24: 558 | B24: Therms - Small Mains | C24: E06 | D24: 1 | E24: 0.6966238934 | F24: 0.2667085011 | G24: 0.03666760551 | H24: 0 | I24: 0 | J24: 0
A25: 559 | B25: Purchased Gas - Commodity | C25: E07 | D25: 1 | E25: 0.6940124774 | F25: 0.2657087022 | G25: 0.03653014815 | H25: 0.003748672313 | I25: 0 | J25: 0
A26: 560 | B26: GTI Expense | C26: E08 | D26: 1 | E26: 0.7421331918 | F26: 0.2297161051 | G26: 0.0257628018 | H26: 0.0023879013 | I26: 0 | J26: 0
A27: 561 | B27: Coincident Peak - All | C27: D01 | D27: 1 | E27: 0.6484797213 | F27: 0.2444802857 | G27: 0.01673058308 | H27: 0.003302860941 | I27: 0.08700654901 | J27: 0
A28: 562 | B28: Coincident Peak - Small Mains | C28: D02 | D28: 1 | E28: =E10/$D10 -> 0.6506286572 | F28: 0.2452904459 | G28: 0.01678602499 | H28: 0 | I28: 0.08729487184 | J28: 0
A29: 563 | B29: Purchased Gas - Demand | C29: D05 | D29: 1 | E29: 0.7047918195 | F29: 0.2616670789 | G29: 0.03029452244 | H29: 0.00238016365 | I29: 0.0008664155286 | J29: 0
A30: 564 | B30: DA 131 | C30: D06 | D30: 1 | E30: 0 | F30: 0 | G30: 0 | H30: 1 | I30: 0 | J30: 0
A31: 565 | B31: DA 146 | C31: D07 | D31: 1 | E31: 0 | F31: 0 | G31: 0 | H31: 0 | I31: 1 | J31: 0
A32: 566 | B32: All Customers | C32: C01 | D32: 1 | E32: 0.9833778357 | F32: 0.01619017137 | G32: 0.0001754971153 | H32: 6.749889049e-06 | I32: 0.0002497458948 | J32: 0
A33: 567 | B33: Service Cost | C33: C02 | D33: 1 | E33: 0.9813046185 | F33: 0.01615603827 | G33: 0.0005253813646 | H33: 2.020697556e-05 | I33: 0.001993754922 | J33: 0
A34: 568 | B34: Meter Cost | C34: C03 | D34: 1 | E34: 0.8567560502 | F34: 0.1211661683 | G34: 0.003949400281 | H34: 0.0008997561617 | I34: 0.01722862508 | J34: 0
A35: 569 | B35: Regulator Cost | C35: C04 | D35: 1 | E35: 0.9833778357 | F35: 0.01619017137 | G35: 0.0001754971153 | H35: 6.749889049e-06 | I35: 0.0002497458948 | J35: 0
A36: 570 | B36: Ind Meas & Reg Cost | C36: C06 | D36: 1 | E36: 0 | F36: 0.7858118682 | G36: 0.03816059469 | H36: 0.008747320382 | I36: 0.1672802168 | J36: 0
A37: 571 | B37: DA 101 | C37: C10 | D37: 1 | E37: 1 | F37: 0 | G37: 0 | H37: 0 | I37: 0 | J37: 0
A38: 572 | B38: Revenues From Retail Rates | C38: R01 | D38: 1 | E38: 0.7329618125 | F38: 0.2222002165 | G38: 0.0270265729 | H38: 0.002533661395 | I38: 0.01527773668 | J38: 0
A39: 573
A40: 574
A41: 575 | C41: Throughput Therms | E41: 119024606 | F41: 45569603 | G41: 6264998 | H41: 642905 | I41: 29448649 | J41: 0 | K41: Input from Proforma Revenue Study
A42: 576 | C42: Peak Therms | E42: 983461 | F42: 370770 | G42: 25373 | H42: 5009 | I42: 131951 | J42: 0 | K42: Input from Peak Study
A43: 577 | C43: No. of Cust. Bills--Annual | E43: 1748256 | F43: 28783 | G43: 312 | H43: 12 | I43: 444 | K43: Input from Proforma Revenue Study
A44: 578
A45: 579 | C45: Customer Weightings
A46: 580 | C46: All Customers | E46: 1 | F46: 1 | G46: 1 | H46: 1 | I46: 1
A47: 581 | C47: Service Cost | E47: 1 | F47: 1 | G47: 3 | H47: 3 | I47: 8 | K47: Input from Typical Service Cost Study
A48: 582 | C48: Meter Cost | E48: 1 | F48: 8.59 | G48: 25.83 | H48: 153 | I48: 79.18 | K48: Input from Meter Cost Study
A49: 583 | C49: Regulator Cost | E49: 1 | F49: 1 | G49: 1 | H49: 1 | I49: 1
A50: 584 | C50: Installations Cost | E50: 1 | F50: 1 | G50: 1 | H50: 1 | I50: 1
A51: 585 | C51: Ind Meas & Reg Cost | E51: 0 | F51: 1 | G51: 4.48 | H51: 26.7 | I51: 13.8 | K51: Input from Meter Cost Study
A52: 586
A53: 587
A54: 588
A55: 589
A56: 590
A57: 591 | D57: E01 | E57: E04 | F57: E06 | G57: E07 | H57: E08 | I57: D01 | J57: D02 | K57: D05 | L57: D06 | M57: D07 | N57: C01 | O57: C02 | P57: C03 | Q57: C04 | R57: C06 | S57: C10 | T57: R01
A58: 592 | C58: Sch 101 | D58: =INDEX($E$22:$J$38,COLUMN(D57)-COLUMN($C57),ROW(C58)-ROW(C$57)) -> 0.5923073165 | E58: 0.6940124796 | F58: 0.6966238934 | G58: 0.6940124774 | H58: 0.7421331918 | I58: 0.6484797213 | J58: =E9/($D$9-$H$9) -> 0.6506286572 | K58: =INDEX($E$22:$J$38,COLUMN(K57)-COLUMN($C57),ROW(J58)-ROW(J$57)) -> 0.7047918195 | L58: 0 | M58: 0 | N58: 0.9833778357 | O58: 0.9813046185 | P58: 0.8567560502 | Q58: 0.9833778357 | R58: 0 | S58: 1 | T58: 0.7329618125
A59: 593 | C59: Sch 111 | D59: 0.2267699947 | E59: 0.2657086987 | F59: 0.2667085011 | G59: 0.2657087022 | H59: 0.2297161051 | I59: 0.2444802857 | J59: =F9/($D$9-$H$9) -> 0.2452904459 | K59: 0.2616670789 | L59: 0 | M59: 0 | N59: 0.01619017137 | O59: 0.01615603827 | P59: 0.1211661683 | Q59: 0.01619017137 | R59: 0.7858118682 | S59: 0 | T59: 0.2222002165
A60: 594 | C60: Sch 121 | D60: 0.03117678166 | E60: 0.03653015072 | F60: 0.03666760551 | G60: 0.03653014815 | H60: 0.0257628018 | I60: 0.01673058308 | J60: =G9/($D$9-$H$9) -> 0.01678602499 | K60: 0.03029452244 | L60: 0 | M60: 0 | N60: 0.0001754971153 | O60: 0.0005253813646 | P60: 0.003949400281 | Q60: 0.0001754971153 | R60: 0.03816059469 | S60: 0 | T60: 0.0270265729
A61: 595 | C61: Sch 131 | D61: 0.003199316075 | E61: 0.003748671037 | F61: 0 | G61: 0.003748672313 | H61: 0.0023879013 | I61: 0.003302860941 | J61: =(H9-H9)/($D$9-$H$9) -> 0 | K61: 0.00238016365 | L61: 1 | M61: 0 | N61: 6.749889049e-06 | O61: 2.020697556e-05 | P61: 0.0008997561617 | Q61: 6.749889049e-06 | R61: 0.008747320382 | S61: 0 | T61: 0.002533661395
A62: 596 | C62: Sch 146 | D62: 0.1465465911 | E62: 0 | F62: 0 | G62: 0 | H62: 0 | I62: 0.08700654901 | J62: =I9/($D$9-$H$9) -> 0.08729487184 | K62: 0.0008664155286 | L62: 0 | M62: 1 | N62: 0.0002497458948 | O62: 0.001993754922 | P62: 0.01722862508 | Q62: 0.0002497458948 | R62: 0.1672802168 | S62: 0 | T62: 0.01527773668
A63: 597 | C63: Open | D63: 0 | E63: 0 | F63: 0 | G63: 0 | H63: 0 | I63: 0 | J63: =J9/($D$9-$H$9) -> 0 | K63: 0 | L63: 0 | M63: 0 | N63: 0 | O63: 0 | P63: 0 | Q63: 0 | R63: 0 | S63: 0 | T63: 0
A64: 598
A65: 599 | D65: range name: AllocFactors_E | I65: range name: AllocFactors_D | N65: range name: AllocFactors_C
A66: 600 | D66: all 3 ranges + R01, range name: AllocFactors
A67: 601 | B67: Allocated Dollars - Rate Base
A68: =Pg2Row+ROW(A68) -> 602 | B68: Throughput | C68: E01 | D68: =Detail!$E$122*INDEX(Detail!$R$122:$AH$122,$A68-$A$67) -> 20123917.21 | E68: =$D68*INDEX(AllocFactors,E$2,$A68-$A$67) -> 11919543.4 | F68: 4563500.597 | G68: 627398.9728 | H68: 64382.77181 | I68: 2949091.466 | J68: 0
A69: 603 | B69: Sales | C69: E04 | D69: =Detail!$E$122*INDEX(Detail!$R$122:$AH$122,$A69-$A$67) -> 26454135.56 | E69: 18359500.22 | F69: 7029093.935 | G69: 966373.5593 | H69: 99167.85179 | I69: 0 | J69: 0
A70: 604 | B70: Therms - Small Mains | C70: E06 | D70: =Detail!$E$122*INDEX(Detail!$R$122:$AH$122,$A70-$A$67) -> 2212621.221 | E70: 1541364.809 | F70: 590124.8893 | G70: 81131.52206 | H70: 0 | I70: 0 | J70: 0
A71: 605 | B71: Purchased Gas - Commodity | C71: E07 | D71: =Detail!$E$122*INDEX(Detail!$R$122:$AH$122,$A71-$A$67) -> 0 | E71: 0 | F71: 0 | G71: 0 | H71: 0 | I71: 0 | J71: 0
A72: 606 | B72: GTI Expense | C72: E08 | D72: =Detail!$E$122*INDEX(Detail!$R$122:$AH$122,$A72-$A$67) -> 0 | E72: 0 | F72: 0 | G72: 0 | H72: 0 | I72: 0 | J72: 0
A73: 607 | B73: Coincident Peak - All | C73: D01 | D73: =Detail!$E$122*INDEX(Detail!$R$122:$AH$122,$A73-$A$67) -> 57858738.59 | E73: 37520218.67 | F73: 14145320.94 | G73: 968010.433 | H73: 191099.3678 | I73: 5034089.175 | J73: 0
A74: 608 | B74: Coincident Peak - Small Mains | C74: D02 | D74: =Detail!$E$122*INDEX(Detail!$R$122:$AH$122,$A74-$A$67) -> 0 | E74: 0 | F74: 0 | G74: 0 | H74: 0 | I74: 0 | J74: 0
A75: 609 | B75: Purchased Gas - Demand | C75: D05 | D75: =Detail!$E$122*INDEX(Detail!$R$122:$AH$122,$A75-$A$67) -> 0 | E75: 0 | F75: 0 | G75: 0 | H75: 0 | I75: 0 | J75: 0
A76: 610 | B76: DA 131 | C76: D06 | D76: =Detail!$E$122*INDEX(Detail!$R$122:$AH$122,$A76-$A$67) -> 0 | E76: 0 | F76: 0 | G76: 0 | H76: 0 | I76: 0 | J76: 0
A77: 611 | B77: DA 146 | C77: D07 | D77: =Detail!$E$122*INDEX(Detail!$R$122:$AH$122,$A77-$A$67) -> 0 | E77: 0 | F77: 0 | G77: 0 | H77: 0 | I77: 0 | J77: 0
A78: 612 | B78: All Customers | C78: C01 | D78: =Detail!$E$122*INDEX(Detail!$R$122:$AH$122,$A78-$A$67) -> 0 | E78: =$D78*INDEX(AllocFactors,E$2,$A78-$A$67) -> 0 | F78: 0 | G78: 0 | H78: 0 | I78: 0 | J78: 0
A79: 613 | B79: Service Cost | C79: C02 | D79: =Detail!$E$122*INDEX(Detail!$R$122:$AH$122,$A79-$A$67) -> 50558465.27 | E79: 49613255.47 | F79: 816824.4995 | G79: 26562.47547 | H79: 1021.633672 | I79: 100801.189 | J79: 0
A80: 614 | B80: Meter Cost | C80: C03 | D80: =Detail!$E$122*INDEX(Detail!$R$122:$AH$122,$A80-$A$67) -> 30581967.42 | E80: 26201285.61 | F80: 3705499.81 | G80: 120780.4307 | H80: 27516.31362 | I80: 526885.2507 | J80: 0
A81: 615 | B81: Regulator Cost | C81: C04 | D81: =Detail!$E$122*INDEX(Detail!$R$122:$AH$122,$A81-$A$67) -> 0 | E81: 0 | F81: 0 | G81: 0 | H81: 0 | I81: 0 | J81: 0
A82: 616 | B82: Ind Meas & Reg Cost | C82: C06 | D82: =Detail!$E$122*INDEX(Detail!$R$122:$AH$122,$A82-$A$67) -> 1299154.736 | E82: 0 | F82: 1020891.21 | G82: 49576.51732 | H82: 11364.1227 | I82: 217322.8859 | J82: 0
A83: 617 | B83: DA 101 | C83: C10 | D83: =Detail!$E$122*INDEX(Detail!$R$122:$AH$122,$A83-$A$67) -> 0 | E83: 0 | F83: 0 | G83: 0 | H83: 0 | I83: 0 | J83: 0
A84: 618 | B84: Revenues From Retail Rates | C84: R01 | D84: =Detail!$E$122*INDEX(Detail!$R$122:$AH$122,$A84-$A$67) -> 0 | E84: 0 | F84: 0 | G84: 0 | H84: 0 | I84: 0 | J84: 0
A85: 619
A86: 620 | B86: Total | D86: =IF(ROUND(SUM(D68:D85),3)<>ROUND(SUM(E86:J86),3),#VALUE!,SUM(E86:J86)) -> 189089000 | E86: =SUM(E68:E85) -> 145155168.2 | F86: 31871255.88 | G86: 2839833.911 | H86: 394552.0614 | I86: 8828189.966 | J86: 0
A87: 621
A88: 622 | B88: Allocated Dollars - Pre-tax Operating Expenses
A89: 623 | B89: Throughput | C89: E01 | D89: =Detail!$E$396*INDEX(Detail!$R$396:$AH$396,$A89-$A$88) -> 7752413.506 | E89: =$D89*INDEX(AllocFactors,E$2,$A89-$A$88) -> 4591811.24 | F89: 1758014.769 | G89: 241695.3032 | H89: 24802.42115 | I89: 1136089.772 | J89: 0
A90: 624 | B90: Sales | C90: E04 | D90: =Detail!$E$396*INDEX(Detail!$R$396:$AH$396,$A90-$A$88) -> 3944099.077 | E90: 2737253.98 | F90: 1047981.433 | G90: 144078.5337 | H90: 14785.12998 | I90: 0 | J90: 0
A91: 625 | B91: Therms - Small Mains | C91: E06 | D91: =Detail!$E$396*INDEX(Detail!$R$396:$AH$396,$A91-$A$88) -> 281382.7514 | E91: 196017.9478 | F91: 75047.17187 | G91: 10317.63173 | H91: 0 | I91: 0 | J91: 0
A92: 626 | B92: Purchased Gas - Commodity | C92: E07 | D92: =Detail!$E$396*INDEX(Detail!$R$396:$AH$396,$A92-$A$88) -> 61653394.2 | E92: 42788224.85 | F92: 16381843.36 | G92: 2252207.624 | H92: 231118.3719 | I92: 0 | J92: 0
A93: 627 | B93: GTI Expense | C93: E08 | D93: =Detail!$E$396*INDEX(Detail!$R$396:$AH$396,$A93-$A$88) -> 75000 | E93: 55659.98939 | F93: 17228.70788 | G93: 1932.210135 | H93: 179.0925975 | I93: 0 | J93: 0
A94: 628 | B94: Coincident Peak - All | C94: D01 | D94: =Detail!$E$396*INDEX(Detail!$R$396:$AH$396,$A94-$A$88) -> 7579329.88 | E94: 4915041.728 | F94: 1852996.734 | G94: 126806.6083 | H94: 25033.47262 | I94: 659451.3367 | J94: 0
A95: 629 | B95: Coincident Peak - Small Mains | C95: D02 | D95: =Detail!$E$396*INDEX(Detail!$R$396:$AH$396,$A95-$A$88) -> 0 | E95: 0 | F95: 0 | G95: 0 | H95: 0 | I95: 0 | J95: 0
A96: 630 | B96: Purchased Gas - Demand | C96: D05 | D96: =Detail!$E$396*INDEX(Detail!$R$396:$AH$396,$A96-$A$88) -> 18353605.8 | E96: 12935471.23 | F96: 4802534.418 | G96: 556013.7227 | H96: 43684.58538 | I96: 15901.84907 | J96: 0
A97: 631 | B97: DA 131 | C97: D06 | D97: =Detail!$E$396*INDEX(Detail!$R$396:$AH$396,$A97-$A$88) -> 0 | E97: 0 | F97: 0 | G97: 0 | H97: 0 | I97: 0 | J97: 0
A98: 632 | B98: DA 146 | C98: D07 | D98: =Detail!$E$396*INDEX(Detail!$R$396:$AH$396,$A98-$A$88) -> 0 | E98: 0 | F98: 0 | G98: 0 | H98: 0 | I98: 0 | J98: 0
A99: 633 | B99: All Customers | C99: C01 | D99: =Detail!$E$396*INDEX(Detail!$R$396:$AH$396,$A99-$A$88) -> 9479585.693 | E99: =$D99*INDEX(AllocFactors,E$2,$A99-$A$88) -> 9322014.462 | F99: 153476.1169 | G99: 1663.639943 | H99: 63.98615165 | I99: 2367.487611 | J99: 0
A100: 634 | B100: Service Cost | C100: C02 | D100: =Detail!$E$396*INDEX(Detail!$R$396:$AH$396,$A100-$A$88) -> 6781795.509 | E100: 6655007.254 | F100: 109566.9477 | G100: 3563.028979 | H100: 137.0395761 | I100: 13521.23817 | J100: 0
A101: 635 | B101: Meter Cost | C101: C03 | D101: =Detail!$E$396*INDEX(Detail!$R$396:$AH$396,$A101-$A$88) -> 4721641.383 | E101: 4045294.822 | F101: 572103.1944 | G101: 18647.65181 | H101: 4248.325928 | I101: 81347.38913 | J101: 0
A102: 636 | B102: Regulator Cost | C102: C04 | D102: =Detail!$E$396*INDEX(Detail!$R$396:$AH$396,$A102-$A$88) -> 0 | E102: 0 | F102: 0 | G102: 0 | H102: 0 | I102: 0 | J102: 0
A103: 637 | B103: Ind Meas & Reg Cost | C103: C06 | D103: =Detail!$E$396*INDEX(Detail!$R$396:$AH$396,$A103-$A$88) -> 204752.2017 | E103: 0 | F103: 160896.7102 | G103: 7813.465782 | H103: 1791.033108 | I103: 34250.99269 | J103: 0
A104: 638 | B104: DA 101 | C104: C10 | D104: =Detail!$E$396*INDEX(Detail!$R$396:$AH$396,$A104-$A$88) -> 0 | E104: 0 | F104: 0 | G104: 0 | H104: 0 | I104: 0 | J104: 0
A105: 639 | B105: Revenues From Retail Rates | C105: R01 | D105: =Detail!$E$396*INDEX(Detail!$R$396:$AH$396,$A105-$A$88) -> 6715000 | E105: 4921838.571 | F105: 1492074.454 | G105: 181483.437 | H105: 17013.53627 | I105: 102590.0018 | J105: 0
A106: 640
A107: 641 | B107: Total | D107: =IF(ROUND(SUM(D89:D106),3)<>ROUND(SUM(E107:J107),3),#VALUE!,SUM(E107:J107)) -> 127542000 | E107: =SUM(E89:E106) -> 93163636.07 | F107: 28423764.02 | G107: 3546222.857 | H107: 362856.9946 | I107: 2045520.067 | J107: 0
A108: 642
A109: 643
A110: 644
A111: 645
A112: 646
A113: 647
A114: 648

Sheet Detail (hidden)
A1: =ColHdr -> A | B1: =ColHdr -> B | C1: C | D1: D | E1: E | F1: F | G1: G | H1: H | I1: I | J1: J | K1: K | L1: L | M1: M | N1: N | O1: O | P1: P | Q1: Q | R1: R | S1: S | T1: T | U1: U | V1: V | W1: W | X1: X | Y1: Y | Z1: Z | AA1: AA | AB1: AB | AC1: AC | AD1: AD | AE1: AE | AF1: AF | AG1: AG | AH1: AH | AI1: AI | AJ1: AJ | AK1: AK | AL1: AL | AM1: AM | AN1: AN | AO1: AO | AP1: AP | AQ1: AQ | AR1: AR | AS1: AS | AT1: AT | AU1: AU | AV1: AV | AW1: AW | AX1: AX | AY1: AY | AZ1: AZ | BA1: BA | BB1: BB | BC1: BC | BD1: BD | BE1: BE | BF1: BF | BG1: BG | BH1: BH | BI1: BI | BJ1: BJ | BK1: BK | BL1: BL | BM1: BM | BN1: BN | BO1: =ColHdr -> BO | BP1: BP | BQ1: BQ | BR1: BR | BS1: BS | BT1: BT | BU1: BU | BV1: BV | BW1: BW | BX1: BX | BY1: BY | BZ1: BZ | CA1: CA | CB1: CB | CC1: CC | CD1: CD | CE1: CE | CF1: CF | CG1: CG | CH1: CH | CI1: CI | CJ1: CJ | CK1: CK | CL1: CL | CM1: CM | CN1: CN | CO1: CO | CP1: CP | CQ1: CQ | CR1: CR
A2: =RowHdr -> 2
A3: 3 | AS3: COMMODITY | BA3: DEMAND | BI3: CUSTOMER
A4: 4 | E4: Proforma | I4: =MATCH(I5,Factors!$C$58:$C$64,0) -> 1 | J4: =MATCH(J5,Factors!$C$58:$C$64,0) -> 2 | K4: =MATCH(K5,Factors!$C$58:$C$64,0) -> 3 | L4: =MATCH(L5,Factors!$C$58:$C$64,0) -> 4 | M4: =MATCH(M5,Factors!$C$58:$C$64,0) -> 5 | N4: =MATCH(N5,Factors!$C$58:$C$64,0) -> 6 | R4: COMMODITY | S4: COMMODITY | T4: COMMODITY | U4: COMMODITY | V4: COMMODITY | W4: DEMAND | X4: DEMAND | Y4: DEMAND | Z4: DEMAND | AA4: DEMAND | AB4: CUSTOMER | AC4: CUSTOMER | AD4: CUSTOMER | AE4: CUSTOMER | AF4: CUSTOMER | AG4: CUSTOMER | AH4: REVENUE | AT4: =MATCH(AT5,Factors!$C$58:$C$64,0) -> 1 | AU4: =MATCH(AU5,Factors!$C$58:$C$64,0) -> 2 | AV4: =MATCH(AV5,Factors!$C$58:$C$64,0) -> 3 | AW4: =MATCH(AW5,Factors!$C$58:$C$64,0) -> 4 | AX4: =MATCH(AX5,Factors!$C$58:$C$64,0) -> 5 | AY4: =MATCH(AY5,Factors!$C$58:$C$64,0) -> 6 | BB4: =MATCH(BB5,Factors!$C$58:$C$64,0) -> 1 | BC4: =MATCH(BC5,Factors!$C$58:$C$64,0) -> 2 | BD4: =MATCH(BD5,Factors!$C$58:$C$64,0) -> 3 | BE4: =MATCH(BE5,Factors!$C$58:$C$64,0) -> 4 | BF4: =MATCH(BF5,Factors!$C$58:$C$64,0) -> 5 | BG4: =MATCH(BG5,Factors!$C$58:$C$64,0) -> 6 | BJ4: =MATCH(BJ5,Factors!$C$58:$C$64,0) -> 1 | BK4: =MATCH(BK5,Factors!$C$58:$C$64,0) -> 2 | BL4: =MATCH(BL5,Factors!$C$58:$C$64,0) -> 3 | BM4: =MATCH(BM5,Factors!$C$58:$C$64,0) -> 4 | BN4: =MATCH(BN5,Factors!$C$58:$C$64,0) -> 5 | BO4: =MATCH(BO5,Factors!$C$58:$C$64,0) -> 6 | BR4: Proforma | CM4: Proforma
A5: 5 | B5: Acct | C5: Func | D5: Description | E5: Totals | F5: classif. basis (line) | G5: derived classif. | H5: Total | I5: Sch 101 | J5: Sch 111 | K5: Sch 121 | L5: Sch 131 | M5: Sch 146 | N5: Open | P5: source | R5: Throughput | S5: Sales | T5: Therms - Small Mains | U5: Purchased Gas - Commodity | V5: GTI Expense | W5: Coincident Peak - All | X5: Coincident Peak - All w/o 131 | Y5: Purchased Gas - Demand | Z5: DA 131 | AA5: DA 146 | AB5: All Customers | AC5: Service Cost | AD5: Meter Cost | AE5: Regulator Cost | AF5: Ind Meas & Reg Cost | AG5: DA 101 | AH5: Revenues From Retail Rates | AK5: Total | AL5: Commodity | AM5: Demand | AN5: Customer | AO5: Revenue | AQ5: source | AS5: Total | AT5: Sch 101 | AU5: Sch 111 | AV5: Sch 121 | AW5: Sch 131 | AX5: Sch 146 | AY5: Open | BA5: Total | BB5: Sch 101 | BC5: Sch 111 | BD5: Sch 121 | BE5: Sch 131 | BF5: Sch 146 | BG5: Open | BI5: Total | BJ5: Sch 101 | BK5: Sch 111 | BL5: Sch 121 | BM5: Sch 131 | BN5: Sch 146 | BO5: Open | BR5: Labor Totals | CM5: Labor Totals
A6: 6 | R6: E01 | S6: E04 | T6: E06 | U6: E07 | V6: E08 | W6: D01 | X6: D02 | Y6: D05 | Z6: D06 | AA6: D07 | AB6: C01 | AC6: C02 | AD6: C03 | AE6: C04 | AF6: C06 | AG6: C10 | AH6: R01 | BR6: (see below) | CM6: (see below)
A7: 7 | D7: Rate Base | AI7: =IF(SUM(R7:AH7)<>0,(ROUND(SUM(R7:AH7),8)<>1)+0,0) -> 0
A8: 8 | D8: Plant In Service | AI8: 0
A9: 9 | D9: Intangible Plant | AI9: 0
A10: 10 | B10: 303 | C10: D | D10: Intangible Gas Plant | E10: ='PROFORMA (Staff)'!AW250 -> 993000 | F10: ="as Distrib Plant ("&A$39&")" -> as Distrib Plant (39) | H10: =SUM(I10:N10) -> 993000 | I10: =$E10*SUMPRODUCT($R10:$AH10,INDEX(AllocFactors,I$4,0)) -> 777254.9731 | J10: 153689.0664 | K10: 12705.13822 | L10: 1869.757296 | M10: 47481.06495 | N10: 0 | P10: =E$1&$A10&"* Sum["&$R$1&$A10&":"&$AH$1&$A10&"* "&Factors!D$1&Factors!$A$58&":"&Factors!S$1&Factors!$A$64&"]" -> E10* Sum[R10:AH10* D592:S598] | R10: =R$39 -> 0.1014384849 | S10: =S$39 -> 0.07244504266 | T10: 0.01262716926 | U10: 0 | V10: 0 | W10: 0.3272581574 | X10: 0 | Y10: 0 | Z10: 0 | AA10: 0 | AB10: 0 | AC10: 0.332928402 | AD10: 0.1454938619 | AE10: 0 | AF10: 0.007808881891 | AG10: 0 | AH10: 0 | AI10: =IF(SUM(R10:AH10)<>0,(ROUND(SUM(R10:AH10),8)<>1)+0,0) -> 0 | AK10: =SUM(AL10:AO10) -> 993000 | AL10: =SUMIF($R$4:$AH$4,AL$5,$R10:$AH10)*$E10 -> 185205.122 | AM10: 324967.3503 | AN10: 482827.5277 | AO10: 0 | AQ10: =E$1&$A10&"*["&R$1&$A10&":"&$AH$1&$A10&" when "&R$1&$A$4&":"&$AH$1&$A$4&" = E,D,C,or R]" -> E10*[R10:AH10 when R4:AH4 = E,D,C,or R] | AS10: =SUM(AT10:AY10) -> 185205.122 | AT10: =$E10*SUMPRODUCT($R10:$V10,INDEX(AllocFactors_E,AT$4,0)) -> 118322.8099 | AU10: 45300.91429 | AV10: 6228.058152 | AW10: 591.9336638 | AX10: 14761.40592 | AY10: 0 | BA10: =SUM(BB10:BG10) -> 324967.3503 | BB10: =$E10*SUMPRODUCT($W10:$AA10,INDEX(AllocFactors_D,BB$4,0)) -> 210734.7367 | BC10: 79448.11064 | BD10: 5436.893253 | BE10: 1073.321968 | BF10: 28274.28769 | BG10: 0 | BI10: =SUM(BJ10:BO10) -> 482827.5277 | BJ10: =$E10*SUMPRODUCT($AB10:$AG10,INDEX(AllocFactors_C,BJ$4,0)) -> 448197.4264 | BK10: 28940.04147 | BL10: 1040.186818 | BM10: 204.5016637 | BN10: 4445.371335 | BO10: 0
A11: 11 | B11: 303.1 | C11: O | D11: Miscellaneous - Computer Software | E11: ='PROFORMA (Staff)'!AW251 -> 5626000 | F11: ="as UG/D Plant ("&A$41&")" -> as UG/D Plant (41) | H11: =SUM(I11:N11) -> 5626000 | I11: 4362043.73 | J11: 913973.1081 | K11: 81388.87603 | L11: 11325.93887 | M11: 257268.3474 | N11: 0 | P11: =E$1&$A11&"* """ -> E11* " | R11: =R$41 -> 0.1035110493 | S11: =S$41 -> 0.1303195625 | T11: 0.01171087961 | U11: 0 | V11: 0 | W11: 0.303510692 | X11: 0 | Y11: 0 | Z11: 0 | AA11: 0 | AB11: 0 | AC11: 0.3087694757 | AD11: 0.13493611 | AE11: 0 | AF11: 0.007242230921 | AG11: 0 | AH11: 0 | AI11: 0 | AK11: =SUM(AL11:AO11) -> 5626000 | AL11: 1381416.431 | AM11: 1707551.153 | AN11: 2537032.416 | AO11: 0 | AQ11: =E$1&$A11&"* """ -> E11* " | AS11: =SUM(AT11:AY11) -> 1381416.431 | AT11: 899663.9729 | AU11: 344444.157 | AV11: 47354.85527 | AW11: 4611.57444 | AX11: 85341.87088 | AY11: 0 | BA11: =SUM(BB11:BG11) -> 1707551.153 | BB11: 1107312.296 | BC11: 417462.5938 | BD11: 28568.32644 | BE11: 5639.804009 | BF11: 148568.1331 | BG11: 0 | BI11: =SUM(BJ11:BO11) -> 2537032.416 | BJ11: 2355067.461 | BK11: 152066.3573 | BL11: 5465.69432 | BM11: 1074.560418 | BN11: 23358.34336 | BO11: 0
A12: 12 | D12: Total Intangible Plant | E12: =SUM(E9:E11) -> 6619000 | H12: =IF(ROUND(SUM(H10:H11),3)<>ROUND(SUM(I12:N12),3),#VALUE!,SUM(H10:H11)) -> 6619000 | I12: =SUM(I10:I11) -> 5139298.703 | J12: 1067662.175 | K12: 94094.01425 | L12: 13195.69616 | M12: 304749.4123 | N12: 0 | P12: =A10&":"&A11 -> 10:11 | R12: =SUMPRODUCT($E10:$E11,R$10:R$11)/$E12 -> 0.1032001177 | S12: =SUMPRODUCT($E10:$E11,S$10:S$11)/$E12 -> 0.121637073 | T12: 0.01184834382 | U12: 0 | V12: 0 | W12: 0.30707335 | X12: 0 | Y12: 0 | Z12: 0 | AA12: 0 | AB12: 0 | AC12: 0.3123938621 | AD12: 0.136520012 | AE12: 0 | AF12: 0.007327241408 | AG12: 0 | AH12: 0 | AI12: 0 | AK12: =IF(ROUND(SUM(AK10:AK11),3)<>ROUND(SUM(AL12:AO12),3),#VALUE!,SUM(AK10:AK11)) -> 6619000 | AL12: =SUM(AL10:AL11) -> 1566621.553 | AM12: =SUM(AM10:AM11) -> 2032518.504 | AN12: =SUM(AN10:AN11) -> 3019859.944 | AO12: =SUM(AO10:AO11) -> 0 | AQ12: =$A10&":"&$A11 -> 10:11 | AS12: =IF(ROUND(SUM(AS10:AS11),3)<>ROUND(SUM(AT12:AY12),3),#VALUE!,SUM(AS10:AS11)) -> 1566621.553 | AT12: =SUM(AT10:AT11) -> 1017986.783 | AU12: 389745.0713 | AV12: 53582.91342 | AW12: 5203.508104 | AX12: 100103.2768 | AY12: 0 | BA12: =IF(ROUND(SUM(BA10:BA11),3)<>ROUND(SUM(BB12:BG12),3),#VALUE!,SUM(BA10:BA11)) -> 2032518.504 | BB12: =SUM(BB10:BB11) -> 1318047.033 | BC12: 496910.7045 | BD12: 34005.21969 | BE12: 6713.125978 | BF12: 176842.4208 | BG12: 0 | BI12: =IF(ROUND(SUM(BI10:BI11),3)<>ROUND(SUM(BJ12:BO12),3),#VALUE!,SUM(BI10:BI11)) -> 3019859.944 | BJ12: =SUM(BJ10:BJ11) -> 2803264.887 | BK12: 181006.3988 | BL12: 6505.881138 | BM12: 1279.062081 | BN12: 27803.7147 | BO12: 0
A13: 13 | AI13: 0
A14: 14 | D14: Underground Storage Plant | AI14: 0
A15: 15 | B15: 350 | C15: U | D15: Land & Land Rights | E15: ='PROFORMA (Staff)'!AW255 -> 328000 | F15: Input - Settlement | H15: =SUM(I15:N15) -> 328000 | I15: =$E15*SUMPRODUCT($R15:$AH15,INDEX(AllocFactors,I$4,0)) -> 223299.3851 | J15: 85492.10683 | K15: 11753.62178 | L15: 1206.139605 | M15: 6248.746644 | N15: 0 | P15: =E$1&$A15&"* Sum["&$R$1&$A15&":"&$AH$1&$A15&"* "&Factors!D$1&Factors!$A$58&":"&Factors!S$1&Factors!$A$64&"]" -> E15* Sum[R15:AH15* D592:S598] | R15: 0.13 | S15: 0.87 | T15: 0 | U15: 0 | V15: 0 | W15: 0 | X15: 0 | Y15: 0 | Z15: 0 | AA15: 0 | AB15: 0 | AC15: 0 | AD15: 0 | AE15: 0 | AF15: 0 | AG15: 0 | AH15: 0 | AI15: 0 | AK15: =SUM(AL15:AO15) -> 328000 | AL15: =SUMIF($R$4:$AH$4,AL$5,$R15:$AH15)*$E15 -> 328000 | AM15: 0 | AN15: 0 | AO15: 0 | AQ15: =E$1&$A15&"*["&R$1&$A15&":"&$AH$1&$A15&" when "&R$1&$A$4&":"&$AH$1&$A$4&" = E,D,C,or R]" -> E15*[R15:AH15 when R4:AH4 = E,D,C,or R] | AS15: =SUM(AT15:AY15) -> 328000 | AT15: =$E15*SUMPRODUCT($R15:$V15,INDEX(AllocFactors_E,AT$4,0)) -> 223299.3851 | AU15: 85492.10683 | AV15: 11753.62178 | AW15: 1206.139605 | AX15: 6248.746644 | AY15: 0 | BA15: =SUM(BB15:BG15) -> 0 | BB15: =$E15*SUMPRODUCT($W15:$AA15,INDEX(AllocFactors_D,BB$4,0)) -> 0 | BC15: 0 | BD15: 0 | BE15: 0 | BF15: 0 | BG15: 0 | BI15: =SUM(BJ15:BO15) -> 0 | BJ15: =$E15*SUMPRODUCT($AB15:$AG15,INDEX(AllocFactors_C,BJ$4,0)) -> 0 | BK15: 0 | BL15: 0 | BM15: 0 | BN15: 0 | BO15: 0
A16: 16 | B16: 351 | C16: U | D16: Structures & Improvements | E16: ='PROFORMA (Staff)'!AW256 -> 911000 | F16: Input - Settlement | H16: 911000 | I16: 620200.4264 | J16: 237449.1138 | K16: 32644.96781 | L16: 3349.979206 | M16: 17355.51278 | N16: 0 | P16: =E$1&$A16&"* """ -> E16* " | R16: 0.13 | S16: 0.87 | T16: 0 | U16: 0 | V16: 0 | W16: 0 | X16: 0 | Y16: 0 | Z16: 0 | AA16: 0 | AB16: 0 | AC16: 0 | AD16: 0 | AE16: 0 | AF16: 0 | AG16: 0 | AH16: 0 | AI16: 0 | AK16: 911000 | AL16: 911000 | AM16: 0 | AN16: 0 | AO16: 0 | AQ16: =E$1&$A16&"* """ -> E16* " | AS16: 911000 | AT16: 620200.4264 | AU16: 237449.1138 | AV16: 32644.96781 | AW16: 3349.979206 | AX16: 17355.51278 | AY16: 0 | BA16: 0 | BB16: 0 | BC16: 0 | BD16: 0 | BE16: 0 | BF16: 0 | BG16: 0 | BI16: 0 | BJ16: 0 | BK16: 0 | BL16: 0 | BM16: 0 | BN16: 0 | BO16: 0
A17: 17 | B17: 352 | C17: U | D17: Wells | E17: ='PROFORMA (Staff)'!AW257 -> 10723000 | F17: Input - Settlement | H17: 10723000 | I17: 7300119.838 | J17: 2794914.212 | K17: 384250.2632 | L17: 39431.2042 | M17: 204284.4825 | N17: 0 | P17: E17* " | R17: 0.13 | S17: 0.87 | T17: 0 | U17: 0 | V17: 0 | W17: 0 | X17: 0 | Y17: 0 | Z17: 0 | AA17: 0 | AB17: 0 | AC17: 0 | AD17: 0 | AE17: 0 | AF17: 0 | AG17: 0 | AH17: 0 | AI17: 0 | AK17: 10723000 | AL17: 10723000 | AM17: 0 | AN17: 0 | AO17: 0 | AQ17: =E$1&$A17&"* """ -> E17* " | AS17: 10723000 | AT17: 7300119.838 | AU17: 2794914.212 | AV17: 384250.2632 | AW17: 39431.2042 | AX17: 204284.4825 | AY17: 0 | BA17: 0 | BB17: 0 | BC17: 0 | BD17: 0 | BE17: 0 | BF17: 0 | BG17: 0 | BI17: 0 | BJ17: 0 | BK17: 0 | BL17: 0 | BM17: 0 | BN17: 0 | BO17: 0
A18: 18 | B18: 353 | C18: U | D18: Lines | E18: ='PROFORMA (Staff)'!AW258 -> 727000 | F18: Input - Settlement | H18: 727000 | I18: 494934.9177 | J18: 189490.127 | K18: 26051.47266 | L18: 2673.364306 | M18: 13850.11832 | N18: 0 | P18: E18* " | R18: 0.13 | S18: 0.87 | T18: 0 | U18: 0 | V18: 0 | W18: 0 | X18: 0 | Y18: 0 | Z18: 0 | AA18: 0 | AB18: 0 | AC18: 0 | AD18: 0 | AE18: 0 | AF18: 0 | AG18: 0 | AH18: 0 | AI18: 0 | AK18: 727000 | AL18: 727000 | AM18: 0 | AN18: 0 | AO18: 0 | AQ18: E18* " | AS18: 727000 | AT18: 494934.9177 | AU18: 189490.127 | AV18: 26051.47266 | AW18: 2673.364306 | AX18: 13850.11832 | AY18: 0 | BA18: 0 | BB18: 0 | BC18: 0 | BD18: 0 | BE18: 0 | BF18: 0 | BG18: 0 | BI18: 0 | BJ18: 0 | BK18: 0 | BL18: 0 | BM18: 0 | BN18: 0 | BO18: 0
A19: 19 | B19: 354 | C19: U | D19: Compressor Station Equipment | E19: ='PROFORMA (Staff)'!AW259 -> 7898000 | F19: Input - Settlement | H19: 7898000 | I19: 5376885.805 | J19: 2058587.377 | K19: 283018.6122 | L19: 29042.95914 | M19: 150465.2469 | N19: 0 | P19: E19* " | R19: 0.13 | S19: 0.87 | T19: 0 | U19: 0 | V19: 0 | W19: 0 | X19: 0 | Y19: 0 | Z19: 0 | AA19: 0 | AB19: 0 | AC19: 0 | AD19: 0 | AE19: 0 | AF19: 0 | AG19: 0 | AH19: 0 | AI19: 0 | AK19: 7898000 | AL19: 7898000 | AM19: 0 | AN19: 0 | AO19: 0 | AQ19: E19* " | AS19: 7898000 | AT19: 5376885.805 | AU19: 2058587.377 | AV19: 283018.6122 | AW19: 29042.95914 | AX19: 150465.2469 | AY19: 0 | BA19: 0 | BB19: 0 | BC19: 0 | BD19: 0 | BE19: 0 | BF19: 0 | BG19: 0 | BI19: 0 | BJ19: 0 | BK19: 0 | BL19: 0 | BM19: 0 | BN19: 0 | BO19: 0
A20: 20 | B20: 355 | C20: U | D20: Measuring & Regulating Equipment | E20: ='PROFORMA (Staff)'!AW260 -> 121000 | F20: Input - Settlement | H20: 121000 | I20: 82375.68781 | J20: 31538.24673 | K20: 4335.939742 | L20: 444.9478419 | M20: 2305.177878 | N20: 0 | P20: E20* " | R20: 0.13 | S20: 0.87 | T20: 0 | U20: 0 | V20: 0 | W20: 0 | X20: 0 | Y20: 0 | Z20: 0 | AA20: 0 | AB20: 0 | AC20: 0 | AD20: 0 | AE20: 0 | AF20: 0 | AG20: 0 | AH20: 0 | AI20: 0 | AK20: 121000 | AL20: 121000 | AM20: 0 | AN20: 0 | AO20: 0 | AQ20: E20* " | AS20: 121000 | AT20: 82375.68781 | AU20: 31538.24673 | AV20: 4335.939742 | AW20: 444.9478419 | AX20: 2305.177878 | AY20: 0 | BA20: 0 | BB20: 0 | BC20: 0 | BD20: 0 | BE20: 0 | BF20: 0 | BG20: 0 | BI20: 0 | BJ20: 0 | BK20: 0 | BL20: 0 | BM20: 0 | BN20: 0 | BO20: 0
A21: 21 | B21: 356 | C21: U | D21: Purification Equipment | E21: ='PROFORMA (Staff)'!AW261 -> 283000 | F21: Input - Settlement | H21: 283000 | I21: 192663.7988 | J21: 73763.00681 | K21: 10141.08221 | L21: 1040.663134 | M21: 5391.449086 | N21: 0 | P21: E21* " | R21: 0.13 | S21: 0.87 | T21: 0 | U21: 0 | V21: 0 | W21: 0 | X21: 0 | Y21: 0 | Z21: 0 | AA21: 0 | AB21: 0 | AC21: 0 | AD21: 0 | AE21: 0 | AF21: 0 | AG21: 0 | AH21: 0 | AI21: 0 | AK21: 283000 | AL21: 283000 | AM21: 0 | AN21: 0 | AO21: 0 | AQ21: E21* " | AS21: 283000 | AT21: 192663.7988 | AU21: 73763.00681 | AV21: 10141.08221 | AW21: 1040.663134 | AX21: 5391.449086 | AY21: 0 | BA21: 0 | BB21: 0 | BC21: 0 | BD21: 0 | BE21: 0 | BF21: 0 | BG21: 0 | BI21: 0 | BJ21: 0 | BK21: 0 | BL21: 0 | BM21: 0 | BN21: 0 | BO21: 0
A22: 22 | B22: 357 | C22: U | D22: Other Equipment | E22: ='PROFORMA (Staff)'!AW262 -> 1017000 | F22: Input - Settlement | H22: 1017000 | I22: 692364.2521 | J22: 265077.6605 | K22: 36443.39436 | L22: 3739.768225 | M22: 19374.92481 | N22: 0 | P22: E22* " | R22: 0.13 | S22: 0.87 | T22: 0 | U22: 0 | V22: 0 | W22: 0 | X22: 0 | Y22: 0 | Z22: 0 | AA22: 0 | AB22: 0 | AC22: 0 | AD22: 0 | AE22: 0 | AF22: 0 | AG22: 0 | AH22: 0 | AI22: 0 | AK22: 1017000 | AL22: 1017000 | AM22: 0 | AN22: 0 | AO22: 0 | AQ22: E22* " | AS22: 1017000 | AT22: 692364.2521 | AU22: 265077.6605 | AV22: 36443.39436 | AW22: 3739.768225 | AX22: 19374.92481 | AY22: 0 | BA22: 0 | BB22: 0 | BC22: 0 | BD22: 0 | BE22: 0 | BF22: 0 | BG22: 0 | BI22: 0 | BJ22: 0 | BK22: 0 | BL22: 0 | BM22: 0 | BN22: 0 | BO22: 0
A23: 23 | D23: Total Underground Storage Plant | E23: =SUM(E15:E22) -> 22008000 | G23: UG Storage Plant (S14) | H23: =IF(ROUND(SUM(H14:H22),3)<>ROUND(SUM(I23:N23),3),#VALUE!,SUM(H14:H22)) -> 22008000 | I23: =SUM(I14:I22) -> 14982844.11 | J23: 5736311.851 | K23: 788639.354 | L23: 80929.02566 | M23: 419275.659 | N23: 0 | P23: =$A14&":"&A22 -> 14:22 | R23: =SUMPRODUCT($E15:$E22,R$15:R$22)/$E23 -> 0.13 | S23: 0.87 | T23: 0 | U23: 0 | V23: 0 | W23: 0 | X23: 0 | Y23: 0 | Z23: 0 | AA23: 0 | AB23: 0 | AC23: 0 | AD23: 0 | AE23: 0 | AF23: 0 | AG23: 0 | AH23: 0 | AI23: 0 | AK23: =IF(ROUND(SUM(AK14:AK22),3)<>ROUND(SUM(AL23:AO23),3),#VALUE!,SUM(AK14:AK22)) -> 22008000 | AL23: =SUM(AL14:AL22) -> 22008000 | AM23: =SUM(AM14:AM22) -> 0 | AN23: =SUM(AN14:AN22) -> 0 | AO23: =SUM(AO14:AO22) -> 0 | AQ23: =$A14&":"&$A22 -> 14:22 | AS23: =IF(ROUND(SUM(AS14:AS22),3)<>ROUND(SUM(AT23:AY23),3),#VALUE!,SUM(AS14:AS22)) -> 22008000 | AT23: =SUM(AT14:AT22) -> 14982844.11 | AU23: 5736311.851 | AV23: 788639.354 | AW23: 80929.02566 | AX23: 419275.659 | AY23: 0 | BA23: =IF(ROUND(SUM(BA14:BA22),3)<>ROUND(SUM(BB23:BG23),3),#VALUE!,SUM(BA14:BA22)) -> 0 | BB23: =SUM(BB14:BB22) -> 0 | BC23: 0 | BD23: 0 | BE23: 0 | BF23: 0 | BG23: 0 | BI23: =IF(ROUND(SUM(BI14:BI22),3)<>ROUND(SUM(BJ23:BO23),3),#VALUE!,SUM(BI14:BI22)) -> 0 | BJ23: =SUM(BJ14:BJ22) -> 0 | BK23: 0 | BL23: 0 | BM23: 0 | BN23: 0 | BO23: 0
A24: 24 | AI24: 0
A25: 25 | D25: Distribution Plant | AI25: 0
A26: 26 | B26: 374 | C26: D | D26: Land & Land Rights | E26: ='PROFORMA (Staff)'!AW266 -> 63000 | F26: ="as other Dist Plt ("&A$28&"-"&A$37&")" -> as other Dist Plt (28-37) | H26: =SUM(I26:N26) -> 63000 | I26: =$E26*SUMPRODUCT($R26:$AH26,INDEX(AllocFactors,I$4,0)) -> 49312.24905 | J26: 9750.665845 | K26: 806.0661712 | L26: 118.6250852 | M26: 3012.393849 | N26: 0 | P26: =E$1&$A26&"* Sum["&$R$1&$A26&":"&$AH$1&$A26&"* "&Factors!D$1&Factors!$A$58&":"&Factors!S$1&Factors!$A$64&"]" -> E26* Sum[R26:AH26* D592:S598] | R26: =SUMPRODUCT($E$28:$E$37,R$28:R$37)/SUM($E$28:$E$37) -> 0.1014384849 | S26: 0.07244504266 | T26: 0.01262716926 | U26: 0 | V26: 0 | W26: 0.3272581574 | X26: 0 | Y26: 0 | Z26: 0 | AA26: 0 | AB26: =SUMPRODUCT($E$28:$E$37,AB$28:AB$37)/SUM($E$28:$E$37) -> 0 | AC26: 0.332928402 | AD26: 0.1454938619 | AE26: 0 | AF26: 0.007808881891 | AG26: 0 | AH26: 0 | AI26: 0 | AK26: =SUM(AL26:AO26) -> 63000 | AL26: =SUMIF($R$4:$AH$4,AL$5,$R26:$AH26)*$E26 -> 11750.1739 | AM26: 20617.26392 | AN26: 30632.56218 | AO26: 0 | AQ26: =E$1&$A26&"*["&R$1&$A26&":"&$AH$1&$A26&" when "&R$1&$A$4&":"&$AH$1&$A$4&" = E,D,C,or R]" -> E26*[R26:AH26 when R4:AH4 = E,D,C,or R] | AS26: =SUM(AT26:AY26) -> 11750.1739 | AT26: =$E26*SUMPRODUCT($R26:$V26,INDEX(AllocFactors_E,AT$4,0)) -> 7506.885223 | AU26: 2874.076133 | AV26: 395.1335987 | AW26: 37.55470374 | AX26: 936.5242427 | AY26: 0 | BA26: =SUM(BB26:BG26) -> 20617.26392 | BB26: =$E26*SUMPRODUCT($W26:$AA26,INDEX(AllocFactors_D,BB$4,0)) -> 13369.87756 | BC26: 5040.514573 | BD26: 344.9388469 | BE26: 68.0959557 | BF26: 1793.836983 | BG26: 0 | BI26: =SUM(BJ26:BO26) -> 30632.56218 | BJ26: =$E26*SUMPRODUCT($AB26:$AG26,INDEX(AllocFactors_C,BJ$4,0)) -> 28435.48627 | BK26: 1836.075139 | BL26: 65.99372561 | BM26: 12.97442579 | BN26: 282.0326225 | BO26: 0
A27: 27 | B27: 375 | C27: D | D27: Structures & Improvements | E27: ='PROFORMA (Staff)'!AW267 -> 510000 | F27: ="as other Dist Plt ("&A$28&"-"&A$37&")" -> as other Dist Plt (28-37) | H27: 510000 | I27: 399194.3971 | J27: 78933.9616 | K27: 6525.297576 | L27: 960.298309 | M27: 24386.04544 | N27: 0 | P27: =E$1&$A27&"* """ -> E27* " | R27: 0.1014384849 | S27: 0.07244504266 | T27: 0.01262716926 | U27: 0 | V27: 0 | W27: 0.3272581574 | X27: 0 | Y27: 0 | Z27: 0 | AA27: 0 | AB27: 0 | AC27: 0.332928402 | AD27: 0.1454938619 | AE27: 0 | AF27: 0.007808881891 | AG27: 0 | AH27: 0 | AI27: 0 | AK27: 510000 | AL27: 95120.45539 | AM27: 166901.6603 | AN27: 247977.8843 | AO27: 0 | AQ27: =E$1&$A27&"* """ -> E27* " | AS27: 95120.45539 | AT27: 60770.02323 | AU27: 23266.3306 | AV27: 3198.700561 | AW27: 304.0142684 | AX27: 7581.386727 | AY27: 0 | BA27: 166901.6603 | BB27: 108232.3421 | BC27: 40804.16559 | BD27: 2792.362094 | BE27: 551.2529747 | BF27: 14521.53749 | BG27: 0 | BI27: 247977.8843 | BJ27: 230192.0317 | BK27: 14863.46541 | BL27: 534.2349216 | BM27: 105.0310659 | BN27: 2283.121229 | BO27: 0
A28: 28 | B28: 376-All | C28: D | D28: Mains | E28: ='PROFORMA (Staff)'!AV268 -> 139364000 | F28: Input - Peak & Avg Calc | G28: oth Dist Plt (S05); (S06); (S21) | H28: 139364000 | I28: =$E28*SUMPRODUCT($R28:$AH28,INDEX(AllocFactors,I$4,0)) -> 89970826.66 | J28: 34109152.73 | K28: 3190838.178 | L28: =$E28*SUMPRODUCT($R28:$AH28,INDEX(AllocFactors,L$4,0)) -> 454892.8162 | M28: 11638289.61 | N28: 0 | P28: E28* " | R28: ='Mains Allocator'!E15+'Mains Allocator'!E16 -> 0.1916726721 | S28: ='Mains Allocator'!E17 -> 0.1459183013 | T28: =+'Mains Allocator'!E18 -> 0.02543355655 | W28: =IF('Mains Allocator'!F9="D01", 'Mains Allocator'!E9, "") -> 0.63697547 | X28: =IF('Mains Allocator'!F9="D02", 'Mains Allocator'!E9, ) -> 0 | Z28: 0 | AA28: 0 | AB28: 0 | AC28: 0 | AD28: 0 | AE28: 0 | AF28: 0 | AG28: 0 | AH28: 0 | AI28: 0 | AK28: 139364000 | AL28: =SUMIF($R$4:$AH$4,AL$5,$R28:$AH28)*$E28 -> 50592550.6 | AM28: 88771449.4 | AN28: 0 | AO28: 0 | AQ28: =E$1&$A28&"* """ -> E28* " | AS28: 50592550.6 | AT28: =$E28*SUMPRODUCT($R28:$V28,INDEX(AllocFactors_E,AT$4,0)) -> 32404341.9 | AU28: =$E28*SUMPRODUCT($R28:$V28,INDEX(AllocFactors_E,AU$4,0)) -> 12406283.42 | AV28: 1705640.069 | AW28: 161693.0633 | AX28: 3914592.15 | AY28: 0 | BA28: 88771449.4 | BB28: 57566484.76 | BC28: 21702869.31 | BD28: 1485198.109 | BE28: 293199.7529 | BF28: 7723697.463 | BG28: 0 | BI28: 0 | BJ28: 0 | BK28: 0 | BL28: 0 | BM28: 0 | BN28: 0 | BO28: 0
A29: 29 | B29: 376 | C29: D | D29: Mains | E29: 0 | F29: Input - Peak & Avg w/131&146 | G29: oth Dist Plt (S05); (S06); (S21) | H29: 0 | I29: 0 | J29: 0 | K29: 0 | L29: 0 | M29: =$E29*SUMPRODUCT($R29:$AH29,INDEX(AllocFactors,M$4,0)) -> 0 | N29: 0 | P29: E29* " | R29: =R28 -> 0.1916726721 | S29: =S28 -> 0.1459183013 | T29: =T28 -> 0.02543355655 | W29: =W28 -> 0.63697547 | X29: =X28 -> 0 | Z29: 0 | AA29: 0 | AI29: 0 | AK29: 0 | AL29: =SUMIF($R$4:$AH$4,AL$5,$R29:$AH29)*$E29 -> 0 | AM29: 0 | AN29: 0 | AO29: 0 | AQ29: E29* " | AS29: 0 | AT29: 0 | AU29: 0 | AV29: 0 | AW29: 0 | AX29: 0 | AY29: 0 | BA29: 0 | BB29: 0 | BC29: 0 | BD29: 0 | BE29: 0 | BF29: 0 | BG29: 0 | BI29: 0 | BJ29: 0 | BK29: 0 | BL29: 0 | BM29: 0 | BN29: 0 | BO29: 0
A30: 30 | B30: 378 | C30: D | D30: Meas & Reg Station Equip-General | E30: ='PROFORMA (Staff)'!AW270 -> 3089000 | F30: Input - Peak & Avg Calc | G30: oth Dist Plt (S05); (S08) | H30: 3089000 | I30: 1940163.092 | J30: 735339.5872 | K30: 67880.48936 | L30: 10086.42402 | M30: 335530.4074 | N30: 0 | P30: E30* " | R30: =PkAvg_E -> 0.36302453 | W30: =PkAvg_D -> 0.63697547 | AI30: 0 | AK30: 3089000 | AL30: 1121382.773 | AM30: 1967617.227 | AN30: 0 | AO30: 0 | AQ30: E30* " | AS30: 1121382.773 | AT30: 664203.2212 | AU30: 254295.9655 | AV30: 34961.10588 | AW30: 3587.657933 | AX30: 164334.8227 | AY30: 0 | BA30: 1967617.227 | BB30: 1275959.871 | BC30: 481043.6218 | BD30: 32919.38349 | BE30: 6498.766085 | BF30: 171195.5847 | BG30: 0 | BI30: 0 | BJ30: 0 | BK30: 0 | BL30: 0 | BM30: 0 | BN30: 0 | BO30: 0
A31: 31 | B31: 379 | C31: D | D31: Meas & Reg Station Equip-City Gate | E31: ='PROFORMA (Staff)'!AW271 -> 1765000 | F31: Input - Peak & Avg Calc | G31: oth Dist Plt (S05); (S09) | H31: 1765000 | I31: 1108574.897 | J31: 420160.0426 | K31: 38785.71179 | L31: 5763.2044 | M31: 191716.1441 | N31: 0 | P31: E31* " | R31: =PkAvg_E -> 0.36302453 | W31: =PkAvg_D -> 0.63697547 | AI31: 0 | AK31: 1765000 | AL31: 640738.2955 | AM31: 1124261.705 | AN31: 0 | AO31: 0 | AQ31: E31* " | AS31: 640738.2955 | AT31: 379513.9804 | AU31: 145300.2198 | AV31: 19976.15794 | AW31: 2049.924329 | AX31: 93898.01298 | AY31: 0 | BA31: 1124261.705 | BB31: 729060.9168 | BC31: 274859.8227 | BD31: 18809.55385 | BE31: 3713.280071 | BF31: 97818.1311 | BG31: 0 | BI31: 0 | BJ31: 0 | BK31: 0 | BL31: 0 | BM31: 0 | BN31: 0 | BO31: 0
A32: 32 | B32: 380 | C32: D | D32: Services | E32: ='PROFORMA (Staff)'!AW272 -> 93455000 | F32: Input - 100% Svcs cost | G32: oth Dist Plt (S05); (S06); (S20) | H32: 93455000 | I32: 91707823.12 | J32: 1509862.556 | K32: 49099.51543 | L32: 1888.442901 | M32: 186326.3662 | N32: 0 | P32: E32* " | AC32: 1 | AI32: 0 | AK32: 93455000 | AL32: 0 | AM32: 0 | AN32: 93455000 | AO32: 0 | AQ32: E32* " | AS32: 0 | AT32: 0 | AU32: 0 | AV32: 0 | AW32: 0 | AX32: 0 | AY32: 0 | BA32: 0 | BB32: 0 | BC32: 0 | BD32: 0 | BE32: 0 | BF32: 0 | BG32: 0 | BI32: 93455000 | BJ32: 91707823.12 | BK32: 1509862.556 | BL32: 49099.51543 | BM32: 1888.442901 | BN32: 186326.3662 | BO32: 0
A33: 33 | B33: 381 | C33: D | D33: Meters | E33: ='PROFORMA (Staff)'!AW273 -> 40841000 | F33: Input - 100% Mtrs cost | G33: oth Dist Plt (S05); (S07) | H33: 40841000 | I33: 34990773.85 | J33: 4948547.479 | K33: 161297.4569 | L33: 36746.9414 | M33: 703634.2767 | N33: 0 | P33: E33* " | AD33: 1 | AI33: 0 | AK33: 40841000 | AL33: 0 | AM33: 0 | AN33: 40841000 | AO33: 0 | AQ33: E33* " | AS33: 0 | AT33: 0 | AU33: 0 | AV33: 0 | AW33: 0 | AX33: 0 | AY33: 0 | BA33: 0 | BB33: 0 | BC33: 0 | BD33: 0 | BE33: 0 | BF33: 0 | BG33: 0 | BI33: 40841000 | BJ33: 34990773.85 | BK33: 4948547.479 | BL33: 161297.4569 | BM33: 36746.9414 | BN33: 703634.2767 | BO33: 0
A34: 34 | B34: 382 | C34: D | D34: Meter Installations | E34: ='PROFORMA (Staff)'!AW274 -> 0 | F34: Input - 100% Install cost | G34: oth Dist Plt (S05); (S07) | H34: 0 | I34: 0 | J34: 0 | K34: 0 | L34: 0 | M34: 0 | N34: 0 | P34: E34* " | AB34: 1 | AI34: 0 | AK34: 0 | AL34: 0 | AM34: 0 | AN34: 0 | AO34: 0 | AQ34: E34* " | AS34: 0 | AT34: 0 | AU34: 0 | AV34: 0 | AW34: 0 | AX34: 0 | AY34: 0 | BA34: 0 | BB34: 0 | BC34: 0 | BD34: 0 | BE34: 0 | BF34: 0 | BG34: 0 | BI34: 0 | BJ34: 0 | BK34: 0 | BL34: 0 | BM34: 0 | BN34: 0 | BO34: 0
A35: 35 | B35: 383 | C35: D | D35: House Regulators | E35: ='PROFORMA (Staff)'!AW275 -> 0 | F35: Input - 100% Reg. cost | G35: oth Dist Plt (S05); (S07) | H35: 0 | I35: 0 | J35: 0 | K35: 0 | L35: 0 | M35: 0 | N35: 0 | P35: E35* " | AE35: 1 | AI35: 0 | AK35: 0 | AL35: 0 | AM35: 0 | AN35: 0 | AO35: 0 | AQ35: E35* " | AS35: 0 | AT35: 0 | AU35: 0 | AV35: 0 | AW35: 0 | AX35: 0 | AY35: 0 | BA35: 0 | BB35: 0 | BC35: 0 | BD35: 0 | BE35: 0 | BF35: 0 | BG35: 0 | BI35: 0 | BJ35: 0 | BK35: 0 | BL35: 0 | BM35: 0 | BN35: 0 | BO35: 0
A36: 36 | B36: 384 | C36: D | D36: House Regulator Installations | E36: ='PROFORMA (Staff)'!AW276 -> 0 | F36: Input - 100% Install cost | G36: oth Dist Plt (S05); (S07) | H36: 0 | I36: 0 | J36: 0 | K36: 0 | L36: 0 | M36: 0 | N36: 0 | P36: E36* " | AB36: 1 | AI36: 0 | AK36: 0 | AL36: 0 | AM36: 0 | AN36: 0 | AO36: 0 | AQ36: E36* " | AS36: 0 | AT36: 0 | AU36: 0 | AV36: 0 | AW36: 0 | AX36: 0 | AY36: 0 | BA36: 0 | BB36: 0 | BC36: 0 | BD36: 0 | BE36: 0 | BF36: 0 | BG36: 0 | BI36: 0 | BJ36: 0 | BK36: 0 | BL36: 0 | BM36: 0 | BN36: 0 | BO36: 0
A37: 37 | B37: 385 | C37: D | D37: Industrial Meas & Reg Station Equip | E37: ='PROFORMA (Staff)'!AW277 -> 2192000 | F37: Input - 100% Ind Meas cost | G37: oth Dist Plt (S05); (S19) | H37: 2192000 | I37: 0 | J37: 1722499.615 | K37: 83648.02355 | L37: 19174.12628 | M37: 366678.2351 | N37: 0 | P37: E37* " | AF37: 1 | AI37: 0 | AK37: 2192000 | AL37: 0 | AM37: 0 | AN37: 2192000 | AO37: 0 | AQ37: E37* " | AS37: 0 | AT37: 0 | AU37: 0 | AV37: 0 | AW37: 0 | AX37: 0 | AY37: 0 | BA37: 0 | BB37: 0 | BC37: 0 | BD37: 0 | BE37: 0 | BF37: 0 | BG37: 0 | BI37: 2192000 | BJ37: 0 | BK37: 1722499.615 | BL37: 83648.02355 | BM37: 19174.12628 | BN37: 366678.2351 | BO37: 0
A38: 38 | B38: 387 | C38: D | D38: Other Equipment | E38: ='PROFORMA (Staff)'!AW278 -> 0 | F38: ="as other Dist Plt ("&A$28&"-"&A$37&")" -> as other Dist Plt (28-37) | H38: 0 | I38: 0 | J38: 0 | K38: 0 | L38: 0 | M38: 0 | N38: 0 | P38: E38* " | R38: =SUMPRODUCT($E$28:$E$37,R$28:R$37)/SUM($E$28:$E$37) -> 0.1014384849 | S38: 0.07244504266 | T38: 0.01262716926 | U38: 0 | V38: 0 | W38: 0.3272581574 | X38: 0 | Y38: 0 | Z38: 0 | AA38: 0 | AB38: 0 | AC38: 0.332928402 | AD38: 0.1454938619 | AE38: 0 | AF38: 0.007808881891 | AG38: 0 | AH38: 0 | AI38: 0 | AK38: 0 | AL38: 0 | AM38: 0 | AN38: 0 | AO38: 0 | AQ38: E38* " | AS38: 0 | AT38: 0 | AU38: 0 | AV38: 0 | AW38: 0 | AX38: 0 | AY38: 0 | BA38: 0 | BB38: 0 | BC38: 0 | BD38: 0 | BE38: 0 | BF38: 0 | BG38: 0 | BI38: 0 | BJ38: 0 | BK38: 0 | BL38: 0 | BM38: 0 | BN38: 0 | BO38: 0
A39: 39 | D39: Total Distribution Plant | E39: =SUM(E26:E38) -> 281279000 | G39: Distrib Plant (S15) | H39: =IF(ROUND(SUM(H25:H38),3)<>ROUND(SUM(I39:N39),3),#VALUE!,SUM(H25:H38)) -> 281279000 | I39: =SUM(I25:I38) -> 220166668.3 | J39: 43534246.64 | K39: 3598880.739 | L39: 529630.8786 | M39: 13449573.48 | N39: 0 | P39: =$A25&":"&A38 -> 25:38 | R39: =SUMPRODUCT($E26:$E38,R$26:R$38)/$E39 -> 0.1014384849 | S39: 0.07244504266 | T39: 0.01262716926 | U39: 0 | V39: 0 | W39: 0.3272581574 | X39: 0 | Y39: 0 | Z39: 0 | AA39: 0 | AB39: 0 | AC39: 0.332928402 | AD39: 0.1454938619 | AE39: 0 | AF39: 0.007808881891 | AG39: 0 | AH39: 0 | AI39: =IF(SUM(R39:AH39)<>0,(ROUND(SUM(R39:AH39),8)<>1)+0,0) -> 0 | AK39: =IF(ROUND(SUM(AK25:AK38),3)<>ROUND(SUM(AL39:AO39),3),#VALUE!,SUM(AK25:AK38)) -> 281279000 | AL39: =SUM(AL25:AL38) -> 52461542.3 | AM39: =SUM(AM25:AM38) -> 92050847.26 | AN39: =SUM(AN25:AN38) -> 136766610.4 | AO39: =SUM(AO25:AO38) -> 0 | AQ39: =$A25&":"&$A38 -> 25:38 | AS39: =IF(ROUND(SUM(AS25:AS38),3)<>ROUND(SUM(AT39:AY39),3),#VALUE!,SUM(AS25:AS38)) -> 52461542.3 | AT39: =SUM(AT25:AT38) -> 33516336.01 | AU39: 12832020.01 | AV39: 1764171.167 | AW39: 167672.2145 | AX39: 4181342.896 | AY39: 0 | BA39: =IF(ROUND(SUM(BA25:BA38),3)<>ROUND(SUM(BB39:BG39),3),#VALUE!,SUM(BA25:BA38)) -> 92050847.26 | BB39: =SUM(BB25:BB38) -> 59693107.77 | BC39: 22504617.44 | BD39: 1540064.348 | BE39: 304031.148 | BF39: 8009026.554 | BG39: 0 | BI39: =IF(ROUND(SUM(BI25:BI38),3)<>ROUND(SUM(BJ39:BO39),3),#VALUE!,SUM(BI25:BI38)) -> 136766610.4 | BJ39: =SUM(BJ25:BJ38) -> 126957224.5 | BK39: 8197609.19 | BL39: 294645.2245 | BM39: 57927.51607 | BN39: 1259204.032 | BO39: 0
A40: 40 | H40: =H39/$H39 -> 1 | I40: 0.7827341119 | J40: 0.1547724737 | K40: 0.01279470113 | L40: 0.001882937861 | M40: 0.04781577538 | N40: 0 | AI40: =IF(SUM(R40:AH40)<>0,(ROUND(SUM(R40:AH40),8)<>1)+0,0) -> 0 | AT40: =IF(I39,AT39/I39,0) -> 0.1522316537 | AU40: 0.2947569098 | AV40: 0.4901999524 | AW40: 0.316583155 | AX40: 0.3108903715 | AY40: 0 | BB40: =IF(I39,BB39/I39,0) -> 0.2711269069 | BC40: 0.5169405508 | BD40: 0.4279286976 | BE40: 0.5740434712 | BF40: 0.5954855419 | BG40: 0 | BJ40: =IF(I39,BJ39/I39,0) -> 0.5766414393 | BK40: 0.1883025393 | BL40: 0.08187134998 | BM40: 0.1093733738 | BN40: 0.09362408656 | BO40: 0
A41: 41 | D41: UG/D Plant | E41: =E23+E39 -> 303287000 | F41: ="("&A$23&"+"&A$39&")" -> (23+39) | G41: UG/D Plant (S03) | H41: =H23+H39 -> 303287000 | I41: 235149512.4 | J41: 49270558.49 | K41: 4387520.093 | L41: 610559.9042 | M41: 13868849.14 | N41: 0 | R41: =($E23*R23+$E39*R39)/$E41 -> 0.1035110493 | S41: 0.1303195625 | T41: 0.01171087961 | U41: 0 | V41: 0 | W41: 0.303510692 | X41: 0 | Y41: 0 | Z41: 0 | AA41: 0 | AB41: 0 | AC41: 0.3087694757 | AD41: 0.13493611 | AE41: 0 | AF41: 0.007242230921 | AG41: 0 | AH41: 0 | AI41: 0
A42: 42 | AI42: 0
A43: 43 | D43: General Plant | AI43: 0
A44: 44 | B44: 389 | C44: O | D44: Land & Land Rights | E44: ='PROFORMA (Staff)'!AW282 -> 1142000 | F44: ="as UG/D Plant ("&A$41&")" -> as UG/D Plant (41) | H44: =SUM(I44:N44) -> 1142000 | I44: =$E44*SUMPRODUCT($R44:$AH44,INDEX(AllocFactors,I$4,0)) -> 885434.4009 | J44: 185523.8694 | K44: 16520.81344 | L44: 2299.008565 | M44: 52221.90769 | N44: 0 | P44: =E$1&$A44&"* Sum["&$R$1&$A44&":"&$AH$1&$A44&"* "&Factors!D$1&Factors!$A$58&":"&Factors!S$1&Factors!$A$64&"]" -> E44* Sum[R44:AH44* D592:S598] | R44: =R$41 -> 0.1035110493 | S44: =S$41 -> 0.1303195625 | T44: 0.01171087961 | U44: 0 | V44: 0 | W44: 0.303510692 | X44: 0 | Y44: 0 | Z44: 0 | AA44: 0 | AB44: 0 | AC44: 0.3087694757 | AD44: 0.13493611 | AE44: 0 | AF44: 0.007242230921 | AG44: 0 | AH44: 0 | AI44: 0 | AK44: =SUM(AL44:AO44) -> 1142000 | AL44: =SUMIF($R$4:$AH$4,AL$5,$R44:$AH44)*$E44 -> 280408.3832 | AM44: 346609.2103 | AN44: 514982.4065 | AO44: 0 | AQ44: =E$1&$A44&"*["&R$1&$A44&":"&$AH$1&$A44&" when "&R$1&$A$4&":"&$AH$1&$A$4&" = E,D,C,or R]" -> E44*[R44:AH44 when R4:AH4 = E,D,C,or R] | AS44: =SUM(AT44:AY44) -> 280408.3832 | AT44: =$E44*SUMPRODUCT($R44:$V44,INDEX(AllocFactors_E,AT$4,0)) -> 182619.3134 | AU44: 69917.38843 | AV44: 9612.379083 | AW44: 936.0856755 | AX44: 17323.21659 | AY44: 0 | BA44: =SUM(BB44:BG44) -> 346609.2103 | BB44: =$E44*SUMPRODUCT($W44:$AA44,INDEX(AllocFactors_D,BB$4,0)) -> 224769.0441 | BC44: 84739.11876 | BD44: 5798.97419 | BE44: 1144.802022 | BF44: 30157.27125 | BG44: 0 | BI44: =SUM(BJ44:BO44) -> 514982.4065 | BJ44: =$E44*SUMPRODUCT($AB44:$AG44,INDEX(AllocFactors_C,BJ$4,0)) -> 478046.0434 | BK44: 30867.36225 | BL44: 1109.460169 | BM44: 218.1208669 | BN44: 4741.419858 | BO44: 0
A45: 45 | B45: 390 | C45: O | D45: Structures & Improvements | E45: ='PROFORMA (Staff)'!AW283 -> 10145000 | F45: ="as UG/D Plant ("&A$41&")" -> as UG/D Plant (41) | H45: 10145000 | I45: 7865789.839 | J45: 1648108.28 | K45: 146763.2683 | L45: 20423.32915 | M45: 463915.2833 | N45: 0 | P45: =E$1&$A45&"* """ -> E45* " | R45: =R$41 -> 0.1035110493 | S45: 0.1303195625 | T45: 0.01171087961 | U45: 0 | V45: 0 | W45: 0.303510692 | X45: 0 | Y45: 0 | Z45: 0 | AA45: 0 | AB45: 0 | AC45: 0.3087694757 | AD45: 0.13493611 | AE45: 0 | AF45: 0.007242230921 | AG45: 0 | AH45: 0 | AI45: 0 | AK45: 10145000 | AL45: 2491018.43 | AM45: 3079115.971 | AN45: 4574865.599 | AO45: 0 | AQ45: =E$1&$A45&"* """ -> E45* " | AS45: 2491018.43 | AT45: 1622305.547 | AU45: 621113.7528 | AV45: 85391.93152 | AW45: 8315.752345 | AX45: 153891.4469 | AY45: 0 | BA45: 3079115.971 | BB45: 1996744.266 | BC45: 752783.1522 | BD45: 51515.40556 | BE45: 10169.89187 | BF45: 267903.2546 | BG45: 0 | BI45: 4574865.599 | BJ45: 4246740.026 | BK45: 274211.3748 | BL45: 9855.93119 | BM45: 1937.684934 | BN45: 42120.58184 | BO45: 0
A46: 46 | B46: 391 | C46: O | D46: Office Furniture & Equipment | E46: ='PROFORMA (Staff)'!AW284 -> 5509000 | F46: as UG/D Plant (41) | H46: 5509000 | I46: 4271329.347 | J46: 894965.8466 | K46: 79696.28831 | L46: 11090.40121 | M46: 251918.1169 | N46: 0 | P46: E46* " | R46: 0.1035110493 | S46: =S$41 -> 0.1303195625 | T46: 0.01171087961 | U46: 0 | V46: 0 | W46: 0.303510692 | X46: 0 | Y46: 0 | Z46: 0 | AA46: 0 | AB46: 0 | AC46: 0.3087694757 | AD46: 0.13493611 | AE46: 0 | AF46: 0.007242230921 | AG46: 0 | AH46: 0 | AI46: 0 | AK46: 5509000 | AL46: 1352688.076 | AM46: 1672040.402 | AN46: 2484271.522 | AO46: 0 | AQ46: =E$1&$A46&"* """ -> E46* " | AS46: 1352688.076 | AT46: 880954.2885 | AU46: 337280.992 | AV46: 46370.04936 | AW46: 4515.670741 | AX46: 83567.07548 | AY46: 0 | BA46: 1672040.402 | BB46: 1084284.294 | BC46: 408780.9153 | BD46: 27974.21087 | BE46: 5522.516937 | BF46: 145478.4652 | BG46: 0 | BI46: 2484271.522 | BJ46: 2306090.764 | BK46: 148903.9393 | BL46: 5352.028085 | BM46: 1052.213534 | BN46: 22872.57618 | BO46: 0
A47: 47 | B47: 392 | C47: O | D47: Transportation Equipment | E47: ='PROFORMA (Staff)'!AW285 -> 5354000 | F47: as UG/D Plant (41) | H47: 5354000 | I47: 4151152.174 | J47: 869785.2864 | K47: 77453.97125 | L47: 10778.36415 | M47: 244830.2047 | N47: 0 | P47: E47* " | R47: 0.1035110493 | S47: 0.1303195625 | T47: 0.01171087961 | U47: 0 | V47: 0 | W47: 0.303510692 | X47: 0 | Y47: 0 | Z47: 0 | AA47: 0 | AB47: 0 | AC47: 0.3087694757 | AD47: 0.13493611 | AE47: 0 | AF47: 0.007242230921 | AG47: 0 | AH47: 0 | AI47: 0 | AK47: 5354000 | AL47: 1314629.145 | AM47: 1624996.245 | AN47: 2414374.61 | AO47: 0 | AQ47: E47* " | AS47: 1314629.145 | AT47: 856167.9543 | AU47: 327791.329 | AV47: 45065.39195 | AW47: 4388.618833 | AX47: 81215.85081 | AY47: 0 | BA47: 1624996.245 | BB47: 1053777.112 | BC47: 397279.5463 | BD47: 27187.13469 | BE47: 5367.136627 | BF47: 141385.3155 | BG47: 0 | BI47: 2414374.61 | BJ47: 2241207.107 | BK47: 144714.4111 | BL47: 5201.444612 | BM47: 1022.608688 | BN47: 22229.03846 | BO47: 0
A48: 48 | B48: 393 | C48: O | D48: Stores Equipment | E48: ='PROFORMA (Staff)'!AW286 -> 295000 | F48: as UG/D Plant (41) | H48: 295000 | I48: 228724.2979 | J48: 47924.29202 | K48: 4267.635697 | L48: 593.8769936 | M48: 13489.89735 | N48: 0 | P48: E48* " | R48: 0.1035110493 | S48: 0.1303195625 | T48: 0.01171087961 | U48: 0 | V48: 0 | W48: 0.303510692 | X48: 0 | Y48: 0 | Z48: 0 | AA48: 0 | AB48: 0 | AC48: 0.3087694757 | AD48: 0.13493611 | AE48: 0 | AF48: 0.007242230921 | AG48: 0 | AH48: 0 | AI48: 0 | AK48: 295000 | AL48: 72434.73996 | AM48: 89535.65415 | AN48: 133029.6059 | AO48: 0 | AQ48: E48* " | AS48: 72434.73996 | AT48: 47173.99076 | AU48: 18060.97162 | AV48: 2483.057644 | AW48: 241.8084714 | AX48: 4474.911466 | AY48: 0 | BA48: 89535.65415 | BB48: 58062.05605 | BC48: 21889.70231 | BD48: 1497.9837 | BE48: 295.7238149 | BF48: 7790.188281 | BG48: 0 | BI48: 133029.6059 | BJ48: 123488.2511 | BK48: 7973.618095 | BL48: 286.594352 | BM48: 56.34470729 | BN48: 1224.797599 | BO48: 0
A49: 49 | B49: 394 | C49: O | D49: Tools, Shop & Garage Equipment | E49: ='PROFORMA (Staff)'!AW287 -> 2551000 | F49: as UG/D Plant (41) | H49: 2551000 | I49: 1977883.675 | J49: 414423.2846 | K49: 36904.19885 | L49: 5135.526138 | M49: 116653.3157 | N49: 0 | P49: E49* " | R49: 0.1035110493 | S49: 0.1303195625 | T49: 0.01171087961 | U49: 0 | V49: 0 | W49: 0.303510692 | X49: 0 | Y49: 0 | Z49: 0 | AA49: 0 | AB49: 0 | AC49: 0.3087694757 | AD49: 0.13493611 | AE49: 0 | AF49: 0.007242230921 | AG49: 0 | AH49: 0 | AI49: 0 | AK49: 2551000 | AL49: 626376.3445 | AM49: 774255.7754 | AN49: 1150367.88 | AO49: 0 | AQ49: E49* " | AS49: 626376.3445 | AT49: 407935.0862 | AU49: 156181.4868 | AV49: 21472.13576 | AW49: 2091.02851 | AX49: 38696.60729 | AY49: 0 | BA49: 774255.7754 | BB49: 502089.1694 | BC49: 189290.2732 | BD49: 12953.75058 | BE49: 2557.259159 | BF49: 67365.32307 | BG49: 0 | BI49: 1150367.88 | BJ49: 1067859.419 | BK49: 68951.52461 | BL49: 2478.312515 | BM49: 487.2384688 | BN49: 10591.38534 | BO49: 0
A50: 50 | B50: 395 | C50: O | D50: Laboratory Equipment | E50: ='PROFORMA (Staff)'!AW288 -> 284000 | F50: as UG/D Plant (41) | H50: 284000 | I50: 220195.5953 | J50: 46137.28452 | K50: 4108.503518 | L50: 571.7324277 | M50: 12986.88423 | N50: 0 | P50: E50* " | R50: 0.1035110493 | S50: 0.1303195625 | T50: 0.01171087961 | U50: 0 | V50: 0 | W50: 0.303510692 | X50: 0 | Y50: 0 | Z50: 0 | AA50: 0 | AB50: 0 | AC50: 0.3087694757 | AD50: 0.13493611 | AE50: 0 | AF50: 0.007242230921 | AG50: 0 | AH50: 0 | AI50: 0 | AK50: 284000 | AL50: 69733.78355 | AM50: 86197.03654 | AN50: 128069.1799 | AO50: 0 | AQ50: E50* " | AS50: 69733.78355 | AT50: 45414.9606 | AU50: 17387.51166 | AV50: 2390.469054 | AW50: 232.7918843 | AX50: 4308.050361 | AY50: 0 | BA50: 86197.03654 | BB50: 55897.03023 | BC50: 21073.47612 | BD50: 1442.126681 | BE50: 284.6968252 | BF50: 7499.706684 | BG50: 0 | BI50: 128069.1799 | BJ50: 118883.6045 | BK50: 7676.296742 | BL50: 275.9077829 | BM50: 54.24371821 | BN50: 1179.12718 | BO50: 0
A51: 51 | B51: 396 | C51: O | D51: Power Operated Equipment | E51: ='PROFORMA (Staff)'!AW289 -> 3611000 | F51: as UG/D Plant (41) | H51: 3611000 | I51: 2799740.474 | J51: 586625.8254 | K51: 52238.75424 | L51: 7269.45703 | M51: 165125.4892 | N51: 0 | P51: E51* " | R51: 0.1035110493 | S51: 0.1303195625 | T51: 0.01171087961 | U51: 0 | V51: 0 | W51: 0.303510692 | X51: 0 | Y51: 0 | Z51: 0 | AA51: 0 | AB51: 0 | AC51: 0.3087694757 | AD51: 0.13493611 | AE51: 0 | AF51: 0.007242230921 | AG51: 0 | AH51: 0 | AI51: 0 | AK51: 3611000 | AL51: 886650.3254 | AM51: 1095977.109 | AN51: 1628372.566 | AO51: 0 | AQ51: E51* " | AS51: 886650.3254 | AT51: 577441.6293 | AU51: 221078.5373 | AV51: 30394.30899 | AW51: 2959.899627 | AX51: 54775.95018 | AY51: 0 | BA51: 1095977.109 | BB51: 710718.9301 | BC51: 267944.7967 | BD51: 18336.33608 | BE51: 3619.859985 | BF51: 95357.18605 | BG51: 0 | BI51: 1628372.566 | BJ51: 1511579.915 | BK51: 97602.49132 | BL51: 3508.10917 | BM51: 689.6974171 | BN51: 14992.35298 | BO51: 0
A52: 52 | B52: 397 | C52: O | D52: Communication Equipment | E52: ='PROFORMA (Staff)'!AW290 -> 3407000 | F52: as UG/D Plant (41) | H52: 3407000 | I52: 2641571.807 | J52: 553484.959 | K52: 49287.57565 | L52: 6858.77599 | M52: 155796.8822 | N52: 0 | P52: E52* " | R52: 0.1035110493 | S52: 0.1303195625 | T52: 0.01171087961 | U52: 0 | V52: 0 | W52: 0.303510692 | X52: 0 | Y52: 0 | Z52: 0 | AA52: 0 | AB52: 0 | AC52: 0.3087694757 | AD52: 0.13493611 | AE52: 0 | AF52: 0.007242230921 | AG52: 0 | AH52: 0 | AI52: 0 | AK52: 3407000 | AL52: 836559.8612 | AM52: 1034060.928 | AN52: 1536379.211 | AO52: 0 | AQ52: E52* " | AS52: 836559.8612 | AT52: 544819.6153 | AU52: 208588.9163 | AV52: 28677.2115 | AW52: 2792.682922 | AX52: 51681.43514 | AY52: 0 | BA52: 1034060.928 | BB52: 670567.5422 | BC52: 252807.511 | BD52: 17300.44226 | BE52: 3415.359449 | BF52: 89970.0728 | BG52: 0 | BI52: 1536379.211 | BJ52: 1426184.65 | BK52: 92088.53169 | BL52: 3309.921889 | BM52: 650.7336195 | BN52: 14145.3743 | BO52: 0
A53: 53 | B53: 398 | C53: O | D53: Miscellaneous Equipment | E53: ='PROFORMA (Staff)'!AW291 -> 54000 | F53: as UG/D Plant (41) | H53: 54000 | I53: 41868.17657 | J53: 8772.582268 | K53: 781.1943309 | L53: 108.709687 | M53: 2469.337141 | N53: 0 | P53: E53* " | R53: 0.1035110493 | S53: 0.1303195625 | T53: 0.01171087961 | U53: 0 | V53: 0 | W53: 0.303510692 | X53: 0 | Y53: 0 | Z53: 0 | AA53: 0 | AB53: 0 | AC53: 0.3087694757 | AD53: 0.13493611 | AE53: 0 | AF53: 0.007242230921 | AG53: 0 | AH53: 0 | AI53: 0 | AK53: 54000 | AL53: 13259.24053 | AM53: 16389.57737 | AN53: 24351.1821 | AO53: 0 | AQ53: E53* " | AS53: 13259.24053 | AT53: 8635.238986 | AU53: 3306.076161 | AV53: 454.525806 | AW53: 44.2632456 | AX53: 819.1363362 | AY53: 0 | BA53: 16389.57737 | BB53: 10628.30856 | BC53: 4006.928558 | BD53: 274.2071859 | BE53: 54.13249493 | BF53: 1426.000567 | BG53: 0 | BI53: 24351.1821 | BJ53: 22604.62902 | BK53: 1459.57755 | BL53: 52.46133901 | BM53: 10.31394642 | BN53: 224.2002385 | BO53: 0
A54: 54 | D54: Total General Plant | E54: =SUM(E44:E53) -> 32352000 | G54: Genl Plant (S16) | H54: =IF(ROUND(SUM(H43:H53),3)<>ROUND(SUM(I54:N54),3),#VALUE!,SUM(H43:H53)) -> 32352000 | I54: =SUM(I43:I53) -> 25083689.79 | J54: 5255751.51 | K54: 468022.2036 | L54: 65129.18134 | M54: 1479407.318 | N54: 0 | P54: =$A43&":"&$A53 -> 43:53 | R54: =SUMPRODUCT($E44:$E53,R$44:R$53)/$E54 -> 0.1035110493 | S54: =SUMPRODUCT($E44:$E53,S$44:S$53)/$E54 -> 0.1303195625 | T54: =SUMPRODUCT($E44:$E53,T$44:T$53)/$E54 -> 0.01171087961 | U54: =SUMPRODUCT($E44:$E53,U$44:U$53)/$E54 -> 0 | V54: =SUMPRODUCT($E44:$E53,V$44:V$53)/$E54 -> 0 | W54: 0.303510692 | X54: 0 | Y54: =SUMPRODUCT($E44:$E53,Y$44:Y$53)/$E54 -> 0 | Z54: =SUMPRODUCT($E44:$E53,Z$44:Z$53)/$E54 -> 0 | AA54: 0 | AB54: =SUMPRODUCT($E44:$E53,AB$44:AB$53)/$E54 -> 0 | AC54: 0.3087694757 | AD54: 0.13493611 | AE54: =SUMPRODUCT($E44:$E53,AE$44:AE$53)/$E54 -> 0 | AF54: 0.007242230921 | AG54: =SUMPRODUCT($E44:$E53,AG$44:AG$53)/$E54 -> 0 | AH54: =SUMPRODUCT($E44:$E53,AH$44:AH$53)/$E54 -> 0 | AI54: 0 | AK54: =SUM(AK43:AK53) -> 32352000 | AL54: =SUM(AL43:AL53) -> 7943758.329 | AM54: =SUM(AM43:AM53) -> 9819177.909 | AN54: =SUM(AN43:AN53) -> 14589063.76 | AO54: =SUM(AO43:AO53) -> 0 | AQ54: =$A43&":"&$A53 -> 43:53 | AS54: =IF(ROUND(SUM(AS43:AS53),3)<>ROUND(SUM(AT54:AY54),3),#VALUE!,SUM(AS43:AS53)) -> 7943758.329 | AT54: =SUM(AT43:AT53) -> 5173467.624 | AU54: 1980706.962 | AV54: 272311.4607 | AW54: 26518.60225 | AX54: 490753.6805 | AY54: 0 | BA54: =IF(ROUND(SUM(BA43:BA53),3)<>ROUND(SUM(BB54:BG54),3),#VALUE!,SUM(BA43:BA53)) -> 9819177.909 | BB54: =SUM(BB43:BB53) -> 6367537.753 | BC54: 2400595.42 | BD54: 164280.5718 | BE54: 32431.37919 | BF54: 854332.784 | BG54: 0 | BI54: =IF(ROUND(SUM(BI43:BI53),3)<>ROUND(SUM(BJ54:BO54),3),#VALUE!,SUM(BI43:BI53)) -> 14589063.76 | BJ54: =SUM(BJ43:BJ53) -> 13542684.41 | BK54: 874449.1275 | BL54: 31430.1711 | BM54: 6179.199899 | BN54: 134320.854 | BO54: 0
A55: 55 | AI55: 0
A56: 56 | D56: Total Plant In Service | E56: =E12+E23+E39+E54 -> 342258000 | F56: ="("&A$12&"+"&A$23&"+"&A$39&"+"&A$54&")" -> (12+23+39+54) | G56: Plant in Service (S17) | H56: =H12+H23+H39+H54 -> 342258000 | I56: 265372500.9 | J56: 55593972.17 | K56: 4949636.311 | L56: 688884.7817 | M56: 15653005.87 | N56: 0 | P56: ="Sum("&$A12&","&$A23&","&$A39&","&$A54&")" -> Sum(12,23,39,54) | R56: =($E12*R12+$E23*R23+$E39*R39+$E54*R54)/$E56 -> 0.1035050361 | S56: 0.13015165 | T56: 0.01171353806 | U56: 0 | V56: 0 | W56: 0.303579591 | X56: 0 | Y56: 0 | Z56: 0 | AA56: 0 | AB56: 0 | AC56: 0.3088395685 | AD56: 0.1349667414 | AE56: 0 | AF56: 0.007243874957 | AG56: 0 | AH56: 0 | AI56: 0 | AK56: =AK12+AK23+AK39+AK54 -> 342258000 | AL56: =AL12+AL23+AL39+AL54 -> 83979922.18 | AM56: =AM12+AM23+AM39+AM54 -> 103902543.7 | AN56: =AN12+AN23+AN39+AN54 -> 154375534.2 | AO56: =AO12+AO23+AO39+AO54 -> 0 | AQ56: ="Sum("&$A12&","&$A23&","&$A39&","&$A54&")" -> Sum(12,23,39,54) | AS56: =AS12+AS23+AS39+AS54 -> 83979922.18 | AT56: 54690634.53 | AU56: 20938783.89 | AV56: 2878704.895 | AW56: 280323.3505 | AX56: 5191475.513 | AY56: 0 | BA56: =BA12+BA23+BA39+BA54 -> 103902543.7 | BB56: 67378692.56 | BC56: 25402123.56 | BD56: 1738350.139 | BE56: 343175.6531 | BF56: 9040201.758 | BG56: 0 | BI56: =BI12+BI23+BI39+BI54 -> 154375534.2 | BJ56: 143303173.8 | BK56: 9253064.716 | BL56: 332581.2768 | BM56: 65385.77805 | BN56: 1421328.601 | BO56: 0
A57: 57 | AI57: 0
A58: 58 | AI58: 0
A59: 59 | D59: Accumulated Reserve For Depreciation | AI59: 0
A60: 60 | D60: Underground Storage Plant Accumulated Depreciation | AI60: 0
A61: 61 | B61: 350 | C61: U | D61: Land & Land Rights Accum. Depr. | E61: ='PROFORMA (Staff)'!AW308 -> -14000 | F61: ="as 350 Plant ("&A$15&")" -> as 350 Plant (15) | H61: =SUM(I61:N61) -> -14000 | I61: =$E61*SUMPRODUCT($R61:$AH61,INDEX(AllocFactors,I$4,0)) -> -9531.071317 | J61: -3649.05334 | K61: -501.6789784 | L61: -51.48156848 | M61: -266.7147958 | N61: 0 | P61: =E$1&$A61&"* Sum["&$R$1&$A61&":"&$AH$1&$A61&"* "&Factors!D$1&Factors!$A$58&":"&Factors!S$1&Factors!$A$64&"]" -> E61* Sum[R61:AH61* D592:S598] | R61: =R$15 -> 0.13 | S61: =S$15 -> 0.87 | T61: 0 | U61: 0 | V61: 0 | W61: 0 | X61: 0 | Y61: 0 | Z61: 0 | AA61: 0 | AB61: 0 | AC61: 0 | AD61: 0 | AE61: 0 | AF61: 0 | AG61: 0 | AH61: 0 | AI61: 0 | AK61: =SUM(AL61:AO61) -> -14000 | AL61: =SUMIF($R$4:$AH$4,AL$5,$R61:$AH61)*$E61 -> -14000 | AM61: 0 | AN61: 0 | AO61: 0 | AQ61: =E$1&$A61&"*["&R$1&$A61&":"&$AH$1&$A61&" when "&R$1&$A$4&":"&$AH$1&$A$4&" = E,D,C,or R]" -> E61*[R61:AH61 when R4:AH4 = E,D,C,or R] | AS61: =SUM(AT61:AY61) -> -14000 | AT61: =$E61*SUMPRODUCT($R61:$V61,INDEX(AllocFactors_E,AT$4,0)) -> -9531.071317 | AU61: -3649.05334 | AV61: -501.6789784 | AW61: -51.48156848 | AX61: -266.7147958 | AY61: 0 | BA61: =SUM(BB61:BG61) -> 0 | BB61: =$E61*SUMPRODUCT($W61:$AA61,INDEX(AllocFactors_D,BB$4,0)) -> 0 | BC61: 0 | BD61: 0 | BE61: 0 | BF61: 0 | BG61: 0 | BI61: =SUM(BJ61:BO61) -> 0 | BJ61: =$E61*SUMPRODUCT($AB61:$AG61,INDEX(AllocFactors_C,BJ$4,0)) -> 0 | BK61: 0 | BL61: 0 | BM61: 0 | BN61: 0 | BO61: 0
A62: 62 | B62: 351 | C62: U | D62: Structures & Improvements Accum. Depr. | E62: ='PROFORMA (Staff)'!AW309 -> -484000 | F62: ="as 351 Plant ("&A$16&")" -> as 351 Plant (16) | H62: -484000 | I62: -329502.7513 | J62: -126152.9869 | K62: -17343.75897 | L62: -1779.791368 | M62: -9220.711511 | N62: 0 | P62: =E$1&$A62&"* """ -> E62* " | R62: =R$16 -> 0.13 | S62: =S$16 -> 0.87 | T62: 0 | U62: 0 | V62: 0 | W62: 0 | X62: 0 | Y62: 0 | Z62: 0 | AA62: 0 | AB62: 0 | AC62: 0 | AD62: 0 | AE62: 0 | AF62: 0 | AG62: 0 | AH62: 0 | AI62: 0 | AK62: -484000 | AL62: -484000 | AM62: 0 | AN62: 0 | AO62: 0 | AQ62: =E$1&$A62&"* """ -> E62* " | AS62: -484000 | AT62: -329502.7513 | AU62: -126152.9869 | AV62: -17343.75897 | AW62: -1779.791368 | AX62: -9220.711511 | AY62: 0 | BA62: 0 | BB62: 0 | BC62: 0 | BD62: 0 | BE62: 0 | BF62: 0 | BG62: 0 | BI62: 0 | BJ62: 0 | BK62: 0 | BL62: 0 | BM62: 0 | BN62: 0 | BO62: 0
A63: 63 | B63: 352 | C63: U | D63: Wells Accum. Depr. | E63: ='PROFORMA (Staff)'!AW310 -> -5771000 | F63: ="as 352 Plant ("&A$17&")" -> as 352 Plant (17) | H63: -5771000 | I63: -3928843.755 | J63: -1504191.916 | K63: -206799.2417 | L63: -21221.43798 | M63: -109943.649 | N63: 0 | P63: E63* " | R63: =R$17 -> 0.13 | S63: =S$17 -> 0.87 | T63: 0 | U63: 0 | V63: 0 | W63: 0 | X63: 0 | Y63: 0 | Z63: 0 | AA63: 0 | AB63: 0 | AC63: 0 | AD63: 0 | AE63: 0 | AF63: 0 | AG63: 0 | AH63: 0 | AI63: 0 | AK63: -5771000 | AL63: -5771000 | AM63: 0 | AN63: 0 | AO63: 0 | AQ63: =E$1&$A63&"* """ -> E63* " | AS63: -5771000 | AT63: -3928843.755 | AU63: -1504191.916 | AV63: -206799.2417 | AW63: -21221.43798 | AX63: -109943.649 | AY63: 0 | BA63: 0 | BB63: 0 | BC63: 0 | BD63: 0 | BE63: 0 | BF63: 0 | BG63: 0 | BI63: 0 | BJ63: 0 | BK63: 0 | BL63: 0 | BM63: 0 | BN63: 0 | BO63: 0
A64: 64 | B64: 353 | C64: U | D64: Lines Accum. Depr. | E64: ='PROFORMA (Staff)'!AW311 -> -321000 | F64: ="as 353 Plant ("&A$18&")" -> as 353 Plant (18) | H64: -321000 | I64: -218533.8495 | J64: -83667.58016 | K64: -11502.78229 | L64: -1180.39882 | M64: -6115.389246 | N64: 0 | P64: E64* " | R64: =R$18 -> 0.13 | S64: =S$18 -> 0.87 | T64: 0 | U64: 0 | V64: 0 | W64: 0 | X64: 0 | Y64: 0 | Z64: 0 | AA64: 0 | AB64: 0 | AC64: 0 | AD64: 0 | AE64: 0 | AF64: 0 | AG64: 0 | AH64: 0 | AI64: 0 | AK64: -321000 | AL64: -321000 | AM64: 0 | AN64: 0 | AO64: 0 | AQ64: E64* " | AS64: -321000 | AT64: -218533.8495 | AU64: -83667.58016 | AV64: -11502.78229 | AW64: -1180.39882 | AX64: -6115.389246 | AY64: 0 | BA64: 0 | BB64: 0 | BC64: 0 | BD64: 0 | BE64: 0 | BF64: 0 | BG64: 0 | BI64: 0 | BJ64: 0 | BK64: 0 | BL64: 0 | BM64: 0 | BN64: 0 | BO64: 0
A65: =RowHdr -> 65 | B65: 354 | C65: U | D65: Compressor Station Equip. Accum. Depr. | E65: ='PROFORMA (Staff)'!AW312 -> -1287000 | F65: ="as 354 Plant ("&A$19&")" -> as 354 Plant (19) | H65: -1287000 | I65: -876177.7704 | J65: -335452.2606 | K65: -46118.6318 | L65: -4732.627046 | M65: -24518.71015 | N65: 0 | P65: E65* " | R65: =R$19 -> 0.13 | S65: =S$19 -> 0.87 | T65: 0 | U65: 0 | V65: 0 | W65: 0 | X65: 0 | Y65: 0 | Z65: 0 | AA65: 0 | AB65: 0 | AC65: 0 | AD65: 0 | AE65: 0 | AF65: 0 | AG65: 0 | AH65: 0 | AI65: 0 | AK65: -1287000 | AL65: -1287000 | AM65: 0 | AN65: 0 | AO65: 0 | AQ65: E65* " | AS65: -1287000 | AT65: -876177.7704 | AU65: -335452.2606 | AV65: -46118.6318 | AW65: -4732.627046 | AX65: -24518.71015 | AY65: 0 | BA65: 0 | BB65: 0 | BC65: 0 | BD65: 0 | BE65: 0 | BF65: 0 | BG65: 0 | BI65: 0 | BJ65: 0 | BK65: 0 | BL65: 0 | BM65: 0 | BN65: 0 | BO65: 0
A66: 66 | B66: 355 | C66: U | D66: Measuring & Regulating Equip. Accum. Depr. | E66: ='PROFORMA (Staff)'!AW313 -> 296000 | F66: ="as 355 Plant ("&A$20&")" -> as 355 Plant (20) | H66: 296000 | I66: 201514.0793 | J66: 77151.41348 | K66: 10606.92697 | L66: 1088.467448 | M66: 5639.112825 | N66: 0 | P66: E66* " | R66: =R$20 -> 0.13 | S66: =S$20 -> 0.87 | T66: 0 | U66: 0 | V66: 0 | W66: 0 | X66: 0 | Y66: 0 | Z66: 0 | AA66: 0 | AB66: 0 | AC66: 0 | AD66: 0 | AE66: 0 | AF66: 0 | AG66: 0 | AH66: 0 | AI66: 0 | AK66: 296000 | AL66: 296000 | AM66: 0 | AN66: 0 | AO66: 0 | AQ66: E66* " | AS66: 296000 | AT66: 201514.0793 | AU66: 77151.41348 | AV66: 10606.92697 | AW66: 1088.467448 | AX66: 5639.112825 | AY66: 0 | BA66: 0 | BB66: 0 | BC66: 0 | BD66: 0 | BE66: 0 | BF66: 0 | BG66: 0 | BI66: 0 | BJ66: 0 | BK66: 0 | BL66: 0 | BM66: 0 | BN66: 0 | BO66: 0
A67: 67 | B67: 356 | C67: U | D67: Purification Equipment Accum. Depr. | E67: ='PROFORMA (Staff)'!AW314 -> -244000 | F67: ="as 356 Plant ("&A$21&")" -> as 356 Plant (21) | H67: -244000 | I67: -166112.9572 | J67: -63597.78679 | K67: -8743.547909 | L67: -897.2501936 | M67: -4648.457869 | N67: 0 | P67: E67* " | R67: =R$21 -> 0.13 | S67: =S$21 -> 0.87 | T67: 0 | U67: 0 | V67: 0 | W67: 0 | X67: 0 | Y67: 0 | Z67: 0 | AA67: 0 | AB67: 0 | AC67: 0 | AD67: 0 | AE67: 0 | AF67: 0 | AG67: 0 | AH67: 0 | AI67: 0 | AK67: -244000 | AL67: -244000 | AM67: 0 | AN67: 0 | AO67: 0 | AQ67: E67* " | AS67: -244000 | AT67: -166112.9572 | AU67: -63597.78679 | AV67: -8743.547909 | AW67: -897.2501936 | AX67: -4648.457869 | AY67: 0 | BA67: 0 | BB67: 0 | BC67: 0 | BD67: 0 | BE67: 0 | BF67: 0 | BG67: 0 | BI67: 0 | BJ67: 0 | BK67: 0 | BL67: 0 | BM67: 0 | BN67: 0 | BO67: 0
A68: 68 | B68: 357 | C68: U | D68: Other Equipment Accum. Depr. | E68: ='PROFORMA (Staff)'!AW315 -> -461000 | F68: ="as 357 Plant ("&A$22&")" -> as 357 Plant (22) | H68: -461000 | I68: -313844.5627 | J68: -120158.1136 | K68: -16519.57207 | L68: -1695.214505 | M68: -8782.537204 | N68: 0 | P68: E68* " | R68: =R$22 -> 0.13 | S68: =S$22 -> 0.87 | T68: 0 | U68: 0 | V68: 0 | W68: 0 | X68: 0 | Y68: 0 | Z68: 0 | AA68: 0 | AB68: 0 | AC68: 0 | AD68: 0 | AE68: 0 | AF68: 0 | AG68: 0 | AH68: 0 | AI68: 0 | AK68: -461000 | AL68: -461000 | AM68: 0 | AN68: 0 | AO68: 0 | AQ68: E68* " | AS68: -461000 | AT68: -313844.5627 | AU68: -120158.1136 | AV68: -16519.57207 | AW68: -1695.214505 | AX68: -8782.537204 | AY68: 0 | BA68: 0 | BB68: 0 | BC68: 0 | BD68: 0 | BE68: 0 | BF68: 0 | BG68: 0 | BI68: 0 | BJ68: 0 | BK68: 0 | BL68: 0 | BM68: 0 | BN68: 0 | BO68: 0
A69: 69 | D69: Total Transmission Plant Accum Depr | E69: =SUM(E61:E68) -> -8286000 | H69: =IF(ROUND(SUM(H60:H68),3)<>ROUND(SUM(I69:N69),3),#VALUE!,SUM(H60:H68)) -> -8286000 | I69: =SUM(I60:I68) -> -5641032.638 | J69: -2159718.284 | K69: -296922.2868 | L69: -30469.73403 | M69: -157857.057 | N69: 0 | P69: =$A60&":"&A68 -> 60:68 | R69: =SUMPRODUCT($E61:$E68,R$61:R$68)/$E69 -> 0.13 | S69: 0.87 | T69: 0 | U69: 0 | V69: 0 | W69: 0 | X69: 0 | Y69: 0 | Z69: 0 | AA69: 0 | AB69: 0 | AC69: 0 | AD69: 0 | AE69: 0 | AF69: 0 | AG69: 0 | AH69: 0 | AI69: 0 | AK69: =IF(ROUND(SUM(AK60:AK68),3)<>ROUND(SUM(AL69:AO69),3),#VALUE!,SUM(AK60:AK68)) -> -8286000 | AL69: =SUM(AL60:AL68) -> -8286000 | AM69: =SUM(AM60:AM68) -> 0 | AN69: =SUM(AN60:AN68) -> 0 | AO69: =SUM(AO60:AO68) -> 0 | AQ69: =$A60&":"&$A68 -> 60:68 | AS69: =IF(ROUND(SUM(AS60:AS68),3)<>ROUND(SUM(AT69:AY69),3),#VALUE!,SUM(AS60:AS68)) -> -8286000 | AT69: =SUM(AT60:AT68) -> -5641032.638 | AU69: -2159718.284 | AV69: -296922.2868 | AW69: -30469.73403 | AX69: -157857.057 | AY69: 0 | BA69: =IF(ROUND(SUM(BA60:BA68),3)<>ROUND(SUM(BB69:BG69),3),#VALUE!,SUM(BA60:BA68)) -> 0 | BB69: =SUM(BB60:BB68) -> 0 | BC69: 0 | BD69: 0 | BE69: 0 | BF69: 0 | BG69: 0 | BI69: =IF(ROUND(SUM(BI60:BI68),3)<>ROUND(SUM(BJ69:BO69),3),#VALUE!,SUM(BI60:BI68)) -> 0 | BJ69: =SUM(BJ60:BJ68) -> 0 | BK69: 0 | BL69: 0 | BM69: 0 | BN69: 0 | BO69: 0
A70: 70 | AI70: 0
A71: 71 | D71: Distribution Plant Accumulated Depreciation | AI71: =IF(SUM(R71:AH71)<>0,(ROUND(SUM(R71:AH71),8)<>1)+0,0) -> 0
A72: 72 | B72: 374 | C72: D | D72: Land & Land Rights Accum. Depr. | E72: ='PROFORMA (Staff)'!AW319 -> 0 | F72: ="as 374 Plant ("&A$26&")" -> as 374 Plant (26) | H72: =SUM(I72:N72) -> 0 | I72: =$E72*SUMPRODUCT($R72:$AH72,INDEX(AllocFactors,I$4,0)) -> 0 | J72: 0 | K72: 0 | L72: 0 | M72: 0 | N72: 0 | P72: =E$1&$A72&"* Sum["&$R$1&$A72&":"&$AH$1&$A72&"* "&Factors!D$1&Factors!$A$58&":"&Factors!S$1&Factors!$A$64&"]" -> E72* Sum[R72:AH72* D592:S598] | R72: =R$26 -> 0.1014384849 | S72: =S$26 -> 0.07244504266 | T72: 0.01262716926 | U72: 0 | V72: 0 | W72: 0.3272581574 | X72: 0 | Y72: 0 | Z72: 0 | AA72: 0 | AB72: 0 | AC72: 0.332928402 | AD72: 0.1454938619 | AE72: 0 | AF72: 0.007808881891 | AG72: 0 | AH72: 0 | AI72: 0 | AK72: =SUM(AL72:AO72) -> 0 | AL72: =SUMIF($R$4:$AH$4,AL$5,$R72:$AH72)*$E72 -> 0 | AM72: 0 | AN72: 0 | AO72: 0 | AQ72: =E$1&$A72&"*["&R$1&$A72&":"&$AH$1&$A72&" when "&R$1&$A$4&":"&$AH$1&$A$4&" = E,D,C,or R]" -> E72*[R72:AH72 when R4:AH4 = E,D,C,or R] | AS72: =SUM(AT72:AY72) -> 0 | AT72: =$E72*SUMPRODUCT($R72:$V72,INDEX(AllocFactors_E,AT$4,0)) -> 0 | AU72: 0 | AV72: 0 | AW72: 0 | AX72: 0 | AY72: 0 | BA72: =SUM(BB72:BG72) -> 0 | BB72: =$E72*SUMPRODUCT($W72:$AA72,INDEX(AllocFactors_D,BB$4,0)) -> 0 | BC72: 0 | BD72: 0 | BE72: 0 | BF72: 0 | BG72: 0 | BI72: =SUM(BJ72:BO72) -> 0 | BJ72: =$E72*SUMPRODUCT($AB72:$AG72,INDEX(AllocFactors_C,BJ$4,0)) -> 0 | BK72: 0 | BL72: 0 | BM72: 0 | BN72: 0 | BO72: 0
A73: 73 | B73: 375 | C73: D | D73: Structures & Improvements Accum. Depr. | E73: ='PROFORMA (Staff)'!AW320 -> -153000 | F73: ="as 375 Plant ("&A$27&")" -> as 375 Plant (27) | H73: -153000 | I73: -119758.3191 | J73: -23680.18848 | K73: -1957.589273 | L73: -288.0894927 | M73: -7315.813632 | N73: 0 | P73: =E$1&$A73&"* """ -> E73* " | R73: =R$27 -> 0.1014384849 | S73: =S$27 -> 0.07244504266 | T73: 0.01262716926 | U73: 0 | V73: 0 | W73: 0.3272581574 | X73: 0 | Y73: 0 | Z73: 0 | AA73: 0 | AB73: 0 | AC73: 0.332928402 | AD73: 0.1454938619 | AE73: 0 | AF73: 0.007808881891 | AG73: 0 | AH73: 0 | AI73: 0 | AK73: -153000 | AL73: -28536.13662 | AM73: -50070.49808 | AN73: -74393.3653 | AO73: 0 | AQ73: =E$1&$A73&"* """ -> E73* " | AS73: -28536.13662 | AT73: -18231.00697 | AU73: -6979.899181 | AV73: -959.6101684 | AW73: -91.20428052 | AX73: -2274.416018 | AY73: 0 | BA73: -50070.49808 | BB73: -32469.70264 | BC73: -12241.24968 | BD73: -837.7086281 | BE73: -165.3758924 | BF73: -4356.461246 | BG73: 0 | BI73: -74393.3653 | BJ73: -69057.60951 | BK73: -4459.039623 | BL73: -160.2704765 | BM73: -31.50931978 | BN73: -684.9363688 | BO73: 0
A74: 74 | B74: 376-All | C74: D | D74: Mains Accum. Depr. | E74: ='PROFORMA (Staff)'!AV321 -> -47355000 | F74: ="as 376-SM Plant ("&A$28&")" -> as 376-SM Plant (28) | H74: -47355000 | I74: -30571514.14 | J74: -11590072.96 | K74: -1084226.5 | L74: -154569.6831 | M74: -3954616.72 | N74: 0 | P74: E74* " | R74: =R$28 -> 0.1916726721 | S74: =S$28 -> 0.1459183013 | T74: 0.02543355655 | U74: 0 | V74: 0 | W74: 0.63697547 | X74: 0 | Y74: 0 | Z74: 0 | AA74: 0 | AB74: 0 | AC74: 0 | AD74: 0 | AE74: 0 | AF74: 0 | AG74: 0 | AH74: 0 | AI74: 0 | AK74: -47355000 | AL74: -17191026.62 | AM74: -30163973.38 | AN74: 0 | AO74: 0 | AQ74: =E$1&$A74&"* """ -> E74* " | AS74: -17191026.62 | AT74: -11010789.09 | AU74: -4215576.127 | AV74: -579565.6372 | AW74: -54942.27355 | AX74: -1330153.492 | AY74: 0 | BA74: -30163973.38 | BB74: -19560725.05 | BC74: -7374496.83 | BD74: -504660.8627 | BE74: -99627.4095 | BF74: -2624463.228 | BG74: 0 | BI74: 0 | BJ74: 0 | BK74: 0 | BL74: 0 | BM74: 0 | BN74: 0 | BO74: 0
A75: 75 | B75: 376 | C75: D | D75: Mains Accum. Depr. | E75: 0 | F75: ="as 376-SM Plant ("&A$29&")" -> as 376-SM Plant (29) | H75: 0 | I75: 0 | J75: 0 | K75: 0 | L75: 0 | M75: 0 | N75: 0 | P75: E75* " | R75: =R$29 -> 0.1916726721 | S75: =S$29 -> 0.1459183013 | T75: 0.02543355655 | U75: 0 | V75: 0 | W75: 0.63697547 | X75: 0 | Y75: 0 | Z75: 0 | AA75: 0 | AB75: 0 | AC75: 0 | AD75: 0 | AE75: 0 | AF75: 0 | AG75: 0 | AH75: 0 | AI75: 0 | AK75: 0 | AL75: 0 | AM75: 0 | AN75: 0 | AO75: 0 | AQ75: E75* " | AS75: 0 | AT75: 0 | AU75: 0 | AV75: 0 | AW75: 0 | AX75: 0 | AY75: 0 | BA75: 0 | BB75: 0 | BC75: 0 | BD75: 0 | BE75: 0 | BF75: 0 | BG75: 0 | BI75: 0 | BJ75: 0 | BK75: 0 | BL75: 0 | BM75: 0 | BN75: 0 | BO75: 0
A76: 76 | B76: 378 | C76: D | D76: Meas & Reg Station Equip-Gen. Accum. Depr. | E76: ='PROFORMA (Staff)'!AW323 -> -539000 | F76: ="as 378 Plant ("&A$30&")" -> as 378 Plant (30) | H76: -539000 | I76: -338539.3029 | J76: -128309.4974 | K76: -11844.47516 | L76: -1759.9814 | M76: -58546.74315 | N76: 0 | P76: E76* " | R76: =R$30 -> 0.36302453 | S76: =S$30 -> 0 | T76: 0 | U76: 0 | V76: 0 | W76: 0.63697547 | X76: 0 | Y76: 0 | Z76: 0 | AA76: 0 | AB76: 0 | AC76: 0 | AD76: 0 | AE76: 0 | AF76: 0 | AG76: 0 | AH76: 0 | AI76: 0 | AK76: -539000 | AL76: -195670.2217 | AM76: -343329.7783 | AN76: 0 | AO76: 0 | AQ76: E76* " | AS76: -195670.2217 | AT76: -115896.9039 | AU76: -44372.13513 | AV76: -6100.367778 | AW76: -626.0108857 | AX76: -28674.80396 | AY76: 0 | BA76: -343329.7783 | BB76: -222642.3989 | BC76: -83937.36229 | BD76: -5744.107381 | BE76: -1133.970515 | BF76: -29871.93919 | BG76: 0 | BI76: 0 | BJ76: 0 | BK76: 0 | BL76: 0 | BM76: 0 | BN76: 0 | BO76: 0
A77: 77 | B77: 379 | C77: D | D77: Meas & Reg Station Equip-City Gate Accum. Depr. | E77: ='PROFORMA (Staff)'!AW324 -> -303000 | F77: ="as 379 Plant ("&A$31&")" -> as 379 Plant (31) | H77: -303000 | I77: -190310.5914 | J77: -72129.45773 | K77: -6658.396982 | L77: -989.3772993 | M77: -32912.17658 | N77: 0 | P77: E77* " | R77: =R$31 -> 0.36302453 | S77: =S$31 -> 0 | T77: 0 | U77: 0 | V77: 0 | W77: 0.63697547 | X77: 0 | Y77: 0 | Z77: 0 | AA77: 0 | AB77: 0 | AC77: 0 | AD77: 0 | AE77: 0 | AF77: 0 | AG77: 0 | AH77: 0 | AI77: 0 | AK77: -303000 | AL77: -109996.4326 | AM77: -193003.5674 | AN77: 0 | AO77: 0 | AQ77: E77* " | AS77: -109996.4326 | AT77: -65151.69182 | AU77: -24943.89043 | AV77: -3429.334762 | AW77: -351.913355 | AX77: -16119.60223 | AY77: 0 | BA77: -193003.5674 | BB77: -125158.8996 | BC77: -47185.5673 | BD77: -3229.062219 | BE77: -637.4639442 | BF77: -16792.57435 | BG77: 0 | BI77: 0 | BJ77: 0 | BK77: 0 | BL77: 0 | BM77: 0 | BN77: 0 | BO77: 0
A78: 78 | B78: 380 | C78: D | D78: Services Accum. Depr. | E78: ='PROFORMA (Staff)'!AW325 -> -39535000 | F78: ="as 380 Plant ("&A$32&")" -> as 380 Plant (32) | H78: -39535000 | I78: -38795878.09 | J78: -638728.9728 | K78: -20770.95225 | L78: -798.8827788 | M78: -78823.10084 | N78: 0 | P78: E78* " | R78: =R$32 -> 0 | S78: =S$32 -> 0 | T78: 0 | U78: 0 | V78: 0 | W78: 0 | X78: 0 | Y78: 0 | Z78: 0 | AA78: 0 | AB78: 0 | AC78: 1 | AD78: 0 | AE78: 0 | AF78: 0 | AG78: 0 | AH78: 0 | AI78: 0 | AK78: -39535000 | AL78: 0 | AM78: 0 | AN78: -39535000 | AO78: 0 | AQ78: E78* " | AS78: 0 | AT78: 0 | AU78: 0 | AV78: 0 | AW78: 0 | AX78: 0 | AY78: 0 | BA78: 0 | BB78: 0 | BC78: 0 | BD78: 0 | BE78: 0 | BF78: 0 | BG78: 0 | BI78: -39535000 | BJ78: -38795878.09 | BK78: -638728.9728 | BL78: -20770.95225 | BM78: -798.8827788 | BN78: -78823.10084 | BO78: 0
A79: 79 | B79: 381 | C79: D | D79: Meters Accum. Depr. | E79: ='PROFORMA (Staff)'!AW326 -> -8790000 | F79: ="as 381 Plant ("&A$33&")" -> as 381 Plant (33) | H79: -8790000 | I79: -7530885.681 | J79: -1065050.619 | K79: -34715.22847 | L79: -7908.856661 | M79: -151439.6144 | N79: 0 | P79: E79* " | R79: =R$33 -> 0 | S79: =S$33 -> 0 | T79: 0 | U79: 0 | V79: 0 | W79: 0 | X79: 0 | Y79: 0 | Z79: 0 | AA79: 0 | AB79: 0 | AC79: 0 | AD79: 1 | AE79: 0 | AF79: 0 | AG79: 0 | AH79: 0 | AI79: 0 | AK79: -8790000 | AL79: 0 | AM79: 0 | AN79: -8790000 | AO79: 0 | AQ79: E79* " | AS79: 0 | AT79: 0 | AU79: 0 | AV79: 0 | AW79: 0 | AX79: 0 | AY79: 0 | BA79: 0 | BB79: 0 | BC79: 0 | BD79: 0 | BE79: 0 | BF79: 0 | BG79: 0 | BI79: -8790000 | BJ79: -7530885.681 | BK79: -1065050.619 | BL79: -34715.22847 | BM79: -7908.856661 | BN79: -151439.6144 | BO79: 0
A80: 80 | B80: 382 | C80: D | D80: Meter Installations Accum. Depr. | E80: ='PROFORMA (Staff)'!AW327 -> 0 | F80: ="as 382 Plant ("&A$34&")" -> as 382 Plant (34) | H80: 0 | I80: 0 | J80: 0 | K80: 0 | L80: 0 | M80: 0 | N80: 0 | P80: E80* " | R80: =R$34 -> 0 | S80: =S$34 -> 0 | T80: 0 | U80: 0 | V80: 0 | W80: 0 | X80: 0 | Y80: 0 | Z80: 0 | AA80: 0 | AB80: 1 | AC80: 0 | AD80: 0 | AE80: 0 | AF80: 0 | AG80: 0 | AH80: 0 | AI80: 0 | AK80: 0 | AL80: 0 | AM80: 0 | AN80: 0 | AO80: 0 | AQ80: E80* " | AS80: 0 | AT80: 0 | AU80: 0 | AV80: 0 | AW80: 0 | AX80: 0 | AY80: 0 | BA80: 0 | BB80: 0 | BC80: 0 | BD80: 0 | BE80: 0 | BF80: 0 | BG80: 0 | BI80: 0 | BJ80: 0 | BK80: 0 | BL80: 0 | BM80: 0 | BN80: 0 | BO80: 0
A81: 81 | B81: 383 | C81: D | D81: House Regulators Accum. Depr. | E81: ='PROFORMA (Staff)'!AW328 -> 0 | F81: ="as 383 Plant ("&A$35&")" -> as 383 Plant (35) | H81: 0 | I81: 0 | J81: 0 | K81: 0 | L81: 0 | M81: 0 | N81: 0 | P81: E81* " | R81: =R$35 -> 0 | S81: =S$35 -> 0 | T81: 0 | U81: 0 | V81: 0 | W81: 0 | X81: 0 | Y81: 0 | Z81: 0 | AA81: 0 | AB81: 0 | AC81: 0 | AD81: 0 | AE81: 1 | AF81: 0 | AG81: 0 | AH81: 0 | AI81: 0 | AK81: 0 | AL81: 0 | AM81: 0 | AN81: 0 | AO81: 0 | AQ81: E81* " | AS81: 0 | AT81: 0 | AU81: 0 | AV81: 0 | AW81: 0 | AX81: 0 | AY81: 0 | BA81: 0 | BB81: 0 | BC81: 0 | BD81: 0 | BE81: 0 | BF81: 0 | BG81: 0 | BI81: 0 | BJ81: 0 | BK81: 0 | BL81: 0 | BM81: 0 | BN81: 0 | BO81: 0
A82: 82 | B82: 384 | C82: D | D82: House Regulator Installations Accum. Depr. | E82: ='PROFORMA (Staff)'!AW329 -> 0 | F82: ="as 384 Plant ("&A$36&")" -> as 384 Plant (36) | H82: 0 | I82: 0 | J82: 0 | K82: 0 | L82: 0 | M82: 0 | N82: 0 | P82: E82* " | R82: =R$36 -> 0 | S82: =S$36 -> 0 | T82: 0 | U82: 0 | V82: 0 | W82: 0 | X82: 0 | Y82: 0 | Z82: 0 | AA82: 0 | AB82: 1 | AC82: 0 | AD82: 0 | AE82: 0 | AF82: 0 | AG82: 0 | AH82: 0 | AI82: 0 | AK82: 0 | AL82: 0 | AM82: 0 | AN82: 0 | AO82: 0 | AQ82: E82* " | AS82: 0 | AT82: 0 | AU82: 0 | AV82: 0 | AW82: 0 | AX82: 0 | AY82: 0 | BA82: 0 | BB82: 0 | BC82: 0 | BD82: 0 | BE82: 0 | BF82: 0 | BG82: 0 | BI82: 0 | BJ82: 0 | BK82: 0 | BL82: 0 | BM82: 0 | BN82: 0 | BO82: 0
A83: 83 | B83: 385 | C83: D | D83: Industrial Meas & Reg Station Equip Accum. Depr. | E83: ='PROFORMA (Staff)'!AW330 -> -814000 | F83: ="as 385 Plant ("&A$37&")" -> as 385 Plant (37) | H83: -814000 | I83: 0 | J83: -639650.8607 | K83: -31062.72408 | L83: -7120.318791 | M83: -136166.0964 | N83: 0 | P83: E83* " | R83: =R$37 -> 0 | S83: =S$37 -> 0 | T83: 0 | U83: 0 | V83: 0 | W83: 0 | X83: 0 | Y83: 0 | Z83: 0 | AA83: 0 | AB83: 0 | AC83: 0 | AD83: 0 | AE83: 0 | AF83: 1 | AG83: 0 | AH83: 0 | AI83: 0 | AK83: -814000 | AL83: 0 | AM83: 0 | AN83: -814000 | AO83: 0 | AQ83: E83* " | AS83: 0 | AT83: 0 | AU83: 0 | AV83: 0 | AW83: 0 | AX83: 0 | AY83: 0 | BA83: 0 | BB83: 0 | BC83: 0 | BD83: 0 | BE83: 0 | BF83: 0 | BG83: 0 | BI83: -814000 | BJ83: 0 | BK83: -639650.8607 | BL83: -31062.72408 | BM83: -7120.318791 | BN83: -136166.0964 | BO83: 0
A84: 84 | B84: 387 | C84: D | D84: Other Equipment Accum. Depr. | E84: ='PROFORMA (Staff)'!AW331 -> 0 | F84: ="as 387 Plant ("&A$38&")" -> as 387 Plant (38) | H84: 0 | I84: 0 | J84: 0 | K84: 0 | L84: 0 | M84: 0 | N84: 0 | P84: E84* " | R84: =R$38 -> 0.1014384849 | S84: =S$38 -> 0.07244504266 | T84: 0.01262716926 | U84: 0 | V84: 0 | W84: 0.3272581574 | X84: 0 | Y84: 0 | Z84: 0 | AA84: 0 | AB84: 0 | AC84: 0.332928402 | AD84: 0.1454938619 | AE84: 0 | AF84: 0.007808881891 | AG84: 0 | AH84: 0 | AI84: 0 | AK84: 0 | AL84: 0 | AM84: 0 | AN84: 0 | AO84: 0 | AQ84: E84* " | AS84: 0 | AT84: 0 | AU84: 0 | AV84: 0 | AW84: 0 | AX84: 0 | AY84: 0 | BA84: 0 | BB84: 0 | BC84: 0 | BD84: 0 | BE84: 0 | BF84: 0 | BG84: 0 | BI84: 0 | BJ84: 0 | BK84: 0 | BL84: 0 | BM84: 0 | BN84: 0 | BO84: 0
A85: 85 | D85: Total Distribution Plant Accum Depr | E85: =SUM(E72:E84) -> -97489000 | H85: =IF(ROUND(SUM(H71:H84),3)<>ROUND(SUM(I85:N85),3),#VALUE!,SUM(H71:H84)) -> -97489000 | I85: =SUM(I71:I84) -> -77546886.13 | J85: -14157622.55 | K85: -1191235.866 | L85: -173435.1895 | M85: -4419820.265 | N85: 0 | P85: =$A71&":"&A84 -> 71:84 | R85: =SUMPRODUCT($E72:$E84,R$72:R$84)/$E85 -> 0.09639904124 | S85: 0.07099308897 | T85: 0.01237409377 | U85: 0 | V85: 0 | W85: 0.3154240707 | X85: 0 | Y85: 0 | Z85: 0 | AA85: 0 | AB85: 0 | AC85: 0.4060554324 | AD85: 0.09039235771 | AE85: 0 | AF85: 0.008361915282 | AG85: 0 | AH85: 0 | AI85: 0 | AK85: =IF(ROUND(SUM(AK71:AK84),3)<>ROUND(SUM(AL85:AO85),3),#VALUE!,SUM(AK71:AK84)) -> -97489000 | AL85: =SUM(AL71:AL84) -> -17525229.41 | AM85: =SUM(AM71:AM84) -> -30750377.23 | AN85: =SUM(AN71:AN84) -> -49213393.37 | AO85: =SUM(AO71:AO84) -> 0 | AQ85: =$A71&":"&$A84 -> 71:84 | AS85: =IF(ROUND(SUM(AS71:AS84),3)<>ROUND(SUM(AT85:AY85),3),#VALUE!,SUM(AS71:AS84)) -> -17525229.41 | AT85: =SUM(AT71:AT84) -> -11210068.69 | AU85: -4291872.051 | AV85: -590054.9499 | AW85: -56011.40208 | AX85: -1377222.314 | AY85: 0 | BA85: =IF(ROUND(SUM(BA71:BA84),3)<>ROUND(SUM(BB85:BG85),3),#VALUE!,SUM(BA71:BA84)) -> -30750377.23 | BB85: =SUM(BB71:BB84) -> -19940996.05 | BC85: -7517861.009 | BD85: -514471.7409 | BE85: -101564.2199 | BF85: -2675484.203 | BG85: 0 | BI85: =IF(ROUND(SUM(BI71:BI84),3)<>ROUND(SUM(BJ85:BO85),3),#VALUE!,SUM(BI71:BI84)) -> -49213393.37 | BJ85: =SUM(BJ71:BJ84) -> -46395821.38 | BK85: -2347889.492 | BL85: -86709.17527 | BM85: -15859.56755 | BN85: -367113.7481 | BO85: 0
A86: 86 | AI86: 0
A87: 87 | D87: General Plant Accumulated Depreciation | AI87: 0
A88: 88 | B88: 389 | C88: O | D88: Land & Land Rights Accum. Depr. | E88: ='PROFORMA (Staff)'!AW335 -> 1000 | F88: ="as 389 Plant ("&A$44&")" -> as 389 Plant (44) | H88: =SUM(I88:N88) -> 1000 | I88: =$E88*SUMPRODUCT($R88:$AH88,INDEX(AllocFactors,I$4,0)) -> 775.3366032 | J88: 162.4552272 | K88: 14.46656168 | L88: 2.013142351 | M88: 45.72846558 | N88: 0 | P88: =E$1&$A88&"* Sum["&$R$1&$A88&":"&$AH$1&$A88&"* "&Factors!D$1&Factors!$A$58&":"&Factors!S$1&Factors!$A$64&"]" -> E88* Sum[R88:AH88* D592:S598] | R88: =R$44 -> 0.1035110493 | S88: =S$44 -> 0.1303195625 | T88: 0.01171087961 | U88: 0 | V88: 0 | W88: 0.303510692 | X88: 0 | Y88: 0 | Z88: 0 | AA88: 0 | AB88: 0 | AC88: 0.3087694757 | AD88: 0.13493611 | AE88: 0 | AF88: 0.007242230921 | AG88: 0 | AH88: 0 | AI88: 0 | AK88: =SUM(AL88:AO88) -> 1000 | AL88: =SUMIF($R$4:$AH$4,AL$5,$R88:$AH88)*$E88 -> 245.5414914 | AM88: 303.510692 | AN88: 450.9478166 | AO88: 0 | AQ88: =E$1&$A88&"*["&R$1&$A88&":"&$AH$1&$A88&" when "&R$1&$A$4&":"&$AH$1&$A$4&" = E,D,C,or R]" -> E88*[R88:AH88 when R4:AH4 = E,D,C,or R] | AS88: =SUM(AT88:AY88) -> 245.5414914 | AT88: =$E88*SUMPRODUCT($R88:$V88,INDEX(AllocFactors_E,AT$4,0)) -> 159.9118331 | AU88: 61.2236326 | AV88: 8.417144556 | AW88: 0.8196897334 | AX88: 15.16919141 | AY88: 0 | BA88: =SUM(BB88:BG88) -> 303.510692 | BB88: =$E88*SUMPRODUCT($W88:$AA88,INDEX(AllocFactors_D,BB$4,0)) -> 196.820529 | BC88: 74.2023807 | BD88: 5.077910849 | BE88: 1.00245361 | BF88: 26.4074179 | BG88: 0 | BI88: =SUM(BJ88:BO88) -> 450.9478166 | BJ88: =$E88*SUMPRODUCT($AB88:$AG88,INDEX(AllocFactors_C,BJ$4,0)) -> 418.6042411 | BK88: 27.02921388 | BL88: 0.9715062779 | BM88: 0.1909990078 | BN88: 4.151856268 | BO88: 0
A89: 89 | B89: 390 | C89: O | D89: Structures & Improvements Accum. Depr. | E89: ='PROFORMA (Staff)'!AW336 -> -699000 | F89: ="as 390 Plant ("&A$45&")" -> as 390 Plant (45) | H89: -699000 | I89: -541960.2856 | J89: -113556.2038 | K89: -10112.12662 | L89: -1407.186503 | M89: -31964.19744 | N89: 0 | P89: =E$1&$A89&"* """ -> E89* " | R89: =R$45 -> 0.1035110493 | S89: =S$45 -> 0.1303195625 | T89: 0.01171087961 | U89: 0 | V89: 0 | W89: 0.303510692 | X89: 0 | Y89: 0 | Z89: 0 | AA89: 0 | AB89: 0 | AC89: 0.3087694757 | AD89: 0.13493611 | AE89: 0 | AF89: 0.007242230921 | AG89: 0 | AH89: 0 | AI89: 0 | AK89: -699000 | AL89: -171633.5025 | AM89: -212153.9737 | AN89: -315212.5238 | AO89: 0 | AQ89: =E$1&$A89&"* """ -> E89* " | AS89: -171633.5025 | AT89: -111778.3713 | AU89: -42795.31919 | AV89: -5883.584045 | AW89: -572.9631236 | AX89: -10603.2648 | AY89: 0 | BA89: -212153.9737 | BB89: -137577.5498 | BC89: -51867.46411 | BD89: -3549.459684 | BE89: -700.7150733 | BF89: -18458.78511 | BG89: 0 | BI89: -315212.5238 | BJ89: -292604.3646 | BK89: -18893.4205 | BL89: -679.0828883 | BM89: -133.5083064 | BN89: -2902.147531 | BO89: 0
A90: 90 | B90: 391 | C90: O | D90: Office Furniture & Equipment Accum. Depr. | E90: ='PROFORMA (Staff)'!AW337 -> -1927000 | F90: ="as 391 Plant ("&A$46&")" -> as 391 Plant (46) | H90: -1927000 | I90: -1494073.634 | J90: -313051.2228 | K90: -27877.06436 | L90: -3879.32531 | M90: -88118.75318 | N90: 0 | P90: E90* " | R90: =R$46 -> 0.1035110493 | S90: =S$46 -> 0.1303195625 | T90: 0.01171087961 | U90: 0 | V90: 0 | W90: 0.303510692 | X90: 0 | Y90: 0 | Z90: 0 | AA90: 0 | AB90: 0 | AC90: 0.3087694757 | AD90: 0.13493611 | AE90: 0 | AF90: 0.007242230921 | AG90: 0 | AH90: 0 | AI90: 0 | AK90: -1927000 | AL90: -473158.4539 | AM90: -584865.1036 | AN90: -868976.4425 | AO90: 0 | AQ90: =E$1&$A90&"* """ -> E90* " | AS90: -473158.4539 | AT90: -308150.1024 | AU90: -117977.94 | AV90: -16219.83756 | AW90: -1579.542116 | AX90: -29231.03185 | AY90: 0 | BA90: -584865.1036 | BB90: -379273.1593 | BC90: -142987.9876 | BD90: -9785.134206 | BE90: -1931.728106 | BF90: -50887.0943 | BG90: 0 | BI90: -868976.4425 | BJ90: -806650.3727 | BK90: -52085.29515 | BL90: -1872.092598 | BM90: -368.055088 | BN90: -8000.627028 | BO90: 0
A91: 91 | B91: 392 | C91: O | D91: Transportation Equipment Accum. Depr. | E91: ='PROFORMA (Staff)'!AW338 -> -712000 | F91: ="as 392 Plant ("&A$47&")" -> as 392 Plant (47) | H91: -712000 | I91: -552039.6615 | J91: -115668.1218 | K91: -10300.19192 | L91: -1433.357354 | M91: -32558.66749 | N91: 0 | P91: E91* " | R91: =R$47 -> 0.1035110493 | S91: =S$47 -> 0.1303195625 | T91: 0.01171087961 | U91: 0 | V91: 0 | W91: 0.303510692 | X91: 0 | Y91: 0 | Z91: 0 | AA91: 0 | AB91: 0 | AC91: 0.3087694757 | AD91: 0.13493611 | AE91: 0 | AF91: 0.007242230921 | AG91: 0 | AH91: 0 | AI91: 0 | AK91: -712000 | AL91: -174825.5419 | AM91: -216099.6127 | AN91: -321074.8454 | AO91: 0 | AQ91: E91* " | AS91: -174825.5419 | AT91: -113857.2252 | AU91: -43591.22641 | AV91: -5993.006924 | AW91: -583.6190902 | AX91: -10800.46428 | AY91: 0 | BA91: -216099.6127 | BB91: -140136.2166 | BC91: -52832.09506 | BD91: -3615.472525 | BE91: -713.7469702 | BF91: -18802.08155 | BG91: 0 | BI91: -321074.8454 | BJ91: -298046.2197 | BK91: -19244.80028 | BL91: -691.7124699 | BM91: -135.9912935 | BN91: -2956.121663 | BO91: 0
A92: 92 | B92: 393 | C92: O | D92: Stores Equipment Accum. Depr. | E92: ='PROFORMA (Staff)'!AW339 -> -80000 | F92: ="as 393 Plant ("&A$48&")" -> as 393 Plant (48) | H92: -80000 | I92: -62026.92826 | J92: -12996.41817 | K92: -1157.324935 | L92: -161.0513881 | M92: -3658.277247 | N92: 0 | P92: E92* " | R92: =R$48 -> 0.1035110493 | S92: =S$48 -> 0.1303195625 | T92: 0.01171087961 | U92: 0 | V92: 0 | W92: 0.303510692 | X92: 0 | Y92: 0 | Z92: 0 | AA92: 0 | AB92: 0 | AC92: 0.3087694757 | AD92: 0.13493611 | AE92: 0 | AF92: 0.007242230921 | AG92: 0 | AH92: 0 | AI92: 0 | AK92: -80000 | AL92: -19643.31931 | AM92: -24280.85536 | AN92: -36075.82533 | AO92: 0 | AQ92: E92* " | AS92: -19643.31931 | AT92: -12792.94665 | AU92: -4897.890608 | AV92: -673.3715645 | AW92: -65.57517867 | AX92: -1213.535313 | AY92: 0 | BA92: -24280.85536 | BB92: -15745.64232 | BC92: -5936.190456 | BD92: -406.2328679 | BE92: -80.19628879 | BF92: -2112.593432 | BG92: 0 | BI92: -36075.82533 | BJ92: -33488.33929 | BK92: -2162.33711 | BL92: -77.72050224 | BM92: -15.27992062 | BN92: -332.1485014 | BO92: 0
A93: 93 | B93: 394 | C93: O | D93: Tools, Shop & Garage Equip. Accum. Depr. | E93: ='PROFORMA (Staff)'!AW340 -> -890000 | F93: ="as 394 Plant ("&A$49&")" -> as 394 Plant (49) | H93: -890000 | I93: -690049.5768 | J93: -144585.1522 | K93: -12875.2399 | L93: -1791.696692 | M93: -40698.33437 | N93: 0 | P93: E93* " | R93: =R$49 -> 0.1035110493 | S93: =S$49 -> 0.1303195625 | T93: 0.01171087961 | U93: 0 | V93: 0 | W93: 0.303510692 | X93: 0 | Y93: 0 | Z93: 0 | AA93: 0 | AB93: 0 | AC93: 0.3087694757 | AD93: 0.13493611 | AE93: 0 | AF93: 0.007242230921 | AG93: 0 | AH93: 0 | AI93: 0 | AK93: -890000 | AL93: -218531.9273 | AM93: -270124.5159 | AN93: -401343.5568 | AO93: 0 | AQ93: E93* " | AS93: -218531.9273 | AT93: -142321.5314 | AU93: -54489.03302 | AV93: -7491.258655 | AW93: -729.5238627 | AX93: -13500.58036 | AY93: 0 | BA93: -270124.5159 | BB93: -175170.2708 | BC93: -66040.11882 | BD93: -4519.340656 | BE93: -892.1837128 | BF93: -23502.60193 | BG93: 0 | BI93: -401343.5568 | BJ93: -372557.7746 | BK93: -24056.00035 | BL93: -864.6405874 | BM93: -169.9891169 | BN93: -3695.152078 | BO93: 0
A94: 94 | B94: 395 | C94: O | D94: Laboratory Equipment Accum. Depr. | E94: ='PROFORMA (Staff)'!AW341 -> -109000 | F94: ="as 395 Plant ("&A$50&")" -> as 395 Plant (50) | H94: -109000 | I94: -84511.68975 | J94: -17707.61976 | K94: -1576.855223 | L94: -219.4325163 | M94: -4984.402748 | N94: 0 | P94: E94* " | R94: =R$50 -> 0.1035110493 | S94: =S$50 -> 0.1303195625 | T94: 0.01171087961 | U94: 0 | V94: 0 | W94: 0.303510692 | X94: 0 | Y94: 0 | Z94: 0 | AA94: 0 | AB94: 0 | AC94: 0.3087694757 | AD94: 0.13493611 | AE94: 0 | AF94: 0.007242230921 | AG94: 0 | AH94: 0 | AI94: 0 | AK94: -109000 | AL94: -26764.02256 | AM94: -33082.66543 | AN94: -49153.31201 | AO94: 0 | AQ94: E94* " | AS94: -26764.02256 | AT94: -17430.38981 | AU94: -6673.375954 | AV94: -917.4687566 | AW94: -89.34618094 | AX94: -1653.441864 | AY94: 0 | BA94: -33082.66543 | BB94: -21453.43766 | BC94: -8088.059496 | BD94: -553.4922826 | BE94: -109.2674435 | BF94: -2878.408551 | BG94: 0 | BI94: -49153.31201 | BJ94: -45627.86228 | BK94: -2946.184313 | BL94: -105.8941843 | BM94: -20.81889185 | BN94: -452.5523332 | BO94: 0
A95: 95 | B95: 396 | C95: O | D95: Power Operated Equipment Accum. Depr. | E95: ='PROFORMA (Staff)'!AW342 -> -1592000 | F95: ="as 396 Plant ("&A$51&")" -> as 396 Plant (51) | H95: -1592000 | I95: -1234335.872 | J95: -258628.7217 | K95: -23030.7662 | L95: -3204.922623 | M95: -72799.71721 | N95: 0 | P95: E95* " | R95: =R$51 -> 0.1035110493 | S95: =S$51 -> 0.1303195625 | T95: 0.01171087961 | U95: 0 | V95: 0 | W95: 0.303510692 | X95: 0 | Y95: 0 | Z95: 0 | AA95: 0 | AB95: 0 | AC95: 0.3087694757 | AD95: 0.13493611 | AE95: 0 | AF95: 0.007242230921 | AG95: 0 | AH95: 0 | AI95: 0 | AK95: -1592000 | AL95: -390902.0543 | AM95: -483189.0217 | AN95: -717908.924 | AO95: 0 | AQ95: E95* " | AS95: -390902.0543 | AT95: -254579.6383 | AU95: -97468.02311 | AV95: -13400.09413 | AW95: -1304.946056 | AX95: -24149.35273 | AY95: 0 | BA95: -483189.0217 | BB95: -313338.2821 | BC95: -118130.1901 | BD95: -8084.034072 | BE95: -1595.906147 | BF95: -42040.6093 | BG95: 0 | BI95: -717908.924 | BJ95: -666417.9519 | BK95: -43030.5085 | BL95: -1546.637994 | BM95: -304.0704204 | BN95: -6609.755178 | BO95: 0
A96: 96 | B96: 397 | C96: O | D96: Communication Equipment Accum. Depr. | E96: ='PROFORMA (Staff)'!AW343 -> -2287000 | F96: ="as 397 Plant ("&A$52&")" -> as 397 Plant (52) | H96: -2287000 | I96: -1773194.812 | J96: -371535.1046 | K96: -33085.02657 | L96: -4604.056557 | M96: -104581.0008 | N96: 0 | P96: E96* " | R96: =R$52 -> 0.1035110493 | S96: =S$52 -> 0.1303195625 | T96: 0.01171087961 | U96: 0 | V96: 0 | W96: 0.303510692 | X96: 0 | Y96: 0 | Z96: 0 | AA96: 0 | AB96: 0 | AC96: 0.3087694757 | AD96: 0.13493611 | AE96: 0 | AF96: 0.007242230921 | AG96: 0 | AH96: 0 | AI96: 0 | AK96: -2287000 | AL96: -561553.3908 | AM96: -694128.9527 | AN96: -1031317.657 | AO96: 0 | AQ96: E96* " | AS96: -561553.3908 | AT96: -365718.3623 | AU96: -140018.4478 | AV96: -19250.0096 | AW96: -1874.63042 | AX96: -34691.94076 | AY96: 0 | BA96: -694128.9527 | BB96: -450128.5498 | BC96: -169700.8447 | BD96: -11613.18211 | BE96: -2292.611406 | BF96: -60393.76474 | BG96: 0 | BI96: -1031317.657 | BJ96: -957347.8995 | BK96: -61815.81215 | BL96: -2221.834858 | BM96: -436.8147308 | BN96: -9495.295285 | BO96: 0
A97: 97 | B97: 398 | C97: O | D97: Miscellaneous Equipment Accum. Depr. | E97: ='PROFORMA (Staff)'!AW344 -> 13000 | F97: ="as 398 Plant ("&A$53&")" -> as 398 Plant (53) | H97: 13000 | I97: 10079.37584 | J97: 2111.917953 | K97: 188.0653019 | L97: 26.17085056 | M97: 594.4700526 | N97: 0 | P97: E97* " | R97: =R$53 -> 0.1035110493 | S97: =S$53 -> 0.1303195625 | T97: 0.01171087961 | U97: 0 | V97: 0 | W97: 0.303510692 | X97: 0 | Y97: 0 | Z97: 0 | AA97: 0 | AB97: 0 | AC97: 0.3087694757 | AD97: 0.13493611 | AE97: 0 | AF97: 0.007242230921 | AG97: 0 | AH97: 0 | AI97: 0 | AK97: 13000 | AL97: 3192.039388 | AM97: 3945.638996 | AN97: 5862.321616 | AO97: 0 | AQ97: E97* " | AS97: 3192.039388 | AT97: 2078.85383 | AU97: 795.9072239 | AV97: 109.4228792 | AW97: 10.65596653 | AX97: 197.1994883 | AY97: 0 | BA97: 3945.638996 | BB97: 2558.666877 | BC97: 964.6309491 | BD97: 66.01284104 | BE97: 13.03189693 | BF97: 343.2964327 | BG97: 0 | BI97: 5862.321616 | BJ97: 5441.855135 | BK97: 351.3797805 | BL97: 12.62958161 | BM97: 2.482987101 | BN97: 53.97413148 | BO97: 0
A98: 98 | D98: Total General Plant Accum Depreciation | E98: =SUM(E88:E97) -> -8282000 | H98: =IF(ROUND(SUM(H87:H97),3)<>ROUND(SUM(I98:N98),3),#VALUE!,SUM(H87:H97)) -> -8282000 | I98: =SUM(I87:I97) -> -6421337.748 | J98: -1345454.192 | K98: -119812.0639 | L98: -16672.84495 | M98: -378723.1519 | N98: 0 | P98: =$A87&":"&$A97 -> 87:97 | R98: =SUMPRODUCT($E88:$E97,R$88:R$97)/$E98 -> 0.1035110493 | S98: 0.1303195625 | T98: 0.01171087961 | U98: =SUMPRODUCT($E88:$E97,U$88:U$97)/$E98 -> 0 | V98: =SUMPRODUCT($E88:$E97,V$88:V$97)/$E98 -> 0 | W98: 0.303510692 | X98: 0 | Y98: =SUMPRODUCT($E88:$E97,Y$88:Y$97)/$E98 -> 0 | Z98: 0 | AA98: 0 | AB98: 0 | AC98: 0.3087694757 | AD98: 0.13493611 | AE98: 0 | AF98: 0.007242230921 | AG98: =SUMPRODUCT($E88:$E97,AG$88:AG$97)/$E98 -> 0 | AH98: 0 | AI98: 0 | AK98: =IF(ROUND(SUM(AK87:AK97),3)<>ROUND(SUM(AL98:AO98),3),#VALUE!,SUM(AK87:AK97)) -> -8282000 | AL98: =SUM(AL87:AL97) -> -2033574.632 | AM98: =SUM(AM87:AM97) -> -2513675.551 | AN98: =SUM(AN87:AN97) -> -3734749.817 | AO98: =SUM(AO87:AO97) -> 0 | AQ98: =$A87&":"&$A97 -> 87:97 | AS98: =IF(ROUND(SUM(AS87:AS97),3)<>ROUND(SUM(AT98:AY98),3),#VALUE!,SUM(AS87:AS97)) -> -2033574.632 | AT98: =SUM(AT87:AT97) -> -1324389.802 | AU98: -507054.1252 | AV98: -69710.79121 | AW98: -6788.670372 | AX98: -125631.2433 | AY98: 0 | BA98: =IF(ROUND(SUM(BA87:BA97),3)<>ROUND(SUM(BB98:BG98),3),#VALUE!,SUM(BA87:BA97)) -> -2513675.551 | BB98: =SUM(BB87:BB97) -> -1630067.621 | BC98: -614544.117 | BD98: -42055.25765 | BE98: -8302.320797 | BF98: -218706.2351 | BG98: 0 | BI98: =IF(ROUND(SUM(BI87:BI97),3)<>ROUND(SUM(BJ98:BO98),3),#VALUE!,SUM(BI87:BI97)) -> -3734749.817 | BJ98: =SUM(BJ87:BJ97) -> -3466880.325 | BK98: -223855.9494 | BL98: -8046.014994 | BM98: -1581.853782 | BN98: -34385.67361 | BO98: 0
A99: 99 | AI99: 0
A100: 100 | D100: Total Accumulated Reserve for Depreciation | E100: =E69+E85+E98 -> -114057000 | F100: ="("&A$69&"+"&A$85&"+"&A$98&")" -> (69+85+98) | H100: =H69+H85+H98 -> -114057000 | I100: -89609256.51 | J100: -17662795.03 | K100: -1607970.217 | L100: -220577.7685 | M100: -4956400.474 | N100: 0 | P100: ="Sum("&$A69&","&$A85&","&$A98&")" -> Sum(69,85,98) | R100: =($E69*R69+$E85*R85+$E98*R98)/$E100 -> 0.09935650282 | S100: 0.1333471147 | T100: 0.01142698416 | U100: 0 | V100: 0 | W100: 0.2916441146 | X100: 0 | Y100: 0 | Z100: 0 | AA100: 0 | AB100: 0 | AC100: 0.3694921561 | AD100: 0.08705999126 | AE100: 0 | AF100: 0.007673136374 | AG100: 0 | AH100: 0 | AI100: 0 | AK100: =AK69+AK85+AK98 -> -114057000 | AL100: =AL69+AL85+AL98 -> -27844804.04 | AM100: =AM69+AM85+AM98 -> -33264052.78 | AN100: =AN69+AN85+AN98 -> -52948143.18 | AO100: =AO69+AO85+AO98 -> 0 | AQ100: ="Sum("&$A69&","&$A85&","&$A98&")" -> Sum(69,85,98) | AS100: =AS69+AS85+AS98 -> -27844804.04 | AT100: -18175491.13 | AU100: -6958644.461 | AV100: -956688.0279 | AW100: -93269.80648 | AX100: -1660710.614 | AY100: 0 | BA100: =BA69+BA85+BA98 -> -33264052.78 | BB100: -21571063.67 | BC100: -8132405.126 | BD100: -556526.9986 | BE100: -109866.5407 | BF100: -2894190.438 | BG100: 0 | BI100: =BI69+BI85+BI98 -> -52948143.18 | BJ100: -49862701.71 | BK100: -2571745.442 | BL100: -94755.19027 | BM100: -17441.42133 | BN100: -401499.4217 | BO100: 0
A101: 101 | AI101: 0
A102: 102 | D102: Amortization | AI102: 0
A103: 103 | B103: 303.1 | C103: O | D103: Accum Amort of Intangible Plant-Software | E103: ='PROFORMA (Staff)'!AW350 -> -2574000 | F103: as UG/D Plant (42) | H103: =SUM(I103:N103) -> -2574000 | I103: =$E103*SUMPRODUCT($R103:$AH103,INDEX(AllocFactors,I$4,0)) -> -1995716.417 | J103: -418159.7548 | K103: -37236.92977 | L103: -5181.828412 | M103: -117705.0704 | N103: 0 | P103: =E$1&$A103&"* Sum["&$R$1&$A103&":"&$AH$1&$A103&"* "&Factors!D$1&Factors!$A$58&":"&Factors!S$1&Factors!$A$64&"]" -> E103* Sum[R103:AH103* D592:S598] | R103: =R$41 -> 0.1035110493 | S103: =S$41 -> 0.1303195625 | T103: 0.01171087961 | U103: 0 | V103: 0 | W103: 0.303510692 | X103: 0 | Y103: 0 | Z103: 0 | AA103: 0 | AB103: 0 | AC103: 0.3087694757 | AD103: 0.13493611 | AE103: 0 | AF103: 0.007242230921 | AG103: 0 | AH103: 0 | AI103: =IF(SUM(R103:AH103)<>0,(ROUND(SUM(R103:AH103),8)<>1)+0,0) -> 0 | AK103: =SUM(AL103:AO103) -> -2574000 | AL103: =SUMIF($R$4:$AH$4,AL$5,$R103:$AH103)*$E103 -> -632023.7988 | AM103: -781236.5213 | AN103: -1160739.68 | AO103: 0 | AQ103: =E$1&$A103&"* """ -> E103* " | AS103: =SUM(AT103:AY103) -> -632023.7988 | AT103: =$E103*SUMPRODUCT($R103:$V103,INDEX(AllocFactors_E,AT$4,0)) -> -411613.0584 | AU103: -157589.6303 | AV103: -21665.73009 | AW103: -2109.881374 | AX103: -39045.49869 | AY103: 0 | BA103: =SUM(BB103:BG103) -> -781236.5213 | BB103: =$E103*SUMPRODUCT($W103:$AA103,INDEX(AllocFactors_D,BB$4,0)) -> -506616.0416 | BC103: -190996.9279 | BD103: -13070.54253 | BE103: -2580.315592 | BF103: -67972.69368 | BG103: 0 | BI103: =SUM(BJ103:BO103) -> -1160739.68 | BJ103: =$E103*SUMPRODUCT($AB103:$AG103,INDEX(AllocFactors_C,BJ$4,0)) -> -1077487.317 | BK103: -69573.19653 | BL103: -2500.657159 | BM103: -491.631446 | BN103: -10686.87803 | BO103: 0
A104: 104 | B104: 303 | C104: D | D104: Intangible Distribution Plant | E104: ='PROFORMA (Staff)'!AW351 -> -70000 | F104: as Distrib Plant (40) | H104: =SUM(I104:N104) -> -70000 | I104: -54791.38783 | J104: -10834.07316 | K104: -895.6290791 | L104: -131.8056503 | M104: -3347.104276 | N104: 0 | P104: =E$1&$A104&"* """ -> E104* " | R104: =R$39 -> 0.1014384849 | S104: =S$39 -> 0.07244504266 | T104: 0.01262716926 | U104: 0 | V104: 0 | W104: 0.3272581574 | X104: 0 | Y104: 0 | Z104: 0 | AA104: 0 | AB104: 0 | AC104: 0.332928402 | AD104: 0.1454938619 | AE104: 0 | AF104: 0.007808881891 | AG104: 0 | AH104: 0 | AI104: 0 | AK104: =SUM(AL104:AO104) -> -70000 | AL104: -13055.74878 | AM104: -22908.07102 | AN104: -34036.1802 | AO104: 0 | AQ104: =E$1&$A104&"* """ -> E104* " | AS104: =SUM(AT104:AY104) -> -13055.74878 | AT104: -8340.983581 | AU104: -3193.417926 | AV104: -439.0373319 | AW104: -41.7274486 | AX104: -1040.582492 | AY104: 0 | BA104: =SUM(BB104:BG104) -> -22908.07102 | BB104: -14855.41951 | BC104: -5600.571747 | BD104: -383.2653854 | BE104: -75.662173 | BF104: -1993.152204 | BG104: 0 | BI104: =SUM(BJ104:BO104) -> -34036.1802 | BJ104: -31594.98474 | BK104: -2040.083488 | BL104: -73.32636178 | BM104: -14.41602866 | BN104: -313.3695805 | BO104: 0
A105: 105 | D105: Total Amortization | E105: =SUM(E102:E104) -> -2644000 | H105: =IF(ROUND(SUM(H102:H104),3)<>ROUND(SUM(I105:N105),3),#VALUE!,SUM(H102:H104)) -> -2644000 | I105: =SUM(I102:I104) -> -2050507.804 | J105: -428993.8279 | K105: -38132.55885 | L105: -5313.634062 | M105: -121052.1747 | N105: 0 | P105: =$A102&":"&$A104 -> 102:104 | R105: =SUMPRODUCT($E103:$E104,R103:R104)/$E105 -> 0.1034561781 | S105: =SUMPRODUCT($E103:$E104,S103:S104)/$E105 -> 0.1287873324 | T105: 0.01173513841 | U105: 0 | V105: 0 | W105: 0.3041394071 | X105: 0 | Y105: 0 | Z105: 0 | AA105: 0 | AB105: 0 | AC105: 0.3094090842 | AD105: 0.1352156268 | AE105: 0 | AF105: 0.007257233027 | AG105: 0 | AH105: 0 | AI105: 0 | AK105: =IF(ROUND(SUM(AK102:AK104),3)<>ROUND(SUM(AL105:AO105),3),#VALUE!,SUM(AK102:AK104)) -> -2644000 | AL105: =SUM(AL102:AL104) -> -645079.5476 | AM105: =SUM(AM102:AM104) -> -804144.5923 | AN105: =SUM(AN102:AN104) -> -1194775.86 | AO105: =SUM(AO102:AO104) -> 0 | AQ105: =$A102&":"&$A104 -> 102:104 | AS105: =IF(ROUND(SUM(AS102:AS104),3)<>ROUND(SUM(AT105:AY105),3),#VALUE!,SUM(AS102:AS104)) -> -645079.5476 | AT105: =SUM(AT102:AT104) -> -419954.0419 | AU105: -160783.0482 | AV105: -22104.76742 | AW105: -2151.608822 | AX105: -40086.08118 | AY105: 0 | BA105: =IF(ROUND(SUM(BA102:BA104),3)<>ROUND(SUM(BB105:BG105),3),#VALUE!,SUM(BA102:BA104)) -> -804144.5923 | BB105: =SUM(BB102:BB104) -> -521471.4611 | BC105: -196597.4997 | BD105: -13453.80791 | BE105: -2655.977765 | BF105: -69965.84589 | BG105: 0 | BI105: =IF(ROUND(SUM(BI102:BI104),3)<>ROUND(SUM(BJ105:BO105),3),#VALUE!,SUM(BI102:BI104)) -> -1194775.86 | BJ105: =SUM(BJ102:BJ104) -> -1109082.301 | BK105: -71613.28002 | BL105: -2573.983521 | BM105: -506.0474747 | BN105: -11000.24761 | BO105: 0
A106: 106 | AI106: 0
A107: 107 | D107: Total Accum Reserve for Depr & Amort | E107: =E100+E105 -> -116701000 | F107: ="("&A$100&"+"&A$105&")" -> (100+105) | H107: =H100+H105 -> -116701000 | I107: -91659764.32 | J107: -18091788.86 | K107: -1646102.776 | L107: -225891.4025 | M107: -5077452.649 | N107: 0 | P107: =$A100&"+"&$A105 -> 100+105 | R107: =($E100*R100+$E105*R105)/$E107 -> 0.09944938584 | S107: 0.1332438075 | T107: 0.01143396576 | U107: 0 | V107: 0 | W107: 0.2919272103 | X107: 0 | Y107: 0 | Z107: 0 | AA107: 0 | AB107: 0 | AC107: 0.3681309026 | AD107: 0.08815101448 | AE107: 0 | AF107: 0.007663713589 | AG107: 0 | AH107: 0 | AI107: 0 | AK107: =AK100+AK105 -> -116701000 | AL107: =AL100+AL105 -> -28489883.59 | AM107: =AM100+AM105 -> -34068197.37 | AN107: =AN100+AN105 -> -54142919.04 | AO107: =AO100+AO105 -> 0 | AQ107: =$A100&"+"&$A105 -> 100+105 | AS107: =AS100+AS105 -> -28489883.59 | AT107: -18595445.17 | AU107: -7119427.509 | AV107: -978792.7954 | AW107: -95421.4153 | AX107: -1700796.696 | AY107: 0 | BA107: =BA100+BA105 -> -34068197.37 | BB107: -22092535.13 | BC107: -8329002.626 | BD107: -569980.8065 | BE107: -112522.5184 | BF107: -2964156.284 | BG107: 0 | BI107: =BI100+BI105 -> -54142919.04 | BJ107: -50971784.01 | BK107: -2643358.722 | BL107: -97329.17379 | BM107: -17947.46881 | BN107: -412499.6693 | BO107: 0
A108: 108 | AI108: 0
A109: 109 | D109: Total Net Plant | E109: =E56+E107 -> 225557000 | F109: ="("&A$56&"+"&A$107&")" -> (56+107) | G109: Net Plant (S18) | H109: =H56+H107 -> 225557000 | I109: 173712736.5 | J109: 37502183.32 | K109: 3303533.535 | L109: 462993.3792 | M109: 10575553.22 | N109: 0 | P109: =$A56&"+"&$A107 -> 56+107 | R109: =($E56*R56+$E107*R107)/$E109 -> 0.1056033901 | S109: 0.1285517978 | T109: 0.01185818605 | U109: 0 | V109: 0 | W109: 0.3096084196 | X109: 0 | Y109: 0 | Z109: 0 | AA109: 0 | AB109: 0 | AC109: 0.2781628084 | AD109: 0.1591887436 | AE109: 0 | AF109: 0.007026654528 | AG109: 0 | AH109: 0 | AI109: 0 | AK109: =AK56+AK107 -> 225557000 | AL109: =AL56+AL107 -> 55490038.59 | AM109: =AM56+AM107 -> 69834346.3 | AN109: =AN56+AN107 -> 100232615.1 | AO109: =AO56+AO107 -> 0 | AQ109: =$A56&"+"&$A107 -> 56+107 | AS109: =AS56+AS107 -> 55490038.59 | AT109: 36095189.35 | AU109: 13819356.39 | AV109: 1899912.1 | AW109: 184901.9352 | AX109: 3490678.817 | AY109: 0 | BA109: =BA56+BA107 -> 69834346.3 | BB109: 45286157.42 | BC109: 17073120.93 | BD109: 1168369.333 | BE109: 230653.1347 | BF109: 6076045.474 | BG109: 0 | BI109: =BI56+BI107 -> 100232615.1 | BJ109: 92331389.77 | BK109: 6609705.995 | BL109: 235252.103 | BM109: 47438.30924 | BN109: 1008828.931 | BO109: 0
A110: 110 | AI110: 0
A111: 111 | C111: A | D111: Accumulated Deferred Income Taxes | E111: ='PROFORMA (Staff)'!AU365 -> -42004000 | F111: ="as Plant in Service ("&A$56&")" -> as Plant in Service (56) | H111: =SUM(I111:N111) -> -42004000 | I111: =$E111*SUMPRODUCT($R111:$AH111,INDEX(AllocFactors,I$4,0)) -> -32568140.19 | J111: =$E111*SUMPRODUCT($R111:$AH111,INDEX(AllocFactors,J$4,0)) -> -6822833.088 | K111: -607449.7122 | L111: -84544.16368 | M111: -1921032.843 | N111: 0 | P111: =E$1&$A111&"* Sum["&$R$1&$A111&":"&$AH$1&$A111&"* "&Factors!D$1&Factors!$A$58&":"&Factors!S$1&Factors!$A$64&"]" -> E111* Sum[R111:AH111* D592:S598] | R111: =R$56 -> 0.1035050361 | S111: =S$56 -> 0.13015165 | T111: 0.01171353806 | U111: 0 | V111: 0 | W111: 0.303579591 | X111: 0 | Y111: 0 | Z111: 0 | AA111: 0 | AB111: 0 | AC111: 0.3088395685 | AD111: 0.1349667414 | AE111: 0 | AF111: 0.007243874957 | AG111: 0 | AH111: 0 | AI111: 0 | AK111: =SUM(AL111:AO111) -> -42004000 | AL111: =SUMIF($R$4:$AH$4,AL$5,$R111:$AH111)*$E111 -> -10306530.9 | AM111: =SUMIF($R$4:$AH$4,AM$5,$R111:$AH111)*$E111 -> -12751557.14 | AN111: =SUMIF($R$4:$AH$4,AN$5,$R111:$AH111)*$E111 -> -18945911.96 | AO111: =SUMIF($R$4:$AH$4,AO$5,$R111:$AH111)*$E111 -> 0 | AQ111: =E$1&$A111&"*["&R$1&$A111&":"&$AH$1&$A111&" when "&R$1&$A$4&":"&$AH$1&$A$4&" = E,D,C,or R]" -> E111*[R111:AH111 when R4:AH4 = E,D,C,or R] | AS111: =SUM(AT111:AY111) -> -10306530.9 | AT111: =$E111*SUMPRODUCT($R111:$V111,INDEX(AllocFactors_E,AT$4,0)) -> -6711969.954 | AU111: -2569735.926 | AV111: -353292.3129 | AW111: -34403.00012 | AX111: -637129.7017 | AY111: 0 | BA111: =SUM(BB111:BG111) -> -12751557.14 | BB111: =$E111*SUMPRODUCT($W111:$AA111,INDEX(AllocFactors_D,BB$4,0)) -> -8269126.221 | BC111: -3117504.333 | BD111: -213340.9862 | BE111: -42116.62002 | BF111: -1109468.981 | BG111: 0 | BI111: =SUM(BJ111:BO111) -> -18945911.96 | BJ111: =$E111*SUMPRODUCT($AB111:$AG111,INDEX(AllocFactors_C,BJ$4,0)) -> -17587044.02 | BK111: -1135592.829 | BL111: -40816.4132 | BM111: -8024.543535 | BN111: -174434.1594 | BO111: 0
A112: 112 | AI112: 0
A113: 113 | D113: Miscellaneous Rate Base Items | AI113: 0
A114: 114 | C114: D | D114: Customer Advances and Deposits | E114: ='PROFORMA (Staff)'!AW368+'PROFORMA (Staff)'!AW369 -> 0 | F114: input - DA 101 | H114: =SUM(I114:N114) -> 0 | I114: =$E114*SUMPRODUCT($R114:$AH114,INDEX(AllocFactors,I$4,0)) -> 0 | J114: 0 | K114: 0 | L114: 0 | M114: 0 | N114: 0 | P114: =E$1&$A114&"* Sum["&$R$1&$A114&":"&$AH$1&$A114&"* "&Factors!D$1&Factors!$A$58&":"&Factors!S$1&Factors!$A$64&"]" -> E114* Sum[R114:AH114* D592:S598] | S114: 0 | T114: 0 | U114: 0 | V114: 0 | W114: 0 | X114: 0 | Y114: 0 | Z114: 0 | AA114: 0 | AB114: 0 | AC114: 0 | AD114: 0 | AE114: 0 | AF114: 0 | AG114: 1 | AH114: 0 | AI114: 0 | AK114: =SUM(AL114:AO114) -> 0 | AL114: =SUMIF($R$4:$AH$4,AL$5,$R114:$AH114)*$E114 -> 0 | AM114: 0 | AN114: 0 | AO114: 0 | AQ114: =E$1&$A114&"*["&R$1&$A114&":"&$AH$1&$A114&" when "&R$1&$A$4&":"&$AH$1&$A$4&" = E,D,C,or R]" -> E114*[R114:AH114 when R4:AH4 = E,D,C,or R] | AS114: =SUM(AT114:AY114) -> 0 | AT114: =$E114*SUMPRODUCT($R114:$V114,INDEX(AllocFactors_E,AT$4,0)) -> 0 | AU114: 0 | AV114: 0 | AW114: 0 | AX114: 0 | AY114: 0 | BA114: =SUM(BB114:BG114) -> 0 | BB114: =$E114*SUMPRODUCT($W114:$AA114,INDEX(AllocFactors_D,BB$4,0)) -> 0 | BC114: 0 | BD114: 0 | BE114: 0 | BF114: 0 | BG114: 0 | BI114: =SUM(BJ114:BO114) -> 0 | BJ114: =$E114*SUMPRODUCT($AB114:$AG114,INDEX(AllocFactors_C,BJ$4,0)) -> 0 | BK114: 0 | BL114: 0 | BM114: 0 | BN114: 0 | BO114: 0
A115: 115 | C115: U | D115: Gas Inventory | E115: ='PROFORMA (Staff)'!AU370 -> 2980000 | F115: ="as UG Storage Plant ("&A$23&")" -> as UG Storage Plant (23) | H115: =SUM(I115:N115) -> 2980000 | I115: 2028756.609 | J115: 776727.0681 | K115: 106785.954 | L115: 10958.21958 | M115: 56772.14939 | N115: 0 | P115: =E$1&$A115&"* """ -> E115* " | R115: =R$23 -> 0.13 | S115: =S$23 -> 0.87 | T115: 0 | U115: 0 | V115: 0 | W115: 0 | X115: 0 | Y115: 0 | Z115: 0 | AA115: 0 | AB115: 0 | AC115: 0 | AD115: 0 | AE115: 0 | AF115: 0 | AG115: 0 | AH115: 0 | AI115: 0 | AK115: =SUM(AL115:AO115) -> 2980000 | AL115: 2980000 | AM115: 0 | AN115: 0 | AO115: 0 | AQ115: =E$1&$A115&"* """ -> E115* " | AS115: =SUM(AT115:AY115) -> 2980000 | AT115: 2028756.609 | AU115: 776727.0681 | AV115: 106785.954 | AW115: 10958.21958 | AX115: 56772.14939 | AY115: 0 | BA115: =SUM(BB115:BG115) -> 0 | BB115: 0 | BC115: 0 | BD115: 0 | BE115: 0 | BF115: 0 | BG115: 0 | BI115: =SUM(BJ115:BO115) -> 0 | BJ115: 0 | BK115: 0 | BL115: 0 | BM115: 0 | BN115: 0 | BO115: 0
A116: 116 | C116: O | D116: Gain on Sale of General Office Building | E116: ='PROFORMA (Staff)'!AW372 -> 0 | F116: ="as Genl Plant ("&A$54&")" -> as Genl Plant (54) | H116: =SUM(I116:N116) -> 0 | I116: 0 | J116: 0 | K116: 0 | L116: 0 | M116: 0 | N116: 0 | P116: =E$1&$A116&"* """ -> E116* " | R116: =R$54 -> 0.1035110493 | S116: =S$54 -> 0.1303195625 | T116: =T$54 -> 0.01171087961 | U116: 0 | V116: 0 | W116: 0.303510692 | X116: 0 | Y116: 0 | Z116: =Z$54 -> 0 | AA116: 0 | AB116: =AB$54 -> 0 | AC116: 0.3087694757 | AD116: 0.13493611 | AE116: =AE$54 -> 0 | AF116: 0.007242230921 | AG116: 0 | AH116: 0 | AI116: 0 | AK116: =SUM(AL116:AO116) -> 0 | AL116: 0 | AM116: 0 | AN116: 0 | AO116: 0 | AQ116: =E$1&$A116&"* """ -> E116* " | AS116: =SUM(AT116:AY116) -> 0 | AT116: 0 | AU116: 0 | AV116: 0 | AW116: 0 | AX116: 0 | AY116: 0 | BA116: =SUM(BB116:BG116) -> 0 | BB116: 0 | BC116: 0 | BD116: 0 | BE116: 0 | BF116: 0 | BG116: 0 | BI116: =SUM(BJ116:BO116) -> 0 | BJ116: 0 | BK116: 0 | BL116: 0 | BM116: 0 | BN116: 0 | BO116: 0
A117: 117 | C117: M | D117: Demand Side Management Investment | E117: 0 | F117: Input - Peak & Avg Calc | H117: =SUM(I117:N117) -> 0 | I117: 0 | J117: 0 | K117: 0 | L117: 0 | M117: 0 | N117: 0 | P117: =E$1&$A117&"* """ -> E117* " | R117: =PkAvg_E -> 0.36302453 | S117: 0 | T117: 0 | U117: 0 | V117: 0 | W117: =PkAvg_D -> 0.63697547 | X117: 0 | Y117: 0 | Z117: 0 | AA117: 0 | AB117: 0 | AC117: 0 | AD117: 0 | AE117: 0 | AF117: 0 | AG117: 0 | AH117: 0 | AI117: 0 | AK117: =SUM(AL117:AO117) -> 0 | AL117: 0 | AM117: 0 | AN117: 0 | AO117: 0 | AQ117: =E$1&$A117&"* """ -> E117* " | AS117: =SUM(AT117:AY117) -> 0 | AT117: 0 | AU117: 0 | AV117: 0 | AW117: 0 | AX117: 0 | AY117: 0 | BA117: =SUM(BB117:BG117) -> 0 | BB117: 0 | BC117: 0 | BD117: 0 | BE117: 0 | BF117: 0 | BG117: 0 | BI117: =SUM(BJ117:BO117) -> 0 | BJ117: 0 | BK117: 0 | BL117: 0 | BM117: 0 | BN117: 0 | BO117: 0
A118: 118 | C118: O | D118: Other | E118: ='PROFORMA (Staff)'!AU373+'PROFORMA (Staff)'!AU371 -> 2556000 | F118: as Plant in Service (56) | G118: Plant in Service (S17) | H118: =SUM(I118:N118) -> 2556000 | I118: 1981815.216 | J118: 415178.5871 | K118: 36964.13352 | L118: 5144.626282 | M118: 116897.437 | N118: 0 | P118: =E$1&$A118&"* """ -> E118* " | R118: =R56 -> 0.1035050361 | S118: 0.13015165 | T118: 0.01171353806 | U118: 0 | V118: 0 | W118: 0.303579591 | X118: 0 | Y118: 0 | Z118: 0 | AA118: 0 | AB118: 0 | AC118: 0.3088395685 | AD118: 0.1349667414 | AE118: 0 | AF118: 0.007243874957 | AG118: 0 | AH118: 0 | AI118: 0 | AK118: =SUM(AL118:AO118) -> 2556000 | AL118: 627166.293 | AM118: 775949.4347 | AN118: 1152884.272 | AO118: 0 | AQ118: =E$1&$A118&"* """ -> E118* " | AS118: =SUM(AT118:AY118) -> 627166.293 | AT118: 408432.416 | AU118: 156371.8938 | AV118: 21498.3133 | AW118: 2093.468915 | AX118: 38770.20087 | AY118: 0 | BA118: =SUM(BB118:BG118) -> 775949.4347 | BB118: 503187.4731 | BC118: 189704.3395 | BD118: 12982.08648 | BE118: 2562.85308 | BF118: 67512.68252 | BG118: 0 | BI118: =SUM(BJ118:BO118) -> 1152884.272 | BJ118: 1070195.327 | BK118: 69102.35382 | BL118: 2483.733743 | BM118: 488.3042871 | BN118: 10614.55365 | BO118: 0
A119: 119 | AI119: 0
A120: 120 | D120: Total Other Rate Base Items | E120: =SUM(E111:E118) -> -36468000 | H120: =IF(ROUND(SUM(H111:H119),3)<>ROUND(SUM(I120:N120),3),#VALUE!,SUM(H111:H119)) -> -36468000 | I120: =SUM(I111:I119) -> -28557568.37 | J120: -5630927.433 | K120: -463699.6247 | L120: -68441.31782 | M120: -1747363.256 | N120: 0 | P120: =$A111&":"&$A119 -> 111:119 | R120: =SUMPRODUCT($E111:$E119,R111:R119)/$E120 -> 0.1013399875 | S120: 0.06969458948 | T120: 0.0126707154 | U120: 0 | V120: 0 | W120: 0.328386742 | X120: 0 | Y120: 0 | Z120: 0 | AA120: 0 | AB120: 0 | AC120: 0.334076541 | AD120: 0.145995613 | AE120: 0 | AF120: 0.007835811651 | AG120: 0 | AH120: 0 | AI120: 0 | AK120: =IF(ROUND(SUM(AK111:AK119),3)<>ROUND(SUM(AL120:AO120),3),#VALUE!,SUM(AK111:AK119)) -> -36468000 | AL120: =SUM(AL111:AL119) -> -6699364.603 | AM120: =SUM(AM111:AM119) -> -11975607.71 | AN120: =SUM(AN111:AN119) -> -17793027.69 | AO120: =SUM(AO111:AO119) -> 0 | AQ120: =$A111&":"&$A119 -> 111:119 | AS120: =IF(ROUND(SUM(AS111:AS119),3)<>ROUND(SUM(AT120:AY120),3),#VALUE!,SUM(AS111:AS119)) -> -6699364.603 | AT120: =SUM(AT111:AT119) -> -4274780.929 | AU120: -1636636.965 | AV120: -225008.0456 | AW120: -21351.31163 | AX120: -541587.3514 | AY120: 0 | BA120: =IF(ROUND(SUM(BA111:BA119),3)<>ROUND(SUM(BB120:BG120),3),#VALUE!,SUM(BA111:BA119)) -> -11975607.71 | BB120: =SUM(BB111:BB119) -> -7765938.748 | BC120: -2927799.994 | BD120: -200358.8997 | BE120: -39553.76694 | BF120: -1041956.299 | BG120: 0 | BI120: =IF(ROUND(SUM(BI111:BI119),3)<>ROUND(SUM(BJ120:BO120),3),#VALUE!,SUM(BI111:BI119)) -> -17793027.69 | BJ120: =SUM(BJ111:BJ119) -> -16516848.69 | BK120: -1066490.475 | BL120: -38332.67946 | BM120: -7536.239248 | BN120: -163819.6058 | BO120: 0
A121: 121 | AI121: 0
A122: 122 | D122: Total Rate Base | E122: =E109+E120 -> 189089000 | F122: ="("&A$109&"+"&A$120&")" -> (109+120) | G122: Total Rate Base (S01) | H122: =H109+H120 -> 189089000 | I122: =I109+I120 -> 145155168.2 | J122: 31871255.88 | K122: 2839833.911 | L122: 394552.0614 | M122: 8828189.966 | N122: 0 | P122: =$A109&"+"&$A120 -> 109+120 | R122: =($E109*R109+$E120*R120)/$E122 -> 0.1064256366 | S122: 0.1399030909 | T122: 0.01170148036 | U122: 0 | V122: 0 | W122: 0.305986803 | X122: 0 | Y122: 0 | Z122: 0 | AA122: 0 | AB122: 0 | AC122: 0.2673791985 | AD122: 0.1617331913 | AE122: 0 | AF122: 0.006870599221 | AG122: 0 | AH122: 0 | AI122: 0 | AK122: =AK109+AK120 -> 189089000 | AL122: =AL109+AL120 -> 48790673.99 | AM122: =AM109+AM120 -> 57858738.59 | AN122: =AN109+AN120 -> 82439587.42 | AO122: =AO109+AO120 -> 0 | AQ122: =$A109&"+"&$A120 -> 109+120 | AS122: =AS109+AS120 -> 48790673.99 | AT122: 31820408.42 | AU122: 12182719.42 | AV122: 1674904.054 | AW122: 163550.6236 | AX122: 2949091.466 | AY122: 0 | BA122: =BA109+BA120 -> 57858738.59 | BB122: 37520218.67 | BC122: 14145320.94 | BD122: 968010.433 | BE122: 191099.3678 | BF122: 5034089.175 | BG122: 0 | BI122: =BI109+BI120 -> 82439587.42 | BJ122: 75814541.08 | BK122: 5543215.52 | BL122: 196919.4235 | BM122: 39902.06999 | BN122: 845009.3255 | BO122: 0
A123: 123 | D123: Rate of Return | E123: =-E423/E122 -> 0.06847569134 | H123: =IF(H122,-H423/H122,0) -> 0.06847569125 | I123: 0.06748113395 | J123: 0.08280890194 | K123: 0.08837922208 | L123: 0.02189618806 | M123: 0.02876234386 | N123: 0 | P123: ="-"&$A423&"/"&$A122 -> -423/122 | AI123: 0 | AK123: =IF(AK122<>0,-AK423/AK122,0) -> 0.06847569134 | AL123: =IF(AL122<>0,-AL423/AL122,0) -> -0.8403714465 | AM123: =IF(AM122<>0,-AM423/AM122,0) -> -0.2361578468 | AN123: =IF(AN122<>0,-AN423/AN122,0) -> -0.1274228436 | AO123: =IF(AO122<>0,-AO423/AO122,0) -> 0 | AQ123: ="-"&$A423&"/"&$A122 -> -423/122
A124: 124 | AI124: 0
A125: 125 | AI125: 0
A126: 126 | C126: U | D126: Underground Storage | E126: =SUMIF($C$7:$C$122,$C126,E$7:E$122) -> 16702000 | F126: ="sum where Func = "&$C126&" ("&A$7&"-"&A$122&")" -> sum where Func = U (7-122) | H126: =SUMIF($C$7:$C$122,$C126,H$7:H$122) -> 16702000 | I126: 11370568.08 | J126: 4353320.635 | K126: 598503.0212 | L126: 61417.5112 | M126: 318190.7514 | N126: 0 | P126: =H$1&$A$7&":"&H$1&$A$122&", col "&C$1&"= T" -> H7:H122, col C= T | R126: =SUM(IF($C$7:$C$122=$C126,$E$7:$E$122*R$7:R$122))/$E126 -> 0.13 | S126: =SUM(IF($C$7:$C$122=$C126,$E$7:$E$122*S$7:S$122))/$E126 -> 0.87 | T126: =SUM(IF($C$7:$C$122=$C126,$E$7:$E$122*T$7:T$122))/$E126 -> 0 | U126: =SUM(IF($C$7:$C$122=$C126,$E$7:$E$122*U$7:U$122))/$E126 -> 0 | V126: =SUM(IF($C$7:$C$122=$C126,$E$7:$E$122*V$7:V$122))/$E126 -> 0 | W126: =SUM(IF($C$7:$C$122=$C126,$E$7:$E$122*W$7:W$122))/$E126 -> 0 | X126: =SUM(IF($C$7:$C$122=$C126,$E$7:$E$122*X$7:X$122))/$E126 -> 0 | Y126: =SUM(IF($C$7:$C$122=$C126,$E$7:$E$122*Y$7:Y$122))/$E126 -> 0 | Z126: =SUM(IF($C$7:$C$122=$C126,$E$7:$E$122*Z$7:Z$122))/$E126 -> 0 | AA126: =SUM(IF($C$7:$C$122=$C126,$E$7:$E$122*AA$7:AA$122))/$E126 -> 0 | AB126: =SUM(IF($C$7:$C$122=$C126,$E$7:$E$122*AB$7:AB$122))/$E126 -> 0 | AC126: =SUM(IF($C$7:$C$122=$C126,$E$7:$E$122*AC$7:AC$122))/$E126 -> 0 | AD126: =SUM(IF($C$7:$C$122=$C126,$E$7:$E$122*AD$7:AD$122))/$E126 -> 0 | AE126: =SUM(IF($C$7:$C$122=$C126,$E$7:$E$122*AE$7:AE$122))/$E126 -> 0 | AF126: =SUM(IF($C$7:$C$122=$C126,$E$7:$E$122*AF$7:AF$122))/$E126 -> 0 | AG126: =SUM(IF($C$7:$C$122=$C126,$E$7:$E$122*AG$7:AG$122))/$E126 -> 0 | AH126: =SUM(IF($C$7:$C$122=$C126,$E$7:$E$122*AH$7:AH$122))/$E126 -> 0 | AI126: 0 | AK126: =SUMIF($C$7:$C$122,$C126,AK$7:AK$122) -> 16702000 | AL126: 16702000 | AM126: 0 | AN126: 0 | AO126: 0 | AQ126: =E$1&$A126&"* """ -> E126* " | AS126: =SUM(AT126:AY126) -> 16702000 | AT126: =SUMIF($C$7:$C$122,$C126,AT$7:AT$122) -> 11370568.08 | AU126: 4353320.635 | AV126: 598503.0212 | AW126: 61417.5112 | AX126: 318190.7514 | AY126: 0 | BA126: =SUM(BB126:BG126) -> 0 | BB126: =SUMIF($C$7:$C$122,$C126,BB$7:BB$122) -> 0 | BC126: 0 | BD126: 0 | BE126: 0 | BF126: 0 | BG126: 0 | BI126: =SUM(BJ126:BO126) -> 0 | BJ126: =SUMIF($C$7:$C$122,$C126,BJ$7:BJ$122) -> 0 | BK126: 0 | BL126: 0 | BM126: 0 | BN126: 0 | BO126: 0
A127: 127 | C127: D | D127: Distribution | E127: =SUMIF($C$7:$C$122,$C127,E$7:E$122) -> 184713000 | F127: ="sum where Func = "&$C127&" ("&A$7&"-"&A$122&")" -> sum where Func = D (7-122) | H127: 184713000 | I127: 143342245.7 | J127: 29519479.08 | K127: 2419454.382 | L127: 357933.6407 | M127: 9073887.177 | N127: 0 | P127: =H$1&$A$7&":"&H$1&$A$122&", col "&C$1&"= D" -> H7:H122, col C= D | R127: =SUM(IF($C$7:$C$122=$C127,$E$7:$E$122*R$7:R$122))/$E127 -> 0.1040982345 | S127: =SUM(IF($C$7:$C$122=$C127,$E$7:$E$122*S$7:S$122))/$E127 -> 0.073211364 | T127: =SUM(IF($C$7:$C$122=$C127,$E$7:$E$122*T$7:T$122))/$E127 -> 0.01276073906 | U127: =SUM(IF($C$7:$C$122=$C127,$E$7:$E$122*U$7:U$122))/$E127 -> 0 | V127: =SUM(IF($C$7:$C$122=$C127,$E$7:$E$122*V$7:V$122))/$E127 -> 0 | W127: =SUM(IF($C$7:$C$122=$C127,$E$7:$E$122*W$7:W$122))/$E127 -> 0.3335040268 | X127: =SUM(IF($C$7:$C$122=$C127,$E$7:$E$122*X$7:X$122))/$E127 -> 0 | Y127: =SUM(IF($C$7:$C$122=$C127,$E$7:$E$122*Y$7:Y$122))/$E127 -> 0 | Z127: =SUM(IF($C$7:$C$122=$C127,$E$7:$E$122*Z$7:Z$122))/$E127 -> 0 | AA127: =SUM(IF($C$7:$C$122=$C127,$E$7:$E$122*AA$7:AA$122))/$E127 -> 0 | AB127: =SUM(IF($C$7:$C$122=$C127,$E$7:$E$122*AB$7:AB$122))/$E127 -> 0 | AC127: =SUM(IF($C$7:$C$122=$C127,$E$7:$E$122*AC$7:AC$122))/$E127 -> 0.2943329535 | AD127: =SUM(IF($C$7:$C$122=$C127,$E$7:$E$122*AD$7:AD$122))/$E127 -> 0.1745756837 | AE127: =SUM(IF($C$7:$C$122=$C127,$E$7:$E$122*AE$7:AE$122))/$E127 -> 0 | AF127: =SUM(IF($C$7:$C$122=$C127,$E$7:$E$122*AF$7:AF$122))/$E127 -> 0.007516998416 | AG127: =SUM(IF($C$7:$C$122=$C127,$E$7:$E$122*AG$7:AG$122))/$E127 -> 0 | AH127: =SUM(IF($C$7:$C$122=$C127,$E$7:$E$122*AH$7:AH$122))/$E127 -> 0 | AI127: 0 | AK127: 184713000 | AL127: 35108462.26 | AM127: 61602529.31 | AN127: 88002008.43 | AO127: 0 | AQ127: =E$1&$A127&"* """ -> E127* " | AS127: =SUM(AT127:AY127) -> 35108462.26 | AT127: 22416249.14 | AU127: 8582255.456 | AV127: 1179905.238 | AW127: 112211.0187 | AX127: 2817841.406 | AY127: 0 | BA127: =SUM(BB127:BG127) -> 61602529.31 | BB127: 39947991.04 | BC127: 15060603.97 | BD127: 1030646.235 | BE127: 203464.5879 | BF127: 5359823.486 | BG127: 0 | BI127: =SUM(BJ127:BO127) -> 88002008.43 | BJ127: 80978005.54 | BK127: 5876619.656 | BL127: 208902.9097 | BM127: 42258.03415 | BN127: 896222.2856 | BO127: 0
A128: 128 | C128: M | D128: DSM | E128: =SUMIF($C$7:$C$122,$C128,E$7:E$122) -> 0 | F128: ="sum where Func = "&$C128&" ("&A$7&"-"&A$122&")" -> sum where Func = M (7-122) | H128: 0 | I128: 0 | J128: 0 | K128: 0 | L128: 0 | M128: 0 | N128: 0 | P128: =H$1&$A$7&":"&H$1&$A$122&", col "&C$1&"= D" -> H7:H122, col C= D | R128: =IF($E128,SUM(IF($C$7:$C$122=$C128,$E$7:$E$122*R$7:R$122))/$E128,0) -> 0 | S128: =IF($E128,SUM(IF($C$7:$C$122=$C128,$E$7:$E$122*S$7:S$122))/$E128,0) -> 0 | T128: =IF($E128,SUM(IF($C$7:$C$122=$C128,$E$7:$E$122*T$7:T$122))/$E128,0) -> 0 | U128: =IF($E128,SUM(IF($C$7:$C$122=$C128,$E$7:$E$122*U$7:U$122))/$E128,0) -> 0 | V128: =IF($E128,SUM(IF($C$7:$C$122=$C128,$E$7:$E$122*V$7:V$122))/$E128,0) -> 0 | W128: =IF($E128,SUM(IF($C$7:$C$122=$C128,$E$7:$E$122*W$7:W$122))/$E128,0) -> 0 | X128: =IF($E128,SUM(IF($C$7:$C$122=$C128,$E$7:$E$122*X$7:X$122))/$E128,0) -> 0 | Y128: =IF($E128,SUM(IF($C$7:$C$122=$C128,$E$7:$E$122*Y$7:Y$122))/$E128,0) -> 0 | Z128: =IF($E128,SUM(IF($C$7:$C$122=$C128,$E$7:$E$122*Z$7:Z$122))/$E128,0) -> 0 | AA128: =IF($E128,SUM(IF($C$7:$C$122=$C128,$E$7:$E$122*AA$7:AA$122))/$E128,0) -> 0 | AB128: =IF($E128,SUM(IF($C$7:$C$122=$C128,$E$7:$E$122*AB$7:AB$122))/$E128,0) -> 0 | AC128: =IF($E128,SUM(IF($C$7:$C$122=$C128,$E$7:$E$122*AC$7:AC$122))/$E128,0) -> 0 | AD128: =IF($E128,SUM(IF($C$7:$C$122=$C128,$E$7:$E$122*AD$7:AD$122))/$E128,0) -> 0 | AE128: =IF($E128,SUM(IF($C$7:$C$122=$C128,$E$7:$E$122*AE$7:AE$122))/$E128,0) -> 0 | AF128: =IF($E128,SUM(IF($C$7:$C$122=$C128,$E$7:$E$122*AF$7:AF$122))/$E128,0) -> 0 | AG128: =IF($E128,SUM(IF($C$7:$C$122=$C128,$E$7:$E$122*AG$7:AG$122))/$E128,0) -> 0 | AH128: =IF($E128,SUM(IF($C$7:$C$122=$C128,$E$7:$E$122*AH$7:AH$122))/$E128,0) -> 0 | AI128: 0 | AK128: 0 | AL128: 0 | AM128: 0 | AN128: 0 | AO128: 0 | AQ128: =E$1&$A128&"* """ -> E128* " | AS128: =SUM(AT128:AY128) -> 0 | AT128: 0 | AU128: 0 | AV128: 0 | AW128: 0 | AX128: 0 | AY128: 0 | BA128: =SUM(BB128:BG128) -> 0 | BB128: 0 | BC128: 0 | BD128: 0 | BE128: 0 | BF128: 0 | BG128: 0 | BI128: =SUM(BJ128:BO128) -> 0 | BJ128: 0 | BK128: 0 | BL128: 0 | BM128: 0 | BN128: 0 | BO128: 0
A129: =RowHdr -> 129 | C129: O | D129: Common | E129: =SUMIF($C$7:$C$122,$C129,E$7:E$122) -> 29678000 | F129: ="sum where Func = "&$C129&" ("&A$7&"-"&A$122&")" -> sum where Func = O (7-122) | H129: 29678000 | I129: 23010494.57 | J129: 4821289.259 | K129: 429326.2195 | L129: 59745.07313 | M129: 1357144.881 | N129: 0 | P129: =H$1&$A$7&":"&H$1&$A$122&", col "&C$1&"= O" -> H7:H122, col C= O | R129: =SUM(IF($C$7:$C$122=$C129,$E$7:$E$122*R$7:R$122))/$E129 -> 0.1035105314 | S129: =SUM(IF($C$7:$C$122=$C129,$E$7:$E$122*S$7:S$122))/$E129 -> 0.1303051011 | T129: =SUM(IF($C$7:$C$122=$C129,$E$7:$E$122*T$7:T$122))/$E129 -> 0.01171110856 | U129: =SUM(IF($C$7:$C$122=$C129,$E$7:$E$122*U$7:U$122))/$E129 -> 0 | V129: =SUM(IF($C$7:$C$122=$C129,$E$7:$E$122*V$7:V$122))/$E129 -> 0 | W129: =SUM(IF($C$7:$C$122=$C129,$E$7:$E$122*W$7:W$122))/$E129 -> 0.3035166259 | X129: =SUM(IF($C$7:$C$122=$C129,$E$7:$E$122*X$7:X$122))/$E129 -> 0 | Y129: =SUM(IF($C$7:$C$122=$C129,$E$7:$E$122*Y$7:Y$122))/$E129 -> 0 | Z129: =SUM(IF($C$7:$C$122=$C129,$E$7:$E$122*Z$7:Z$122))/$E129 -> 0 | AA129: =SUM(IF($C$7:$C$122=$C129,$E$7:$E$122*AA$7:AA$122))/$E129 -> 0 | AB129: =SUM(IF($C$7:$C$122=$C129,$E$7:$E$122*AB$7:AB$122))/$E129 -> 0 | AC129: =SUM(IF($C$7:$C$122=$C129,$E$7:$E$122*AC$7:AC$122))/$E129 -> 0.3087755124 | AD129: =SUM(IF($C$7:$C$122=$C129,$E$7:$E$122*AD$7:AD$122))/$E129 -> 0.1349387481 | AE129: =SUM(IF($C$7:$C$122=$C129,$E$7:$E$122*AE$7:AE$122))/$E129 -> 0 | AF129: =SUM(IF($C$7:$C$122=$C129,$E$7:$E$122*AF$7:AF$122))/$E129 -> 0.007242372513 | AG129: =SUM(IF($C$7:$C$122=$C129,$E$7:$E$122*AG$7:AG$122))/$E129 -> 0 | AH129: =SUM(IF($C$7:$C$122=$C129,$E$7:$E$122*AH$7:AH$122))/$E129 -> 0 | AI129: 0 | AK129: 29678000 | AL129: 7286742.622 | AM129: 9007766.424 | AN129: 13383490.95 | AO129: 0 | AQ129: =E$1&$A129&"* """ -> E129* " | AS129: =SUM(AT129:AY129) -> 7286742.622 | AT129: 4745561.153 | AU129: 1816879.257 | AV129: 249788.1079 | AW129: 24325.09386 | AX129: 450189.0103 | AY129: 0 | BA129: =SUM(BB129:BG129) -> 9007766.424 | BB129: 5841353.86 | BC129: 2202221.309 | BD129: 150705.1845 | BE129: 29751.39989 | BF129: 783734.6709 | BG129: 0 | BI129: =SUM(BJ129:BO129) -> 13383490.95 | BJ129: 12423579.56 | BK129: 802188.6927 | BL129: 28832.92701 | BM129: 5668.579376 | BN129: 123221.1993 | BO129: 0
A130: 130 | C130: A | D130: Allocated | E130: =SUMIF($C$7:$C$122,$C130,E$7:E$122) -> -42004000 | F130: ="sum where Func = "&$C130&" ("&A$7&"-"&A$122&")" -> sum where Func = A (7-122) | H130: -42004000 | I130: -32568140.19 | J130: -6822833.088 | K130: -607449.7122 | L130: -84544.16368 | M130: -1921032.843 | N130: 0 | P130: =H$1&$A$7&":"&H$1&$A$122&", col "&C$1&"= O" -> H7:H122, col C= O | R130: =SUM(IF($C$7:$C$122=$C130,$E$7:$E$122*R$7:R$122))/$E130 -> 0.1035050361 | S130: =SUM(IF($C$7:$C$122=$C130,$E$7:$E$122*S$7:S$122))/$E130 -> 0.13015165 | T130: =SUM(IF($C$7:$C$122=$C130,$E$7:$E$122*T$7:T$122))/$E130 -> 0.01171353806 | U130: =SUM(IF($C$7:$C$122=$C130,$E$7:$E$122*U$7:U$122))/$E130 -> 0 | V130: =SUM(IF($C$7:$C$122=$C130,$E$7:$E$122*V$7:V$122))/$E130 -> 0 | W130: =SUM(IF($C$7:$C$122=$C130,$E$7:$E$122*W$7:W$122))/$E130 -> 0.303579591 | X130: =SUM(IF($C$7:$C$122=$C130,$E$7:$E$122*X$7:X$122))/$E130 -> 0 | Y130: =SUM(IF($C$7:$C$122=$C130,$E$7:$E$122*Y$7:Y$122))/$E130 -> 0 | Z130: =SUM(IF($C$7:$C$122=$C130,$E$7:$E$122*Z$7:Z$122))/$E130 -> 0 | AA130: =SUM(IF($C$7:$C$122=$C130,$E$7:$E$122*AA$7:AA$122))/$E130 -> 0 | AB130: =SUM(IF($C$7:$C$122=$C130,$E$7:$E$122*AB$7:AB$122))/$E130 -> 0 | AC130: =SUM(IF($C$7:$C$122=$C130,$E$7:$E$122*AC$7:AC$122))/$E130 -> 0.3088395685 | AD130: =SUM(IF($C$7:$C$122=$C130,$E$7:$E$122*AD$7:AD$122))/$E130 -> 0.1349667414 | AE130: =SUM(IF($C$7:$C$122=$C130,$E$7:$E$122*AE$7:AE$122))/$E130 -> 0 | AF130: =SUM(IF($C$7:$C$122=$C130,$E$7:$E$122*AF$7:AF$122))/$E130 -> 0.007243874957 | AG130: =SUM(IF($C$7:$C$122=$C130,$E$7:$E$122*AG$7:AG$122))/$E130 -> 0 | AH130: =SUM(IF($C$7:$C$122=$C130,$E$7:$E$122*AH$7:AH$122))/$E130 -> 0 | AI130: 0 | AK130: -42004000 | AL130: -10306530.9 | AM130: -12751557.14 | AN130: -18945911.96 | AO130: 0 | AQ130: =E$1&$A130&"* """ -> E130* " | AS130: =SUM(AT130:AY130) -> -10306530.9 | AT130: -6711969.954 | AU130: -2569735.926 | AV130: -353292.3129 | AW130: -34403.00012 | AX130: -637129.7017 | AY130: 0 | BA130: =SUM(BB130:BG130) -> -12751557.14 | BB130: -8269126.221 | BC130: -3117504.333 | BD130: -213340.9862 | BE130: -42116.62002 | BF130: -1109468.981 | BG130: 0 | BI130: =SUM(BJ130:BO130) -> -18945911.96 | BJ130: -17587044.02 | BK130: -1135592.829 | BL130: -40816.4132 | BM130: -8024.543535 | BN130: -174434.1594 | BO130: 0
A131: 131 | D131: Total Rate Base | E131: =SUM(E126:E130) -> 189089000 | H131: =SUM(H126:H130) -> 189089000 | I131: 145155168.2 | J131: 31871255.88 | K131: 2839833.911 | L131: 394552.0614 | M131: 8828189.966 | N131: 0 | P131: =A126&":"&$A129 -> 126:129 | AI131: 0 | AK131: =SUM(AK126:AK130) -> 189089000 | AL131: =SUM(AL126:AL130) -> 48790673.99 | AM131: =SUM(AM126:AM130) -> 57858738.59 | AN131: =SUM(AN126:AN130) -> 82439587.42 | AO131: =SUM(AO126:AO130) -> 0 | AQ131: =A126&":"&$A129 -> 126:129 | AS131: =IF(ROUND(SUM(AS126:AS130),3)<>ROUND(SUM(AT131:AY131),3),#VALUE!,SUM(AS126:AS130)) -> 48790673.99 | AT131: =SUM(AT126:AT130) -> 31820408.42 | AU131: 12182719.42 | AV131: 1674904.054 | AW131: 163550.6236 | AX131: 2949091.466 | AY131: 0 | BA131: =IF(ROUND(SUM(BA126:BA130),3)<>ROUND(SUM(BB131:BG131),3),#VALUE!,SUM(BA126:BA130)) -> 57858738.59 | BB131: =SUM(BB126:BB130) -> 37520218.67 | BC131: 14145320.94 | BD131: 968010.433 | BE131: 191099.3678 | BF131: 5034089.175 | BG131: 0 | BI131: =IF(ROUND(SUM(BI126:BI130),3)<>ROUND(SUM(BJ131:BO131),3),#VALUE!,SUM(BI126:BI130)) -> 82439587.42 | BJ131: =SUM(BJ126:BJ130) -> 75814541.08 | BK131: 5543215.52 | BL131: 196919.4235 | BM131: 39902.06999 | BN131: 845009.3255 | BO131: 0
A132: 132 | H132: =H131-$E131 -> 0 | AI132: 0 | AK132: =AK131-$E131 -> 0
A133: 133 | D133: Allocated Rate Base - ADFIT | AI133: 0
A134: 134 | D134: Underground Storage | E134: =$E$130*$E$23/$E$56 -> -2700956.682 | H134: =SUM(I134:N134) -> -2700956.682 | I134: =I$130*IF(I$56,I$23/I$56,0) -> -1838786.483 | J134: -703995.3572 | K134: -96786.65634 | L134: -9932.106171 | M134: -51456.07927 | N134: 0 | AI134: 0 | AK134: =SUM(AL134:AQ134) -> -2700956.682 | AL134: =AL$130*IF(AL$56,AL$23/AL$56,0) -> -2700956.682 | AM134: =AM$130*IF(AM$56,AM$23/AM$56,0) -> 0 | AN134: =AN$130*IF(AN$56,AN$23/AN$56,0) -> 0 | AO134: =AO$130*IF(AO$56,AO$23/AO$56,0) -> 0 | AS134: =SUM(AT134:AY134) -> -2700956.682 | AT134: =AT$130*IF(AT$56,AT$23/AT$56,0) -> -1838786.483 | AU134: -703995.3572 | AV134: -96786.65634 | AW134: -9932.106171 | AX134: -51456.07927 | AY134: 0 | BA134: =SUM(BB134:BG134) -> 0 | BB134: =BB$130*IF(BB$56,BB$23/BB$56,0) -> 0 | BC134: 0 | BD134: 0 | BE134: 0 | BF134: 0 | BG134: 0 | BI134: =SUM(BJ134:BO134) -> 0 | BJ134: =BJ$130*IF(BJ$56,BJ$23/BJ$56,0) -> 0 | BK134: 0 | BL134: 0 | BM134: 0 | BN134: 0 | BO134: 0
A135: 135 | D135: Distribution | E135: =$E$130*$E$39/$E$56 -> -34520283.28 | H135: =SUM(I135:N135) -> -34520283.28 | I135: =I$130*IF(I$56,I$39/I$56,0) -> -27020203.28 | J135: -5342789.637 | K135: -441676.7075 | L135: -64999.54836 | M135: -1650614.111 | N135: 0 | AI135: =IF(SUM(R135:AH135)<>0,(ROUND(SUM(R135:AH135),8)<>1)+0,0) -> 0 | AK135: =SUM(AL135:AQ135) -> -34520283.28 | AL135: =AL$130*IF(AL$56,AL$39/AL$56,0) -> -6438402.091 | AM135: =AM$130*IF(AM$56,AM$39/AM$56,0) -> -11297044.3 | AN135: =AN$130*IF(AN$56,AN$39/AN$56,0) -> -16784836.89 | AO135: =AO$130*IF(AO$56,AO$39/AO$56,0) -> 0 | AS135: =SUM(AT135:AY135) -> -6438402.091 | AT135: =AT$130*IF(AT$56,AT$39/AT$56,0) -> -4113330.23 | AU135: -1574824.163 | AV135: -216509.901 | AW135: -20577.76209 | AX135: -513160.0343 | AY135: 0 | BA135: =SUM(BB135:BG135) -> -11297044.3 | BB135: =BB$130*IF(BB$56,BB$39/BB$56,0) -> -7325904.139 | BC135: -2761904.618 | BD135: -189006.1382 | BE135: -37312.56637 | BF135: -982916.8386 | BG135: 0 | BI135: =SUM(BJ135:BO135) -> -16784836.89 | BJ135: =BJ$130*IF(BJ$56,BJ$39/BJ$56,0) -> -15580968.91 | BK135: -1006060.856 | BL135: -36160.6683 | BM135: -7109.219901 | BN135: -154537.2384 | BO135: 0
A136: 136 | D136: Common | E136: =$E$130*SUM($E$12,$E$54)/$E$56 -> -4782760.035 | H136: =SUM(I136:N136) -> -4782760.035 | I136: =I$130*IF(I$56,SUM(I$12,I$54)/I$56,0) -> -3709150.432 | J136: -776048.0936 | K136: -68986.34835 | L136: -9612.509144 | M136: -218962.6519 | N136: 0 | AI136: 0 | AK136: =SUM(AL136:AQ136) -> -4782760.035 | AL136: =AL$130*IF(AL$56,SUM(AL$12,AL$54)/AL$56,0) -> -1167172.123 | AM136: =AM$130*IF(AM$56,SUM(AM$12,AM$54)/AM$56,0) -> -1454512.842 | AN136: =AN$130*IF(AN$56,SUM(AN$12,AN$54)/AN$56,0) -> -2161075.07 | AO136: =AO$130*IF(AO$56,SUM(AO$12,AO$54)/AO$56,0) -> 0 | AS136: =SUM(AT136:AY136) -> -1167172.123 | AT136: =AT$130*IF(AT$56,SUM(AT$12,AT$54)/AT$56,0) -> -759853.242 | AU136: -290916.4058 | AV136: -39995.75551 | AW136: -3893.131858 | AX136: -72513.5881 | AY136: 0 | BA136: =SUM(BB136:BG136) -> -1454512.842 | BB136: =BB$130*IF(BB$56,SUM(BB$12,BB$54)/BB$56,0) -> -943222.082 | BC136: -355599.715 | BD136: -24334.84794 | BE136: -4804.053652 | BF136: -126552.1428 | BG136: 0 | BI136: =SUM(BJ136:BO136) -> -2161075.07 | BJ136: =BJ$130*IF(BJ$56,SUM(BJ$12,BJ$54)/BJ$56,0) -> -2006075.108 | BK136: -129531.9727 | BL136: -4655.744901 | BM136: -915.3236338 | BN136: -19896.92099 | BO136: 0
A137: 137 | D137: Total Allocated Rate Base | E137: =SUM(E134:E136) -> -42004000 | H137: =SUM(H134:H136) -> -42004000 | I137: =SUM(I134:I136) -> -32568140.19 | J137: -6822833.088 | K137: -607449.7122 | L137: -84544.16368 | M137: -1921032.843 | N137: 0 | AI137: 0 | AK137: =SUM(AK134:AK136) -> -42004000 | AL137: =SUM(AL134:AL136) -> -10306530.9 | AM137: =SUM(AM134:AM136) -> -12751557.14 | AN137: =SUM(AN134:AN136) -> -18945911.96 | AO137: =SUM(AO134:AO136) -> 0 | AS137: =SUM(AS134:AS136) -> -10306530.9 | AT137: -6711969.954 | AU137: -2569735.926 | AV137: -353292.3129 | AW137: -34403.00012 | AX137: -637129.7017 | AY137: 0 | BA137: =SUM(BA134:BA136) -> -12751557.14 | BB137: -8269126.221 | BC137: -3117504.333 | BD137: -213340.9862 | BE137: -42116.62002 | BF137: -1109468.981 | BG137: 0 | BI137: =SUM(BI134:BI136) -> -18945911.96 | BJ137: -17587044.02 | BK137: -1135592.829 | BL137: -40816.4132 | BM137: -8024.543535 | BN137: -174434.1594 | BO137: 0
A138: 138 | H138: =H137-$E137 -> 0 | AI138: 0
A139: 139 | D139: Rate Base by Function | AI139: 0
A140: 140 | D140: Underground Storage | E140: =E126+E134 -> 14001043.32 | H140: =H126+H134 -> 14001043.32 | I140: 9531781.599 | J140: 3649325.278 | K140: 501716.3649 | L140: 51485.40503 | M140: 266734.6721 | N140: 0 | AI140: 0 | AK140: =AK126+AK134 -> 14001043.32 | AL140: 14001043.32 | AM140: 0 | AN140: 0 | AO140: 0 | AS140: =AS126+AS134 -> 14001043.32 | AT140: 9531781.599 | AU140: 3649325.278 | AV140: 501716.3649 | AW140: 51485.40503 | AX140: 266734.6721 | AY140: 0 | BA140: =BA126+BA134 -> 0 | BB140: 0 | BC140: 0 | BD140: 0 | BE140: 0 | BF140: 0 | BG140: 0 | BI140: =BI126+BI134 -> 0 | BJ140: 0 | BK140: 0 | BL140: 0 | BM140: 0 | BN140: 0 | BO140: 0
A141: 141 | D141: Distribution | E141: =E127+E135 -> 150192716.7 | H141: 150192716.7 | I141: 116322042.4 | J141: 24176689.44 | K141: 1977777.675 | L141: 292934.0924 | M141: 7423273.066 | N141: 0 | AI141: 0 | AK141: 150192716.7 | AL141: 28670060.17 | AM141: 50305485.01 | AN141: 71217171.54 | AO141: 0 | AS141: =AS127+AS135 -> 28670060.17 | AT141: 18302918.91 | AU141: 7007431.292 | AV141: 963395.3369 | AW141: 91633.25656 | AX141: 2304681.371 | AY141: 0 | BA141: =BA127+BA135 -> 50305485.01 | BB141: 32622086.9 | BC141: 12298699.35 | BD141: 841640.0964 | BE141: 166152.0216 | BF141: 4376906.647 | BG141: 0 | BI141: =BI127+BI135 -> 71217171.54 | BJ141: 65397036.63 | BK141: 4870558.8 | BL141: 172742.2414 | BM141: 35148.81425 | BN141: 741685.0472 | BO141: 0
A142: 142 | D142: DSM | E142: =E128 -> 0 | H142: =H128 -> 0 | I142: 0 | J142: 0 | K142: 0 | L142: 0 | M142: 0 | N142: 0 | AI142: 0 | AK142: =AK128 -> 0 | AL142: =AL128 -> 0 | AM142: =AM128 -> 0 | AN142: =AN128 -> 0 | AO142: =AO128 -> 0 | AS142: =AS128 -> 0 | AT142: 0 | AU142: 0 | AV142: 0 | AW142: 0 | AX142: 0 | AY142: 0 | BA142: =BA128 -> 0 | BB142: 0 | BC142: 0 | BD142: 0 | BE142: 0 | BF142: 0 | BG142: 0 | BI142: =BI128 -> 0 | BJ142: 0 | BK142: 0 | BL142: 0 | BM142: 0 | BN142: 0 | BO142: 0
A143: 143 | D143: Common | E143: =E129+E136 -> 24895239.97 | H143: =H129+H136 -> 24895239.97 | I143: 19301344.14 | J143: 4045241.165 | K143: 360339.8711 | L143: 50132.56398 | M143: 1138182.229 | N143: 0 | AI143: 0 | AK143: =AK129+AK136 -> 24895239.97 | AL143: =AL129+AL136 -> 6119570.499 | AM143: =AM129+AM136 -> 7553253.583 | AN143: =AN129+AN136 -> 11222415.88 | AO143: =AO129+AO136 -> 0 | AS143: =AS129+AS136 -> 6119570.499 | AT143: 3985707.911 | AU143: 1525962.852 | AV143: 209792.3524 | AW143: 20431.96201 | AX143: 377675.4222 | AY143: 0 | BA143: =BA129+BA136 -> 7553253.583 | BB143: 4898131.778 | BC143: 1846621.594 | BD143: 126370.3366 | BE143: 24947.34623 | BF143: 657182.5281 | BG143: 0 | BI143: =BI129+BI136 -> 11222415.88 | BJ143: 10417504.45 | BK143: 672656.72 | BL143: 24177.18211 | BM143: 4753.255742 | BN143: 103324.2784 | BO143: 0
A144: 144 | D144: Total Allocated Rate Base | E144: =SUM(E140:E143) -> 189089000 | H144: =SUM(H140:H143) -> 189089000 | I144: 145155168.2 | J144: 31871255.88 | K144: 2839833.911 | L144: 394552.0614 | M144: 8828189.966 | N144: 0 | AI144: 0 | AK144: =SUM(AK140:AK143) -> 189089000 | AL144: =SUM(AL140:AL143) -> 48790673.99 | AM144: =SUM(AM140:AM143) -> 57858738.59 | AN144: =SUM(AN140:AN143) -> 82439587.42 | AO144: =SUM(AO140:AO143) -> 0 | AS144: =SUM(AS140:AS143) -> 48790673.99 | AT144: 31820408.42 | AU144: 12182719.42 | AV144: 1674904.054 | AW144: 163550.6236 | AX144: 2949091.466 | AY144: 0 | BA144: =SUM(BA140:BA143) -> 57858738.59 | BB144: 37520218.67 | BC144: 14145320.94 | BD144: 968010.433 | BE144: 191099.3678 | BF144: 5034089.175 | BG144: 0 | BI144: =SUM(BI140:BI143) -> 82439587.42 | BJ144: 75814541.08 | BK144: 5543215.52 | BL144: 196919.4235 | BM144: 39902.06999 | BN144: 845009.3255 | BO144: 0
A145: 145 | H145: =H144-$E144 -> 0 | AI145: 0 | AK145: =AK144-$E144 -> 0
A146: 146 | AI146: 0
A147: 147 | D147: Interest Expenses | AI147: 0
A148: 148 | C148: R | D148: Interest Expenses | E148: ='PROFORMA (Staff)'!AU404 -> 6055000 | F148: ="as Total Rate Base ("&A$122&")" -> as Total Rate Base (122) | H148: =SUM(I148:N148) -> 6055000 | I148: =$E148*SUMPRODUCT($R148:$AH148,INDEX(AllocFactors,I$4,0)) -> 4648152.686 | J148: 1020580.015 | K148: 90937.04197 | L148: 12634.3295 | M148: 282695.9276 | N148: 0 | P148: =E$1&$A148&"* Sum["&$R$1&$A148&":"&$AH$1&$A148&"* "&Factors!D$1&Factors!$A$58&":"&Factors!S$1&Factors!$A$64&"]" -> E148* Sum[R148:AH148* D592:S598] | R148: =R$122 -> 0.1064256366 | S148: 0.1399030909 | T148: 0.01170148036 | U148: 0 | V148: 0 | W148: 0.305986803 | X148: 0 | Y148: 0 | Z148: 0 | AA148: 0 | AB148: 0 | AC148: 0.2673791985 | AD148: 0.1617331913 | AE148: 0 | AF148: 0.006870599221 | AG148: 0 | AH148: 0 | AI148: 0 | AK148: =SUM(AL148:AO148) -> 6055000 | AL148: =SUMIF($R$4:$AH$4,AL$5,$R148:$AH148)*$E148 -> 1562372.909 | AM148: =SUMIF($R$4:$AH$4,AM$5,$R148:$AH148)*$E148 -> 1852750.092 | AN148: =SUMIF($R$4:$AH$4,AN$5,$R148:$AH148)*$E148 -> 2639876.999 | AO148: =SUMIF($R$4:$AH$4,AO$5,$R148:$AH148)*$E148 -> 0 | AQ148: =E$1&$A148&"*["&R$1&$A148&":"&$AH$1&$A148&" when "&R$1&$A$4&":"&$AH$1&$A$4&" = E,D,C,or R]" -> E148*[R148:AH148 when R4:AH4 = E,D,C,or R]
A149: 149 | H149: =H148-E148 -> 0 | AI149: 0
A150: 150 | D150: Peak-Average Energy | E150: ='Mains Allocator'!G12 -> 0.36302453 | H150: =H137-$E137 -> 0 | AI150: 0 | AK150: =AK137-$E137 -> 0
A151: 151 | D151: Peak-Average Demand | E151: =1-PkAvg_E -> 0.63697547
A152: 152
A153: 153
A154: 154
A155: 155
A156: 156
A157: 157
A158: 158
A159: 159
A160: 160
A161: 161 | AS161: COMMODITY | BA161: DEMAND | BI161: CUSTOMER
A162: 162 | E162: Proforma | R162: COMMODITY | S162: COMMODITY | T162: COMMODITY | U162: COMMODITY | V162: COMMODITY | W162: DEMAND | X162: DEMAND | Y162: DEMAND | Z162: DEMAND | AA162: DEMAND | AB162: CUSTOMER | AC162: CUSTOMER | AD162: CUSTOMER | AE162: CUSTOMER | AF162: CUSTOMER | AG162: CUSTOMER | AH162: REVENUE | BR162: Proforma | BS162: COMMODITY | BT162: COMMODITY | BU162: COMMODITY | BV162: COMMODITY | BW162: COMMODITY | BX162: DEMAND | BY162: DEMAND | BZ162: DEMAND | CA162: DEMAND | CB162: DEMAND | CC162: CUSTOMER | CD162: CUSTOMER | CE162: CUSTOMER | CF162: CUSTOMER | CG162: CUSTOMER | CH162: CUSTOMER | CI162: REVENUE | CM162: =MATCH(CM163,Factors!$C$58:$C$64,0) -> 1 | CN162: =MATCH(CN163,Factors!$C$58:$C$64,0) -> 2 | CO162: =MATCH(CO163,Factors!$C$58:$C$64,0) -> 3 | CP162: =MATCH(CP163,Factors!$C$58:$C$64,0) -> 4 | CQ162: =MATCH(CQ163,Factors!$C$58:$C$64,0) -> 5 | CR162: =MATCH(CR163,Factors!$C$58:$C$64,0) -> 6
A163: 163 | B163: Acct | C163: Func | D163: Description | E163: Totals | F163: classif. basis (line) | G163: derived classif. | H163: Total | I163: Sch 101 | J163: Sch 111 | K163: Sch 121 | L163: Sch 131 | M163: Sch 146 | N163: Open | P163: source | R163: Throughput | S163: Sales | T163: Therms - Small Mains | U163: Purchased Gas - Commodity | V163: GTI Expense | W163: Coincident Peak - All | X163: Coincident Peak - Small Mains | Y163: Purchased Gas - Demand | Z163: DA 131 | AA163: DA 146 | AB163: All Customers | AC163: Service Cost | AD163: Meter Cost | AE163: Regulator Cost | AF163: Ind Meas & Reg Cost | AG163: DA 101 | AH163: Revenues From Retail Rates | AK163: Total | AL163: Commodity | AM163: Demand | AN163: Customer | AO163: Revenue | AQ163: source | AS163: Total | AT163: Sch 101 | AU163: Sch 111 | AV163: Sch 121 | AW163: Sch 131 | AX163: Sch 146 | AY163: Open | BA163: Total | BB163: Sch 101 | BC163: Sch 111 | BD163: Sch 121 | BE163: Sch 131 | BF163: Sch 146 | BG163: Open | BI163: Total | BJ163: Sch 101 | BK163: Sch 111 | BL163: Sch 121 | BM163: Sch 131 | BN163: Sch 146 | BO163: Open | BQ163: Description | BR163: Labor Totals | BS163: Throughput | BT163: Sales | BU163: Therms - Small Mains | BV163: Purchased Gas - Commodity | BW163: GTI Expense | BX163: Coincident Peak - All | BY163: Coincident Peak - Small Mains | BZ163: Purchased Gas - Demand | CA163: DA 131 | CB163: DA 146 | CC163: All Customers | CD163: Service Cost | CE163: Meter Cost | CF163: Regulator Cost | CG163: Ind Meas & Reg Cost | CH163: DA 101 | CI163: Revenues From Retail Rates | CK163: source | CM163: Sch 101 | CN163: Sch 111 | CO163: Sch 121 | CP163: Sch 131 | CQ163: Sch 146 | CR163: Open
A164: 164 | R164: E01 | S164: E04 | T164: E06 | U164: E07 | V164: E08 | W164: D01 | X164: D02 | Y164: D05 | Z164: D06 | AA164: D07 | AB164: C01 | AC164: C02 | AD164: C03 | AE164: C04 | AF164: C06 | AG164: C10 | AH164: R01 | BS164: E01 | BT164: E04 | BU164: E06 | BV164: E07 | BW164: E08 | BX164: D01 | BY164: D02 | BZ164: D05 | CA164: D06 | CB164: D07 | CC164: C01 | CD164: C02 | CE164: C03 | CF164: C04 | CG164: C06 | CH164: C10 | CI164: R01
A165: 165 | D165: Operation & Maintenance Expenses | BQ165: Operation & Maintenance Expenses
A166: 166 | D166: Purchased Gas Expenses | AI166: =IF(SUM(R166:AH166)<>0,(ROUND(SUM(R166:AH166),8)<>1)+0,0) -> 0 | BQ166: Purchased Gas Expenses
A167: 167 | B167: 804 | C167: P | D167: Proforma Purchased Gas Expense | E167: ='PROFORMA (Staff)'!AW27 -> 80007000 | F167: Input - from PF Gas Costs | H167: =SUM(I167:N167) -> 80007000 | I167: =$E167*SUMPRODUCT($R167:$AH167,INDEX(AllocFactors,I$4,0)) -> 55723696.07 | J167: 21184377.78 | K167: 2808221.346 | L167: 274802.9572 | M167: 15901.84907 | N167: 0 | P167: =E$1&$A167&"* Sum["&$R$1&$A167&":"&$AH$1&$A167&"* "&Factors!D$1&Factors!$A$58&":"&Factors!S$1&Factors!$A$64&"]" -> E167* Sum[R167:AH167* D592:S598] | R167: 0 | T167: 0 | U167: =ROUND(61653/80007,4) -> 0.7706 | V167: 0 | W167: 0 | X167: 0 | Y167: =ROUND(18354/80007,4) -> 0.2294 | Z167: 0 | AA167: 0 | AB167: 0 | AC167: 0 | AD167: 0 | AE167: 0 | AF167: 0 | AG167: 0 | AH167: 0 | AI167: =IF(SUM(R167:AH167)<>0,(ROUND(SUM(R167:AH167),8)<>1)+0,0) -> 0 | AK167: =SUM(AL167:AO167) -> 80007000 | AL167: =SUMIF($R$4:$AH$4,AL$5,$R167:$AH167)*$E167 -> 61653394.2 | AM167: 18353605.8 | AN167: 0 | AO167: 0 | AQ167: =E$1&$A167&"*["&R$1&$A167&":"&$AH$1&$A167&" when "&R$1&$A$4&":"&$AH$1&$A$4&" = E,D,C,or R]" -> E167*[R167:AH167 when R4:AH4 = E,D,C,or R] | AS167: =SUM(AT167:AY167) -> 61653394.2 | AT167: =$E167*SUMPRODUCT($R167:$V167,INDEX(AllocFactors_E,AT$4,0)) -> 42788224.85 | AU167: 16381843.36 | AV167: 2252207.624 | AW167: 231118.3719 | AX167: 0 | AY167: 0 | BA167: =SUM(BB167:BG167) -> 18353605.8 | BB167: =$E167*SUMPRODUCT($W167:$AA167,INDEX(AllocFactors_D,BB$4,0)) -> 12935471.23 | BC167: 4802534.418 | BD167: 556013.7227 | BE167: 43684.58538 | BF167: 15901.84907 | BG167: 0 | BI167: =SUM(BJ167:BO167) -> 0 | BJ167: =$E167*SUMPRODUCT($AB167:$AG167,INDEX(AllocFactors_C,BJ$4,0)) -> 0 | BK167: 0 | BL167: 0 | BM167: 0 | BN167: 0 | BO167: 0 | BQ167: Proforma Purchased Gas Expense | BR167: 0 | BS167: =R167 -> 0 | BT167: 0 | BU167: 0 | BV167: 0.7706 | BW167: 0 | BX167: 0 | BY167: 0 | BZ167: 0.2294 | CA167: 0 | CB167: 0 | CC167: 0 | CD167: 0 | CE167: 0 | CF167: 0 | CG167: =AF167 -> 0 | CH167: 0 | CI167: 0 | CK167: =F167 -> Input - from PF Gas Costs | CL167: =IF(SUM(BS167:CI167)<>0,(ROUND(SUM(BS167:CI167),4)<>1)+0,0) -> 0 | CM167: =$BR167*SUMPRODUCT($BS167:$CI167,INDEX(AllocFactors,CM$162,0)) -> 0 | CN167: 0 | CO167: 0 | CP167: 0 | CQ167: 0 | CR167: 0
A168: 168 | B168: 813-010 | C168: P | D168: Gas Research Institute Expense | E168: ='PROFORMA (Staff)'!AW30 -> 75000 | F168: Input - 100% GTI | H168: =SUM(I168:N168) -> 75000 | I168: 55659.98939 | J168: 17228.70788 | K168: 1932.210135 | L168: 179.0925975 | M168: 0 | N168: 0 | P168: =E$1&$A168&"* """ -> E168* " | R168: 0 | S168: 0 | T168: 0 | V168: 1 | W168: 0 | X168: 0 | Z168: 0 | AA168: 0 | AB168: 0 | AC168: 0 | AD168: 0 | AE168: 0 | AF168: 0 | AG168: 0 | AH168: 0 | AI168: 0 | AK168: =SUM(AL168:AO168) -> 75000 | AL168: 75000 | AM168: 0 | AN168: 0 | AO168: 0 | AQ168: =E$1&$A168&"* """ -> E168* " | AS168: =SUM(AT168:AY168) -> 75000 | AT168: 55659.98939 | AU168: 17228.70788 | AV168: 1932.210135 | AW168: 179.0925975 | AX168: 0 | AY168: 0 | BA168: =SUM(BB168:BG168) -> 0 | BB168: 0 | BC168: 0 | BD168: 0 | BE168: 0 | BF168: 0 | BG168: 0 | BI168: =SUM(BJ168:BO168) -> 0 | BJ168: 0 | BK168: 0 | BL168: 0 | BM168: 0 | BN168: 0 | BO168: 0 | BQ168: Gas Research Contributions | BR168: 0 | BS168: 0 | BT168: 0 | BU168: 0 | BV168: 0 | BW168: 1 | BX168: 0 | BY168: 0 | BZ168: 0 | CA168: 0 | CB168: 0 | CC168: 0 | CD168: 0 | CE168: 0 | CF168: 0 | CG168: 0 | CH168: 0 | CI168: 0 | CK168: =F168 -> Input - 100% GTI | CL168: 0 | CM168: 0 | CN168: 0 | CO168: 0 | CP168: 0 | CQ168: 0 | CR168: 0
A169: 169 | B169: 813 | C169: P | D169: Other Gas Expenses | E169: ='PROFORMA (Staff)'!AW31 -> 952000 | F169: Input - purch vs. sched analysis | H169: =SUM(I169:N169) -> 952000 | I169: 644075.3173 | J169: 246589.8229 | K169: 33901.65034 | L169: 3478.938144 | M169: 23954.2713 | N169: 0 | P169: =E$1&$A169&"* """ -> E169* " | R169: 0.1717 | S169: 0.8283 | T169: 0 | U169: 0 | V169: 0 | W169: 0 | X169: 0 | Y169: 0 | Z169: 0 | AA169: 0 | AB169: 0 | AC169: 0 | AD169: 0 | AE169: 0 | AF169: 0 | AG169: 0 | AH169: 0 | AI169: 0 | AK169: =SUM(AL169:AO169) -> 952000 | AL169: 952000 | AM169: 0 | AN169: 0 | AO169: 0 | AQ169: =E$1&$A169&"* """ -> E169* " | AS169: =SUM(AT169:AY169) -> 952000 | AT169: 644075.3173 | AU169: 246589.8229 | AV169: 33901.65034 | AW169: 3478.938144 | AX169: 23954.2713 | AY169: 0 | BA169: =SUM(BB169:BG169) -> 0 | BB169: 0 | BC169: 0 | BD169: 0 | BE169: 0 | BF169: 0 | BG169: 0 | BI169: =SUM(BJ169:BO169) -> 0 | BJ169: 0 | BK169: 0 | BL169: 0 | BM169: 0 | BN169: 0 | BO169: 0 | BQ169: Other Gas Expenses | BR169: 529724 | BS169: 0.1717 | BT169: 0.8283 | BU169: 0 | BV169: 0 | BW169: 0 | BX169: 0 | BY169: 0 | BZ169: 0 | CA169: 0 | CB169: 0 | CC169: 0 | CD169: 0 | CE169: 0 | CF169: 0 | CG169: 0 | CH169: 0 | CI169: 0 | CK169: =F169 -> Input - purch vs. sched analysis | CL169: 0 | CM169: 358384.6149 | CN169: 137210.659 | CO169: 18863.98931 | CP169: 1935.795199 | CQ169: 13328.94161 | CR169: 0
A170: 170 | D170: Total Purchased Gas Expenses | E170: =SUM(E166:E169) -> 81034000 | H170: =IF(ROUND(SUM(H167:H169),3)<>ROUND(SUM(I170:N170),3),#VALUE!,SUM(H167:H169)) -> 81034000 | I170: =SUM(I167:I169) -> 56423431.38 | J170: 21448196.31 | K170: 2844055.207 | L170: 278460.988 | M170: 39856.12037 | N170: 0 | P170: =A167&":"&A169 -> 167:169 | R170: =SUMPRODUCT($E167:$E169,R$167:R$169)/$E170 -> 0.00201715823 | S170: =SUMPRODUCT($E167:$E169,S$167:S$169)/$E170 -> 0.009730996866 | T170: 0 | U170: =SUMPRODUCT($E167:$E169,U$167:U$169)/$E170 -> 0.7608336525 | V170: 0.0009255374287 | W170: 0 | X170: 0 | Y170: 0.2264926549 | Z170: 0 | AA170: 0 | AB170: 0 | AC170: 0 | AD170: 0 | AE170: 0 | AF170: 0 | AG170: 0 | AH170: 0 | AI170: 0 | AK170: =IF(ROUND(SUM(AK167:AK169),3)<>ROUND(SUM(AL170:AO170),3),#VALUE!,SUM(AK167:AK169)) -> 81034000 | AL170: =SUM(AL167:AL169) -> 62680394.2 | AM170: =SUM(AM167:AM169) -> 18353605.8 | AN170: =SUM(AN167:AN169) -> 0 | AO170: =SUM(AO167:AO169) -> 0 | AQ170: =$A167&":"&$A169 -> 167:169 | AS170: =IF(ROUND(SUM(AS167:AS169),3)<>ROUND(SUM(AT170:AY170),3),#VALUE!,SUM(AS167:AS169)) -> 62680394.2 | AT170: =SUM(AT167:AT169) -> 43487960.15 | AU170: 16645661.89 | AV170: 2288041.484 | AW170: 234776.4026 | AX170: 23954.2713 | AY170: 0 | BA170: =IF(ROUND(SUM(BA167:BA169),3)<>ROUND(SUM(BB170:BG170),3),#VALUE!,SUM(BA167:BA169)) -> 18353605.8 | BB170: =SUM(BB167:BB169) -> 12935471.23 | BC170: 4802534.418 | BD170: 556013.7227 | BE170: 43684.58538 | BF170: 15901.84907 | BG170: 0 | BI170: =IF(ROUND(SUM(BI167:BI169),3)<>ROUND(SUM(BJ170:BO170),3),#VALUE!,SUM(BI167:BI169)) -> 0 | BJ170: =SUM(BJ167:BJ169) -> 0 | BK170: 0 | BL170: 0 | BM170: 0 | BN170: 0 | BO170: 0 | BQ170: Total Purchased Gas Expenses | BR170: =IF(ROUND(SUM(BR167:BR169),3)<>ROUND(SUM(CM170:CR170),3),#VALUE!,SUM(BR167:BR169)) -> 529724 | BS170: =SUMPRODUCT($BR$167:$BR$169,BS$167:BS$169)/$BR$170 -> 0.1717 | BT170: =SUMPRODUCT($BR$167:$BR$169,BT$167:BT$169)/$BR$170 -> 0.8283 | BU170: 0 | BV170: 0 | BW170: 0 | BX170: 0 | BY170: 0 | BZ170: 0 | CA170: 0 | CB170: 0 | CC170: 0 | CD170: 0 | CE170: 0 | CF170: 0 | CG170: 0 | CH170: 0 | CI170: 0 | CL170: 0 | CM170: =SUM(CM167:CM169) -> 358384.6149 | CN170: 137210.659 | CO170: 18863.98931 | CP170: 1935.795199 | CQ170: 13328.94161 | CR170: 0
A171: 171 | AI171: 0 | CL171: 0
A172: 172 | D172: Underground Storage Expenses | AI172: 0 | BQ172: Underground Storage Expenses | CL172: 0
A173: 173 | B173: 814-OP | C173: U | D173: Supervision & Engineering | E173: ='PROFORMA (Staff)'!AW35 -> 10000 | F173: ="as UG Storage Plant ("&A$23&")" -> as UG Storage Plant (23) | H173: =SUM(I173:N173) -> 10000 | I173: =$E173*SUMPRODUCT($R173:$AH173,INDEX(AllocFactors,I$4,0)) -> 6807.908084 | J173: 2606.466672 | K173: 358.3421274 | L173: 36.77254892 | M173: 190.5105684 | N173: 0 | P173: =E$1&$A173&"* Sum["&$R$1&$A173&":"&$AH$1&$A173&"* "&Factors!D$1&Factors!$A$58&":"&Factors!S$1&Factors!$A$64&"]" -> E173* Sum[R173:AH173* D592:S598] | R173: =R$23 -> 0.13 | S173: =S$23 -> 0.87 | T173: 0 | U173: 0 | V173: 0 | W173: 0 | X173: 0 | Y173: 0 | Z173: 0 | AA173: 0 | AB173: 0 | AC173: 0 | AD173: 0 | AE173: 0 | AF173: 0 | AG173: 0 | AH173: 0 | AI173: 0 | AK173: =SUM(AL173:AO173) -> 10000 | AL173: =SUMIF($R$4:$AH$4,AL$5,$R173:$AH173)*$E173 -> 10000 | AM173: 0 | AN173: 0 | AO173: 0 | AQ173: =E$1&$A173&"*["&R$1&$A173&":"&$AH$1&$A173&" when "&R$1&$A$4&":"&$AH$1&$A$4&" = E,D,C,or R]" -> E173*[R173:AH173 when R4:AH4 = E,D,C,or R] | AS173: =SUM(AT173:AY173) -> 10000 | AT173: =$E173*SUMPRODUCT($R173:$V173,INDEX(AllocFactors_E,AT$4,0)) -> 6807.908084 | AU173: 2606.466672 | AV173: 358.3421274 | AW173: 36.77254892 | AX173: 190.5105684 | AY173: 0 | BA173: =SUM(BB173:BG173) -> 0 | BB173: =$E173*SUMPRODUCT($W173:$AA173,INDEX(AllocFactors_D,BB$4,0)) -> 0 | BC173: 0 | BD173: 0 | BE173: 0 | BF173: 0 | BG173: 0 | BI173: =SUM(BJ173:BO173) -> 0 | BJ173: =$E173*SUMPRODUCT($AB173:$AG173,INDEX(AllocFactors_C,BJ$4,0)) -> 0 | BK173: 0 | BL173: 0 | BM173: 0 | BN173: 0 | BO173: 0 | BQ173: Supervision & Engineering | BR173: 5025 | BS173: =R173 -> 0.13 | BT173: =S173 -> 0.87 | BU173: =T173 -> 0 | BV173: =U173 -> 0 | BW173: =V173 -> 0 | BX173: =W173 -> 0 | BY173: =X173 -> 0 | BZ173: =Y173 -> 0 | CA173: =Z173 -> 0 | CB173: =AA173 -> 0 | CC173: =AB173 -> 0 | CD173: =AC173 -> 0 | CE173: =AD173 -> 0 | CF173: =AE173 -> 0 | CG173: =AF173 -> 0 | CH173: =AG173 -> 0 | CI173: =AH173 -> 0 | CK173: =F173 -> as UG Storage Plant (23) | CL173: 0 | CM173: =$BR173*SUMPRODUCT($BS173:$CI173,INDEX(AllocFactors,CM$162,0)) -> 3420.973812 | CN173: 1309.749502 | CO173: 180.066919 | CP173: 18.47820583 | CQ173: 95.73156062 | CR173: 0
A174: 174 | B174: 815-OP | C174: U | D174: Maps & Records | E174: 0 | F174: ="as UG Storage Plant ("&A$23&")" -> as UG Storage Plant (23) | H174: 0 | I174: 0 | J174: 0 | K174: 0 | L174: 0 | M174: 0 | N174: 0 | P174: =E$1&$A174&"* """ -> E174* " | R174: 0.13 | S174: 0.87 | T174: 0 | U174: 0 | V174: 0 | W174: 0 | X174: 0 | Y174: 0 | Z174: 0 | AA174: 0 | AB174: 0 | AC174: 0 | AD174: 0 | AE174: 0 | AF174: 0 | AG174: 0 | AH174: 0 | AI174: 0 | AK174: =SUM(AL174:AO174) -> 0 | AL174: 0 | AM174: 0 | AN174: 0 | AO174: 0 | AQ174: =E$1&$A174&"* """ -> E174* " | AS174: 0 | AT174: 0 | AU174: 0 | AV174: 0 | AW174: 0 | AX174: 0 | AY174: 0 | BA174: =SUM(BB174:BG174) -> 0 | BB174: 0 | BC174: 0 | BD174: 0 | BE174: 0 | BF174: 0 | BG174: 0 | BI174: 0 | BJ174: 0 | BK174: 0 | BL174: 0 | BM174: 0 | BN174: 0 | BO174: 0 | BQ174: Maps & Records | BR174: 0 | BS174: 0.13 | BT174: 0.87 | BU174: 0 | BV174: 0 | BW174: 0 | BX174: 0 | BY174: 0 | BZ174: 0 | CA174: 0 | CB174: 0 | CC174: 0 | CD174: 0 | CE174: 0 | CF174: 0 | CG174: 0 | CH174: 0 | CI174: 0 | CK174: as UG Storage Plant (23) | CL174: 0 | CM174: 0 | CN174: 0 | CO174: 0 | CP174: 0 | CQ174: 0 | CR174: 0
A175: 175 | B175: 816-OP | C175: U | D175: Wells Expenses | E175: 0 | F175: as UG Storage Plant (23) | H175: 0 | I175: 0 | J175: 0 | K175: 0 | L175: 0 | M175: 0 | N175: 0 | P175: =E$1&$A175&"* """ -> E175* " | R175: 0.13 | S175: 0.87 | T175: 0 | U175: 0 | V175: 0 | W175: 0 | X175: 0 | Y175: 0 | Z175: 0 | AA175: 0 | AB175: 0 | AC175: 0 | AD175: 0 | AE175: 0 | AF175: 0 | AG175: 0 | AH175: 0 | AI175: 0 | AK175: =SUM(AL175:AO175) -> 0 | AL175: 0 | AM175: 0 | AN175: 0 | AO175: 0 | AQ175: =E$1&$A175&"* """ -> E175* " | AS175: 0 | AT175: 0 | AU175: 0 | AV175: 0 | AW175: 0 | AX175: 0 | AY175: 0 | BA175: =SUM(BB175:BG175) -> 0 | BB175: 0 | BC175: 0 | BD175: 0 | BE175: 0 | BF175: 0 | BG175: 0 | BI175: 0 | BJ175: 0 | BK175: 0 | BL175: 0 | BM175: 0 | BN175: 0 | BO175: 0 | BQ175: Wells Expenses | BR175: 0 | BS175: 0.13 | BT175: 0.87 | BU175: 0 | BV175: 0 | BW175: 0 | BX175: 0 | BY175: 0 | BZ175: 0 | CA175: 0 | CB175: 0 | CC175: 0 | CD175: 0 | CE175: 0 | CF175: 0 | CG175: 0 | CH175: 0 | CI175: 0 | CK175: as UG Storage Plant (23) | CL175: 0 | CM175: 0 | CN175: 0 | CO175: 0 | CP175: 0 | CQ175: 0 | CR175: 0
A176: 176 | B176: 817-OP | C176: U | D176: Lines Expenses | E176: 0 | F176: as UG Storage Plant (23) | H176: =SUM(I176:N176) -> 0 | I176: 0 | J176: 0 | K176: 0 | L176: 0 | M176: 0 | N176: 0 | R176: 0.13 | S176: 0.87 | T176: 0 | U176: 0 | V176: 0 | W176: 0 | X176: 0 | Y176: 0 | Z176: 0 | AA176: 0 | AB176: 0 | AC176: 0 | AD176: 0 | AE176: 0 | AF176: 0 | AG176: 0 | AH176: 0 | AI176: 0 | AK176: =SUM(AL176:AO176) -> 0 | AL176: 0 | AM176: 0 | AN176: 0 | AO176: 0 | AQ176: =E$1&$A176&"* """ -> E176* " | AS176: 0 | AT176: 0 | AU176: 0 | AV176: 0 | AW176: 0 | AX176: 0 | AY176: 0 | BA176: =SUM(BB176:BG176) -> 0 | BB176: 0 | BC176: 0 | BD176: 0 | BE176: 0 | BF176: 0 | BG176: 0 | BI176: 0 | BJ176: 0 | BK176: 0 | BL176: 0 | BM176: 0 | BN176: 0 | BO176: 0 | BQ176: Lines Expenses | BR176: 0 | BS176: 0.13 | BT176: 0.87 | BU176: 0 | BV176: 0 | BW176: 0 | BX176: 0 | BY176: 0 | BZ176: 0 | CA176: 0 | CB176: 0 | CC176: 0 | CD176: 0 | CE176: 0 | CF176: 0 | CG176: 0 | CH176: 0 | CI176: 0 | CK176: as UG Storage Plant (23) | CL176: 0 | CM176: 0 | CN176: 0 | CO176: 0 | CP176: 0 | CQ176: 0 | CR176: 0
A177: 177 | B177: 818-OP | C177: U | D177: Compressor Station Expenses | E177: 0 | F177: as UG Storage Plant (23) | H177: 0 | I177: 0 | J177: 0 | K177: 0 | L177: 0 | M177: 0 | N177: 0 | R177: 0.13 | S177: 0.87 | T177: 0 | U177: 0 | V177: 0 | W177: 0 | X177: 0 | Y177: 0 | Z177: 0 | AA177: 0 | AB177: 0 | AC177: 0 | AD177: 0 | AE177: 0 | AF177: 0 | AG177: 0 | AH177: 0 | AI177: 0 | AK177: 0 | AL177: 0 | AM177: 0 | AN177: 0 | AO177: 0 | AQ177: E177* " | AS177: 0 | AT177: 0 | AU177: 0 | AV177: 0 | AW177: 0 | AX177: 0 | AY177: 0 | BA177: 0 | BB177: 0 | BC177: 0 | BD177: 0 | BE177: 0 | BF177: 0 | BG177: 0 | BI177: 0 | BJ177: 0 | BK177: 0 | BL177: 0 | BM177: 0 | BN177: 0 | BO177: 0 | BQ177: Compressor Station Expenses | BR177: 0 | BS177: 0.13 | BT177: 0.87 | BU177: 0 | BV177: 0 | BW177: 0 | BX177: 0 | BY177: 0 | BZ177: 0 | CA177: 0 | CB177: 0 | CC177: 0 | CD177: 0 | CE177: 0 | CF177: 0 | CG177: 0 | CH177: 0 | CI177: 0 | CK177: as UG Storage Plant (23) | CL177: 0 | CM177: 0 | CN177: 0 | CO177: 0 | CP177: 0 | CQ177: 0 | CR177: 0
A178: 178 | B178: 819-OP | C178: U | D178: Compressor Station Fuel & Power | E178: 0 | F178: as UG Storage Plant (23) | H178: 0 | I178: 0 | J178: 0 | K178: 0 | L178: 0 | M178: 0 | N178: 0 | R178: 0.13 | S178: 0.87 | T178: 0 | U178: 0 | V178: 0 | W178: 0 | X178: 0 | Y178: 0 | Z178: 0 | AA178: 0 | AB178: 0 | AC178: 0 | AD178: 0 | AE178: 0 | AF178: 0 | AG178: 0 | AH178: 0 | AI178: 0 | AK178: 0 | AL178: 0 | AM178: 0 | AN178: 0 | AO178: 0 | AQ178: E178* " | AS178: 0 | AT178: 0 | AU178: 0 | AV178: 0 | AW178: 0 | AX178: 0 | AY178: 0 | BA178: 0 | BB178: 0 | BC178: 0 | BD178: 0 | BE178: 0 | BF178: 0 | BG178: 0 | BI178: 0 | BJ178: 0 | BK178: 0 | BL178: 0 | BM178: 0 | BN178: 0 | BO178: 0 | BQ178: Compressor Station Fuel & Power | BR178: 0 | BS178: 0.13 | BT178: 0.87 | BU178: 0 | BV178: 0 | BW178: 0 | BX178: 0 | BY178: 0 | BZ178: 0 | CA178: 0 | CB178: 0 | CC178: 0 | CD178: 0 | CE178: 0 | CF178: 0 | CG178: 0 | CH178: 0 | CI178: 0 | CK178: as UG Storage Plant (23) | CL178: 0 | CM178: 0 | CN178: 0 | CO178: 0 | CP178: 0 | CQ178: 0 | CR178: 0
A179: 179 | B179: 820-OP | C179: U | D179: Measuring & Regulator Station | E179: 0 | F179: as UG Storage Plant (23) | H179: 0 | I179: 0 | J179: 0 | K179: 0 | L179: 0 | M179: 0 | N179: 0 | R179: 0.13 | S179: 0.87 | T179: 0 | U179: 0 | V179: 0 | W179: 0 | X179: 0 | Y179: 0 | Z179: 0 | AA179: 0 | AB179: 0 | AC179: 0 | AD179: 0 | AE179: 0 | AF179: 0 | AG179: 0 | AH179: 0 | AI179: 0 | AK179: 0 | AL179: 0 | AM179: 0 | AN179: 0 | AO179: 0 | AQ179: E179* " | AS179: 0 | AT179: 0 | AU179: 0 | AV179: 0 | AW179: 0 | AX179: 0 | AY179: 0 | BA179: 0 | BB179: 0 | BC179: 0 | BD179: 0 | BE179: 0 | BF179: 0 | BG179: 0 | BI179: 0 | BJ179: 0 | BK179: 0 | BL179: 0 | BM179: 0 | BN179: 0 | BO179: 0 | BQ179: Measuring & Regulator Station | BR179: 0 | BS179: 0.13 | BT179: 0.87 | BU179: 0 | BV179: 0 | BW179: 0 | BX179: 0 | BY179: 0 | BZ179: 0 | CA179: 0 | CB179: 0 | CC179: 0 | CD179: 0 | CE179: 0 | CF179: 0 | CG179: 0 | CH179: 0 | CI179: 0 | CK179: as UG Storage Plant (23) | CL179: 0 | CM179: 0 | CN179: 0 | CO179: 0 | CP179: 0 | CQ179: 0 | CR179: 0
A180: 180 | B180: 821-OP | C180: U | D180: Purification Expenses | E180: 0 | F180: as UG Storage Plant (23) | H180: 0 | I180: 0 | J180: 0 | K180: 0 | L180: 0 | M180: 0 | N180: 0 | R180: 0.13 | S180: 0.87 | T180: 0 | U180: 0 | V180: 0 | W180: 0 | X180: 0 | Y180: 0 | Z180: 0 | AA180: 0 | AB180: 0 | AC180: 0 | AD180: 0 | AE180: 0 | AF180: 0 | AG180: 0 | AH180: 0 | AI180: 0 | AK180: 0 | AL180: 0 | AM180: 0 | AN180: 0 | AO180: 0 | AQ180: E180* " | AS180: 0 | AT180: 0 | AU180: 0 | AV180: 0 | AW180: 0 | AX180: 0 | AY180: 0 | BA180: 0 | BB180: 0 | BC180: 0 | BD180: 0 | BE180: 0 | BF180: 0 | BG180: 0 | BI180: 0 | BJ180: 0 | BK180: 0 | BL180: 0 | BM180: 0 | BN180: 0 | BO180: 0 | BQ180: Purification Expenses | BR180: 0 | BS180: 0.13 | BT180: 0.87 | BU180: 0 | BV180: 0 | BW180: 0 | BX180: 0 | BY180: 0 | BZ180: 0 | CA180: 0 | CB180: 0 | CC180: 0 | CD180: 0 | CE180: 0 | CF180: 0 | CG180: 0 | CH180: 0 | CI180: 0 | CK180: as UG Storage Plant (23) | CL180: 0 | CM180: 0 | CN180: 0 | CO180: 0 | CP180: 0 | CQ180: 0 | CR180: 0
A181: 181 | B181: 824-OP | C181: U | D181: Other Expenses | E181: ='PROFORMA (Staff)'!AW43 -> 389000 | F181: as UG Storage Plant (23) | H181: 389000 | I181: 264827.6245 | J181: 101391.5535 | K181: 13939.50876 | L181: 1430.452153 | M181: 7410.861111 | N181: 0 | P181: =E$1&$A181&"* """ -> E181* " | R181: 0.13 | S181: 0.87 | T181: 0 | U181: 0 | V181: 0 | W181: 0 | X181: 0 | Y181: 0 | Z181: 0 | AA181: 0 | AB181: 0 | AC181: 0 | AD181: 0 | AE181: 0 | AF181: 0 | AG181: 0 | AH181: 0 | AI181: 0 | AK181: 389000 | AL181: 389000 | AM181: 0 | AN181: 0 | AO181: 0 | AQ181: E181* " | AS181: 389000 | AT181: 264827.6245 | AU181: 101391.5535 | AV181: 13939.50876 | AW181: 1430.452153 | AX181: 7410.861111 | AY181: 0 | BA181: 0 | BB181: 0 | BC181: 0 | BD181: 0 | BE181: 0 | BF181: 0 | BG181: 0 | BI181: 0 | BJ181: 0 | BK181: 0 | BL181: 0 | BM181: 0 | BN181: 0 | BO181: 0 | BQ181: Other Expenses | BR181: 0 | BS181: 0.13 | BT181: 0.87 | BU181: 0 | BV181: 0 | BW181: 0 | BX181: 0 | BY181: 0 | BZ181: 0 | CA181: 0 | CB181: 0 | CC181: 0 | CD181: 0 | CE181: 0 | CF181: 0 | CG181: 0 | CH181: 0 | CI181: 0 | CK181: as UG Storage Plant (23) | CL181: 0 | CM181: 0 | CN181: 0 | CO181: 0 | CP181: 0 | CQ181: 0 | CR181: 0
A182: 182 | B182: 825-OP | C182: U | D182: Storage Well Royalties & Rents | E182: 0 | F182: as UG Storage Plant (23) | H182: 0 | I182: 0 | J182: 0 | K182: 0 | L182: 0 | M182: 0 | N182: 0 | P182: =E$1&$A182&"* """ -> E182* " | R182: 0.13 | S182: 0.87 | T182: 0 | U182: 0 | V182: 0 | W182: 0 | X182: 0 | Y182: 0 | Z182: 0 | AA182: 0 | AB182: 0 | AC182: 0 | AD182: 0 | AE182: 0 | AF182: 0 | AG182: 0 | AH182: 0 | AI182: 0 | AK182: 0 | AL182: 0 | AM182: 0 | AN182: 0 | AO182: 0 | AQ182: E182* " | AS182: 0 | AT182: 0 | AU182: 0 | AV182: 0 | AW182: 0 | AX182: 0 | AY182: 0 | BA182: 0 | BB182: 0 | BC182: 0 | BD182: 0 | BE182: 0 | BF182: 0 | BG182: 0 | BI182: 0 | BJ182: 0 | BK182: 0 | BL182: 0 | BM182: 0 | BN182: 0 | BO182: 0 | BQ182: Storage Well Royalties & Rents | BR182: 0 | BS182: 0.13 | BT182: 0.87 | BU182: 0 | BV182: 0 | BW182: 0 | BX182: 0 | BY182: 0 | BZ182: 0 | CA182: 0 | CB182: 0 | CC182: 0 | CD182: 0 | CE182: 0 | CF182: 0 | CG182: 0 | CH182: 0 | CI182: 0 | CK182: as UG Storage Plant (23) | CL182: 0 | CM182: 0 | CN182: 0 | CO182: 0 | CP182: 0 | CQ182: 0 | CR182: 0
A183: 183 | B183: 826-OP | C183: U | D183: Rents | E183: 0 | F183: as UG Storage Plant (23) | H183: 0 | I183: 0 | J183: 0 | K183: 0 | L183: 0 | M183: 0 | N183: 0 | P183: =E$1&$A183&"* """ -> E183* " | R183: 0.13 | S183: 0.87 | T183: 0 | U183: 0 | V183: 0 | W183: 0 | X183: 0 | Y183: 0 | Z183: 0 | AA183: 0 | AB183: 0 | AC183: 0 | AD183: 0 | AE183: 0 | AF183: 0 | AG183: 0 | AH183: 0 | AI183: 0 | AK183: 0 | AL183: 0 | AM183: 0 | AN183: 0 | AO183: 0 | AQ183: E183* " | AS183: 0 | AT183: 0 | AU183: 0 | AV183: 0 | AW183: 0 | AX183: 0 | AY183: 0 | BA183: 0 | BB183: 0 | BC183: 0 | BD183: 0 | BE183: 0 | BF183: 0 | BG183: 0 | BI183: 0 | BJ183: 0 | BK183: 0 | BL183: 0 | BM183: 0 | BN183: 0 | BO183: 0 | BQ183: Rents | BR183: 0 | BS183: 0.13 | BT183: 0.87 | BU183: 0 | BV183: 0 | BW183: 0 | BX183: 0 | BY183: 0 | BZ183: 0 | CA183: 0 | CB183: 0 | CC183: 0 | CD183: 0 | CE183: 0 | CF183: 0 | CG183: 0 | CH183: 0 | CI183: 0 | CK183: as UG Storage Plant (23) | CL183: 0 | CM183: 0 | CN183: 0 | CO183: 0 | CP183: 0 | CQ183: 0 | CR183: 0
A184: 184 | D184: Total Underground Storage Operation | E184: =SUM(E172:E183) -> 399000 | H184: =IF(ROUND(SUM(H173:H183),3)<>ROUND(SUM(I184:N184),3),#VALUE!,SUM(H173:H183)) -> 399000 | I184: =SUM(I173:I183) -> 271635.5325 | J184: 103998.0202 | K184: 14297.85088 | L184: 1467.224702 | M184: 7601.371679 | N184: 0 | P184: =$A173&":"&$A183 -> 173:183 | R184: =SUMPRODUCT($E$173:$E$183,R$173:R$183)/$E184 -> 0.13 | S184: 0.87 | T184: 0 | U184: 0 | V184: 0 | W184: 0 | X184: 0 | Y184: 0 | Z184: 0 | AA184: 0 | AB184: 0 | AC184: 0 | AD184: 0 | AE184: 0 | AF184: 0 | AG184: 0 | AH184: 0 | AI184: 0 | AK184: =IF(ROUND(SUM(AK173:AK183),3)<>ROUND(SUM(AL184:AO184),3),#VALUE!,SUM(AK173:AK183)) -> 399000 | AL184: =SUM(AL173:AL183) -> 399000 | AM184: =SUM(AM173:AM183) -> 0 | AN184: =SUM(AN173:AN183) -> 0 | AO184: =SUM(AO173:AO183) -> 0 | AQ184: =$A173&":"&$A183 -> 173:183 | AS184: =IF(ROUND(SUM(AS173:AS183),3)<>ROUND(SUM(AT184:AY184),3),#VALUE!,SUM(AS173:AS183)) -> 399000 | AT184: =SUM(AT173:AT183) -> 271635.5325 | AU184: 103998.0202 | AV184: 14297.85088 | AW184: 1467.224702 | AX184: 7601.371679 | AY184: 0 | BA184: =IF(ROUND(SUM(BA173:BA183),3)<>ROUND(SUM(BB184:BG184),3),#VALUE!,SUM(BA173:BA183)) -> 0 | BB184: =SUM(BB173:BB183) -> 0 | BC184: 0 | BD184: 0 | BE184: 0 | BF184: 0 | BG184: 0 | BI184: =IF(ROUND(SUM(BI173:BI183),3)<>ROUND(SUM(BJ184:BO184),3),#VALUE!,SUM(BI173:BI183)) -> 0 | BJ184: =SUM(BJ173:BJ183) -> 0 | BK184: 0 | BL184: 0 | BM184: 0 | BN184: 0 | BO184: 0 | BQ184: Total Underground Storage Operation | BR184: =IF(ROUND(SUM(BR173:BR183),3)<>ROUND(SUM(CM184:CR184),3),#VALUE!,SUM(BR173:BR183)) -> 5025 | BS184: =SUMPRODUCT($BR$173:$BR$183,BS$173:BS$183)/$BR$184 -> 0.13 | BT184: =SUMPRODUCT($BR$173:$BR$183,BT$173:BT$183)/$BR$184 -> 0.87 | BU184: 0 | BV184: 0 | BW184: 0 | BX184: 0 | BY184: 0 | BZ184: 0 | CA184: 0 | CB184: 0 | CC184: 0 | CD184: 0 | CE184: 0 | CF184: 0 | CG184: 0 | CH184: 0 | CI184: 0 | CL184: 0 | CM184: =SUM(CM173:CM183) -> 3420.973812 | CN184: 1309.749502 | CO184: 180.066919 | CP184: 18.47820583 | CQ184: 95.73156062 | CR184: 0
A185: 185 | B185: 830-MT | C185: U | D185: Supervision & Engineering | E185: 0 | F185: as UG Storage Plant (23) | H185: =SUM(I185:N185) -> 0 | I185: =$E185*SUMPRODUCT($R185:$AH185,INDEX(AllocFactors,I$4,0)) -> 0 | J185: 0 | K185: 0 | L185: 0 | M185: 0 | N185: 0 | P185: =E$1&$A185&"* Sum["&$R$1&$A185&":"&$AH$1&$A185&"* "&Factors!D$1&Factors!$A$58&":"&Factors!S$1&Factors!$A$64&"]" -> E185* Sum[R185:AH185* D592:S598] | R185: =R$23 -> 0.13 | S185: 0.87 | T185: 0 | U185: 0 | V185: 0 | W185: 0 | X185: 0 | Y185: 0 | Z185: 0 | AA185: 0 | AB185: 0 | AC185: 0 | AD185: 0 | AE185: 0 | AF185: 0 | AG185: 0 | AH185: 0 | AI185: 0 | AK185: =SUM(AL185:AO185) -> 0 | AL185: =SUMIF($R$4:$AH$4,AL$5,$R185:$AH185)*$E185 -> 0 | AM185: 0 | AN185: 0 | AO185: 0 | AQ185: =E$1&$A185&"*["&R$1&$A185&":"&$AH$1&$A185&" when "&R$1&$A$4&":"&$AH$1&$A$4&" = E,D,C,or R]" -> E185*[R185:AH185 when R4:AH4 = E,D,C,or R] | AS185: =SUM(AT185:AY185) -> 0 | AT185: =$E185*SUMPRODUCT($R185:$V185,INDEX(AllocFactors_E,AT$4,0)) -> 0 | AU185: 0 | AV185: 0 | AW185: 0 | AX185: 0 | AY185: 0 | BA185: =SUM(BB185:BG185) -> 0 | BB185: =$E185*SUMPRODUCT($W185:$AA185,INDEX(AllocFactors_D,BB$4,0)) -> 0 | BC185: 0 | BD185: 0 | BE185: 0 | BF185: 0 | BG185: 0 | BI185: =SUM(BJ185:BO185) -> 0 | BJ185: =$E185*SUMPRODUCT($AB185:$AG185,INDEX(AllocFactors_C,BJ$4,0)) -> 0 | BK185: 0 | BL185: 0 | BM185: 0 | BN185: 0 | BO185: 0 | BQ185: Supervision & Engineering | BR185: 0 | BS185: =R185 -> 0.13 | BT185: =S185 -> 0.87 | BU185: =T185 -> 0 | BV185: =U185 -> 0 | BW185: =V185 -> 0 | BX185: =W185 -> 0 | BY185: =X185 -> 0 | BZ185: =Y185 -> 0 | CA185: =Z185 -> 0 | CB185: =AA185 -> 0 | CC185: =AB185 -> 0 | CD185: =AC185 -> 0 | CE185: =AD185 -> 0 | CF185: =AE185 -> 0 | CG185: =AF185 -> 0 | CH185: =AG185 -> 0 | CI185: =AH185 -> 0 | CK185: =F185 -> as UG Storage Plant (23) | CL185: 0 | CM185: =$BR185*SUMPRODUCT($BS185:$CI185,INDEX(AllocFactors,CM$162,0)) -> 0 | CN185: 0 | CO185: 0 | CP185: 0 | CQ185: 0 | CR185: 0
A186: 186 | B186: 831-MT | C186: U | D186: Maps & Records | E186: 0 | F186: as UG Storage Plant (23) | H186: 0 | I186: 0 | J186: 0 | K186: 0 | L186: 0 | M186: 0 | N186: 0 | R186: =R$23 -> 0.13 | S186: 0.87 | T186: 0 | U186: 0 | V186: 0 | W186: 0 | X186: 0 | Y186: 0 | Z186: 0 | AA186: 0 | AB186: 0 | AC186: 0 | AD186: 0 | AE186: 0 | AF186: 0 | AG186: 0 | AH186: 0 | AI186: 0 | AK186: =SUM(AL186:AO186) -> 0 | AL186: 0 | AM186: 0 | AN186: 0 | AO186: 0 | AQ186: =E$1&$A186&"* """ -> E186* " | AS186: =SUM(AT186:AY186) -> 0 | AT186: 0 | AU186: 0 | AV186: 0 | AW186: 0 | AX186: 0 | AY186: 0 | BA186: =SUM(BB186:BG186) -> 0 | BB186: 0 | BC186: 0 | BD186: 0 | BE186: 0 | BF186: 0 | BG186: 0 | BI186: 0 | BJ186: 0 | BK186: 0 | BL186: 0 | BM186: 0 | BN186: 0 | BO186: 0 | BQ186: Maps & Records | BR186: 0 | BS186: 0.13 | BT186: 0.87 | BU186: 0 | BV186: 0 | BW186: 0 | BX186: 0 | BY186: 0 | BZ186: 0 | CA186: 0 | CB186: 0 | CC186: 0 | CD186: 0 | CE186: 0 | CF186: 0 | CG186: 0 | CH186: 0 | CI186: 0 | CK186: as UG Storage Plant (23) | CL186: 0 | CM186: 0 | CN186: 0 | CO186: 0 | CP186: 0 | CQ186: 0 | CR186: 0
A187: 187 | B187: 832-MT | C187: U | D187: Wells Expenses | E187: 0 | F187: as UG Storage Plant (23) | H187: 0 | I187: 0 | J187: 0 | K187: 0 | L187: 0 | M187: 0 | N187: 0 | R187: =R$23 -> 0.13 | S187: 0.87 | T187: 0 | U187: 0 | V187: 0 | W187: 0 | X187: 0 | Y187: 0 | Z187: 0 | AA187: 0 | AB187: 0 | AC187: 0 | AD187: 0 | AE187: 0 | AF187: 0 | AG187: 0 | AH187: 0 | AI187: 0 | AK187: 0 | AL187: 0 | AM187: 0 | AN187: 0 | AO187: 0 | AQ187: E187* " | AS187: 0 | AT187: 0 | AU187: 0 | AV187: 0 | AW187: 0 | AX187: 0 | AY187: 0 | BA187: 0 | BB187: 0 | BC187: 0 | BD187: 0 | BE187: 0 | BF187: 0 | BG187: 0 | BI187: 0 | BJ187: 0 | BK187: 0 | BL187: 0 | BM187: 0 | BN187: 0 | BO187: 0 | BQ187: Wells Expenses | BR187: 0 | BS187: 0.13 | BT187: 0.87 | BU187: 0 | BV187: 0 | BW187: 0 | BX187: 0 | BY187: 0 | BZ187: 0 | CA187: 0 | CB187: 0 | CC187: 0 | CD187: 0 | CE187: 0 | CF187: 0 | CG187: 0 | CH187: 0 | CI187: 0 | CK187: as UG Storage Plant (23) | CL187: 0 | CM187: 0 | CN187: 0 | CO187: 0 | CP187: 0 | CQ187: 0 | CR187: 0
A188: 188 | B188: 833-MT | C188: U | D188: Lines Expenses | E188: 0 | F188: as UG Storage Plant (23) | H188: 0 | I188: 0 | J188: 0 | K188: 0 | L188: 0 | M188: 0 | N188: 0 | R188: =R$23 -> 0.13 | S188: 0.87 | T188: 0 | U188: 0 | V188: =V$23 -> 0 | W188: 0 | X188: 0 | Y188: 0 | Z188: 0 | AA188: 0 | AB188: 0 | AC188: 0 | AD188: 0 | AE188: 0 | AF188: 0 | AG188: 0 | AH188: 0 | AI188: 0 | AK188: 0 | AL188: 0 | AM188: 0 | AN188: 0 | AO188: 0 | AQ188: E188* " | AS188: 0 | AT188: 0 | AU188: 0 | AV188: 0 | AW188: 0 | AX188: 0 | AY188: 0 | BA188: 0 | BB188: 0 | BC188: 0 | BD188: 0 | BE188: 0 | BF188: 0 | BG188: 0 | BI188: 0 | BJ188: 0 | BK188: 0 | BL188: 0 | BM188: 0 | BN188: 0 | BO188: 0 | BQ188: Lines Expenses | BR188: 0 | BS188: 0.13 | BT188: 0.87 | BU188: 0 | BV188: 0 | BW188: 0 | BX188: 0 | BY188: 0 | BZ188: 0 | CA188: 0 | CB188: 0 | CC188: 0 | CD188: 0 | CE188: 0 | CF188: 0 | CG188: 0 | CH188: 0 | CI188: 0 | CK188: as UG Storage Plant (23) | CL188: 0 | CM188: 0 | CN188: 0 | CO188: 0 | CP188: 0 | CQ188: 0 | CR188: 0
A189: 189 | B189: 834-MT | C189: U | D189: Compressor Station Expenses | E189: 0 | F189: as UG Storage Plant (23) | H189: 0 | I189: 0 | J189: 0 | K189: 0 | L189: 0 | M189: 0 | N189: 0 | P189: =E$1&$A189&"* """ -> E189* " | R189: =R$23 -> 0.13 | S189: =S$23 -> 0.87 | T189: =T$23 -> 0 | U189: =U$23 -> 0 | V189: 0 | W189: 0 | X189: 0 | Y189: 0 | Z189: 0 | AA189: 0 | AB189: 0 | AC189: 0 | AD189: 0 | AE189: 0 | AF189: 0 | AG189: 0 | AH189: 0 | AI189: 0 | AK189: 0 | AL189: 0 | AM189: 0 | AN189: 0 | AO189: 0 | AQ189: E189* " | AS189: 0 | AT189: 0 | AU189: 0 | AV189: 0 | AW189: 0 | AX189: 0 | AY189: 0 | BA189: 0 | BB189: 0 | BC189: 0 | BD189: 0 | BE189: 0 | BF189: 0 | BG189: 0 | BI189: 0 | BJ189: 0 | BK189: 0 | BL189: 0 | BM189: 0 | BN189: 0 | BO189: 0 | BQ189: Compressor Station Expenses | BR189: 0 | BS189: 0.13 | BT189: 0.87 | BU189: 0 | BV189: 0 | BW189: 0 | BX189: 0 | BY189: 0 | BZ189: 0 | CA189: 0 | CB189: 0 | CC189: 0 | CD189: 0 | CE189: 0 | CF189: 0 | CG189: 0 | CH189: 0 | CI189: 0 | CK189: as UG Storage Plant (23) | CL189: 0 | CM189: 0 | CN189: 0 | CO189: 0 | CP189: 0 | CQ189: 0 | CR189: 0
A190: 190 | B190: 835-MT | C190: U | D190: Compressor Station Fuel & Power | E190: 0 | F190: as UG Storage Plant (23) | H190: 0 | I190: 0 | J190: 0 | K190: 0 | L190: 0 | M190: 0 | N190: 0 | P190: =E$1&$A190&"* """ -> E190* " | R190: =R$23 -> 0.13 | S190: 0.87 | T190: 0 | U190: 0 | V190: 0 | W190: 0 | X190: 0 | Y190: 0 | Z190: 0 | AA190: 0 | AB190: 0 | AC190: 0 | AD190: 0 | AE190: 0 | AF190: =AF$23 -> 0 | AG190: 0 | AH190: 0 | AI190: 0 | AK190: 0 | AL190: 0 | AM190: 0 | AN190: 0 | AO190: 0 | AQ190: E190* " | AS190: 0 | AT190: 0 | AU190: 0 | AV190: 0 | AW190: 0 | AX190: 0 | AY190: 0 | BA190: 0 | BB190: 0 | BC190: 0 | BD190: 0 | BE190: 0 | BF190: 0 | BG190: 0 | BI190: 0 | BJ190: 0 | BK190: 0 | BL190: 0 | BM190: 0 | BN190: 0 | BO190: 0 | BQ190: Compressor Station Fuel & Power | BR190: 0 | BS190: 0.13 | BT190: 0.87 | BU190: 0 | BV190: 0 | BW190: 0 | BX190: 0 | BY190: 0 | BZ190: 0 | CA190: 0 | CB190: 0 | CC190: 0 | CD190: 0 | CE190: 0 | CF190: 0 | CG190: 0 | CH190: 0 | CI190: 0 | CK190: as UG Storage Plant (23) | CL190: 0 | CM190: 0 | CN190: 0 | CO190: 0 | CP190: 0 | CQ190: 0 | CR190: 0
A191: 191 | B191: 836-MT | C191: U | D191: Measuring and Regulator Station Expenses | E191: 0 | F191: as UG Storage Plant (23) | H191: 0 | I191: 0 | J191: 0 | K191: 0 | L191: 0 | M191: 0 | N191: 0 | P191: =E$1&$A191&"* """ -> E191* " | R191: 0.13 | S191: 0.87 | T191: 0 | U191: 0 | V191: 0 | W191: 0 | X191: 0 | Y191: 0 | Z191: 0 | AA191: 0 | AB191: 0 | AC191: 0 | AD191: 0 | AE191: 0 | AF191: 0 | AG191: 0 | AH191: 0 | AI191: 0 | AK191: 0 | AL191: 0 | AM191: 0 | AN191: 0 | AO191: 0 | AQ191: E191* " | AS191: 0 | AT191: 0 | AU191: 0 | AV191: 0 | AW191: 0 | AX191: 0 | AY191: 0 | BA191: 0 | BB191: 0 | BC191: 0 | BD191: 0 | BE191: 0 | BF191: 0 | BG191: 0 | BI191: 0 | BJ191: 0 | BK191: 0 | BL191: 0 | BM191: 0 | BN191: 0 | BO191: 0 | BQ191: Measuring and Regulator Station Expenses | BR191: 0 | BS191: 0.13 | BT191: 0.87 | BU191: 0 | BV191: 0 | BW191: 0 | BX191: 0 | BY191: 0 | BZ191: 0 | CA191: 0 | CB191: 0 | CC191: 0 | CD191: 0 | CE191: 0 | CF191: 0 | CG191: 0 | CH191: 0 | CI191: 0 | CK191: as UG Storage Plant (23) | CL191: 0 | CM191: 0 | CN191: 0 | CO191: 0 | CP191: 0 | CQ191: 0 | CR191: 0
A192: 192 | B192: 837-MT | C192: U | D192: Other Equipment | E192: ='PROFORMA (Staff)'!AW54 -> 274000 | F192: as UG Storage Plant (23) | H192: 274000 | I192: 186536.6815 | J192: 71417.1868 | K192: 9818.574291 | L192: 1007.56784 | M192: 5219.989574 | N192: 0 | P192: =E$1&$A192&"* """ -> E192* " | R192: 0.13 | S192: 0.87 | T192: 0 | U192: 0 | V192: 0 | W192: 0 | X192: 0 | Y192: 0 | Z192: 0 | AA192: 0 | AB192: 0 | AC192: 0 | AD192: 0 | AE192: 0 | AF192: 0 | AG192: 0 | AH192: 0 | AI192: 0 | AK192: 274000 | AL192: 274000 | AM192: 0 | AN192: 0 | AO192: 0 | AQ192: E192* " | AS192: 274000 | AT192: 186536.6815 | AU192: 71417.1868 | AV192: 9818.574291 | AW192: 1007.56784 | AX192: 5219.989574 | AY192: 0 | BA192: 0 | BB192: 0 | BC192: 0 | BD192: 0 | BE192: 0 | BF192: 0 | BG192: 0 | BI192: 0 | BJ192: 0 | BK192: 0 | BL192: 0 | BM192: 0 | BN192: 0 | BO192: 0 | BQ192: Other Equipment | BR192: 0 | BS192: 0.13 | BT192: 0.87 | BU192: 0 | BV192: 0 | BW192: 0 | BX192: 0 | BY192: 0 | BZ192: 0 | CA192: 0 | CB192: 0 | CC192: 0 | CD192: 0 | CE192: 0 | CF192: 0 | CG192: 0 | CH192: 0 | CI192: 0 | CK192: as UG Storage Plant (23) | CL192: 0 | CM192: 0 | CN192: 0 | CO192: 0 | CP192: 0 | CQ192: 0 | CR192: 0
A193: 193 | D193: Total Underground Storage Maintenance | E193: =SUM(E185:E192) -> 274000 | H193: =IF(ROUND(SUM(H185:H192),3)<>ROUND(SUM(I193:N193),3),#VALUE!,SUM(H185:H192)) -> 274000 | I193: =SUM(I185:I192) -> 186536.6815 | J193: 71417.1868 | K193: 9818.574291 | L193: 1007.56784 | M193: 5219.989574 | N193: 0 | P193: =$A185&":"&$A192 -> 185:192 | R193: =SUMPRODUCT($E$185:$E$192,R$185:R$192)/$E193 -> 0.13 | S193: 0.87 | T193: 0 | U193: 0 | V193: 0 | W193: 0 | X193: 0 | Y193: 0 | Z193: 0 | AA193: 0 | AB193: 0 | AC193: 0 | AD193: 0 | AE193: 0 | AF193: 0 | AG193: 0 | AH193: 0 | AI193: 0 | AK193: =IF(ROUND(SUM(AK185:AK192),3)<>ROUND(SUM(AL193:AO193),3),#VALUE!,SUM(AK185:AK192)) -> 274000 | AL193: =SUM(AL185:AL192) -> 274000 | AM193: =SUM(AM185:AM192) -> 0 | AN193: =SUM(AN185:AN192) -> 0 | AO193: =SUM(AO185:AO192) -> 0 | AQ193: =$A185&":"&$A192 -> 185:192 | AS193: =IF(ROUND(SUM(AS185:AS192),3)<>ROUND(SUM(AT193:AY193),3),#VALUE!,SUM(AS185:AS192)) -> 274000 | AT193: =SUM(AT185:AT192) -> 186536.6815 | AU193: 71417.1868 | AV193: 9818.574291 | AW193: 1007.56784 | AX193: 5219.989574 | AY193: 0 | BA193: =IF(ROUND(SUM(BA185:BA192),3)<>ROUND(SUM(BB193:BG193),3),#VALUE!,SUM(BA185:BA192)) -> 0 | BB193: =SUM(BB185:BB192) -> 0 | BC193: 0 | BD193: 0 | BE193: 0 | BF193: 0 | BG193: 0 | BI193: =IF(ROUND(SUM(BI185:BI192),3)<>ROUND(SUM(BJ193:BO193),3),#VALUE!,SUM(BI185:BI192)) -> 0 | BJ193: =SUM(BJ185:BJ192) -> 0 | BK193: 0 | BL193: 0 | BM193: 0 | BN193: 0 | BO193: 0 | BQ193: Total Underground Storage Maintenance | BR193: =IF(ROUND(SUM(BR185:BR192),3)<>ROUND(SUM(CM193:CR193),3),#VALUE!,SUM(BR185:BR192)) -> 0 | BS193: =IF(SUM($BR$185:$BR$192)=0,0,SUMPRODUCT($BR$185:$BR$192,BS$185:BS$192)/$BR$193) -> 0 | BT193: =IF(SUM($BR$185:$BR$192)=0,0,SUMPRODUCT($BR$185:$BR$192,BT$185:BT$192)/$BR$193) -> 0 | BU193: 0 | BV193: 0 | BW193: 0 | BX193: 0 | BY193: 0 | BZ193: 0 | CA193: 0 | CB193: 0 | CC193: 0 | CD193: 0 | CE193: 0 | CF193: 0 | CG193: 0 | CH193: 0 | CI193: 0 | CL193: 0 | CM193: =SUM(CM185:CM192) -> 0 | CN193: 0 | CO193: 0 | CP193: 0 | CQ193: 0 | CR193: 0
A194: =RowHdr -> 194 | D194: Total Underground Storage Expenses | E194: =E184+E193 -> 673000 | H194: =H184+H193 -> 673000 | I194: 458172.214 | J194: 175415.207 | K194: 24116.42517 | L194: 2474.792542 | M194: 12821.36125 | N194: 0 | P194: =$A184&"+"&$A193 -> 184+193 | R194: =($E$184*R$184+$E$193*R$193)/SUM($E184,$E193) -> 0.13 | S194: 0.87 | T194: 0 | U194: =($E$184*U$184+$E$193*U$193)/SUM($E184,$E193) -> 0 | V194: =($E$184*V$184+$E$193*V$193)/SUM($E184,$E193) -> 0 | W194: 0 | X194: 0 | Y194: =($E$184*Y$184+$E$193*Y$193)/SUM($E184,$E193) -> 0 | Z194: 0 | AA194: 0 | AB194: 0 | AC194: 0 | AD194: 0 | AE194: 0 | AF194: 0 | AG194: =($E$184*AG$184+$E$193*AG$193)/SUM($E184,$E193) -> 0 | AH194: 0 | AI194: 0 | AK194: =AK184+AK193 -> 673000 | AL194: =AL184+AL193 -> 673000 | AM194: =AM184+AM193 -> 0 | AN194: =AN184+AN193 -> 0 | AO194: =AO184+AO193 -> 0 | AQ194: =$A184&"+"&$A193 -> 184+193 | AS194: =AS184+AS193 -> 673000 | AT194: 458172.214 | AU194: 175415.207 | AV194: 24116.42517 | AW194: 2474.792542 | AX194: 12821.36125 | AY194: 0 | BA194: =BA184+BA193 -> 0 | BB194: 0 | BC194: 0 | BD194: 0 | BE194: 0 | BF194: 0 | BG194: 0 | BI194: =BI184+BI193 -> 0 | BJ194: 0 | BK194: 0 | BL194: 0 | BM194: 0 | BN194: 0 | BO194: 0 | BQ194: Total Underground Storage Expenses | BR194: =BR184+BR193 -> 5025 | BS194: =($BR$184*BS$184+$BR$193*BS$193)/($BR$184+$BR$193) -> 0.13 | BT194: =($BR$184*BT$184+$BR$193*BT$193)/($BR$184+$BR$193) -> 0.87 | BU194: 0 | BV194: 0 | BW194: 0 | BX194: 0 | BY194: 0 | BZ194: 0 | CA194: 0 | CB194: 0 | CC194: 0 | CD194: 0 | CE194: 0 | CF194: 0 | CG194: 0 | CH194: 0 | CI194: 0 | CL194: 0 | CM194: =CM184+CM193 -> 3420.973812 | CN194: 1309.749502 | CO194: 180.066919 | CP194: 18.47820583 | CQ194: 95.73156062 | CR194: 0
A195: 195 | AI195: 0 | CL195: 0
A196: 196 | D196: Distribution Expenses | AI196: 0 | BQ196: Distribution Expenses | CL196: 0
A197: 197 | B197: 870-OP | C197: D | D197: Supervision & Engineering | E197: ='PROFORMA (Staff)'!AW70 -> 770000 | F197: ="as Distrib Plant ("&A$39&")" -> as Distrib Plant (39) | G197: all oth Dist Exp (S04) | H197: =SUM(I197:N197) -> 770000 | I197: =$E197*SUMPRODUCT($R197:$AH197,INDEX(AllocFactors,I$4,0)) -> 602705.2662 | J197: 119174.8048 | K197: 9851.91987 | L197: 1449.862153 | M197: 36818.14704 | N197: 0 | P197: =E$1&$A197&"* Sum["&$R$1&$A197&":"&$AH$1&$A197&"* "&Factors!D$1&Factors!$A$58&":"&Factors!S$1&Factors!$A$64&"]" -> E197* Sum[R197:AH197* D592:S598] | R197: =R$39 -> 0.1014384849 | S197: =S$39 -> 0.07244504266 | T197: =T$39 -> 0.01262716926 | U197: 0 | V197: 0 | W197: 0.3272581574 | X197: 0 | Y197: 0 | Z197: =Z$39 -> 0 | AA197: 0 | AB197: =AB$39 -> 0 | AC197: 0.332928402 | AD197: 0.1454938619 | AE197: =AE$39 -> 0 | AF197: 0.007808881891 | AG197: 0 | AH197: 0 | AI197: 0 | AK197: =SUM(AL197:AO197) -> 770000 | AL197: =SUMIF($R$4:$AH$4,AL$5,$R197:$AH197)*$E197 -> 143613.2366 | AM197: 251988.7812 | AN197: 374397.9822 | AO197: 0 | AQ197: =E$1&$A197&"*["&R$1&$A197&":"&$AH$1&$A197&" when "&R$1&$A$4&":"&$AH$1&$A$4&" = E,D,C,or R]" -> E197*[R197:AH197 when R4:AH4 = E,D,C,or R] | AS197: =SUM(AT197:AY197) -> 143613.2366 | AT197: =$E197*SUMPRODUCT($R197:$V197,INDEX(AllocFactors_E,AT$4,0)) -> 91750.81939 | AU197: 35127.59718 | AV197: 4829.410651 | AW197: 459.0019347 | AX197: 11446.40741 | AY197: 0 | BA197: =SUM(BB197:BG197) -> 251988.7812 | BB197: =$E197*SUMPRODUCT($W197:$AA197,INDEX(AllocFactors_D,BB$4,0)) -> 163409.6146 | BC197: 61606.28922 | BD197: 4215.919239 | BE197: 832.283903 | BF197: 21924.67424 | BG197: 0 | BI197: =SUM(BJ197:BO197) -> 374397.9822 | BJ197: =$E197*SUMPRODUCT($AB197:$AG197,INDEX(AllocFactors_C,BJ$4,0)) -> 347544.8322 | BK197: 22440.91836 | BL197: 806.5899796 | BM197: 158.5763152 | BN197: 3447.065386 | BO197: 0 | BQ197: Supervision & Engineering | BR197: 447957 | BS197: =R197 -> 0.1014384849 | BT197: =S197 -> 0.07244504266 | BU197: =T197 -> 0.01262716926 | BV197: =U197 -> 0 | BW197: =V197 -> 0 | BX197: =W197 -> 0.3272581574 | BY197: =X197 -> 0 | BZ197: =Y197 -> 0 | CA197: =Z197 -> 0 | CB197: =AA197 -> 0 | CC197: =AB197 -> 0 | CD197: =AC197 -> 0.332928402 | CE197: =AD197 -> 0.1454938619 | CF197: =AE197 -> 0 | CG197: =AF197 -> 0.007808881891 | CH197: =AG197 -> 0 | CI197: =AH197 -> 0 | CK197: =F197 -> as Distrib Plant (39) | CL197: 0 | CM197: =$BR197*SUMPRODUCT($BS197:$CI197,INDEX(AllocFactors,CM$162,0)) -> 350631.2246 | CN197: 69331.41301 | CO197: 5731.475934 | CP197: 843.4751953 | CQ197: 21419.41129 | CR197: 0
A198: 198 | B198: 871-OP | C198: D | D198: Distribution Load Dispatching | E198: ='PROFORMA (Staff)'!AW72 -> 0 | F198: Input - 100% Throughput | G198: (S04) | H198: 0 | I198: 0 | J198: 0 | K198: 0 | L198: 0 | M198: 0 | N198: 0 | P198: =E$1&$A198&"* """ -> E198* " | R198: 1 | S198: 0 | T198: 0 | U198: 0 | V198: 0 | W198: 0 | X198: 0 | Y198: 0 | Z198: 0 | AA198: 0 | AB198: 0 | AC198: 0 | AD198: 0 | AE198: 0 | AF198: 0 | AG198: 0 | AH198: 0 | AI198: 0 | AK198: 0 | AL198: 0 | AM198: 0 | AN198: 0 | AO198: 0 | AQ198: =E$1&$A198&"* """ -> E198* " | AS198: 0 | AT198: 0 | AU198: 0 | AV198: 0 | AW198: 0 | AX198: 0 | AY198: 0 | BA198: 0 | BB198: 0 | BC198: 0 | BD198: 0 | BE198: 0 | BF198: 0 | BG198: 0 | BI198: 0 | BJ198: 0 | BK198: 0 | BL198: 0 | BM198: 0 | BN198: 0 | BO198: 0 | BQ198: Distribution Load Dispatching | BR198: 0 | BS198: 1 | BT198: 0 | BU198: 0 | BV198: 0 | BW198: 0 | BX198: 0 | BY198: 0 | BZ198: 0 | CA198: 0 | CB198: 0 | CC198: 0 | CD198: 0 | CE198: 0 | CF198: 0 | CG198: 0 | CH198: 0 | CI198: 0 | CK198: Input - 100% Throughput | CL198: 0 | CM198: 0 | CN198: 0 | CO198: 0 | CP198: 0 | CQ198: 0 | CR198: 0
A199: 199 | B199: 874-OP | C199: D | D199: Mains & Services Expense | E199: ='PROFORMA (Staff)'!AW73 -> 2153000 | F199: ="as 376/380 Mn/Sv Plt ("&A$28&","&A$29&","&A$32&")" -> as 376/380 Mn/Sv Plt (28,29,32) | G199: (S04) | H199: =SUM(I199:N199) -> 2153000 | I199: 1680078.228 | J199: 329387.8073 | K199: 29961.41146 | L199: 4224.097049 | M199: 109348.4561 | N199: 0 | P199: E199* " | R199: =($E28*R$28+$E29*R$29+$E32*R$32)/SUM($E$28,$E$29,$E$32) -> 0.114734065 | S199: 0.08734578425 | T199: 0.01522436818 | U199: 0 | V199: 0 | W199: 0.3812895399 | X199: 0 | Y199: 0 | Z199: 0 | AA199: 0 | AB199: 0 | AC199: 0.4014062426 | AD199: 0 | AE199: 0 | AF199: 0 | AG199: 0 | AH199: 0 | AI199: 0 | AK199: =SUM(AL199:AO199) -> 2153000 | AL199: 467855.9802 | AM199: 820916.3795 | AN199: 864227.6404 | AO199: 0 | AQ199: =E$1&$A199&"* """ -> E199* " | AS199: =SUM(AT199:AY199) -> 467855.9802 | AT199: 299660.0282 | AU199: 114727.4415 | AV199: 15772.95267 | AW199: 1495.260976 | AX199: 36200.29679 | AY199: 0 | BA199: =SUM(BB199:BG199) -> 820916.3795 | BB199: 532347.625 | BC199: 200697.871 | BD199: 13734.40969 | BE199: 2711.372646 | BF199: 71425.10121 | BG199: 0 | BI199: 864227.6404 | BJ199: 848070.5749 | BK199: 13962.49483 | BL199: 454.049097 | BM199: 17.46342681 | BN199: 1723.058112 | BO199: 0 | BQ199: Mains & Services Expense | BR199: 945113 | BS199: 0.114734065 | BT199: 0.08734578425 | BU199: 0.01522436818 | BV199: 0 | BW199: 0 | BX199: 0.3812895399 | BY199: 0 | BZ199: 0 | CA199: 0 | CB199: 0 | CC199: 0 | CD199: 0.4014062426 | CE199: 0 | CF199: 0 | CG199: 0 | CH199: 0 | CI199: 0 | CK199: as 376/380 Mn/Sv Plt (28,29,32) | CL199: =IF(SUM(BS199:CI199)<>0,(ROUND(SUM(BS199:CI199),4)<>1)+0,0) -> 0 | CM199: 737512.2036 | CN199: 144592.9859 | CO199: 13152.30816 | CP199: 1854.272659 | CQ199: 48001.22963 | CR199: 0
A200: 200 | B200: 875-OP | C200: D | D200: Measuring & Regulating Stations-General | E200: ='PROFORMA (Staff)'!AW74 -> 76000 | F200: ="as 378 Meas & Reg St Genl ("&A$30&")" -> as 378 Meas & Reg St Genl (30) | G200: (S04) | H200: =SUM(I200:N200) -> 76000 | I200: 47734.66979 | J200: 18091.87719 | K200: 1670.092972 | L200: 248.1606427 | M200: 8255.199405 | N200: 0 | P200: E200* " | R200: =R$30 -> 0.36302453 | S200: =S$30 -> 0 | T200: 0 | U200: 0 | V200: 0 | W200: =W$30 -> 0.63697547 | X200: 0 | Y200: 0 | Z200: 0 | AA200: 0 | AB200: 0 | AC200: 0 | AD200: 0 | AE200: 0 | AF200: 0 | AG200: 0 | AH200: 0 | AI200: 0 | AK200: =SUM(AL200:AO200) -> 76000 | AL200: 27589.86428 | AM200: 48410.13572 | AN200: 0 | AO200: 0 | AQ200: =E$1&$A200&"* """ -> E200* " | AS200: =SUM(AT200:AY200) -> 27589.86428 | AT200: 16341.67848 | AU200: 6256.553376 | AV200: 860.1631747 | AW200: 88.26869631 | AX200: 4043.200559 | AY200: 0 | BA200: =SUM(BB200:BG200) -> 48410.13572 | BB200: 31392.99132 | BC200: 11835.32381 | BD200: 809.9297976 | BE200: 159.8919464 | BF200: 4211.998846 | BG200: 0 | BI200: 0 | BJ200: 0 | BK200: 0 | BL200: 0 | BM200: 0 | BN200: 0 | BO200: 0 | BQ200: Measuring & Regulating Stations-General | BR200: 37289 | BS200: 0.36302453 | BT200: 0 | BU200: 0 | BV200: 0 | BW200: 0 | BX200: 0.63697547 | BY200: 0 | BZ200: 0 | CA200: 0 | CB200: 0 | CC200: 0 | CD200: 0 | CE200: 0 | CF200: 0 | CG200: 0 | CH200: 0 | CI200: 0 | CK200: as 378 Meas & Reg St Genl (30) | CL200: 0 | CM200: 23420.7645 | CN200: 8876.684321 | CO200: 819.4223269 | CP200: 121.7587132 | CQ200: 4050.37014 | CR200: 0
... 238 more rows

Sheet Page 1 - 4, Summary
B1: AVISTA UTILITIES
B2: WASHINGTON NATURAL GAS
B3: COST OF SERVICE
A4: Line No.
A5: 1 | D5: GEN SERVICE | E5: LRG GEN SVC | F5: EX LRG GEN SVC | G5: INTERRUPTIBLE | H5: TRANSPORT | I5: S.C.
A6: 2 | C6: Total | D6: Sch 101 | E6: Sch 111 | F6: Sch 121 | G6: Sch 131 | H6: Sch 146 | I6: Open
A7: 3 | B7: A | C7: B | D7: C | E7: D | F7: E | G7: F | H7: G | I7: H | K7: source
A8: 4
A9: 5 | B9: Plant In Service
A10: 6 | B10: Underground Storage Plant | C10: =Detail!H23 -> 22008000 | D10: =Detail!I23 -> 14982844.11 | E10: =Detail!J23 -> 5736311.851 | F10: =Detail!K23 -> 788639.354 | G10: =Detail!L23 -> 80929.02566 | H10: =Detail!M23 -> 419275.659 | I10: =Detail!N23 -> 0 | K10: =Detail!A$23 -> 23
A11: 7 | B11: Distribution Plant | C11: =Detail!H39 -> 281279000 | D11: =Detail!I39 -> 220166668.3 | E11: =Detail!J39 -> 43534246.64 | F11: =Detail!K39 -> 3598880.739 | G11: =Detail!L39 -> 529630.8786 | H11: =Detail!M39 -> 13449573.48 | I11: =Detail!N39 -> 0 | K11: =Detail!A$39 -> 39
A12: 8 | B12: Intangible Plant | C12: =Detail!H12 -> 6619000 | D12: =Detail!I12 -> 5139298.703 | E12: =Detail!J12 -> 1067662.175 | F12: =Detail!K12 -> 94094.01425 | G12: =Detail!L12 -> 13195.69616 | H12: =Detail!M12 -> 304749.4123 | I12: =Detail!N12 -> 0 | K12: =Detail!A$12 -> 12
A13: 9 | B13: General Plant | C13: =Detail!H54 -> 32352000 | D13: =Detail!I54 -> 25083689.79 | E13: =Detail!J54 -> 5255751.51 | F13: =Detail!K54 -> 468022.2036 | G13: =Detail!L54 -> 65129.18134 | H13: =Detail!M54 -> 1479407.318 | I13: =Detail!N54 -> 0 | K13: =Detail!A$54 -> 54
A14: 10 | B14: Total Plant In Service | C14: =Detail!H56 -> 342258000 | D14: =Detail!I56 -> 265372500.9 | E14: =Detail!J56 -> 55593972.17 | F14: =Detail!K56 -> 4949636.311 | G14: =Detail!L56 -> 688884.7817 | H14: =Detail!M56 -> 15653005.87 | I14: =Detail!N56 -> 0 | K14: =Detail!A56 -> 56
A15: 11 | C15: =ABS(ROUND(SUM(C10:C13)-C14,0)) -> 0 | D15: 0 | E15: 0 | F15: 0 | G15: 0 | H15: 0 | I15: 0
A16: 12 | B16: Accum Depreciation
A17: 13 | B17: Underground Storage Plant | C17: =Detail!H69 -> -8286000 | D17: =Detail!I69 -> -5641032.638 | E17: =Detail!J69 -> -2159718.284 | F17: =Detail!K69 -> -296922.2868 | G17: =Detail!L69 -> -30469.73403 | H17: =Detail!M69 -> -157857.057 | I17: =Detail!N69 -> 0 | K17: =Detail!A$69 -> 69
A18: 14 | B18: Distribution Plant | C18: =Detail!H85 -> -97489000 | D18: =Detail!I85 -> -77546886.13 | E18: =Detail!J85 -> -14157622.55 | F18: =Detail!K85 -> -1191235.866 | G18: =Detail!L85 -> -173435.1895 | H18: =Detail!M85 -> -4419820.265 | I18: =Detail!N85 -> 0 | K18: =Detail!A$85 -> 85
A19: 15 | B19: Intangible Plant | C19: =Detail!H105 -> -2644000 | D19: =Detail!I105 -> -2050507.804 | E19: =Detail!J105 -> -428993.8279 | F19: =Detail!K105 -> -38132.55885 | G19: =Detail!L105 -> -5313.634062 | H19: =Detail!M105 -> -121052.1747 | I19: =Detail!N105 -> 0 | K19: =Detail!A$105 -> 105
A20: 16 | B20: General Plant | C20: =Detail!H98 -> -8282000 | D20: =Detail!I98 -> -6421337.748 | E20: =Detail!J98 -> -1345454.192 | F20: =Detail!K98 -> -119812.0639 | G20: =Detail!L98 -> -16672.84495 | H20: =Detail!M98 -> -378723.1519 | I20: =Detail!N98 -> 0 | K20: =Detail!A$98 -> 98
A21: 17 | B21: Total Accumulated Depreciation | C21: =Detail!H107 -> -116701000 | D21: =Detail!I107 -> -91659764.32 | E21: =Detail!J107 -> -18091788.86 | F21: =Detail!K107 -> -1646102.776 | G21: =Detail!L107 -> -225891.4025 | H21: =Detail!M107 -> -5077452.649 | I21: =Detail!N107 -> 0 | K21: =Detail!A107 -> 107
A22: 18 | C22: =ABS(ROUND(SUM(C17:C20)-C21,0)) -> 0 | D22: 0 | E22: 0 | F22: 0 | G22: 0 | H22: 0 | I22: 0
A23: 19 | B23: Net Plant | C23: =C14+C21 -> 225557000 | D23: 173712736.5 | E23: 37502183.32 | F23: 3303533.535 | G23: 462993.3792 | H23: 10575553.22 | I23: 0 | K23: =A14&"+"&A21 -> 10+17
A24: 20 | B24: Accumulated Deferred FIT | C24: =Detail!H111 -> -42004000 | D24: =Detail!I111 -> -32568140.19 | E24: =Detail!J111 -> -6822833.088 | F24: =Detail!K111 -> -607449.7122 | G24: =Detail!L111 -> -84544.16368 | H24: =Detail!M111 -> -1921032.843 | I24: =Detail!N111 -> 0 | K24: =Detail!A$111 -> 111
A25: 21 | B25: Miscellaneous Rate Base | C25: =Detail!H120-C24 -> 5536000 | D25: =Detail!I120-D24 -> 4010571.825 | E25: =Detail!J120-E24 -> 1191905.655 | F25: =Detail!K120-F24 -> 143750.0875 | G25: =Detail!L120-G24 -> 16102.84586 | H25: =Detail!M120-H24 -> 173669.5864 | I25: =Detail!N120-I24 -> 0 | K25: =Detail!A$120&"-"&A24 -> 120-20
A26: 22 | B26: Total Rate Base | C26: =IF(ROUND(Detail!H122,3)<>ROUND(SUM(D26:I26),3),#VALUE!,SUM(D26:I26)) -> 189089000 | D26: =Detail!I122 -> 145155168.2 | E26: =Detail!J122 -> 31871255.88 | F26: =Detail!K122 -> 2839833.911 | G26: =Detail!L122 -> 394552.0614 | H26: =Detail!M122 -> 8828189.966 | I26: =Detail!N122 -> 0 | K26: =Detail!A122 -> 122
A27: 23 | C27: =ABS(ROUND(SUM(C23:C25)-C26,0)) -> 0 | I27: 0
A28: 24 | B28: Revenue From Retail Rates | C28: =-Detail!H410 -> 144083000 | D28: =-Detail!I410 -> 105607336.8 | E28: =-Detail!J410 -> 32015273.8 | F28: =-Detail!K410 -> 3894069.703 | G28: =-Detail!L410 -> 365057.5347 | H28: =-Detail!M410 -> 2201262.135 | I28: =-Detail!N410 -> 0 | K28: =Detail!A$410 -> 410
A29: 25 | B29: Other Operating Revenues | C29: =C30-C28 -> 1635000 | D29: =D30-D28 -> 1255342.556 | E29: 275375.1996 | F29: 24521.89706 | G29: 3408.527106 | H29: 76351.82006 | I29: 0 | K29: =A30&"-"&A28 -> 26-24
A30: 26 | B30: Total Revenues | C30: =-Detail!H421 -> 145718000 | D30: =-Detail!I421 -> 106862679.4 | E30: =-Detail!J421 -> 32290649 | F30: =-Detail!K421 -> 3918591.6 | G30: =-Detail!L421 -> 368466.0619 | H30: =-Detail!M421 -> 2277613.955 | I30: =-Detail!N421 -> 0 | K30: =Detail!A$421 -> 421
A31: 27 | C31: =ABS(ROUND(C28+C29-C30,0)) -> 0 | D31: =ABS(ROUND(D28+D29-D30,0)) -> 0 | E31: 0 | F31: 0 | G31: 0 | H31: 0 | I31: 0
A32: 28 | B32: Operating Expenses
A33: 29 | B33: Purchased Gas Costs | C33: =Detail!H170 -> 81034000 | D33: =Detail!I170 -> 56423431.38 | E33: =Detail!J170 -> 21448196.31 | F33: =Detail!K170 -> 2844055.207 | G33: =Detail!L170 -> 278460.988 | H33: =Detail!M170 -> 39856.12037 | I33: =Detail!N170 -> 0 | K33: =Detail!A$170 -> 170
A34: 30 | B34: Underground Storage Expenses | C34: =Detail!H194 -> 673000 | D34: =Detail!I194 -> 458172.214 | E34: =Detail!J194 -> 175415.207 | F34: =Detail!K194 -> 24116.42517 | G34: =Detail!L194 -> 2474.792542 | H34: =Detail!M194 -> 12821.36125 | I34: =Detail!N194 -> 0 | K34: =Detail!A$194 -> 194
A35: 31 | B35: Distribution Expenses | C35: =Detail!H218 -> 9594000 | D35: =Detail!I218 -> 7632898.626 | E35: =Detail!J218 -> 1413310.058 | F35: =Detail!K218 -> 109692.4618 | G35: =Detail!L218 -> 16584.91603 | H35: =Detail!M218 -> 421513.938 | I35: =Detail!N218 -> 0 | K35: =Detail!A$218 -> 218
A36: 32 | B36: Customer Accounting Expenses | C36: =Detail!H226 -> 6026000 | D36: =Detail!I226 -> 5761311.511 | E36: =Detail!J226 -> 232910.5724 | F36: =Detail!K226 -> 18698.70241 | G36: =Detail!L226 -> 1700.855691 | H36: =Detail!M226 -> 11378.35871 | I36: =Detail!N226 -> 0 | K36: =Detail!A$226 -> 226
A37: 33 | B37: Customer Information Expenses | C37: =Detail!H234 -> 852000 | D37: =Detail!I234 -> 837837.916 | E37: =Detail!J234 -> 13794.02601 | F37: =Detail!K234 -> 149.5235422 | G37: =Detail!L234 -> 5.750905469 | H37: =Detail!M234 -> 212.7835024 | I37: =Detail!N234 -> 0 | K37: =Detail!A$234 -> 234
A38: 34 | B38: Sales Expenses | C38: =Detail!H241 -> 3000 | D38: =Detail!I241 -> 2950.133507 | E38: =Detail!J241 -> 48.57051412 | F38: =Detail!K241 -> 0.5264913458 | G38: =Detail!L241 -> 0.02024966715 | H38: =Detail!M241 -> 0.7492376844 | I38: =Detail!N241 -> 0 | K38: =Detail!A$241 -> 241
A39: 35 | B39: Admin & General Expenses | C39: =Detail!H331 -> 11454000.02 | D39: =Detail!I331 -> 8356438.969 | E39: =Detail!J331 -> 1932666.085 | F39: =Detail!K331 -> 227260.8069 | G39: =Detail!L331 -> 25385.81864 | H39: =Detail!M331 -> 912248.3368 | I39: =Detail!N331 -> 0 | K39: =Detail!A$331 -> 331
A40: 36 | B40: Total O&M Expenses | C40: =Detail!H333 -> 109636000 | D40: =Detail!I333 -> 79473040.75 | E40: =Detail!J333 -> 25216340.83 | F40: =Detail!K333 -> 3223973.653 | G40: =Detail!L333 -> 324613.142 | H40: =Detail!M333 -> 1398031.648 | I40: =Detail!N333 -> 0 | K40: =Detail!A$333 -> 333
A41: 37 | C41: =ABS(ROUND(SUM(C33:C39)-C40,0)) -> 0 | D41: =ABS(ROUND(SUM(D33:D39)-D40,0)) -> 0 | E41: =ABS(ROUND(SUM(E33:E39)-E40,0)) -> 0 | F41: 0 | G41: 0 | H41: 0 | I41: 0
A42: 38 | B42: Taxes Other Than Income Taxes | C42: =Detail!H341 -> 7735000 | D42: =Detail!I341 -> 5765808.583 | E42: =Detail!J341 -> 1587481.036 | F42: =Detail!K341 -> 181365.7019 | G42: =Detail!L341 -> 18348.38943 | H42: =Detail!M341 -> 181996.29 | I42: =Detail!N341 -> 0 | K42: =Detail!A$341 -> 341
A43: 39 | B43: Depreciation Expense
A44: 40 | B44: Underground Storage Plant Depreciation | C44: =Detail!H353 -> 332000 | D44: =Detail!I353 -> 226022.5484 | E44: =Detail!J353 -> 86534.6935 | F44: =Detail!K353 -> 11896.95863 | G44: =Detail!L353 -> 1220.848624 | H44: =Detail!M353 -> 6324.950871 | I44: =Detail!N353 -> 0 | K44: =Detail!A$353 -> 353
A45: 41 | B45: Distribution Plant Depreciation | C45: =Detail!H369 -> 6974000 | D45: =Detail!I369 -> 5477254.692 | E45: =Detail!J369 -> 1068149.938 | F45: =Detail!K369 -> 87578.29679 | G45: =Detail!L369 -> 12909.95639 | H45: =Detail!M369 -> 328107.1164 | I45: =Detail!N369 -> 0 | K45: =Detail!A$369 -> 369
A46: 42 | B46: General Plant Depreciation | C46: =Detail!H382 -> 2223000 | D46: =Detail!I382 -> 1723573.269 | E46: =Detail!J382 -> 361137.97 | F46: =Detail!K382 -> 32159.16662 | G46: =Detail!L382 -> 4475.215446 | H46: =Detail!M382 -> 101654.379 | I46: =Detail!N382 -> 0 | K46: =Detail!A$382 -> 382
A47: 43 | B47: Amortization Expense | C47: =Detail!H392 -> 642000 | D47: =Detail!I392 -> 497936.242 | E47: =Detail!J392 -> 104119.5525 | F47: =Detail!K392 -> 9249.079808 | G47: =Detail!L392 -> 1289.442686 | H47: =Detail!M392 -> 29405.68303 | I47: =Detail!N392 -> 0 | K47: =Detail!A$392 -> 392
A48: 44 | B48: Total Depreciation Expense | C48: =Detail!H394 -> 10171000 | D48: =Detail!I394 -> 7924786.751 | E48: =Detail!J394 -> 1619942.154 | F48: =Detail!K394 -> 140883.5019 | G48: =Detail!L394 -> 19895.46315 | H48: =Detail!M394 -> 465492.1293 | I48: =Detail!N394 -> 0 | K48: =Detail!A$394 -> 394
A49: 45 | B49: Income Tax | C49: =SUM(Detail!H401:H404) -> 5228000 | D49: =SUM(Detail!I401:I404) -> 3903807.955 | E49: =SUM(Detail!J401:J404) -> 1227661.28 | F49: =SUM(Detail!K401:K404) -> 121386.4313 | G49: =SUM(Detail!L401:L404) -> -3030.118895 | H49: =SUM(Detail!M401:M404) -> -21825.54775 | I49: =SUM(Detail!N401:N404) -> 0 | K49: =Detail!A$401&":"&Detail!A$404 -> 401:404
A50: 46 | B50: Total Operating Expenses | C50: =Detail!H407 -> 132770000 | D50: =Detail!I407 -> 97067444.04 | E50: =Detail!J407 -> 29651425.3 | F50: =Detail!K407 -> 3667609.288 | G50: =Detail!L407 -> 359826.8757 | H50: =Detail!M407 -> 2023694.519 | I50: =Detail!N407 -> 0 | K50: =Detail!A$407 -> 407
A51: 47 | I51: 0
A52: 48 | B52: Net Operating Income | C52: =IF(ROUND(-Detail!H423,3)<>ROUND(SUM(D52:I52),3),#VALUE!,SUM(D52:I52)) -> 12947999.98 | D52: =-Detail!I423 -> 9795235.347 | E52: =-Detail!J423 -> 2639223.703 | F52: =-Detail!K423 -> 250982.3118 | G52: =-Detail!L423 -> 8639.186134 | H52: =-Detail!M423 -> 253919.4355 | I52: =-Detail!N423 -> 0 | K52: =Detail!A$423 -> 423
A53: 49 | B53: Rate of Return | C53: =Detail!H123 -> 0.06847569125 | D53: =Detail!I123 -> 0.06748113395 | E53: =Detail!J123 -> 0.08280890194 | F53: =Detail!K123 -> 0.08837922208 | G53: =Detail!L123 -> 0.02189618806 | H53: =Detail!M123 -> 0.02876234386 | I53: =Detail!N123 -> 0 | K53: =Detail!A$123 -> 123
A54: 50 | B54: Return Ratio | C54: =C53/$C53 -> 1 | D54: =D53/$C53 -> 0.985475761 | E54: =E53/$C53 -> 1.209318233 | F54: 1.290665643 | G54: 0.3197658564 | H54: =H53/$C53 -> 0.4200372911 | I54: 0 | K54: ="% of "&C$1&$A53 -> % of 49
A55: 51
A56: 52 | B56: Interest Expense | C56: =Detail!H148 -> 6055000 | D56: =Detail!I148 -> 4648152.686 | E56: =Detail!J148 -> 1020580.015 | F56: =Detail!K148 -> 90937.04197 | G56: =Detail!L148 -> 12634.3295 | H56: =Detail!M148 -> 282695.9276 | I56: =Detail!N148 -> 0 | K56: =Detail!A$148 -> 148
A57: 53 | B57: Income Tax / Net Oper Income | C57: =C49/C52 -> 0.4037689224
A58: 54
A59: 55
A60: 56 | B60: Proposed Rate Revenue - Base Case | C60: =SUM(D60:I60) -> 1134000 | D60: 1047459.963 | E60: -9.768285783e-10 | F60: -2.106286622e-09 | G60: 8615.35782 | H60: 77924.67957 | I60: 0 | K60: input from Ehrbar "ROR" tab
A61: 57 | B61: Proposed Misc Revenue Increase | C61: =ROUND(SUM(D61:I61),-3) -> 0 | D61: 0 | E61: 0 | F61: 0 | G61: 0 | H61: 0 | I61: 0 | K61: input
A62: 58 | B62: Total Revenue Increase | C62: =C60+C61 -> 1134000 | D62: =D60+D61 -> 1047459.963 | E62: -9.768285783e-10 | F62: -2.106286622e-09 | G62: 8615.35782 | H62: 77924.67957 | I62: 0 | K62: =A60&"+"&A61 -> 56+57
A63: 59
A64: 60 | B64: allocated Misc Rev increase | C64: =C61 -> 0 | D64: =$C64*D65 -> 0 | E64: 0 | F64: 0 | G64: 0 | H64: 0 | I64: 0 | K64: =C$1&A64&" * "&A65 -> 60 * 61
A65: 61 | B65: allocation basis - Dist Plant | D65: =Detail!I414/Detail!$H414 -> 0.7827341119 | E65: =Detail!J414/Detail!$H414 -> 0.1547724737 | F65: =Detail!K414/Detail!$H414 -> 0.01279470113 | G65: =Detail!L414/Detail!$H414 -> 0.001882937861 | H65: =Detail!M414/Detail!$H414 -> 0.04781577538 | I65: =Detail!N414/Detail!$H414 -> 0 | K65: ="% of "&Detail!H$1&Detail!A414 -> % of H414
A66: 62
A67: 63 | B67: Proposed Rate Revenue | C67: =C28+C60 -> 145217000 | D67: =D28+D60 -> 106654796.8 | E67: 32015273.8 | F67: 3894069.703 | G67: 373672.8926 | H67: 2279186.814 | I67: 0 | K67: =A28&"+"&A60 -> 24+56
A68: 64
A69: 65 | B69: Present Return b4 conversion items | C69: =SUM(D69:I69) -> 24890999.98 | D69: =-(Detail!I421+Detail!I396)+D95 -> 18620881.87 | E69: =-(Detail!J421+Detail!J396)+E95 -> 5358959.437 | F69: =-(Detail!K421+Detail!K396)+F95 -> 553852.1802 | G69: =-(Detail!L421+Detail!L396)+G95 -> 22622.60351 | H69: =-(Detail!M421+Detail!M396)+H95 -> 334683.8896 | I69: =-(Detail!N421+Detail!N396)+I95 -> 0 | K69: ="-"&Detail!A421&"-"&Detail!A396&"+"&A95 -> -421-396+91
A70: 66
A71: 67
A72: 68 | B72: present conversion items, new spread
A73: 69 | B73: Uncollectibles | C73: =Detail!$E224 -> 657000 | D73: =$C73*D$67/$C$67 -> 482534.4243 | E73: =$C73*E$67/$C$67 -> 144845.5407 | F73: 17617.79816 | G73: 1690.594699 | H73: 10311.64214 | I73: 0 | K73: =Detail!A224&" * % of "&A$67 -> 224 * % of 63
A74: 70 | B74: Commission Fees | C74: =Detail!$E308 -> 304000 | D74: =$C74*D$67/$C$67 -> 223273.1583 | E74: 67021.37653 | F74: 8151.918782 | G74: 782.2538638 | H74: 4771.292559 | I74: 0 | K74: =Detail!A308&" * % of "&A$67 -> 308 * % of 63
A75: 71 | B75: Washington ExciseTax | C75: =Detail!$E340 -> 5754000 | D75: =$C75*D$67/$C$67 -> 4226032.081 | E75: 1268555.923 | F75: 154296.5154 | G75: 14806.21294 | H75: 90309.26771 | I75: 0 | K75: =Detail!A340&" * % of "&A$67 -> 340 * % of 63 | N75: =D75+D74+D73 -> 4931839.664 | O75: =E75+E74+E73 -> 1480422.84 | P75: =F75+F74+F73 -> 180066.2323 | Q75: =G75+G74+G73 -> 17279.0615 | R75: =H75+H74+H73 -> 105392.2024
A76: 72 | B76: incremental conversion items, new spread
A77: 73 | B77: Uncollectibles | C77: =ROUND($C$62*$L77,-3) -> 5000 | D77: =$C77*D$67/$C$67 -> 3672.255893 | E77: =$C77*E$67/$C$67 -> 1102.325272 | F77: 134.0776115 | G77: 12.8660175 | H77: 78.47520656 | I77: 0 | K77: =C$1&$A$60&"*"&L$1&$A77&" * % of "&A$67 -> 56*73 * % of 63 | L77: 0.004338
A78: 74 | B78: Commission Fees | C78: =ROUND($C$62*$L78,-3) -> 2000 | D78: 1468.902357 | E78: 440.9301087 | F78: 53.63104462 | G78: 5.146406999 | H78: 31.39008263 | I78: 0 | K78: =C$1&$A$60&"*"&L$1&$A78&" * % of "&A$67 -> 56*74 * % of 63 | L78: 0.002
A79: 75 | B79: Washington ExciseTax | C79: =ROUND($C$62*$L79,-3) -> 43000 | D79: 31581.40068 | E79: 9479.997338 | F79: 1153.067459 | G79: 110.6477505 | H79: 674.8867765 | I79: 0 | K79: =C$1&$A$60&"*"&L$1&$A79&" * % of "&A$67 -> 56*75 * % of 63 | L79: 0.038353
A80: 76 | B80: less: Interest Expense | C80: =Detail!H148 -> 6055000 | D80: =Detail!I148 -> 4648152.686 | E80: =Detail!J148 -> 1020580.015 | F80: =Detail!K148 -> 90937.04197 | G80: =Detail!L148 -> 12634.3295 | H80: =Detail!M148 -> 282695.9276 | I80: =Detail!N148 -> 0 | K80: =Detail!A148 -> 148
A81: 77 | B81: Proposed Return b4 Tax, new spread | C81: =C60+C64+C69-SUM(C73:C80) -> 13204999.98 | D81: =D60+D64+D69-SUM(D73:D80) -> 10051626.93 | E81: 2846933.33 | F81: 281508.1298 | G81: 1195.910147 | H81: 23735.68708 | I81: 0 | K81: =A60&"+"&A64&"+"&A69&"+"&A73&":"&A79 -> 56+60+65+69:75 | L81: 0.334358
A82: 78 | B82: less: FIT--present | C82: =Detail!$E402 -> -517000 | D82: =$C82*D$81/$C$81 -> -393539.6537 | E82: =$C82*E$81/$C$81 -> -111462.6682 | F82: -11021.56026 | G82: -46.82207853 | H82: -929.2957392 | I82: 0 | K82: =Detail!E$1&Detail!A402&" * % of "&A81 -> E402 * % of 77
A83: 79 | B83: less: FIT--incremental | C83: =ROUND($C$62*$L81,-3) -> 379000 | D83: =$C83*D$81/$C$81 -> 288494.2529 | E83: 81710.54398 | F83: 8079.635087 | G83: 34.3241156 | H83: 681.2438784 | I83: 0 | K83: =C$1&A$62&"*"&L$1&A$81&"* % of "&A$81 -> 58*77* % of 77
A84: 80 | B84: less: DFIT, SIT, ITC--present | C84: =Detail!E405-C82 -> 5745000 | D84: =$C84*D$81/$C$81 -> 4373085.707 | E84: 1238593.866 | F84: 122473.6242 | G84: 520.2956309 | H84: 10326.50681 | I84: 0 | K84: =Detail!E$1&Detail!A405&" - "&C$1&A82&"* % of "&A81 -> E405 - 78* % of 77
A85: 81 | B85: addback: Interest Expense | C85: =Detail!H148 -> 6055000 | D85: =Detail!I148 -> 4648152.686 | E85: =Detail!J148 -> 1020580.015 | F85: =Detail!K148 -> 90937.04197 | G85: =Detail!L148 -> 12634.3295 | H85: =Detail!M148 -> 282695.9276 | I85: =Detail!N148 -> 0 | K85: =Detail!A148 -> 148
A86: 82 | B86: Proposed Return | C86: =IF(ROUND(C81-C82-C83-C84+C85,0)<>ROUND(SUM(D86:I86),0),#VALUE!,ROUND(SUM(D86:I86),0)) -> 13653000 | D86: =D81-D82-D83-D84+D85 -> 10431739.31 | E86: =E81-E82-E83-E84+E85 -> 2658671.603 | F86: 252913.4727 | G86: 13322.44198 | H86: 296353.1597 | I86: 0 | K86: =A81&" - "&A82&":"&A84&" + "&A85 -> 77 - 78:80 + 81
A87: 83 | B87: Proposed Rate of Return | C87: =IF(C26,C86/C26,0) -> 0.07220409437 | D87: =IF(D26,D86/D26,0) -> 0.07186612394 | E87: =IF(E26,E86/E26,0) -> 0.08341910379 | F87: 0.08905924807 | G87: 0.0337659926 | H87: =IF(H26,H86/H26,0) -> 0.03356896043 | I87: 0 | K87: =A86&" / "&A26 -> 82 / 22
A88: 84 | B88: Proposed Return Ratio | C88: =C87/$C87 -> 1 | D88: =D87/$C87 -> 0.9953192346 | E88: =E87/$C87 -> 1.155323732 | F88: =F87/$C87 -> 1.233437644 | G88: =G87/$C87 -> 0.467646508 | H88: 0.4649176855 | I88: 0 | K88: ="% of "&C$1&$A87 -> % of 83
A89: 85
A90: 86 | B90: Rate Revenues at Uniform Present Rates | C90: =C133 -> 144083000 | D90: =D133 -> 105873605.2 | E90: =E133 -> 31172715.42 | F90: 3789818.661 | G90: 398954.1637 | H90: 2847906.511 | I90: 0 | K90: =A133 -> 129
A91: 87 | B91: Rate Change to get to Uniform Present Rates | C91: =SUM(D91:J91) -> 1.373700798e-08 | D91: =D90-D28 -> 266268.4134 | E91: =E90-E28 -> -842558.3764 | F91: -104251.0423 | G91: 33896.62894 | H91: =H90-H28 -> 646644.3764 | I91: 0 | K91: =A90&"-"&A28 -> 86-24
A92: 88 | B92: % Change to get to Uniform Rates | C92: =IF(C90,C91/C90,0) -> 9.534093526e-17 | D92: =IF(D90,D91/D90,0) -> 0.002514965017 | E92: =IF(E90,E91/E90,0) -> -0.02702871293 | F92: -0.02750818749 | G92: 0.08496371771 | H92: =IF(H90,H91/H90,0) -> 0.2270595519 | I92: 0 | K92: =A91&"/"&A90 -> 87/86
A93: 89
A94: 90
A95: 91 | B95: Revenue Related Op Exp., current | C95: =SUMIF(Detail!$C$164:$C$398,$L95,Detail!H$164:H$398) -> 6715000 | D95: =SUMIF(Detail!$C$164:$C$398,$L95,Detail!I$164:I$398) -> 4921838.571 | E95: =SUMIF(Detail!$C$164:$C$398,$L95,Detail!J$164:J$398) -> 1492074.454 | F95: =SUMIF(Detail!$C$164:$C$398,$L95,Detail!K$164:K$398) -> 181483.437 | G95: =SUMIF(Detail!$C$164:$C$398,$L95,Detail!L$164:L$398) -> 17013.53627 | H95: =SUMIF(Detail!$C$164:$C$398,$L95,Detail!M$164:M$398) -> 102590.0018 | I95: =SUMIF(Detail!$C$164:$C$398,$L95,Detail!N$164:N$398) -> 0 | K95: =Detail!A$164&":"&Detail!A$398&", col "&Detail!C$1&"= " -> 164:398, col C= | L95: R
A96: 92 | B96: Rate Rev. excl Rev. Conversion Items, current | C96: =C28-C95 -> 137368000 | D96: 100685498.3 | E96: 30523199.35 | F96: 3712586.266 | G96: 348043.9985 | H96: 2098672.133 | I96: 0 | K96: =A28&" - "&A95 -> 24 - 91
A97: 93 | B97: Revenue Conversion Item Ratio, current | C97: =IF(C96,C95/C96,0) -> 0.0488832916 | D97: =IF(D96,D95/D96,0) -> 0.0488832916 | E97: 0.0488832916 | F97: 0.0488832916 | G97: 0.0488832916 | H97: 0.0488832916 | I97: 0 | K97: =A95&"/"&A96 -> 91/92
A98: 94
A99: 95 | B99: Adj. Revenue Conversion Items | C99: =SUM(C73:C75,C77:C79) -> 6765000 | D99: =SUM(D73:D75,D77:D79) -> 4968562.223 | E99: 1491446.093 | F99: 181407.0084 | G99: 17407.72167 | H99: 106176.9545 | I99: 0 | K99: =A73&":"&A75&" + "&A77&":"&A79 -> 69:71 + 73:75
A100: 96 | B100: Adj. Rate Rev. excl Conversion Items | C100: =C67-C99 -> 138452000 | D100: 101686234.6 | E100: 30523827.71 | F100: 3712662.695 | G100: 356265.1709 | H100: 2173009.86 | I100: 0 | K100: =A67&" - "&A99 -> 63 - 95
A101: 97 | B101: Adj. Revenue Conversion Ratio | C101: =IF(C100,C99/C100,0) -> 0.04886169936 | D101: =IF(D100,D99/D100,0) -> 0.04886169936 | E101: 0.04886169936 | F101: 0.04886169936 | G101: 0.04886169936 | H101: 0.04886169936 | I101: 0 | K101: =A99&"/"&A100 -> 95/96
A102: 98 | B102: Adj. Income Tax Items | C102: =SUM(C82:C84) -> 5607000 | D102: =SUM(D82:D84) -> 4268040.307 | E102: 1208841.742 | F102: 119531.699 | G102: 507.797668 | H102: 10078.45495 | I102: 0 | K102: =A82&":"&A84 -> 78:80
A103: 99 | B103: Adj. Return | C103: =C87*C26 -> 13653000 | D103: 10431739.31 | E103: 2658671.603 | F103: 252913.4727 | G103: 13322.44198 | H103: 296353.1597 | I103: 0 | K103: =A87&" * "&A26 -> 83 * 22
A104: 100 | B104: Adj. Income Tax Ratio | C104: =IF(C103,C102/C103,0) -> 0.4106789717 | D104: =IF(D103,D102/D103,0) -> 0.4091398549 | E104: 0.4546788481 | F104: 0.4726189465 | G104: 0.03811596016 | H104: 0.0340082588 | I104: 0 | K104: =A102&"/"&A103 -> 98/99
A105: 101 | B105: Adj. Income Tax Items - Uniform | C105: =C102 -> 5607000 | D105: =$C105*D$86/$C$86 -> 4284095.971 | E105: 1091860.52 | F105: 103866.2449 | G105: 5471.246774 | H105: 121706.0109 | I105: 0 | K105: =C$1&A102&" * % of "&A86 -> 98 * % of 82
A106: 102
A107: 103
A108: 104
A109: 105 | B109: SUMMARY BY FUNCTION WITH MARGIN ANALYSIS
A110: 106
A111: 107 | C111: Total | D111: Sch 101 | E111: Sch 111 | F111: Sch 121 | G111: Sch 131 | H111: Sch 146 | I111: Open
A112: 108 | B112: Functional Cost Components at Current Rates
A113: 109 | B113: Production | C113: =SUM(D113:I113) -> 84995208.65 | D113: =D285 -> 59181594.43 | E113: =E285 -> 22496654.74 | F113: 2983081.987 | G113: 292073.0777 | H113: 41804.41873 | I113: 0 | K113: =A285 -> 281
A114: 110 | B114: Underground Storage | C114: =SUM(D114:I114) -> 2436615.347 | D114: =D294 -> 1591338.388 | E114: 712426.615 | F114: 103100.4115 | G114: 4266.774493 | H114: 25483.15812 | I114: 0 | K114: =A294 -> 290
A115: 111 | B115: Distribution | C115: =SUM(D115:I115) -> 39219542.93 | D115: =D305 -> 31888628.72 | E115: 5810469.074 | F115: 481858.4616 | G115: 35649.98919 | H115: 1002936.685 | I115: 0 | K115: =A305 -> 301
A116: 112 | B116: Common | C116: =SUM(D116:I116) -> 17431633.07 | D116: =D314 -> 12945775.29 | E116: 2995723.369 | F116: 326028.843 | G116: 33067.6934 | H116: 1131037.873 | I116: 0 | K116: =A314 -> 310
A117: 113 | B117: Total Current Rate Revenue | C117: =IF(ROUND(SUM(C113:C116),3)<>ROUND(SUM(D117:I117),3),#VALUE!,SUM(D117:I117)) -> 144083000 | D117: =SUM(D113:D116) -> 105607336.8 | E117: 32015273.8 | F117: 3894069.703 | G117: 365057.5347 | H117: 2201262.135 | I117: 0 | K117: =A113&":"&A116 -> 109:112
A118: 114 | B118: Exclude Cost of Gas w / Revenue Exp. | C118: =SUM(D118:I118) -> 83918005.51 | D118: =SUM(D$280:D$281)*(1+D$97) -> 58447653.76 | E118: 22219939.89 | F118: 2945496.449 | G118: 288236.2303 | H118: 16679.1838 | I118: 0 | K118: =A280&":"&A281&"*(1+"&A97&")" -> 276:277*(1+93)
A119: 115 | B119: Total Margin Revenue at Current Rates | C119: =C117-C118 -> 60164994.49 | D119: =D117-D118 -> 47159683.07 | E119: 9795333.907 | F119: 948573.2537 | G119: 76821.30441 | H119: 2184582.951 | I119: 0 | K119: =A117&"-"&A118 -> 113-114
A120: 116 | C120: =ABS(ROUND(C117-Detail!$E$426,0)) -> 0
A121: 117 | B121: Margin per Therm at Current Rates
A122: 118 | B122: Production | C122: =IF(C$181,(C113-C118)/C$181,0) -> 0.005360532775 | D122: =IF(D$181,(D113-D118)/D$181,0) -> 0.006166293646 | E122: =IF(E$181,(E113-E118)/E$181,0) -> 0.006072355928 | F122: 0.005999289629 | G122: 0.005967984889 | H122: 0.0008531880336 | I122: 0 | K122: ="("&A113&"-"&A118&")/"&A$181 -> (109-114)/177
A123: 119 | B123: Underground Storage | C123: =IF(C$181,C114/C$181,0) -> 0.01212543478 | D123: 0.01336982698 | E123: 0.01563381219 | F123: 0.01645657533 | G123: 0.0066367107 | H123: 0.00086534218 | I123: 0 | K123: =A114&"/"&A$181 -> 110/177
A124: 120 | B124: Distribution | C124: 0.1951699149 | D124: 0.267916272 | E124: 0.1275075641 | F124: 0.07691278778 | G124: 0.05545141069 | H124: 0.0340571374 | I124: 0 | K124: =A115&"/"&A$181 -> 111/177
A125: 121 | B125: Common | C125: 0.08674579277 | D125: 0.1087655379 | E125: 0.06573950993 | F125: 0.05203973617 | G125: 0.05143480515 | H125: 0.0384071226 | I125: 0 | K125: =A116&"/"&A$181 -> 112/177
A126: 122 | B126: Total Curr. Margin Melded Rate per Therm | C126: =IF(C$181,C119/C$181,0) -> 0.2994016753 | D126: =IF(D$181,D119/D$181,0) -> 0.3962179305 | E126: 0.2149532421 | F126: 0.1514083889 | G126: 0.1194909114 | H126: 0.07418279022 | I126: 0 | K126: =A119&"/"&A$181 -> 115/177
A127: 123
A128: 124 | B128: Functional Cost Components at Uniform Current Return
A129: 125 | B129: Production | C129: =SUM(D129:I129) -> 84995208.65 | D129: =D$113 -> 59181594.43 | E129: 22496654.74 | F129: 2983081.987 | G129: 292073.0777 | H129: 41804.41873 | I129: 0 | K129: =A113 -> 109
A130: 126 | B130: Underground Storage | C130: =SUM(D130:I130) -> 2363168.231 | D130: =D323 -> 1608823.211 | E130: 615951.9235 | F130: 84682.27315 | G130: 8689.971939 | H130: 45020.8523 | I130: 0 | K130: =A323 -> 319
A131: 127 | B131: Distribution | C131: =SUM(D131:I131) -> 39290077.47 | D131: =D330 -> 32102006.49 | E131: 5171326.636 | F131: 409253.7282 | G131: 60816.44808 | H131: 1546674.167 | I131: 0 | K131: =A330 -> 326
A132: 128 | B132: Common | C132: =SUM(D132:I132) -> 17434545.65 | D132: =D337 -> 12981181.12 | E132: 2888782.123 | F132: 312800.6725 | G132: 37374.66601 | H132: 1214407.073 | I132: 0 | K132: =A337 -> 333
A133: 129 | B133: Total Uniform Current Cost | C133: =IF(ROUND(SUM(C129:C132),3)<>ROUND(SUM(D133:I133),3),#VALUE!,SUM(D133:I133)) -> 144083000 | D133: =SUM(D129:D132) -> 105873605.2 | E133: 31172715.42 | F133: 3789818.661 | G133: 398954.1637 | H133: 2847906.511 | I133: 0 | K133: =A129&":"&A132 -> 125:128
A134: 130 | B134: Exclude Cost of Gas w / Revenue Exp. | C134: =SUM(D134:I134) -> 83918005.51 | D134: =SUM(D$280:D$281)*(1+D$97) -> 58447653.76 | E134: 22219939.89 | F134: 2945496.449 | G134: 288236.2303 | H134: 16679.1838 | I134: 0 | K134: =A280&":"&A281&"*(1+"&A97&")" -> 276:277*(1+93)
A135: 131 | B135: Total Uniform Current Margin | C135: =C133-C134 -> 60164994.49 | D135: 47425951.49 | E135: 8952775.531 | F135: 844322.2114 | G135: 110717.9334 | H135: 2831227.327 | I135: 0 | K135: =A133&"-"&A134 -> 129-130
A136: 132 | C136: =ABS(ROUND(C133-Detail!$E$426,0)) -> 0
A137: 133 | B137: Margin per Therm at Uniform Current Return
A138: 134 | B138: Production | C138: =IF(C$181,(C129-C134)/C$181,0) -> 0.005360532775 | D138: 0.006166293646 | E138: 0.006072355928 | F138: 0.005999289629 | G138: 0.005967984889 | H138: 0.0008531880336 | I138: 0 | K138: ="("&A129&"-"&A134&")/"&A$181 -> (125-130)/177
A139: 135 | B139: Underground Storage | C139: =IF(C$181,C130/C$181,0) -> 0.01175993671 | D139: 0.01351672788 | E139: 0.01351672788 | F139: 0.01351672788 | G139: 0.01351672788 | H139: 0.001528791772 | I139: 0 | K139: =A130&"/"&A$181 -> 126/177
A140: 136 | B140: Distribution | C140: 0.195520919 | D140: 0.2697089918 | E140: 0.113481933 | F140: 0.0653238402 | G140: 0.09459632152 | H140: 0.05252105682 | I140: 0 | K140: =A131&"/"&A$181 -> 127/177
A141: 137 | B141: Common | C141: 0.08676028677 | D141: 0.1090630043 | E141: 0.0633927428 | F141: 0.04992829567 | G141: 0.05813404159 | H141: 0.04123812515 | I141: 0 | K141: =A132&"/"&A$181 -> 128/177
A142: 138 | B142: Total Curr. Uniform Margin @ Melded Rate | C142: =IF(C$181,C135/C$181,0) -> 0.2994016753 | D142: =IF(D$181,D135/D$181,0) -> 0.3984550177 | E142: 0.1964637596 | F142: 0.1347681534 | G142: 0.1722150759 | H142: 0.09614116177 | I142: 0 | K142: =A135&"/"&A$181 -> 131/177
A143: 139
A144: 140 | B144: Margin to Cost Ratio at Current Rates | C144: =IF(C135,C119/C135,0) -> 1 | D144: =IF(D135,D119/D135,0) -> 0.9943855968 | E144: 1.094111415 | F144: 1.123473054 | G144: 0.6938469865 | H144: 0.7716028063 | I144: 0 | K144: =A119&"/"&A135 -> 115/131
A145: 141
A146: 142
A147: 143 | B147: Functional Cost Components at Proposed Rates
A148: 144 | B148: Production | C148: =SUM(D148:I148) -> 84993458.95 | D148: =D346 -> 59180376.12 | E148: =E346 -> 22496191.63 | F148: 2983020.577 | G148: 292067.0651 | H148: 41803.55815 | I148: 0 | K148: =A$346 -> 342
A149: 145 | B149: Underground Storage | C149: =SUM(D149:I149) -> 2509061.229 | D149: =D353 -> 1660231.056 | E149: 712487.4133 | F149: 103112.4516 | G149: 5391.892037 | H149: 27838.41665 | I149: 0 | K149: =A353 -> 349
A150: 146 | B150: Distribution | C150: =SUM(D150:I150) -> 40132393.51 | D150: =D360 -> 32729110.55 | E150: 5810849.409 | F150: 481904.371 | G150: 42051.28354 | H150: 1068477.9 | I150: 0 | K150: =A360 -> 356
A151: 147 | B151: Common | C151: =SUM(D151:I151) -> 17582086.31 | D151: =D367 -> 13085079.07 | E151: 2995745.351 | F151: 326032.3031 | G151: 34162.65193 | H151: 1141066.94 | I151: 0 | K151: =A367 -> 363
A152: 148 | B152: Total Proposed Rate Revenue | C152: =IF(ROUND(SUM(C148:C151),3)<>ROUND(SUM(D152:I152),3),#VALUE!,SUM(D152:I152)) -> 145217000 | D152: =SUM(D148:D151) -> 106654796.8 | E152: 32015273.8 | F152: 3894069.703 | G152: 373672.8926 | H152: 2279186.814 | I152: 0 | K152: =A148&":"&A151 -> 144:147
A153: 149 | B153: Exclude Cost of Gas w / Revenue Exp. | C153: =SUM(D153:I153) -> 83916277.98 | D153: =SUM(D$280:D$281)*(1+D$101) -> 58446450.56 | E153: 22219482.47 | F153: 2945435.814 | G153: 288230.2967 | H153: 16678.84044 | I153: 0 | K153: =A280&":"&A281&"*(1+"&A101&")" -> 276:277*(1+97)
A154: 150 | B154: Total Margin Revenue at Proposed Rates | C154: =C152-C153 -> 61300722.02 | D154: 48208346.23 | E154: 9795791.325 | F154: 948633.8895 | G154: 85442.59584 | H154: 2262507.974 | I154: 0 | K154: =A152&"-"&A153 -> 148-149
A155: 151
A156: 152 | B156: Margin per Therm at Proposed Rates
A157: 153 | B157: Production | C157: =IF(C$181,(C148-C153)/C$181,0) -> 0.005360422423 | D157: =IF(D$181,(D148-D153)/D$181,0) -> 0.006166166708 | E157: 0.006072230923 | F157: 0.005999166128 | G157: 0.005967862032 | H157: 0.0008531704699 | I157: 0 | K157: ="("&A148&"-"&A$153&")/"&A$181 -> (144-149)/177
A158: 154 | B158: Underground Storage | C158: =IF(C$181,C149/C$181,0) -> 0.01248595037 | D158: 0.01394863727 | E158: 0.01563514638 | F158: 0.01645849713 | G158: 0.008386763265 | H158: 0.0009453206717 | I158: 0 | K158: =A149&"/"&A$181 -> 145/177
A159: 155 | B159: Distribution | C159: 0.1997125729 | D159: 0.2749776844 | E159: 0.1275159103 | F159: 0.07692011569 | G159: 0.06540823845 | H159: 0.03628274763 | I159: 0 | K159: =A150&"/"&A$181 -> 146/177
A160: 156 | B160: Common | C160: 0.08749449977 | D160: 0.1099359158 | E160: 0.06573999231 | F160: 0.05204028846 | G160: 0.05313794717 | H160: 0.0387476838 | I160: 0 | K160: =A151&"/"&A$181 -> 147/177
A161: 157 | B161: Total Proposed Margin @ Melded Rates | C161: =IF(C$181,C154/C$181,0) -> 0.3050534455 | D161: =IF(D$181,D154/D$181,0) -> 0.4050284043 | E161: 0.2149632799 | F161: 0.1514180674 | G161: 0.1329008109 | H161: 0.07682892257 | I161: 0 | K161: =A152&"/"&A$181 -> 148/177
A162: 158
A163: 159 | B163: Functional Cost Components at Uniform Proposed Return
A164: 160 | B164: Production | C164: =SUM(D164:I164) -> 84993458.95 | D164: =D377 -> 59180376.12 | E164: 22496191.63 | F164: 2983020.577 | G164: 292067.0651 | H164: 41803.55815 | I164: 0 | K164: =A377 -> 373
A165: 161 | B165: Underground Storage | C165: =SUM(D165:I165) -> 2447305.927 | D165: =D384 -> 1666103.381 | E165: 637882.1335 | F165: 87697.28125 | G165: 8999.367693 | H165: 46623.76433 | I165: 0 | K165: =A384 -> 380
A166: 162 | B166: Distribution | C166: =SUM(D166:I166) -> 40192356.75 | D166: =D391 -> 32800774.05 | E166: 5316591.281 | F166: 421137.408 | G166: 62576.56845 | H166: 1591277.446 | I166: 0 | K166: =A391 -> 387
A167: 163 | B167: Common | C167: =SUM(D167:I167) -> 17583878.39 | D167: =D398 -> 13096970.21 | E167: 2913046.132 | F167: 314960.9072 | G167: 37675.33681 | H167: 1221225.806 | I167: 0 | K167: =A398 -> 394
A168: 164 | B168: Total Uniform Proposed Cost | C168: =IF(ROUND(SUM(C164:C167),3)<>ROUND(SUM(D168:I168),3),#VALUE!,SUM(D168:I168)) -> 145217000 | D168: =SUM(D164:D167) -> 106744223.8 | E168: 31363711.17 | F168: 3806816.174 | G168: 401318.338 | H168: 2900930.574 | I168: 0 | K168: =A164&":"&A167 -> 160:163
A169: 165 | B169: Exclude Cost of Gas w / Revenue Exp. | C169: =SUM(D169:I169) -> 83916277.98 | D169: =SUM(D$372:D$373)*(1+$C$101) -> 58446450.56 | E169: 22219482.47 | F169: 2945435.814 | G169: 288230.2967 | H169: 16678.84044 | I169: 0 | K169: =A372&":"&A373&"*(1+"&A101&")" -> 368:369*(1+97)
A170: 166 | B170: Total Uniform Proposed Margin | C170: =C168-C169 -> 61300722.04 | D170: 48297773.2 | E170: 9144228.699 | F170: 861380.3602 | G170: 113088.0413 | H170: 2884251.734 | I170: 0 | K170: =A168&"-"&A169 -> 164-165
A171: 167
A172: 168 | B172: Margin per Therm at Uniform Proposed Return
A173: 169 | B173: Production | C173: =IF(C$181,(C164-C169)/C$181,0) -> 0.005360422423 | D173: 0.006166166708 | E173: 0.006072230923 | F173: 0.005999166128 | G173: 0.005967862032 | H173: 0.0008531704699 | I173: 0 | K173: ="("&A164&"-"&A$169&")/"&A$181 -> (160-165)/177
A174: 170 | B174: Underground Storage | C174: =IF(C$181,C165/C$181,0) -> 0.01217863478 | D174: 0.01399797434 | E174: 0.01399797434 | F174: 0.01399797434 | G174: 0.01399797434 | H174: 0.001583222522 | I174: 0 | K174: =A165&"/"&A$181 -> 161/177
A175: 171 | B175: Distribution | C175: =IF(C$181,C166/C$181,0) -> 0.2000109706 | D175: 0.2755797742 | E175: 0.1166696862 | F175: 0.06722067716 | G175: 0.09733408272 | H175: 0.05403566885 | I175: 0 | K175: =A166&"/"&A$181 -> 162/177
A176: 172 | B176: Common | C176: =IF(C$181,C167/C$181,0) -> 0.08750341777 | D176: 0.1100358207 | E176: 0.06392520321 | F176: 0.05027310579 | G176: 0.05860171692 | H176: 0.0414696717 | I176: 0 | K176: =A167&"/"&A$181 -> 163/177
A177: 173 | B177: Total Prop. Uniform Margin @ Melded Rates | C177: =IF(C$181,C170/C$181,0) -> 0.3050534456 | D177: =IF(D$181,D170/D$181,0) -> 0.405779736 | E177: 0.2006650946 | F177: 0.1374909234 | G177: 0.175901636 | H177: 0.09794173355 | I177: 0 | K177: =A168&"/"&A$181 -> 164/177
A178: 174
A179: 175 | B179: Margin to Cost Ratio at Proposed Rates | C179: =IF(C170,C154/C170,0) -> 0.9999999997 | D179: =IF(D170,D154/D170,0) -> 0.9981484246 | E179: 1.071253973 | F179: 1.101295007 | G179: 0.7555405051 | H179: 0.7844349879 | I179: 0 | K179: =A154&"/"&A170 -> 150/166
A180: 176
A181: 177 | B181: Throughput Therms | C181: =SUM(D181:I181) -> 200950761 | D181: =Factors!E41 -> 119024606 | E181: =Factors!F41 -> 45569603 | F181: =Factors!G41 -> 6264998 | G181: =Factors!H41 -> 642905 | H181: =Factors!I41 -> 29448649 | I181: =Factors!J41 -> 0 | K181: =Factors!A41 -> 575
A182: 178 | B182: Peak Therms | C182: =SUM(D182:I182) -> 1516564 | D182: =Factors!E42 -> 983461 | E182: =Factors!F42 -> 370770 | F182: =Factors!G42 -> 25373 | G182: =Factors!H42 -> 5009 | H182: =Factors!I42 -> 131951 | I182: =Factors!J42 -> 0 | K182: =Factors!A42 -> 576
A183: 179 | B183: Number of Customers (Annualized) | C183: =SUM(D183:I183) -> 1777807 | D183: =Factors!E43 -> 1748256 | E183: =Factors!F43 -> 28783 | F183: =Factors!G43 -> 312 | G183: =Factors!H43 -> 12 | H183: =Factors!I43 -> 444 | I183: =Factors!J43 -> 0 | K183: =Factors!A43 -> 577
A184: 180
A185: 181
A186: 182
A187: 183 | B187: SUMMARY BY CLASSIFICATION WITH UNIT COST ANALYSIS
A188: 184
A189: 185 | C189: Total | D189: Sch 101 | E189: Sch 111 | F189: Sch 121 | G189: Sch 131 | H189: Sch 146 | I189: Open
A190: 186 | B190: Cost by Classification at Curr. Return by Schedule
A191: 187 | B191: Commodity | C191: =SUM(D191:I191) -> 81882253.04 | D191: =D414 -> 55693205.44 | E191: =E414 -> 21662760.21 | F191: 2994988.497 | G191: 285086.4312 | H191: 1246212.468 | I191: 0 | K191: =A414 -> 410
A192: 188 | B192: Demand | C192: =SUM(D192:I192) -> 32464537.34 | D192: =D423 -> 22096673.33 | E192: 8652626.457 | F192: 840547.5023 | G192: 73192.48729 | H192: 801497.5602 | I192: 0 | K192: =A423 -> 419
A193: 189 | B193: Customer | C193: =SUM(D193:I193) -> 29736209.61 | D193: =D432 -> 27817458.04 | E193: 1699887.136 | F193: 58533.70434 | G193: 6778.616289 | H193: 153552.1067 | I193: 0 | K193: =A432 -> 428
A194: 190 | B194: Total Current Rate Revenue | C194: =IF(ROUND(SUM(C191:C193),3)<>ROUND(SUM(D194:I194),3),#VALUE!,SUM(D194:I194)) -> 144083000 | D194: =SUM(D190:D193) -> 105607336.8 | E194: 32015273.8 | F194: 3894069.703 | G194: 365057.5347 | H194: 2201262.135 | I194: 0 | K194: =A190&":"&A193 -> 186:189
A195: 191
A196: 192 | B196: Revenue per Therm at Current Rates
A197: 193 | B197: Commodity | C197: =IF(C$181,C191/C$181,0) -> 0.4074742122 | D197: 0.4679133778 | E197: 0.4753774178 | F197: 0.47805099 | G197: 0.4434347706 | H197: 0.04231815415 | I197: 0 | K197: =A191&"/"&A$181 -> 187/177
A198: 194 | B198: Demand | C198: =IF(C$181,C192/C$181,0) -> 0.1615546872 | D198: 0.1856479435 | E198: 0.1898771525 | F198: 0.1341656457 | G198: 0.113846505 | H198: 0.0272167854 | I198: 0 | K198: =A192&"/"&A$181 -> 188/177
A199: 195 | B199: Customer | C199: =IF(C$181,C193/C$181,0) -> 0.1479775914 | D199: 0.2337118263 | E199: 0.03730309295 | F199: 0.00934297255 | G199: 0.01054372931 | H199: 0.005214232636 | I199: 0 | K199: =A193&"/"&A$181 -> 189/177
A200: 196 | B200: Total Revenue per Therm at Current Rates | C200: 0.7170064909 | D200: 0.8872731476 | E200: 0.7025576633 | F200: 0.6215596083 | G200: 0.5678250049 | H200: 0.07474917219 | I200: 0 | K200: =A194&"/"&A$181 -> 190/177
... 338 more rows

Sheet Page 5, Avg Cust Unit Costs
C2: AVISTA UTILITIES
C3: WASHINGTON NATURAL GAS
C4: METER, SERVICES, METER READING & BILLING COSTS BY SCHEDULE AT PROPOSED RATE OF RETURN
C5: 12 MONTHS ENDED DECEMBER 31, 2011
A6: Line No. | C6: A | D6: B | E6: C | F6: D | G6: E | H6: F | I6: H
A7: 1 | D7: Total | E7: Sch 101 | F7: Sch 111 | G7: Sch 121 | H7: Sch 131 | I7: Sch 146
A8: 2 | B8: 380 | C8: Services | D8: =SUM(E8:I8) -> 93455000 | E8: =SUMIF(Detail!$B$26:$B$38,'Page 5, Avg Cust Unit Costs'!$B$8,Detail!BJ26:BJ38) -> 91707823.12 | F8: =SUMIF(Detail!$B$26:$B$38,'Page 5, Avg Cust Unit Costs'!$B$8,Detail!BK26:BK38) -> 1509862.556 | G8: =SUMIF(Detail!$B$26:$B$38,'Page 5, Avg Cust Unit Costs'!$B$8,Detail!BL26:BL38) -> 49099.51543 | H8: =SUMIF(Detail!$B$26:$B$38,'Page 5, Avg Cust Unit Costs'!$B$8,Detail!BM26:BM38) -> 1888.442901 | I8: =SUMIF(Detail!$B$26:$B$38,'Page 5, Avg Cust Unit Costs'!$B$8,Detail!BN26:BN38) -> 186326.3662 | K8: =D8-Detail!E32 -> 0
A9: 3 | B9: 380 | C9: Services Accum. Depr. | D9: =SUM(E9:I9) -> -39535000 | E9: =SUMIF(Detail!$B$72:$B$84,'Page 5, Avg Cust Unit Costs'!$B$9,Detail!BJ72:BJ84) -> -38795878.09 | F9: =SUMIF(Detail!$B$72:$B$84,'Page 5, Avg Cust Unit Costs'!$B$9,Detail!BK72:BK84) -> -638728.9728 | G9: =SUMIF(Detail!$B$72:$B$84,'Page 5, Avg Cust Unit Costs'!$B$9,Detail!BL72:BL84) -> -20770.95225 | H9: =SUMIF(Detail!$B$72:$B$84,'Page 5, Avg Cust Unit Costs'!$B$9,Detail!BM72:BM84) -> -798.8827788 | I9: =SUMIF(Detail!$B$72:$B$84,'Page 5, Avg Cust Unit Costs'!$B$9,Detail!BN72:BN84) -> -78823.10084 | K9: =D9-Detail!E78 -> 0
A10: 4 | C10: Total Services | D10: =SUM(D8:D9) -> 53920000 | E10: 52911945.03 | F10: 871133.5833 | G10: 28328.56318 | H10: 1089.560122 | I10: 107503.2654
A11: 5
A12: 6 | B12: 381 | C12: Meters | D12: =SUM(E12:I12) -> 40841000 | E12: =SUMIF(Detail!$B$26:$B$38,'Page 5, Avg Cust Unit Costs'!$B$12,Detail!BJ26:BJ38) -> 34990773.85 | F12: =SUMIF(Detail!$B$26:$B$38,'Page 5, Avg Cust Unit Costs'!$B$12,Detail!BK26:BK38) -> 4948547.479 | G12: =SUMIF(Detail!$B$26:$B$38,'Page 5, Avg Cust Unit Costs'!$B$12,Detail!BL26:BL38) -> 161297.4569 | H12: =SUMIF(Detail!$B$26:$B$38,'Page 5, Avg Cust Unit Costs'!$B$12,Detail!BM26:BM38) -> 36746.9414 | I12: =SUMIF(Detail!$B$26:$B$38,'Page 5, Avg Cust Unit Costs'!$B$12,Detail!BN26:BN38) -> 703634.2767 | K12: =D12-Detail!E33 -> 0
A13: 7 | B13: 381 | C13: Meters Accum. Depr. | D13: =SUM(E13:I13) -> -8790000 | E13: =SUMIF(Detail!$B$72:$B$84,'Page 5, Avg Cust Unit Costs'!$B$13,Detail!BJ72:BJ84) -> -7530885.681 | F13: =SUMIF(Detail!$B$72:$B$84,'Page 5, Avg Cust Unit Costs'!$B$13,Detail!BK72:BK84) -> -1065050.619 | G13: =SUMIF(Detail!$B$72:$B$84,'Page 5, Avg Cust Unit Costs'!$B$13,Detail!BL72:BL84) -> -34715.22847 | H13: =SUMIF(Detail!$B$72:$B$84,'Page 5, Avg Cust Unit Costs'!$B$13,Detail!BM72:BM84) -> -7908.856661 | I13: =SUMIF(Detail!$B$72:$B$84,'Page 5, Avg Cust Unit Costs'!$B$13,Detail!BN72:BN84) -> -151439.6144 | K13: =D13-Detail!E79 -> 0
A14: 8 | C14: Total Meters | D14: =SUM(D12:D13) -> 32051000 | E14: 27459888.17 | F14: 3883496.859 | G14: 126582.2284 | H14: 28838.08474 | I14: 552194.6623
A15: 9
A16: 10 | C16: Total Rate Base | D16: =D10+D14 -> 85971000 | E16: 80371833.19 | F16: 4754630.443 | G16: 154910.7916 | H16: 29927.64486 | I16: 659697.9277
A17: 11
A18: 12 | C18: Return on Rate Base @ 7.22% | D18: =D16*$J$18 -> 6207106.2 | E18: =E16*$J$18 -> 5802846.357 | F18: =F16*$J$18 -> 343284.318 | G18: 11184.55915 | H18: =H16*$J$18 -> 2160.775959 | I18: 47630.19038 | J18: 0.0722
A19: 13 | C19: Revenue Conversion Factor | D19: 0.62095 | E19: =$D$19 -> 0.62095 | F19: =$D$19 -> 0.62095 | G19: 0.62095 | H19: 0.62095 | I19: 0.62095
A20: 14 | C20: Rate Base Revenue Requirement | D20: =D18/D19 -> 9996144.939 | E20: 9345110.486 | F20: 552837.2944 | G20: 18012.01249 | H20: 3479.790577 | I20: 76705.35531
A21: 15
A22: 16
A23: 17 | B23: 380 | C23: Services Depr Exp | D23: =SUM(E23:I23) -> 2253000 | E23: =SUMIF(Detail!$B$164:$B$397,'Page 5, Avg Cust Unit Costs'!$B$23,Detail!BJ164:BJ397) -> 2210879.305 | F23: =SUMIF(Detail!$B$164:$B$397,'Page 5, Avg Cust Unit Costs'!$B$23,Detail!BK164:BK397) -> 36399.55421 | G23: =SUMIF(Detail!$B$164:$B$397,'Page 5, Avg Cust Unit Costs'!$B$23,Detail!BL164:BL397) -> 1183.684214 | H23: =SUMIF(Detail!$B$164:$B$397,'Page 5, Avg Cust Unit Costs'!$B$23,Detail!BM164:BM397) -> 45.52631594 | I23: =SUMIF(Detail!$B$164:$B$397,'Page 5, Avg Cust Unit Costs'!$B$23,Detail!BN164:BN397) -> 4491.929839 | K23: =D23-Detail!E362 -> 0
A24: 18 | B24: 381 | C24: Meters Depr Exp | D24: 1167000 | E24: =SUMIF(Detail!$B$164:$B$397,'Page 5, Avg Cust Unit Costs'!$B$24,Detail!BJ164:BJ397) -> 999834.3106 | F24: =SUMIF(Detail!$B$164:$B$397,'Page 5, Avg Cust Unit Costs'!$B$24,Detail!BK164:BK397) -> 141400.9184 | G24: =SUMIF(Detail!$B$164:$B$397,'Page 5, Avg Cust Unit Costs'!$B$24,Detail!BL164:BL397) -> 4608.950128 | H24: =SUMIF(Detail!$B$164:$B$397,'Page 5, Avg Cust Unit Costs'!$B$24,Detail!BM164:BM397) -> 1050.015441 | I24: =SUMIF(Detail!$B$164:$B$397,'Page 5, Avg Cust Unit Costs'!$B$24,Detail!BN164:BN397) -> 20105.80546 | K24: =D24-Detail!E363 -> 0
A25: 19 | B25: 892-MT | C25: Services Exp | D25: 570000 | E25: =SUMIF(Detail!$B$164:$B$397,'Page 5, Avg Cust Unit Costs'!$B$25,Detail!BJ164:BJ397) -> 559343.6325 | F25: =SUMIF(Detail!$B$164:$B$397,'Page 5, Avg Cust Unit Costs'!$B$25,Detail!BK164:BK397) -> 9208.941811 | G25: =SUMIF(Detail!$B$164:$B$397,'Page 5, Avg Cust Unit Costs'!$B$25,Detail!BL164:BL397) -> 299.4673778 | H25: =SUMIF(Detail!$B$164:$B$397,'Page 5, Avg Cust Unit Costs'!$B$25,Detail!BM164:BM397) -> 11.51797607 | I25: =SUMIF(Detail!$B$164:$B$397,'Page 5, Avg Cust Unit Costs'!$B$25,Detail!BN164:BN397) -> 1136.440306 | K25: =D25-Detail!E214 -> 0
A26: 20 | B26: 893-MT | C26: Meters Exp | D26: 810000 | E26: =SUMIF(Detail!$B$164:$B$397,'Page 5, Avg Cust Unit Costs'!$B$26,Detail!BJ164:BJ397) -> 693972.4007 | F26: =SUMIF(Detail!$B$164:$B$397,'Page 5, Avg Cust Unit Costs'!$B$26,Detail!BK164:BK397) -> 98144.5963 | G26: =SUMIF(Detail!$B$164:$B$397,'Page 5, Avg Cust Unit Costs'!$B$26,Detail!BL164:BL397) -> 3199.014228 | H26: =SUMIF(Detail!$B$164:$B$397,'Page 5, Avg Cust Unit Costs'!$B$26,Detail!BM164:BM397) -> 728.802491 | I26: =SUMIF(Detail!$B$164:$B$397,'Page 5, Avg Cust Unit Costs'!$B$26,Detail!BN164:BN397) -> 13955.18631 | K26: =D26-Detail!E215 -> 0
A27: 21 | B27: 902-OP | C27: Meter Reading | D27: 1528000 | E27: =SUMIF(Detail!$B$164:$B$397,'Page 5, Avg Cust Unit Costs'!$B$27,Detail!BJ164:BJ397) -> 1502601.333 | F27: =SUMIF(Detail!$B$164:$B$397,'Page 5, Avg Cust Unit Costs'!$B$27,Detail!BK164:BK397) -> 24738.58186 | G27: =SUMIF(Detail!$B$164:$B$397,'Page 5, Avg Cust Unit Costs'!$B$27,Detail!BL164:BL397) -> 268.1595921 | H27: =SUMIF(Detail!$B$164:$B$397,'Page 5, Avg Cust Unit Costs'!$B$27,Detail!BM164:BM397) -> 10.31383047 | I27: =SUMIF(Detail!$B$164:$B$397,'Page 5, Avg Cust Unit Costs'!$B$27,Detail!BN164:BN397) -> 381.6117273 | K27: =D27-Detail!E222 -> 0
A28: 22 | B28: 903-OP | C28: Billing Exp | D28: 3503000 | E28: =SUMIF(Detail!$B$164:$B$397,'Page 5, Avg Cust Unit Costs'!$B$28,Detail!BJ164:BJ397) -> 3444772.559 | F28: =SUMIF(Detail!$B$164:$B$397,'Page 5, Avg Cust Unit Costs'!$B$28,Detail!BK164:BK397) -> 56714.17032 | G28: =SUMIF(Detail!$B$164:$B$397,'Page 5, Avg Cust Unit Costs'!$B$28,Detail!BL164:BL397) -> 614.7663948 | H28: =SUMIF(Detail!$B$164:$B$397,'Page 5, Avg Cust Unit Costs'!$B$28,Detail!BM164:BM397) -> 23.64486134 | I28: =SUMIF(Detail!$B$164:$B$397,'Page 5, Avg Cust Unit Costs'!$B$28,Detail!BN164:BN397) -> 874.8598695 | K28: =D28-Detail!E223 -> 0
A29: 23 | C29: Total Expenses | D29: =SUM(D23:D28) -> 9831000 | E29: 9411403.541 | F29: 366606.7629 | G29: 10174.04194 | H29: 1869.820915 | I29: 40945.83352
A30: 24 | C30: Revenue Conversion Factor | D30: 0.955309 | E30: =$D$30 -> 0.955309 | F30: =$D$30 -> 0.955309 | G30: 0.955309 | H30: 0.955309 | I30: 0.955309
A31: 25 | C31: Expense Revenue Requirement | D31: =D29/D30 -> 10290911.11 | E31: 9851685.204 | F31: 383757.2585 | G31: 10650.00114 | H31: 1957.294358 | I31: 42861.35011
A32: 26
A33: 27 | C33: Total Customer Costs | D33: =D20+D31 -> 20287056.05 | E33: 19196795.69 | F33: 936594.5529 | G33: 28662.01362 | H33: 5437.084935 | I33: 119566.7054
A34: 28
A35: 29 | C35: Total Customers Bills | D35: =SUM(E35:I35) -> 1777807 | E35: =Factors!E43 -> 1748256 | F35: =Factors!F43 -> 28783 | G35: =Factors!G43 -> 312 | H35: =Factors!H43 -> 12 | I35: =Factors!I43 -> 444 | K35: =SUM(Factors!E43:I43)-'Page 5, Avg Cust Unit Costs'!D35 -> 0
A36: 30
A37: 31 | C37: Avg Unit Cost | D37: =D33/D35 -> 11.41128145 | E37: =E33/E35 -> 10.98054043 | F37: 32.53985175 | G37: 91.86542828 | H37: 453.0904112 | I37: 269.2943816
A38: 32

Sheet PROFORMA (Staff) (hidden)
A1: 1 | B1: Proforma | J1: Natural Gas Utility | K1: Natural Gas Utility | L1: Natural Gas Utility | AN1: =$J$1 -> Natural Gas Utility | AQ1: =$U$1 -> 0
A2: 2 | B2: Pro Forma Results of Operations
A3: 3 | B3: Company Base Case
A4: 4 | K4: ADD | L4: ADD | Z4: ADD
A5: 5 | G5: 1 | H5: =G5+0.01 -> 1.01 | I5: =H5+0.01 -> 1.02 | J5: 1.03 | K5: 1.04 | L5: 1.05 | M5: =2+0.01 -> 2.01 | N5: 2.02 | O5: =N5+0.01 -> 2.03 | P5: 2.04 | Q5: 2.05 | R5: 2.06 | S5: 2.07 | T5: 2.08 | U5: 2.09 | V5: 2.1 | W5: 2.11 | X5: 2.12 | Y5: =X5+0.01 -> 2.13 | Z5: =Y5+0.01 -> 2.14 | AA5: =3 -> 3 | AB5: 3.01 | AC5: 3.02 | AD5: 3.03 | AE5: 3.04 | AF5: 3.05 | AG5: 3.06 | AH5: =4 -> 4 | AI5: 4.01 | AJ5: 4.02 | AK5: 4.03 | AN5: =ColHdr -> (an) | AO5: (ao) | AP5: (ap) | AQ5: (aq) | AR5: (ar) | AS5: (as) | AT5: (at) | AU5: (au) | AV5: (av) | AW5: (aw)
A6: 6 | E6: Notes | F6: Salaries & | G6: Per Results | H6: Deferred FIT | I6: Deferred Debits | J6: Gas Inventory | K6: ADJ | L6: Working Cap | M6: Revenue Normalization | N6: Eliminate | O6: Uncollectible | P6: Regulatory | Q6: Injuries & | R6: FIT/DFIT | S6: Net Gains/ | T6: Eliminate | U6: Office Space | V6: Restate | W6: Misc. Restating | X6: Restating | Y6: Restate | Z6: Non-recurring | AA6: Pro Forma | AB6: Pro Forma | AC6: Pro Forma | AD6: Pro Forma | AE6: Pro Forma | AF6: Pro Forma | AG6: Restating | AH6: Attrition | AI6: Attrition | AJ6: Depreciation | AK6: O&M | AN6: Open | AO6: Open | AP6: Open | AQ6: Open | AR6: Open | AS6: Open | AT6: Net Total | AU6: Total | AV6: check | AW6: Total
A7: 7 | B7: Account | C7: Description | F7: Wages | G7: Report | H7: Rate Base | I7: and Credits | J7: & JP Restating | K7: FIT | M7: & Gas Cost | N7: B & O Taxes | O7: Expense | P7: Expense | Q7: Damages | R7: Expense | S7: Losses | T7: A/R Expenses | U7: Charges to Subs | V7: Excise Tax | W7: Adjustments | X7: Incentive | Y7: Debt Interest | Z7: Expenses | AA7: Non-Exec Labor | AB7: Exec Labor | AC7: Empl. Benefits | AD7: Insurance | AE7: Property Tax | AF7: Atmospheric Testing | AG7: 2011 Capital | AH7: Capital Add | AI7: Capital Add | AJ7: Study | AK7: Offsets | AT7: of All | AW7: $000's | AX7: Case
A8: 8 | H8: G-DFIT | I8: G-DDC | J8: G-GI | M8: G-RNGC | N8: G-EBO | O8: G-UE | P8: G-RE | Q8: G-ID | R8: G-FIT | S8: G-NGL | T8: G-EAR | U8: G-OSC | V8: G-RET | W8: G-MR | X8: G-RI | Y8: G_DI | AA8: G-PLN | AB8: G-PLE | AC8: G-PEB | AD8: G-PI | AE8: G-PT | AF8: G-PAT | AG8: G-PCAP | AH8: G-CAP12 | AI8: G-CAP13 | AJ8: G-DS | AK8: G-OFF | AT8: Adjustments | AW8: in bold | AX8: Pro Forma
A9: 9 | B9: Operation & Maintenance Expenses | H9: N | I9: N | J9: Y-Joanna | K9: Y-Kathryn | L9: Y-Mike | M9: N | N9: N | O9: N | P9: N | Q9: N | R9: N | S9: N | T9: N | U9: N | V9: N | W9: Y-EJ | X9: Y-Joanna | Y9: Y-EJ | Z9: Y-Kathryn | AA9: Y-Joanna | AB9: Y-Joanna | AC9: N | AD9: N | AE9: Y-Mike | AF9: N | AG9: Y-Kathryn | AH9: Y-Kathryn | AI9: Y-Kathryn | AJ9: Y-Joanna | AK9: Y-Kathryn | AX9: Total | AY9: Diff
A10: 10 | C10: Purchased Gas Expenses
A11: 11 | B11: 804-000 | C11: Gas Purchases | G11: 165019000 | M11: =-G11 -> -165019000 | AT11: =SUM(H11:AS11) -> -165019000 | AU11: =G11+AT11 -> 0 | AW11: =ROUND(AU11/1000,0)*1000 -> 0
A12: 12 | B12: 804-001 | C12: Pipeline Demand Costs | G12: 18496000 | M12: =-G12 -> -18496000 | AT12: =SUM(H12:AS12) -> -18496000 | AU12: 0 | AW12: 0
A13: 13 | B13: 804-002 | C13: Transport Variable Charges | G13: 258000 | M13: -258000 | AT13: =SUM(H13:AS13) -> -258000 | AU13: 0 | AW13: =ROUND(AU13/1000,0)*1000 -> 0
A14: 14 | B14: 804-017 | C14: Transaction Fees | G14: 151000 | M14: -151000 | AT14: =SUM(H14:AS14) -> -151000 | AU14: 0 | AW14: 0
A15: 15 | B15: 804-730 | C15: Gas Costs - Intracompany LDC Gas | G15: 12162000 | M15: -12162000 | AT15: -12162000 | AU15: 0 | AW15: 0
A16: 16 | B16: 804-170 | C16: Gas Transaction Fees | G16: 0 | M16: 0 | AT16: 0 | AU16: 0 | AW16: 0
A17: 17 | B17: 804-600 | C17: Gas Purchases - Financial | G17: 1172000 | M17: -1172000 | AT17: -1172000 | AU17: 0 | AW17: 0
A18: 18 | B18: 804-700 | C18: Off System Gas Purchases - Bookout | G18: 3182000 | M18: -3182000 | AT18: -3182000 | AU18: 0 | AW18: 0
A19: 19 | B19: 804-711 | C19: Off System Bookout Offset | G19: -3182000 | M19: =-G19 -> 3182000 | AT19: 3182000 | AU19: 0 | AW19: 0
A20: 20 | B20: 804-010 | C20: Gas Costs - Fixed Hedge | G20: -36000 | M20: 36000 | AT20: 36000 | AU20: 0 | AW20: 0
A21: 21 | B21: 805-110 | C21: Gas Exp - Rate Amortizations | G21: -11104000 | M21: 11104000 | AT21: 11104000 | AU21: 0 | AW21: 0
A22: 22 | B22: 805-120 | C22: Gas Expense - Rate Deferrals | G22: 5184000 | M22: -5184000 | AT22: -5184000 | AU22: 0 | AW22: 0
A23: 23 | B23: 805-980 | C23: Gas Expense - Estimated Amortizations | G23: 0 | M23: 0 | AT23: 0 | AU23: 0 | AW23: 0
A24: 24 | B24: 805-990 | C24: Gas Expense - Estimated Deferrals | G24: 0 | M24: 0 | AT24: 0 | AU24: 0 | AW24: 0
A25: 25 | B25: Open | C25: Open | G25: 0 | M25: 0 | AT25: 0 | AU25: 0 | AW25: 0
A26: 26 | B26: 808-xxx | C26: Net Natural Gas Storage Transactions | G26: -4366000 | M26: =-G26 -> 4366000 | AT26: 4366000 | AU26: 0 | AW26: 0
A27: 27 | B27: 804.xx | C27: Proforma Purchased Gas Expense | G27: 0 | M27: 80007000 | AT27: =SUM(H27:AS27) -> 80007000 | AU27: 80007000 | AW27: =ROUND(AU27/1000,0)*1000 -> 80007000
A28: 28 | C28: Total Purchased Gas Cost | G28: =SUM(G11:G27) -> 186936000 | H28: 0 | I28: 0 | J28: 0 | K28: =SUM(K11:K27) -> 0 | L28: 0 | M28: =SUM(M11:M27) -> -106929000 | N28: 0 | O28: 0 | P28: 0 | Q28: 0 | R28: 0 | S28: 0 | T28: 0 | U28: 0 | V28: 0 | W28: =SUM(W11:W27) -> 0 | X28: =SUM(X11:X27) -> 0 | Y28: 0 | Z28: =SUM(Z11:Z27) -> 0 | AA28: 0 | AB28: 0 | AC28: =SUM(AC11:AC27) -> 0 | AD28: =SUM(AD11:AD27) -> 0 | AE28: 0 | AF28: 0 | AG28: 0 | AH28: 0 | AI28: 0 | AJ28: 0 | AK28: 0 | AN28: 0 | AO28: 0 | AP28: 0 | AQ28: 0 | AR28: 0 | AS28: 0 | AT28: -106929000 | AU28: =SUM(AU11:AU27) -> 80007000 | AV28: =IF(ROUND(SUM(G28:AS28),0)=ROUND(AU28,0),"ok","crossfoot error") -> ok | AW28: =SUM(AW11:AW27)/1000 -> 80007
A29: 29 | B29: 811-00 | C29: Gas Used for Products Extraction | F29: 0 | G29: -967000 | M29: =-G29 -> 967000 | AT29: =SUM(H29:AS29) -> 967000 | AU29: =G29+AT29 -> 0 | AW29: =ROUND(AU29/1000,0)*1000 -> 0
A30: 30 | B30: 813-010 | C30: GTI Expenses | F30: 0 | G30: 78000 | M30: -3000 | AT30: =SUM(H30:AS30) -> -3000 | AU30: =G30+AT30 -> 75000 | AW30: =ROUND(AU30/1000,0)*1000 -> 75000
A31: 31 | B31: 813-xxx | C31: Other Gas Expenses | F31: 529724 | G31: 904000 | AA31: 18000 | AB31: -14000 | AC31: 44000 | AT31: =SUM(H31:AS31) -> 48000 | AU31: =G31+AT31 -> 952000 | AW31: =ROUND(AU31/1000,0)*1000 -> 952000
A32: 32 | C32: Total Purchased Gas Expenses | F32: =SUM(F28:F31) -> 529724 | G32: =SUM(G28:G31) -> 186951000 | H32: 0 | I32: 0 | J32: 0 | K32: 0 | L32: 0 | M32: -105965000 | N32: 0 | O32: 0 | P32: 0 | Q32: 0 | R32: 0 | S32: 0 | T32: 0 | U32: 0 | V32: 0 | W32: =SUM(W28:W31) -> 0 | X32: =SUM(X28:X31) -> 0 | Y32: 0 | Z32: 0 | AA32: 18000 | AB32: -14000 | AC32: =SUM(AC28:AC31) -> 44000 | AD32: =SUM(AD28:AD31) -> 0 | AE32: 0 | AF32: 0 | AG32: 0 | AH32: 0 | AI32: 0 | AJ32: 0 | AK32: 0 | AN32: 0 | AO32: 0 | AP32: 0 | AQ32: 0 | AR32: 0 | AS32: 0 | AT32: -105917000 | AU32: 81034000 | AV32: =IF(ROUND(SUM(G32:AS32),0)=ROUND(AU32,0),"ok","crossfoot error") -> ok | AW32: =AW28+SUM(AW29:AW31)/1000 -> 81034 | AX32: ='[1]LEAD SHEETS-DO NOT ENTER'!$AJ$25 -> 81056 | AY32: =AW32-AX32 -> -22
A33: 33
A34: 34 | C34: Underground Storage Expenses
A35: 35 | B35: 814-OP | C35: Supervision & Engineering | F35: 5025 | G35: 10000 | AT35: =SUM(H35:AS35) -> 0 | AU35: =G35+AT35 -> 10000 | AW35: =ROUND(AU35/1000,0)*1000 -> 10000
A36: 36 | B36: 815-OP | C36: Maps & Records | G36: 0 | AT36: 0 | AU36: 0
A37: 37 | B37: 816-OP | C37: Wells Expenses | G37: 0 | AT37: 0 | AU37: 0
A38: 38 | B38: 817-OP | C38: Lines Expenses | G38: 0 | AT38: 0 | AU38: 0
A39: 39 | B39: 818-OP | C39: Compressor Station Expenses | G39: 0 | AT39: 0 | AU39: 0
A40: 40 | B40: 819-OP | C40: Compressor Station Fuel & Power | G40: 0 | AT40: 0 | AU40: 0
A41: 41 | B41: 820-OP | C41: Measuring & Regulator Station | G41: 0 | AT41: 0 | AU41: 0
A42: 42 | B42: 821-OP | C42: Purification Expenses | G42: 0 | AT42: 0 | AU42: 0
A43: 43 | B43: 824-OP | C43: Other Expenses | G43: 301000 | J43: 88000 | AE43: 0 | AT43: 88000 | AU43: 389000 | AW43: =ROUND(AU43/1000,0)*1000 -> 389000
A44: 44 | B44: 825-OP | C44: Storage Well Royalties & Rents | G44: 0 | AT44: 0 | AU44: 0
A45: 45 | B45: 826-OP | C45: Rents | G45: 0 | AT45: 0 | AU45: 0
A46: 46
A47: 47 | B47: 830-MT | C47: Supervision & Engineering | G47: 0 | AT47: =SUM(H47:AS47) -> 0 | AU47: =G47+AT47 -> 0
A48: 48 | B48: 831-MT | C48: Maps & Records | G48: 0 | AT48: 0 | AU48: 0
A49: 49 | B49: 832-MT | C49: Wells Expenses | G49: 0 | AT49: 0 | AU49: 0
A50: 50 | B50: 833-MT | C50: Lines Expenses | G50: 0 | AT50: 0 | AU50: 0
A51: 51 | B51: 834-MT | C51: Compressor Station Expenses | G51: 0 | AT51: =SUM(H51:AS51) -> 0 | AU51: 0
A52: 52 | B52: 835-MT | C52: Compressor Station Fuel & Power | G52: 0 | AT52: 0 | AU52: 0
A53: 53 | B53: 836-MT | C53: Measuring and Regulator Station Expenses | G53: 0 | AT53: 0 | AU53: 0
A54: 54 | B54: 837-MT | C54: Other Equipment | G54: 274000 | AT54: 0 | AU54: 274000 | AW54: =ROUND(AU54/1000,0)*1000 -> 274000
A55: 55 | C55: Total Underground Storage Expenses | F55: =SUM(F35:F51)+SUM(F52:F54) -> 5025 | G55: =SUM(G35:G54) -> 585000 | H55: 0 | I55: 0 | J55: 88000 | K55: =SUM(K35:K54) -> 0 | L55: 0 | M55: 0 | N55: 0 | O55: 0 | P55: 0 | Q55: 0 | R55: 0 | S55: 0 | T55: 0 | U55: 0 | V55: 0 | W55: =SUM(W35:W54) -> 0 | X55: =SUM(X35:X54) -> 0 | Y55: 0 | Z55: 0 | AA55: 0 | AB55: 0 | AC55: =SUM(AC35:AC54) -> 0 | AD55: =SUM(AD35:AD54) -> 0 | AE55: 0 | AF55: =SUM(AF35:AF54) -> 0 | AG55: =SUM(AG35:AG54) -> 0 | AH55: 0 | AI55: 0 | AJ55: 0 | AK55: 0 | AN55: =SUM(AN35:AN54) -> 0 | AO55: 0 | AP55: 0 | AQ55: 0 | AR55: 0 | AS55: 0 | AT55: =SUM(AT35:AT54) -> 88000 | AU55: =SUM(AU35:AU54) -> 673000 | AV55: =IF(ROUND(SUM(G55:AS55),0)=ROUND(AU55,0),"ok","crossfoot error") -> ok | AW55: =SUM(AW35:AW54)/1000 -> 673 | AX55: ='[1]LEAD SHEETS-DO NOT ENTER'!$AJ$28 -> 785 | AY55: =AW55-AX55 -> -112
A56: 56
A57: 57
A58: 59
A59: 60
A60: 61 | B60: =$B$1 -> Proforma | J60: =$J$1 -> Natural Gas Utility | K60: =$J$1 -> Natural Gas Utility | L60: =$J$1 -> Natural Gas Utility | T60: Natural Gas Utility | AC60: Natural Gas Utility | AN60: =$J$1 -> Natural Gas Utility | AQ60: =$U$1 -> 0
A61: 62 | B61: =$B$2 -> Pro Forma Results of Operations | E61: Operation and Maintenance Expenses | R61: =$E61 -> Operation and Maintenance Expenses | AC61: =$E61 -> Operation and Maintenance Expenses
A62: 63 | B62: =$B$3 -> Company Base Case
A63: 64
A64: 65 | G64: =G5 -> 1 | H64: =H5 -> 1.01 | I64: =I5 -> 1.02 | J64: 1.03 | K64: 1.04 | L64: 1.05 | M64: 2.01 | N64: 2.02 | O64: 2.03 | P64: 2.04 | Q64: 2.05 | R64: 2.06 | S64: 2.07 | T64: 2.08 | U64: 2.09 | V64: 2.1 | W64: 2.11 | X64: 2.12 | Y64: 2.13 | Z64: 2.14 | AA64: 3 | AB64: 3.01 | AC64: 3.02 | AD64: 3.03 | AE64: 3.04 | AF64: 3.05 | AG64: 3.06 | AH64: 4 | AI64: 4.01 | AJ64: 4.02 | AK64: 4.03 | AN64: =AN$5 -> (an) | AO64: (ao) | AP64: (ap) | AQ64: (aq) | AR64: (ar) | AS64: (as) | AT64: (at) | AU64: (au) | AV64: (av) | AW64: (aw)
A65: 66 | B65: =IF(ISBLANK(B$6),"",B$6) ->  | C65: =IF(ISBLANK(C$6),"",C$6) ->  | D65: =IF(ISBLANK(D$6),"",D$6) ->  | E65: =IF(ISBLANK(E$6),"",E$6) -> Notes | F65: =IF(ISBLANK(F$6),"",F$6) -> Salaries & | G65: Balance | H65: =H6 -> Deferred FIT | I65: Deferred Debits | J65: Gas Inventory | K65: ADJ | L65: Working Cap | M65: Revenue Normalization | N65: Eliminate | O65: Uncollectible | P65: Regulatory | Q65: Injuries & | R65: FIT/DFIT | S65: Net Gains/ | T65: Eliminate | U65: Office Space | V65: Restate | W65: Misc. Restating | X65: Restating | Y65: Restate | Z65: Non-recurring | AA65: Pro Forma | AB65: Pro Forma | AC65: Pro Forma | AD65: Pro Forma | AE65: Pro Forma | AF65: Pro Forma | AG65: Restating | AH65: Attrition | AI65: Attrition | AJ65: Depreciation | AK65: O&M | AN65: Open | AO65: Open | AP65: Open | AQ65: Open | AR65: Open | AS65: Open | AT65: Net Total | AU65: Total | AV65: check | AW65: Total
A66: 67 | B66: =IF(ISBLANK(B$7),"",B$7) -> Account | C66: =IF(ISBLANK(C$7),"",C$7) -> Description | E66: =IF(ISBLANK(E$7),"",E$7) ->  | F66: =IF(ISBLANK(F$7),"",F$7) -> Wages | G66: per Books | H66: =H7 -> Rate Base | I66: and Credits | J66: & JP Restating | K66: FIT | L66: 0 | M66: & Gas Cost | N66: B & O Taxes | O66: Expense | P66: Expense | Q66: Damages | R66: Expense | S66: Losses | T66: A/R Expenses | U66: Charges to Subs | V66: Excise Tax | W66: Adjustments | X66: Incentive | Y66: Debt Interest | Z66: Expenses | AA66: Non-Exec Labor | AB66: Exec Labor | AC66: Empl. Benefits | AD66: Insurance | AE66: Property Tax | AF66: Atmospheric Testing | AG66: 2011 Capital | AH66: Capital Add | AI66: Capital Add | AJ66: Study | AK66: Offsets | AT66: of All | AW66: $000's
A67: 68 | B67: =IF(ISBLANK(B$8),"",B$8) ->  | C67: =IF(ISBLANK(C$8),"",C$8) ->  | D67: =IF(ISBLANK(D$8),"",D$8) ->  | E67: =IF(ISBLANK(E$8),"",E$8) ->  | F67: =IF(ISBLANK(F$8),"",F$8) ->  | H67: G-DFIT | I67: G-DDC | J67: G-GI | K67: 0 | L67: 0 | M67: G-RNGC | N67: G-EBO | O67: G-UE | P67: G-RE | Q67: G-ID | R67: G-FIT | S67: G-NGL | T67: G-EAR | U67: G-OSC | V67: G-RET | W67: G-MR | X67: G-RI | Y67: G_DI | Z67: 0 | AA67: G-PLN | AB67: G-PLE | AC67: G-PEB | AD67: G-PI | AE67: G-PT | AF67: G-PAT | AG67: G-PCAP | AH67: G-CAP12 | AI67: G-CAP13 | AJ67: G-DS | AK67: G-OFF | AT67: Adjustments | AW67: in bold
A68: 69 | C68: Distribution Expenses
A69: 70 | C69: Operation Expense
A70: 71 | B70: 870-OP | C70: Supervision & Engineering | F70: 447957 | G70: 694000 | AA70: =24000+15000 -> 39000 | AC70: 37000 | AT70: =SUM(H70:AS70) -> 76000 | AU70: =G70+AT70 -> 770000 | AW70: =ROUND(AU70/1000,0)*1000 -> 770000
A71: 72 | B71: 871-OP | C71: Distribution Load Dispatching | F71: 0 | G71: 0 | AT71: 0 | AU71: 0 | AW71: 0
A72: 73 | B72: 872-OP | C72: Compressor Station Labor & Expenses | F72: 0 | G72: 0 | AT72: 0 | AU72: 0 | AW72: 0
A73: 74 | B73: 874-OP | C73: Mains & Services Expense | F73: 945113 | G73: 2021000 | AA73: 54000 | AC73: 78000 | AT73: 132000 | AU73: 2153000 | AW73: =ROUND(AU73/1000,0)*1000 -> 2153000
A74: 75 | B74: 875-OP | C74: Measuring & Regulating Stations-General | F74: 37289 | G74: 73000 | AA74: 0 | AC74: 3000 | AT74: 3000 | AU74: 76000 | AW74: 76000
A75: 76 | B75: 876-OP | C75: Measuring & Regulating Stations-Industrial | F75: 4398 | G75: 9000 | AA75: 0 | AT75: 0 | AU75: 9000 | AW75: 9000
A76: 77 | B76: 877-OP | C76: Measuring & Regulating Stations-City Gate | F76: 41164 | G76: 111000 | AA76: 0 | AC76: 3000 | AT76: 3000 | AU76: 114000 | AW76: 114000
A77: 78 | B77: 878-OP | C77: Meters & House Regulators Expenses | F77: 357567 | G77: 652000 | AA77: 0 | AC77: 30000 | AF77: 187000 | AT77: 217000 | AU77: 869000 | AW77: 869000
A78: 79 | B78: 879-OP | C78: Customer Installations | F78: 556382 | G78: 912000 | AA78: 0 | AC78: 46000 | AT78: 46000 | AU78: 958000 | AW78: 958000
A79: 80 | B79: 880-OP | C79: Other Distribution Expense | F79: 726690 | G79: 1269000 | AA79: 0 | AC79: 60000 | AE79: 0 | AT79: 60000 | AU79: 1329000 | AW79: 1329000
A80: 81 | B80: 881-OP | C80: Rents | F80: 78 | G80: 19000 | AA80: 0 | AT80: 0 | AU80: 19000 | AW80: =ROUND(AU80/1000,0)*1000 -> 19000
A81: 82 | C81: Total Distribution Operation Expense | F81: =SUM(F70:F80) -> 3116638 | G81: 5760000 | H81: 0 | I81: 0 | J81: 0 | K81: =SUM(K70:K80) -> 0 | L81: 0 | M81: 0 | N81: 0 | O81: 0 | P81: 0 | Q81: 0 | R81: 0 | S81: 0 | T81: 0 | U81: 0 | V81: 0 | W81: =SUM(W70:W80) -> 0 | X81: =SUM(X70:X80) -> 0 | Y81: 0 | Z81: 0 | AA81: 93000 | AB81: 0 | AC81: =SUM(AC70:AC80) -> 257000 | AD81: =SUM(AD70:AD80) -> 0 | AE81: =SUM(AE70:AE80) -> 0 | AF81: =SUM(AF70:AF80) -> 187000 | AG81: =SUM(AG70:AG80) -> 0 | AH81: 0 | AI81: 0 | AJ81: 0 | AK81: 0 | AN81: 0 | AO81: 0 | AP81: 0 | AQ81: 0 | AR81: 0 | AS81: 0 | AT81: 537000 | AU81: 6297000 | AV81: =IF(ROUND(SUM(G81:AS81),0)=ROUND(AU81,0),"ok","crossfoot error") -> ok
A82: 83 | C82: Maintenance Expense
A83: 84 | B83: 885-MT | C83: Supervision & Engineering | F83: 39666 | G83: 66000 | AA83: 2000 | AC83: 3000 | AT83: =SUM(H83:AS83) -> 5000 | AU83: =G83+AT83 -> 71000 | AW83: =ROUND(AU83/1000,0)*1000 -> 71000
A84: 85 | B84: 887-MT | C84: Mains | F84: 598912 | G84: 1384000 | AA84: =34000+15000 -> 49000 | AC84: 50000 | AT84: 99000 | AU84: 1483000 | AW84: =ROUND(AU84/1000,0)*1000 -> 1483000
A85: 86 | B85: 888-MT | C85: Compressor Station Equipment | F85: 0 | G85: 0 | AA85: 0 | AT85: 0 | AU85: 0 | AW85: 0
A86: 87 | B86: 889-MT | C86: Measuring & Regulating Stations-General | F86: 46183 | G86: 119000 | AA86: 3000 | AC86: 4000 | AT86: 7000 | AU86: 126000 | AW86: 126000
A87: 88 | B87: 890-MT | C87: Measuring & Regulating Stations-Industrial | F87: 25672 | G87: 59000 | AA87: 2000 | AC87: 2000 | AT87: 4000 | AU87: 63000 | AW87: 63000
A88: 89 | B88: 891-MT | C88: Measuring & Regulating Stations-City Gate | F88: 25943 | G88: 60000 | AA88: 2000 | AC88: 2000 | AT88: 4000 | AU88: 64000 | AW88: 64000
A89: 90 | B89: 892-MT | C89: Services | F89: 306659 | G89: 526000 | AA89: 18000 | AC89: 26000 | AT89: 44000 | AU89: 570000 | AW89: 570000
A90: 91 | B90: 893-MT | C90: Meters & House Regulators | F90: 231411 | G90: 778000 | AA90: 13000 | AC90: 19000 | AT90: 32000 | AU90: 810000 | AW90: 810000
A91: 92 | B91: 894-MT | C91: Other Equipment | F91: 58429 | G91: 102000 | AA91: 3000 | AC91: 5000 | AT91: 8000 | AU91: 110000 | AW91: 110000
A92: 93 | C92: Total Distribution Maintenance Expense | F92: =SUM(F83:F87)+ SUM(F88:F91) -> 1332875 | G92: 3094000 | H92: 0 | I92: 0 | J92: 0 | K92: =SUM(K83:K87)+ SUM(K88:K91) -> 0 | L92: 0 | M92: 0 | N92: 0 | O92: 0 | P92: 0 | Q92: 0 | R92: 0 | S92: 0 | T92: 0 | U92: 0 | V92: 0 | W92: =SUM(W83:W87)+ SUM(W88:W91) -> 0 | X92: =SUM(X83:X87)+ SUM(X88:X91) -> 0 | Y92: 0 | Z92: =SUM(Z83:Z87)+ SUM(Z88:Z91) -> 0 | AA92: =SUM(AA83:AA91) -> 92000 | AB92: =SUM(AB83:AB87)+ SUM(AB88:AB91) -> 0 | AC92: =SUM(AC83:AC87)+ SUM(AC88:AC91) -> 111000 | AD92: =SUM(AD83:AD87)+ SUM(AD88:AD91) -> 0 | AE92: 0 | AF92: 0 | AG92: 0 | AH92: 0 | AI92: 0 | AJ92: 0 | AK92: 0 | AN92: 0 | AO92: 0 | AP92: 0 | AQ92: 0 | AR92: 0 | AS92: 0 | AT92: 203000 | AU92: 3297000 | AV92: =IF(ROUND(SUM(G92:AS92),0)=ROUND(AU92,0),"ok","crossfoot error") -> ok
A93: 94
A94: 95 | C94: Total Distribution Expense | F94: =F92+F81 -> 4449513 | G94: =G81+G92 -> 8854000 | H94: 0 | I94: 0 | J94: 0 | K94: 0 | L94: 0 | M94: 0 | N94: 0 | O94: 0 | P94: 0 | Q94: 0 | R94: 0 | S94: 0 | T94: 0 | U94: 0 | V94: 0 | W94: =W81+W92 -> 0 | X94: =X81+X92 -> 0 | Y94: 0 | Z94: 0 | AA94: =AA81+AA92 -> 185000 | AB94: 0 | AC94: =AC81+AC92 -> 368000 | AD94: =AD81+AD92 -> 0 | AE94: 0 | AF94: 187000 | AG94: 0 | AH94: 0 | AI94: 0 | AJ94: 0 | AK94: 0 | AN94: 0 | AO94: 0 | AP94: 0 | AQ94: 0 | AR94: 0 | AS94: 0 | AT94: 740000 | AU94: 9594000 | AV94: =IF(ROUND(SUM(G94:AS94),0)=ROUND(AU94,0),"ok","crossfoot error") -> ok | AW94: =SUM(AW70:AW91)/1000 -> 9594 | AX94: ='[1]LEAD SHEETS-DO NOT ENTER'!$AJ$34 -> 9663 | AY94: =AW94-AX94 -> -69
A95: 96
A96: 97 | C96: Customer Accounting Expenses
A97: 98 | B97: 901-OP | C97: Supervision | F97: 171738 | G97: 261000 | AA97: 0 | AC97: 14000 | AT97: =SUM(H97:AS97) -> 14000 | AU97: =G97+AT97 -> 275000 | AW97: =ROUND(AU97/1000,0)*1000 -> 275000
A98: 99 | B98: 902-OP | C98: Meter Reading | F98: 876843 | G98: 1455000 | AA98: 0 | AC98: 73000 | AT98: =SUM(H98:AS98) -> 73000 | AU98: =G98+AT98 -> 1528000 | AW98: =ROUND(AU98/1000,0)*1000 -> 1528000
A99: 100 | B99: 903-OP | C99: Customer Records & Collection | F99: 1662641 | G99: 3262000 | AA99: 103000 | AC99: 138000 | AT99: =SUM(H99:AS99) -> 241000 | AU99: =G99+AT99 -> 3503000 | AW99: =ROUND(AU99/1000,0)*1000 -> 3503000
A100: 101 | B100: 904-OP | C100: Uncollectible Accounts | G100: 1086000 | M100: -64000 | O100: -365000 | AT100: =SUM(H100:AS100) -> -429000 | AU100: =G100+AT100 -> 657000 | AW100: =ROUND(AU100/1000,0)*1000 -> 657000
A101: 102 | B101: 905-OP | C101: Misc Customer Accounts Expenses | F101: 29114 | G101: 57000 | I101: 1000 | AA101: 2000 | AC101: 3000 | AT101: =SUM(H101:AS101) -> 6000 | AU101: =G101+AT101 -> 63000 | AW101: =ROUND(AU101/1000,0)*1000 -> 63000
A102: 103 | C102: Total Customer Accounting Expenses | F102: =SUM(F97:F101) -> 2740336 | G102: 6121000 | H102: 0 | I102: =SUM(I97:I101) -> 1000 | J102: 0 | K102: =SUM(K97:K101) -> 0 | L102: 0 | M102: -64000 | N102: 0 | O102: -365000 | P102: 0 | Q102: 0 | R102: 0 | S102: 0 | T102: 0 | U102: 0 | V102: 0 | W102: =SUM(W97:W101) -> 0 | X102: =SUM(X97:X101) -> 0 | Y102: 0 | Z102: 0 | AA102: 105000 | AB102: 0 | AC102: =SUM(AC97:AC101) -> 228000 | AD102: =SUM(AD97:AD101) -> 0 | AE102: =SUM(AE97:AE101) -> 0 | AF102: =SUM(AF97:AF101) -> 0 | AG102: =SUM(AG97:AG101) -> 0 | AH102: 0 | AI102: 0 | AJ102: 0 | AK102: 0 | AN102: 0 | AO102: 0 | AP102: 0 | AQ102: 0 | AR102: 0 | AS102: 0 | AT102: -95000 | AU102: 6026000 | AV102: =IF(ROUND(SUM(G102:AS102),0)=ROUND(AU102,0),"ok","crossfoot error") -> ok | AW102: =SUM(AW97:AW101)/1000 -> 6026 | AX102: ='[1]LEAD SHEETS-DO NOT ENTER'!$AJ$39 -> 6071 | AY102: =AW102-AX102 -> -45
A103: 104
A104: 105 | C104: Customer Information Expense
A105: 106 | B105: 907-OP | C105: Supervision | G105: 0 | AT105: =SUM(H105:AS105) -> 0 | AU105: =G105+AT105 -> 0 | AW105: =ROUND(AU105/1000,0)*1000 -> 0
A106: 107 | B106: 908-OP | C106: Customer Assistance Expenses | F106: 146012 | G106: 9271000 | M106: -8953000 | AA106: 9000 | AC106: 12000 | AT106: =SUM(H106:AS106) -> -8932000 | AU106: =G106+AT106 -> 339000 | AW106: =ROUND(AU106/1000,0)*1000 -> 339000
A107: 108 | B107: 909-OP | C107: Advertising | F107: 80375 | G107: 457000 | AA107: 0 | AC107: 7000 | AT107: =SUM(H107:AS107) -> 7000 | AU107: =G107+AT107 -> 464000 | AW107: =ROUND(AU107/1000,0)*1000 -> 464000
A108: 109 | B108: 910-OP | C108: Misc Customer Service & Info Expense | F108: 16257 | G108: 55000 | W108: -7000 | AA108: 0 | AC108: 1000 | AT108: =SUM(H108:AS108) -> -6000 | AU108: =G108+AT108 -> 49000 | AW108: =ROUND(AU108/1000,0)*1000 -> 49000
A109: 110 | C109: Total Customer Information Expense | F109: =SUM(F105:F108) -> 242644 | G109: 9783000 | H109: 0 | I109: 0 | J109: 0 | K109: =SUM(K105:K108) -> 0 | L109: 0 | M109: -8953000 | N109: 0 | O109: 0 | P109: 0 | Q109: 0 | R109: 0 | S109: 0 | T109: 0 | U109: 0 | V109: 0 | W109: =SUM(W105:W108) -> -7000 | X109: =SUM(X105:X108) -> 0 | Y109: 0 | Z109: 0 | AA109: 9000 | AB109: 0 | AC109: =SUM(AC105:AC108) -> 20000 | AD109: =SUM(AD105:AD108) -> 0 | AE109: =SUM(AE105:AE108) -> 0 | AF109: =SUM(AF105:AF108) -> 0 | AG109: =SUM(AG105:AG108) -> 0 | AH109: 0 | AI109: 0 | AJ109: 0 | AK109: 0 | AN109: 0 | AO109: 0 | AP109: 0 | AQ109: 0 | AR109: 0 | AS109: 0 | AT109: -8931000 | AU109: 852000 | AV109: =IF(ROUND(SUM(G109:AS109),0)=ROUND(AU109,0),"ok","crossfoot error") -> ok | AW109: =SUM(AW105:AW108)/1000 -> 852 | AX109: ='[1]LEAD SHEETS-DO NOT ENTER'!$AJ$40 -> 857 | AY109: =AW109-AX109 -> -5
A110: 111
A111: 112 | C111: Sales Expenses
A112: 113 | B112: 911-OP | C112: Supervision | F112: 0 | G112: 0 | AT112: =SUM(H112:AS112) -> 0 | AU112: =G112+AT112 -> 0 | AW112: =ROUND(AU112/1000,0)*1000 -> 0
A113: 114 | B113: 912-OP | C113: Demonstrating & Selling Expenses | F113: 2428 | G113: 5000 | AT113: =SUM(H113:AS113) -> 0 | AU113: =G113+AT113 -> 5000 | AW113: =ROUND(AU113/1000,0)*1000 -> 5000
A114: 115 | B114: 913-OP | C114: Advertising Expenses | F114: 0 | G114: 0 | AT114: =SUM(H114:AS114) -> 0 | AU114: =G114+AT114 -> 0 | AW114: =ROUND(AU114/1000,0)*1000 -> 0
A115: 116 | B115: 916-OP | C115: Misc Sales Expenses | F115: -2006 | G115: -2000 | AT115: =SUM(H115:AS115) -> 0 | AU115: =G115+AT115 -> -2000 | AW115: =ROUND(AU115/1000,0)*1000 -> -2000
A116: 117 | C116: Total Sales Expenses | F116: =SUM(F112:F115) -> 422 | G116: 3000 | H116: 0 | I116: 0 | J116: 0 | K116: =SUM(K112:K115) -> 0 | L116: 0 | M116: 0 | N116: 0 | O116: 0 | P116: 0 | Q116: 0 | R116: 0 | S116: 0 | T116: 0 | U116: 0 | V116: 0 | W116: =SUM(W112:W115) -> 0 | X116: =SUM(X112:X115) -> 0 | Y116: 0 | Z116: 0 | AA116: 0 | AB116: 0 | AC116: =SUM(AC112:AC115) -> 0 | AD116: =SUM(AD112:AD115) -> 0 | AE116: =SUM(AE112:AE115) -> 0 | AF116: =SUM(AF112:AF115) -> 0 | AG116: =SUM(AG112:AG115) -> 0 | AH116: 0 | AI116: 0 | AJ116: 0 | AK116: 0 | AN116: 0 | AO116: 0 | AP116: 0 | AQ116: 0 | AR116: 0 | AS116: 0 | AT116: 0 | AU116: 3000 | AV116: =IF(ROUND(SUM(G116:AS116),0)=ROUND(AU116,0),"ok","crossfoot error") -> ok | AW116: =SUM(AW112:AW115)/1000 -> 3 | AX116: ='[1]LEAD SHEETS-DO NOT ENTER'!$AJ$41 -> 3 | AY116: =AW116-AX116 -> 0
A117: 118
A118: 119 | C118: Subtotal Expenses | F118: =F116+F109+F102+F94+F55+F32 -> 7967664 | G118: 212297000 | H118: 0 | I118: 1000 | J118: 88000 | K118: 0 | L118: 0 | M118: -114982000 | N118: 0 | O118: -365000 | P118: 0 | Q118: 0 | R118: 0 | S118: 0 | T118: 0 | U118: 0 | V118: 0 | W118: =W116+W109+W102+W94+W55+W32 -> -7000 | X118: =X116+X109+X102+X94+X55+X32 -> 0 | Y118: 0 | Z118: 0 | AA118: 317000 | AB118: -14000 | AC118: =AC116+AC109+AC102+AC94+AC55+AC32 -> 660000 | AD118: =AD116+AD109+AD102+AD94+AD55+AD32 -> 0 | AE118: 0 | AF118: 187000 | AG118: 0 | AH118: 0 | AI118: 0 | AJ118: 0 | AK118: 0 | AN118: 0 | AO118: 0 | AP118: 0 | AQ118: 0 | AR118: 0 | AS118: 0 | AT118: -114115000 | AU118: 98182000 | AV118: =IF(ROUND(SUM(G118:AS118),0)=ROUND(AU118,0),"ok","crossfoot error") -> ok | AW118: =AW116+AW109+AW102+AW94+AW55+AW32 -> 98182
A119: 120 | B119: =$B$1 -> Proforma | J119: =$J$1 -> Natural Gas Utility | K119: =$J$1 -> Natural Gas Utility | L119: =$J$1 -> Natural Gas Utility | T119: Natural Gas Utility | AC119: Natural Gas Utility | AN119: =$J$1 -> Natural Gas Utility | AQ119: =$U$1 -> 0
A120: 121 | B120: =$B$2 -> Pro Forma Results of Operations | E120: Admin, & General, Other Taxes & Depreciation Expense | R120: =E120 -> Admin, & General, Other Taxes & Depreciation Expense | AC120: =R120 -> Admin, & General, Other Taxes & Depreciation Expense
A121: 122 | B121: =$B$3 -> Company Base Case
A122: 123
A123: 124 | G123: =G5 -> 1 | H123: =H5 -> 1.01 | I123: 1.02 | J123: 1.03 | K123: 1.04 | L123: 1.05 | M123: 2.01 | N123: 2.02 | O123: 2.03 | P123: 2.04 | Q123: 2.05 | R123: 2.06 | S123: 2.07 | T123: 2.08 | U123: 2.09 | V123: 2.1 | W123: 2.11 | X123: 2.12 | Y123: 2.13 | Z123: 2.14 | AA123: 3 | AB123: 3.01 | AC123: 3.02 | AD123: 3.03 | AE123: 3.04 | AF123: 3.05 | AG123: 3.06 | AH123: 4 | AI123: 4.01 | AJ123: 4.02 | AK123: 4.03 | AN123: =AN$5 -> (an) | AO123: (ao) | AP123: (ap) | AQ123: (aq) | AR123: (ar) | AS123: (as) | AT123: (at) | AU123: (au) | AV123: (av) | AW123: (aw)
A124: 125 | B124: =IF(ISBLANK(B$6),"",B$6) ->  | C124: =IF(ISBLANK(C$6),"",C$6) ->  | D124: =IF(ISBLANK(D$6),"",D$6) ->  | E124: =IF(ISBLANK(E$6),"",E$6) -> Notes | F124: =IF(ISBLANK(F$6),"",F$6) -> Salaries & | G124: Balance | H124: Deferred FIT | I124: Deferred Debits | J124: Gas Inventory | K124: ADJ | L124: Working Cap | M124: Revenue Normalization | N124: Eliminate | O124: Uncollectible | P124: Regulatory | Q124: Injuries & | R124: FIT/DFIT | S124: Net Gains/ | T124: Eliminate | U124: Office Space | V124: Restate | W124: Misc. Restating | X124: Restating | Y124: Restate | Z124: Non-recurring | AA124: Pro Forma | AB124: Pro Forma | AC124: Pro Forma | AD124: Pro Forma | AE124: Pro Forma | AF124: Pro Forma | AG124: Restating | AH124: Attrition | AI124: Attrition | AJ124: Depreciation | AK124: O&M | AN124: Open | AO124: Open | AP124: Open | AQ124: Open | AR124: Open | AS124: Open | AT124: Net Total | AU124: Total | AV124: check | AW124: Total
A125: 126 | B125: =IF(ISBLANK(B$7),"",B$7) -> Account | C125: =IF(ISBLANK(C$7),"",C$7) -> Description | E125: =IF(ISBLANK(E$7),"",E$7) ->  | F125: =IF(ISBLANK(F$7),"",F$7) -> Wages | G125: per Books | H125: Rate Base | I125: and Credits | J125: & JP Restating | K125: FIT | M125: & Gas Cost | N125: B & O Taxes | O125: Expense | P125: Expense | Q125: Damages | R125: Expense | S125: Losses | T125: A/R Expenses | U125: Charges to Subs | V125: Excise Tax | W125: Adjustments | X125: Incentive | Y125: Debt Interest | Z125: Expenses | AA125: Non-Exec Labor | AB125: Exec Labor | AC125: Empl. Benefits | AD125: Insurance | AE125: Property Tax | AF125: Atmospheric Testing | AG125: 2011 Capital | AH125: Capital Add | AI125: Capital Add | AJ125: Study | AK125: Offsets | AT125: of All | AW125: $000's
A126: 127 | B126: =IF(ISBLANK(B$8),"",B$8) ->  | C126: =IF(ISBLANK(C$8),"",C$8) ->  | D126: =IF(ISBLANK(D$8),"",D$8) ->  | E126: =IF(ISBLANK(E$8),"",E$8) ->  | F126: =IF(ISBLANK(F$8),"",F$8) ->  | H126: G-DFIT | I126: G-DDC | J126: G-GI | M126: G-RNGC | N126: G-EBO | O126: G-UE | P126: G-RE | Q126: G-ID | R126: G-FIT | S126: G-NGL | T126: G-EAR | U126: G-OSC | V126: G-RET | W126: G-MR | X126: G-RI | Y126: G_DI | AA126: G-PLN | AB126: G-PLE | AC126: G-PEB | AD126: G-PI | AE126: G-PT | AF126: G-PAT | AG126: G-PCAP | AH126: G-CAP12 | AI126: G-CAP13 | AJ126: G-DS | AK126: G-OFF | AT126: Adjustments | AW126: in bold
A127: 128 | C127: Administrative & General Expenses | AV127: =AV$9 -> 0
A128: 129 | B128: 920-OP | C128: Admin. & General Salaries | F128: 2492405 | G128: 4342000 | X128: 66000 | AA128: 90000 | AB128: -181000 | AC128: 212000 | AT128: =SUM(H128:AS128) -> 187000 | AU128: =G128+AT128 -> 4529000 | AW128: =ROUND(AU128/1000,0)*1000 -> 4529000
A129: 130 | B129: 921-OP | C129: Office Supplies & Expenses | F129: 8806 | G129: 718000 | U129: -1000 | AA129: 0 | AC129: 1000 | AT129: 0 | AU129: =G129+AT129 -> 718000 | AW129: =ROUND(AU129/1000,0)*1000 -> 718000
A130: 131 | B130: 922-OP | C130: Admin. Expenses Transferred - Credit | F130: 904 | G130: -21000 | AT130: =SUM(H130:AS130) -> 0 | AU130: -21000 | AW130: -21000
A131: 132 | B131: 923-OP | C131: Outside Services Employed | F131: -303 | G131: 2607000 | AT131: 0 | AU131: 2607000 | AW131: =ROUND(AU131/1000,0)*1000 -> 2607000
A132: 133 | B132: 924-OP | C132: Property Insurance Premium | F132: 0 | G132: 192000 | AD132: =ROUND(0.3*-28000,-3) -> -8000 | AT132: -8000 | AU132: 184000 | AW132: 184000
A133: 134 | B133: 925-OP | C133: Injuries & Damages | F133: 60819 | G133: 657000 | Q133: 186000 | AA133: 0 | AC133: 5000 | AD133: =ROUND(0.71*-28000,-3) -> -20000 | AT133: 171000 | AU133: 828000 | AW133: 828000
A134: 135 | B134: 926-OP | C134: Employee Pension & Benefits | G134: 210000 | AT134: 0 | AU134: 210000 | AW134: 210000
A135: 136 | B135: 927-OP | C135: Franchise Requirements | G135: 0 | AT135: 0 | AU135: 0 | AW135: 0
A136: 137 | B136: 928-OP | C136: Regulatory Commission Expenses | F136: 214882 | G136: 645000 | M136: -29000 | P136: 44000 | AA136: 10000 | AC136: 18000 | AT136: 43000 | AU136: 688000 | AW136: =ROUND(AU136/1000,0)*1000 -> 688000
A137: 138 | B137: 930-OP | C137: Miscellaneous & General Expense | F137: 25124 | G137: 542000 | I137: 44000 | AA137: 0 | AB137: 0 | AC137: 2000 | AE137: 0 | AK137: 0 | AT137: 46000 | AU137: 588000 | AW137: 588000
A138: 139 | B138: 931-OP | C138: Rents | G138: 156000 | AT138: 0 | AU138: 156000 | AW138: 156000
A139: 140 | B139: 935-MT | C139: Maintenance of General Plant | F139: 236697 | G139: 1336000 | W139: -82000 | Z139: -307000 | AA139: 0 | AC139: 20000 | AT139: -369000 | AU139: 967000 | AW139: 967000
A140: 141 | C140: Total Administrative & General Expenses | F140: =SUM(F128:F139) -> 3039334 | G140: 11384000 | H140: 0 | I140: 44000 | J140: 0 | K140: =SUM(K128:K139) -> 0 | L140: 0 | M140: =SUM(M128:M139) -> -29000 | N140: 0 | O140: =SUM(O128:O139) -> 0 | P140: 44000 | Q140: 186000 | R140: 0 | S140: 0 | T140: 0 | U140: -1000 | V140: 0 | W140: =SUM(W128:W139) -> -82000 | X140: =SUM(X128:X139) -> 66000 | Y140: 0 | Z140: -307000 | AA140: 100000 | AB140: -181000 | AC140: =SUM(AC128:AC139) -> 258000 | AD140: =SUM(AD128:AD139) -> -28000 | AE140: =SUM(AE128:AE139) -> 0 | AF140: =SUM(AF128:AF139) -> 0 | AG140: =SUM(AG128:AG139) -> 0 | AH140: 0 | AI140: 0 | AJ140: 0 | AK140: 0 | AN140: 0 | AO140: 0 | AP140: 0 | AQ140: 0 | AR140: 0 | AS140: 0 | AT140: 70000 | AU140: 11454000 | AV140: =IF(ROUND(SUM(G140:AS140),0)=ROUND(AU140,0),"ok","crossfoot error") -> ok | AW140: =SUM(AW128:AW139)/1000 -> 11454 | AX140: ='[1]LEAD SHEETS-DO NOT ENTER'!$AJ$44 -> 12161 | AY140: =AW140-AX140 -> -707
A141: 142
A142: 143 | C142: Total Operating & Maintenance Expenses | F142: =F140+F118 -> 11006998 | G142: 223681000 | H142: 0 | I142: 45000 | J142: 88000 | K142: 0 | L142: 0 | M142: =M140+M118 -> -115011000 | N142: 0 | O142: -365000 | P142: 44000 | Q142: 186000 | R142: 0 | S142: 0 | T142: 0 | U142: -1000 | V142: 0 | W142: =W140+W118 -> -89000 | X142: =X140+X118 -> 66000 | Y142: 0 | Z142: -307000 | AA142: 417000 | AB142: -195000 | AC142: =AC140+AC118 -> 918000 | AD142: =AD140+AD118 -> -28000 | AE142: 0 | AF142: 187000 | AG142: 0 | AH142: 0 | AI142: 0 | AJ142: 0 | AK142: 0 | AN142: =AN140+AN118 -> 0 | AO142: 0 | AP142: 0 | AQ142: 0 | AR142: 0 | AS142: 0 | AT142: -114045000 | AU142: 109636000 | AV142: =IF(ROUND(SUM(G142:AS142),0)=ROUND(AU142,0),"ok","crossfoot error") -> ok | AW142: 109636 | AX142: ='[1]LEAD SHEETS-DO NOT ENTER'!$AJ$25+'[1]LEAD SHEETS-DO NOT ENTER'!$AJ$28+'[1]LEAD SHEETS-DO NOT ENTER'!$AJ$34+'[1]LEAD SHEETS-DO NOT ENTER'!$AJ$39+'[1]LEAD SHEETS-DO NOT ENTER'!$AJ$40+'[1]LEAD SHEETS-DO NOT ENTER'!$AJ$41+'[1]LEAD SHEETS-DO NOT ENTER'!$AJ$44 -> 110596 | AY142: =AW142-AX142 -> -960
A143: 144 | F143: =F142-[2]GasWAAdj!$P$73 -> 0
A144: 145 | B144: Taxes Other Than Income Taxes
A145: 146 | C145: Property Related
A146: 147 | C146: -Production | G146: 0 | AT146: =SUM(H146:AS146) -> 0 | AU146: =G146+AT146 -> 0
A147: 148 | C147: -Underground Storage | G147: 19000 | AE147: 3000 | AT147: =SUM(H147:AS147) -> 3000 | AU147: =G147+AT147 -> 22000 | AW147: =ROUND(AU147/1000,0) -> 22 | AX147: ='[1]LEAD SHEETS-DO NOT ENTER'!$AJ$30 -> 38 | AY147: =AW147-AX147 -> -16
A148: 149 | C148: -Distribution | G148: 1901000 | AE148: 57000 | AT148: =SUM(H148:AS148) -> 57000 | AU148: =G148+AT148 -> 1958000 | AW148: =ROUND(AU148/1000,0)+1 -> 1959 | AY148: =AW148-AX148 -> 1959 | AZ148: =AY148+AY153 -> -200
A149: 150 | C149: -Administrative & General | G149: 0 | AE149: 1000 | AT149: =SUM(H149:AS149) -> 1000 | AU149: =G149+AT149 -> 1000 | AW149: =ROUND(AU149/1000,0) -> 1 | AX149: ='[1]LEAD SHEETS-DO NOT ENTER'!$AJ$47 -> 4 | AY149: =AW149-AX149 -> -3
A150: 151 | C150: Total Property Related | G150: =SUM(G146:G149) -> 1920000 | H150: 0 | I150: 0 | J150: 0 | K150: 0 | L150: 0 | M150: =SUM(M146:M149) -> 0 | N150: 0 | O150: 0 | P150: 0 | Q150: 0 | R150: 0 | S150: 0 | T150: 0 | U150: 0 | V150: 0 | W150: =SUM(W146:W149) -> 0 | X150: =SUM(X146:X149) -> 0 | Y150: 0 | Z150: 0 | AA150: 0 | AB150: 0 | AC150: =SUM(AC146:AC149) -> 0 | AD150: =SUM(AD146:AD149) -> 0 | AE150: =SUM(AE146:AE149) -> 61000 | AF150: =SUM(AF146:AF149) -> 0 | AG150: =SUM(AG146:AG149) -> 0 | AH150: 0 | AI150: 0 | AJ150: 0 | AK150: 0 | AN150: 0 | AO150: 0 | AP150: 0 | AQ150: 0 | AR150: 0 | AS150: 0 | AT150: 61000 | AU150: 1981000 | AV150: =IF(ROUND(SUM(G150:AS150),0)=ROUND(AU150,0),"ok","crossfoot error") -> ok | AW150: 1982
A151: 152
A152: 153 | C152: State Excise
A153: 154 | C153: -Distribution | G153: 6317000 | M153: -565000 | V153: 2000 | AT153: =SUM(H153:AS153) -> -563000 | AU153: =G153+AT153 -> 5754000 | AW153: =ROUND(AU153/1000,0) -> 5754 | AX153: ='[1]LEAD SHEETS-DO NOT ENTER'!$AJ$36 -> 7913 | AY153: =AW153-AX153 -> -2159 | AZ153: =AY153+AY148 -> -200
A154: 155
A155: 156 | C155: Business & Occupation
A156: 157 | C156: -Distribution | G156: 6046000 | N156: -6045000 | AT156: =SUM(H156:AS156) -> -6045000 | AU156: =G156+AT156 -> 1000 | AW156: =ROUND(AU156/1000,0)-1 -> 0
A157: 158 | C157: -Open | AT157: =SUM(H157:AS157) -> 0 | AU157: =G157+AT157 -> 0 | AW157: =ROUND(AU157/1000,0) -> 0
A158: 159 | C158: -Open | AT158: =SUM(H158:AS158) -> 0 | AU158: =G158+AT158 -> 0 | AW158: =ROUND(AU158/1000,0) -> 0
A159: 160 | C159: Total Business & Occupation | G159: =SUM(G156:G158) -> 6046000 | H159: 0 | I159: 0 | J159: 0 | K159: 0 | L159: 0 | M159: =SUM(M156:M158) -> 0 | N159: -6045000 | O159: 0 | P159: 0 | Q159: 0 | R159: 0 | S159: 0 | T159: 0 | U159: 0 | V159: 0 | W159: =SUM(W156:W158) -> 0 | X159: =SUM(X156:X158) -> 0 | Y159: 0 | Z159: 0 | AA159: 0 | AB159: 0 | AC159: =SUM(AC156:AC158) -> 0 | AD159: =SUM(AD156:AD158) -> 0 | AE159: =SUM(AE156:AE158) -> 0 | AF159: =SUM(AF156:AF158) -> 0 | AG159: =SUM(AG156:AG158) -> 0 | AH159: 0 | AI159: 0 | AJ159: 0 | AK159: 0 | AN159: 0 | AO159: 0 | AP159: 0 | AQ159: 0 | AR159: 0 | AS159: 0 | AT159: -6045000 | AU159: 1000 | AV159: =IF(ROUND(SUM(G159:AS159),0)=ROUND(AU159,0),"ok","crossfoot error") -> ok | AW159: 0
A160: 161
A161: 162 | C161: Miscellaneous
A162: 163 | C162: -Distribution | G162: 0 | AT162: =SUM(H162:AS162) -> 0 | AU162: =G162+AT162 -> 0
A163: 164
A164: 165 | C164: Total Taxes Other Than Income Taxes | G164: =G162+G159+G153+G150 -> 14283000 | H164: 0 | I164: 0 | J164: 0 | K164: 0 | L164: 0 | M164: =M162+M159+M153+M150 -> -565000 | N164: -6045000 | O164: 0 | P164: 0 | Q164: 0 | R164: 0 | S164: 0 | T164: 0 | U164: 0 | V164: 2000 | W164: =W162+W159+W153+W150 -> 0 | X164: =X162+X159+X153+X150 -> 0 | Y164: 0 | Z164: 0 | AA164: 0 | AB164: 0 | AC164: =AC162+AC159+AC153+AC150 -> 0 | AD164: =AD162+AD159+AD153+AD150 -> 0 | AE164: 61000 | AF164: 0 | AG164: 0 | AH164: 0 | AI164: 0 | AJ164: 0 | AK164: 0 | AN164: =AN162+AN159+AN153+AN150 -> 0 | AO164: 0 | AP164: 0 | AQ164: 0 | AR164: 0 | AS164: 0 | AT164: -6547000 | AU164: 7736000 | AV164: =IF(ROUND(SUM(G164:AS164),0)=ROUND(AU164,0),"ok","crossfoot error") -> ok | AW164: =AW162+AW159+AW153+AW150 -> 7736 | AX164: ='[1]LEAD SHEETS-DO NOT ENTER'!$AJ$30+'[1]LEAD SHEETS-DO NOT ENTER'!$AJ$36+'[1]LEAD SHEETS-DO NOT ENTER'!$AJ$47 -> 7955 | AY164: =AW164-AX164 -> -219
A165: 166
A166: 167 | B166: Depreciation Expense
A167: 168 | C167: Underground Storage Plant Depreciation Expense
A168: 169 | B168: 350 | C168: Land & Land Rights Depr. Exp. | G168: =1000 -> 1000 | AG168: 0 | AT168: =SUM(H168:AS168) -> 0 | AU168: =G168+AT168 -> 1000 | AW168: =ROUND(AU168/1000,0)*1000 -> 1000
A169: 170 | B169: 351 | C169: Structures & Improvements Depr. Exp. | G169: 13000 | AG169: 0 | AT169: 0 | AU169: 13000 | AW169: 13000
A170: 171 | B170: 352 | C170: Wells Depr. Exp. | G170: 188000 | AG170: 0 | AH170: 0 | AI170: 0 | AJ170: -96000 | AT170: -96000 | AU170: 92000 | AW170: =ROUND(AU170/1000,0)*1000 -> 92000
A171: 172 | B171: 353 | C171: Lines Depr. Exp. | G171: 17000 | AG171: 0 | AJ171: 0 | AT171: 0 | AU171: 17000 | AW171: 17000
A172: 173 | B172: 354 | C172: Compressor Station Equip. Depr. Exp. | G172: 143000 | AG172: 0 | AJ172: 5000 | AT172: 5000 | AU172: 148000 | AW172: 148000
A173: 174 | B173: 355 | C173: Measuring & Regulating Equip. Depr. Exp. | G173: 6000 | AG173: 0 | AJ173: 28000 | AT173: 28000 | AU173: 34000 | AW173: 34000
A174: 175 | B174: 356 | C174: Purification Equipment Depr. Exp. | G174: 7000 | AG174: 0 | AJ174: 0 | AT174: 0 | AU174: 7000 | AW174: 7000
A175: 176 | B175: 357 | C175: Other Equipment Depr. Exp. | G175: 20000 | AG175: 0 | AJ175: 0 | AT175: 0 | AU175: 20000 | AW175: 20000
A176: 177 | C176: Total Underground Storage Plant Depr. Exp. | G176: =SUM(G168:G175) -> 395000 | H176: =SUM(H168:H175) -> 0 | I176: 0 | J176: 0 | K176: 0 | L176: 0 | M176: =SUM(M168:M175) -> 0 | N176: 0 | O176: 0 | P176: 0 | Q176: 0 | R176: 0 | S176: 0 | T176: 0 | U176: 0 | V176: 0 | W176: =SUM(W168:W175) -> 0 | X176: =SUM(X168:X175) -> 0 | Y176: 0 | Z176: 0 | AA176: 0 | AB176: 0 | AC176: =SUM(AC168:AC175) -> 0 | AD176: =SUM(AD168:AD175) -> 0 | AE176: =SUM(AE168:AE175) -> 0 | AF176: =SUM(AF168:AF175) -> 0 | AG176: =SUM(AG168:AG175) -> 0 | AH176: 0 | AI176: 0 | AJ176: -63000 | AK176: 0 | AN176: 0 | AO176: 0 | AP176: 0 | AQ176: 0 | AR176: 0 | AS176: 0 | AT176: -63000 | AU176: 332000 | AV176: =IF(ROUND(SUM(G176:AS176),0)=ROUND(AU176,0),"ok","crossfoot error") -> ok | AW176: =SUM(AW168:AW175)/1000 -> 332 | AX176: ='[1]LEAD SHEETS-DO NOT ENTER'!$AJ$29 -> 367 | AY176: =AW176-AX176 -> -35
A177: 178
A178: 179 | B178: =$B$1 -> Proforma | J178: =$J$1 -> Natural Gas Utility | K178: =$J$1 -> Natural Gas Utility | L178: =$J$1 -> Natural Gas Utility | T178: Natural Gas Utility | AN178: =$J$1 -> Natural Gas Utility | AQ178: =$U$1 -> 0
A179: 180 | B179: =$B$2 -> Pro Forma Results of Operations | E179: Depreciation Expense & Income Tax | R179: =E179 -> Depreciation Expense & Income Tax | AC179: =E179 -> Depreciation Expense & Income Tax
A180: 181 | B180: =$B$3 -> Company Base Case
A181: 182
A182: 183 | G182: =G5 -> 1 | H182: =H5 -> 1.01 | I182: 1.02 | J182: 1.03 | K182: 1.04 | L182: 1.05 | M182: 2.01 | N182: 2.02 | O182: 2.03 | P182: 2.04 | Q182: 2.05 | R182: 2.06 | S182: 2.07 | T182: 2.08 | U182: 2.09 | V182: 2.1 | W182: 2.11 | X182: 2.12 | Y182: 2.13 | Z182: 2.14 | AA182: 3 | AB182: 3.01 | AC182: 3.02 | AD182: 3.03 | AE182: 3.04 | AF182: 3.05 | AG182: 3.06 | AH182: 4 | AI182: 4.01 | AJ182: 4.02 | AK182: 4.03 | AN182: =AN$5 -> (an) | AO182: (ao) | AP182: (ap) | AQ182: (aq) | AR182: (ar) | AS182: (as) | AT182: (at) | AU182: (au) | AV182: (av) | AW182: (aw)
A183: 184 | B183: =IF(ISBLANK(B$6),"",B$6) ->  | C183: =IF(ISBLANK(C$6),"",C$6) ->  | D183: =IF(ISBLANK(D$6),"",D$6) ->  | E183: =IF(ISBLANK(E$6),"",E$6) -> Notes | F183: System | G183: Balance | H183: =IF(ISBLANK(H$6),"",H$6) -> Deferred FIT | I183: Deferred Debits | J183: Gas Inventory | K183: ADJ | L183: Working Cap | M183: Revenue Normalization | N183: Eliminate | O183: Uncollectible | P183: Regulatory | Q183: Injuries & | R183: FIT/DFIT | S183: Net Gains/ | T183: Eliminate | U183: Office Space | V183: Restate | W183: Misc. Restating | X183: Restating | Y183: Restate | Z183: Non-recurring | AA183: Pro Forma | AB183: Pro Forma | AC183: Pro Forma | AD183: Pro Forma | AE183: Pro Forma | AF183: Pro Forma | AG183: Restating | AH183: Attrition | AI183: Attrition | AJ183: Depreciation | AK183: O&M | AN183: Open | AO183: Open | AP183: Open | AQ183: Open | AR183: Open | AS183: Open | AT183: Net Total | AU183: Total | AV183: check | AW183: Total
A184: 185 | B184: =IF(ISBLANK(B$7),"",B$7) -> Account | C184: =IF(ISBLANK(C$7),"",C$7) -> Description | E184: =IF(ISBLANK(E$7),"",E$7) ->  | F184: Current Accrual | G184: per Books | H184: =IF(ISBLANK(H$7),"",H$7) -> Rate Base | I184: and Credits | J184: & JP Restating | K184: FIT | M184: & Gas Cost | N184: B & O Taxes | O184: Expense | P184: Expense | Q184: Damages | R184: Expense | S184: Losses | T184: A/R Expenses | U184: Charges to Subs | V184: Excise Tax | W184: Adjustments | X184: Incentive | Y184: Debt Interest | Z184: Expenses | AA184: Non-Exec Labor | AB184: Exec Labor | AC184: Empl. Benefits | AD184: Insurance | AE184: Property Tax | AF184: Atmospheric Testing | AG184: 2011 Capital | AH184: Capital Add | AI184: Capital Add | AJ184: Study | AK184: Offsets | AT184: of All | AW184: $000's
A185: 186 | B185: =IF(ISBLANK(B$8),"",B$8) ->  | C185: =IF(ISBLANK(C$8),"",C$8) ->  | D185: =IF(ISBLANK(D$8),"",D$8) ->  | E185: =IF(ISBLANK(E$8),"",E$8) ->  | F185: =IF(ISBLANK(F$8),"",F$8) ->  | H185: G-DFIT | I185: G-DDC | J185: G-GI | M185: G-RNGC | N185: G-EBO | O185: G-UE | P185: G-RE | Q185: G-ID | R185: G-FIT | S185: G-NGL | T185: G-EAR | U185: G-OSC | V185: G-RET | W185: G-MR | X185: G-RI | Y185: G_DI | AA185: G-PLN | AB185: G-PLE | AC185: G-PEB | AD185: G-PI | AE185: G-PT | AF185: G-PAT | AG185: G-PCAP | AH185: G-CAP12 | AI185: G-CAP13 | AJ185: G-DS | AK185: G-OFF | AT185: Adjustments | AW185: in bold
A186: 187 | C186: Distribution Plant Depreciation Expense
A187: 188 | B187: 374 | C187: Land & Land Rights Depr. Exp. | G187: 0 | AG187: 0 | AT187: =SUM(H187:AS187) -> 0 | AU187: =G187+AT187 -> 0 | AW187: =ROUND(AU187/1000,0)*1000 -> 0
A188: 189 | B188: 375 | C188: Structures & Improvements Depr. Exp. | E188: 2523000 | G188: 10000 | AG188: 0 | AJ188: -2000 | AT188: -2000 | AU188: 8000 | AW188: 8000
A189: 190 | B189: 376-SM | C189: Mains Depr. Exp. | E189: =E268 -> 0.673 | G189: =ROUND($E$188*E189,-3) -> 1698000 | AG189: 0 | AH189: 0 | AI189: 0 | AJ189: =ROUND(E189*(10000+830000),-3) -> 565000 | AT189: 565000 | AU189: 2263000 | AV189: =AU189+AU190 -> 3363000 | AW189: =ROUND(AU189/1000,0)*1000 -> 2263000
A190: 191 | B190: 376-LG | C190: Mains Depr. Exp. | E190: =E269 -> 0.327 | G190: =ROUND($E$188*E190,-3) -> 825000 | AG190: 0 | AJ190: =ROUND(E190*(10000+830000),-3) -> 275000 | AT190: 275000 | AU190: 1100000 | AW190: 1100000
A191: 192 | B191: 378 | C191: Meas & Reg Station Equip-Gen Depr. Exp. | G191: 95000 | S191: -3000 | AG191: 0 | AJ191: 0 | AT191: -3000 | AU191: 92000 | AW191: =ROUND(AU191/1000,0)*1000 -> 92000
A192: 193 | B192: 379 | C192: Meas & Reg Station Equip-City Gate Depr. Exp. | G192: 54000 | AG192: 0 | AJ192: -4000 | AT192: -4000 | AU192: 50000 | AW192: 50000
A193: 194 | B193: 380 | C193: Services Depr. Exp. | G193: =2597000+1000 -> 2598000 | AG193: 0 | AJ193: =-347000+2000 -> -345000 | AT193: -345000 | AU193: 2253000 | AW193: =ROUND(AU193/1000,0)*1000 -> 2253000
A194: 195 | B194: 381 | C194: Meters Depr. Exp. | G194: 1319000 | AG194: 0 | AJ194: -152000 | AT194: -152000 | AU194: 1167000 | AW194: =ROUND(AU194/1000,0)*1000 -> 1167000
A195: 196 | B195: 382 | C195: Meter Installations Depr. Exp. | G195: 0 | AG195: 0 | AT195: 0 | AU195: 0 | AW195: 0
A196: 197 | B196: 383 | C196: House Regulators Depr. Exp. | G196: 0 | AG196: 0 | AT196: 0 | AU196: 0 | AW196: 0
A197: 198 | B197: 384 | C197: House Regulator Installations Depr. Exp. | G197: 0 | AG197: 0 | AT197: 0 | AU197: 0 | AW197: 0
A198: 199 | B198: 385 | C198: Industrial Meas & Reg Station Equip. Depr. Exp. | G198: 53000 | AG198: 0 | AJ198: -12000 | AT198: =SUM(H198:AS198) -> -12000 | AU198: =G198+AT198 -> 41000 | AW198: 41000
A199: 200 | B199: 387 | C199: Other Equipment Depr. Exp. | G199: 0 | AG199: 0 | AT199: 0 | AU199: 0 | AW199: 0
A200: 201 | C200: Total Distribution Plant Depreciation Expense | G200: =SUM(G187:G199) -> 6652000 | H200: =SUM(H187:H199) -> 0 | I200: 0 | J200: 0 | K200: 0 | L200: 0 | M200: =SUM(M187:M199) -> 0 | N200: 0 | O200: 0 | P200: 0 | Q200: 0 | R200: 0 | S200: -3000 | T200: 0 | U200: 0 | V200: 0 | W200: =SUM(W187:W199) -> 0 | X200: =SUM(X187:X199) -> 0 | Y200: 0 | Z200: 0 | AA200: 0 | AB200: 0 | AC200: =SUM(AC187:AC199) -> 0 | AD200: =SUM(AD187:AD199) -> 0 | AE200: =SUM(AE187:AE199) -> 0 | AF200: =SUM(AF187:AF199) -> 0 | AG200: =SUM(AG187:AG199) -> 0 | AH200: 0 | AI200: 0 | AJ200: 325000 | AK200: 0 | AN200: 0 | AO200: 0 | AP200: 0 | AQ200: 0 | AR200: 0 | AS200: 0 | AT200: 322000 | AU200: =SUM(AU187:AU199) -> 6974000 | AV200: =IF(ROUND(SUM(G200:AS200),0)=ROUND(AU200,0),"ok","crossfoot error") -> ok | AW200: =SUM(AW187:AW199)/1000 -> 6974 | AX200: ='[1]LEAD SHEETS-DO NOT ENTER'!$AJ$35 -> 7549 | AY200: =AW200-AX200 -> -575 | AZ200: =AY200+AY213+AY224 -> -1881
... 212 more rows

Sheet PROFORMA (Company) (hidden)
A1: 1 | B1: Proforma | J1: Natural Gas Utility | AK1: =$J$1 -> Natural Gas Utility | AN1: =$S$1 -> 0
A2: 2 | B2: Pro Forma Results of Operations
A3: 3 | B3: Company Base Case
A4: 4
A5: 5 | G5: 1 | H5: =G5+0.01 -> 1.01 | I5: =H5+0.01 -> 1.02 | J5: =I5+0.01 -> 1.03 | K5: =2+0.01 -> 2.01 | L5: =K5+0.01 -> 2.02 | M5: 2.03 | N5: 2.04 | O5: 2.05 | P5: 2.06 | Q5: 2.07 | R5: 2.08 | S5: 2.09 | T5: 2.1 | U5: 2.11 | V5: 2.12 | W5: 2.13 | X5: =3 -> 3 | Y5: =X5+0.01 -> 3.01 | Z5: 3.02 | AA5: 3.03 | AB5: 3.04 | AC5: 3.05 | AD5: 3.06 | AE5: =4 -> 4 | AF5: =AE5+0.01 -> 4.01 | AG5: =AF5+0.01 -> 4.02 | AH5: =AG5+0.01 -> 4.03 | AK5: =ColHdr -> (ak) | AL5: (al) | AM5: (am) | AN5: (an) | AO5: (ao) | AP5: (ap) | AQ5: (aq) | AR5: (ar) | AS5: (as) | AT5: (at)
A6: 6 | E6: Notes | F6: Salaries & | G6: Per Results | H6: Deferred FIT | I6: Deferred Debits | J6: Gas Inventory | K6: Revenue Normalization | L6: Eliminate | M6: Uncollectible | N6: Regulatory | O6: Injuries & | P6: FIT/DFIT | Q6: Net Gains/ | R6: Eliminate | S6: Office Space | T6: Restate | U6: Misc. Restating | V6: Restating | W6: Restate | X6: Pro Forma | Y6: Pro Forma | Z6: Pro Forma | AA6: Pro Forma | AB6: Pro Forma | AC6: Pro Forma | AD6: Restating | AE6: Attrition | AF6: Attrition | AG6: Depreciation | AH6: O&M | AK6: Open | AL6: Open | AM6: Open | AN6: Open | AO6: Open | AP6: Open | AQ6: Net Total | AR6: Total | AS6: check | AT6: Total
A7: 7 | B7: Account | C7: Description | F7: Wages | G7: Report | H7: Rate Base | I7: and Credits | J7: & JP Restating | K7: & Gas Cost | L7: B & O Taxes | M7: Expense | N7: Expense | O7: Damages | P7: Expense | Q7: Losses | R7: A/R Expenses | S7: Charges to Subs | T7: Excise Tax | U7: Adjustments | V7: Incentive | W7: Debt Interest | X7: Non-Exec Labor | Y7: Exec Labor | Z7: Empl. Benefits | AA7: Insurance | AB7: Property Tax | AC7: Atmospheric Testing | AD7: 2011 Capital | AE7: Capital Add | AF7: Capital Add | AG7: Study | AH7: Offsets | AQ7: of All | AT7: $000's | AU7: Case
A8: 8 | G8: Adj G-ROO | H8: G-DFIT | I8: G-DDC | J8: G-GI | K8: G-RNGC | L8: G-EBO | M8: G-UE | N8: G-RE | O8: G-ID | P8: G-FIT | Q8: G-NGL | R8: G-EAR | S8: G-OSC | T8: G-RET | U8: G-MR | V8: G-RI | W8: G_DI | X8: G-PLN | Y8: G-PLE | Z8: G-PEB | AA8: G-PI | AB8: G-PT | AC8: G-PAT | AD8: G-PCAP | AE8: G-CAP12 | AF8: G-CAP13 | AG8: G-DS | AH8: G-OFF | AQ8: Adjustments | AT8: in bold | AU8: Pro Forma
A9: 9 | B9: Operation & Maintenance Expenses | AU9: Total | AV9: Diff
A10: 10 | C10: Purchased Gas Expenses
A11: 11 | B11: 804-000 | C11: Gas Purchases | G11: 165019000 | K11: =-G11 -> -165019000 | AQ11: =SUM(H11:AP11) -> -165019000 | AR11: =G11+AQ11 -> 0 | AT11: =ROUND(AR11/1000,0)*1000 -> 0
A12: 12 | B12: 804-001 | C12: Pipeline Demand Costs | G12: 18496000 | K12: -18496000 | AQ12: -18496000 | AR12: 0 | AT12: 0
A13: 13 | B13: 804-002 | C13: Transport Variable Charges | G13: 258000 | K13: -258000 | AQ13: -258000 | AR13: 0 | AT13: 0
A14: 14 | B14: 804-017 | C14: Transaction Fees | G14: 151000 | K14: -151000 | AQ14: -151000 | AR14: 0 | AT14: 0
A15: 15 | B15: 804-730 | C15: Gas Costs - Intracompany LDC Gas | G15: 12162000 | K15: -12162000 | AQ15: -12162000 | AR15: 0 | AT15: 0
A16: 16 | B16: 804-170 | C16: Gas Transaction Fees | G16: 0 | K16: 0 | AQ16: 0 | AR16: 0 | AT16: 0
A17: 17 | B17: 804-600 | C17: Gas Purchases - Financial | G17: 1172000 | K17: -1172000 | AQ17: -1172000 | AR17: 0 | AT17: 0
A18: 18 | B18: 804-700 | C18: Off System Gas Purchases - Bookout | G18: 3182000 | K18: -3182000 | AQ18: -3182000 | AR18: 0 | AT18: 0
A19: 19 | B19: 804-711 | C19: Off System Bookout Offset | G19: -3182000 | K19: 3182000 | AQ19: 3182000 | AR19: 0 | AT19: 0
A20: 20 | B20: 804-010 | C20: Gas Costs - Fixed Hedge | G20: -36000 | K20: 36000 | AQ20: 36000 | AR20: 0 | AT20: 0
A21: 21 | B21: 805-110 | C21: Gas Exp - Rate Amortizations | G21: -11104000 | K21: 11104000 | AQ21: 11104000 | AR21: 0 | AT21: 0
A22: 22 | B22: 805-120 | C22: Gas Expense - Rate Deferrals | G22: 5184000 | K22: -5184000 | AQ22: -5184000 | AR22: 0 | AT22: 0
A23: 23 | B23: 805-980 | C23: Gas Expense - Estimated Amortizations | G23: 0 | K23: 0 | AQ23: 0 | AR23: 0 | AT23: 0
A24: 24 | B24: 805-990 | C24: Gas Expense - Estimated Deferrals | G24: 0 | K24: 0 | AQ24: 0 | AR24: 0 | AT24: 0
A25: 25 | B25: Open | C25: Open | G25: 0 | K25: 0 | AQ25: 0 | AR25: 0 | AT25: 0
A26: 26 | B26: 808-xxx | C26: Net Natural Gas Storage Transactions | G26: -4366000 | K26: 4366000 | AQ26: 4366000 | AR26: 0 | AT26: 0
A27: 27 | B27: 804.xx | C27: Proforma Purchased Gas Expense | G27: 0 | K27: 80007000 | AQ27: 80007000 | AR27: 80007000 | AT27: 80007000
A28: 28 | C28: Total Purchased Gas Cost | G28: =SUM(G11:G27) -> 186936000 | H28: 0 | I28: 0 | J28: 0 | K28: -106929000 | L28: 0 | M28: 0 | N28: 0 | O28: 0 | P28: 0 | Q28: 0 | R28: 0 | S28: 0 | T28: 0 | U28: 0 | V28: 0 | W28: 0 | X28: 0 | Y28: 0 | Z28: 0 | AA28: 0 | AB28: 0 | AC28: 0 | AD28: 0 | AE28: 0 | AF28: 0 | AG28: 0 | AH28: 0 | AK28: =SUM(AK11:AK27) -> 0 | AL28: 0 | AM28: 0 | AN28: 0 | AO28: 0 | AP28: 0 | AQ28: -106929000 | AR28: 80007000 | AS28: =IF(ROUND(SUM(G28:AP28),0)=ROUND(AR28,0),"ok","crossfoot error") -> ok | AT28: =SUM(AT11:AT27)/1000 -> 80007
A29: 29 | B29: 811-00 | C29: Gas Used for Products Extraction | F29: 0 | G29: -967000 | K29: =-G29 -> 967000 | AQ29: =SUM(H29:AP29) -> 967000 | AR29: =G29+AQ29 -> 0 | AT29: =ROUND(AR29/1000,0)*1000 -> 0
A30: 30 | B30: 813-010 | C30: GTI Expenses | F30: 0 | G30: 78000 | K30: -3000 | AQ30: =SUM(H30:AP30) -> -3000 | AR30: =G30+AQ30 -> 75000 | AT30: =ROUND(AR30/1000,0)*1000 -> 75000
A31: 31 | B31: 813-xxx | C31: Other Gas Expenses | F31: 529724 | G31: 904000 | X31: 26000 | Y31: 1000 | Z31: 44000 | AQ31: =SUM(H31:AP31) -> 71000 | AR31: =G31+AQ31 -> 975000 | AT31: =ROUND(AR31/1000,0)*1000-1000 -> 974000
A32: 32 | C32: Total Purchased Gas Expenses | F32: =SUM(F28:F31) -> 529724 | G32: 186951000 | H32: 0 | I32: 0 | J32: 0 | K32: -105965000 | L32: 0 | M32: 0 | N32: 0 | O32: 0 | P32: 0 | Q32: 0 | R32: 0 | S32: 0 | T32: 0 | U32: 0 | V32: 0 | W32: 0 | X32: 26000 | Y32: 1000 | Z32: 44000 | AA32: 0 | AB32: 0 | AC32: 0 | AD32: 0 | AE32: 0 | AF32: 0 | AG32: 0 | AH32: 0 | AK32: =SUM(AK28:AK31) -> 0 | AL32: 0 | AM32: 0 | AN32: 0 | AO32: 0 | AP32: 0 | AQ32: -105894000 | AR32: 81057000 | AS32: =IF(ROUND(SUM(G32:AP32),0)=ROUND(AR32,0),"ok","crossfoot error") -> ok | AT32: =AT28+SUM(AT29:AT31)/1000 -> 81056 | AU32: ='[1]LEAD SHEETS-DO NOT ENTER'!$AJ$25 -> 81056 | AV32: =AT32-AU32 -> 0
A33: 33
A34: 34 | C34: Underground Storage Expenses
A35: 35 | B35: 814-OP | C35: Supervision & Engineering | F35: 5025 | G35: 10000 | AQ35: =SUM(H35:AP35) -> 0 | AR35: =G35+AQ35 -> 10000 | AT35: =ROUND(AR35/1000,0)*1000 -> 10000
A36: 36 | B36: 815-OP | C36: Maps & Records | G36: 0 | AQ36: 0 | AR36: 0
A37: 37 | B37: 816-OP | C37: Wells Expenses | G37: 0 | AQ37: 0 | AR37: 0
A38: 38 | B38: 817-OP | C38: Lines Expenses | G38: 0 | AQ38: 0 | AR38: 0
A39: 39 | B39: 818-OP | C39: Compressor Station Expenses | G39: 0 | AQ39: 0 | AR39: 0
A40: 40 | B40: 819-OP | C40: Compressor Station Fuel & Power | G40: 0 | AQ40: 0 | AR40: 0
A41: 41 | B41: 820-OP | C41: Measuring & Regulator Station | G41: 0 | AQ41: 0 | AR41: 0
A42: 42 | B42: 821-OP | C42: Purification Expenses | G42: 0 | AQ42: 0 | AR42: 0
A43: 43 | B43: 824-OP | C43: Other Expenses | G43: 301000 | J43: 200000 | AQ43: 200000 | AR43: 501000 | AT43: =ROUND(AR43/1000,0)*1000 -> 501000
A44: 44 | B44: 825-OP | C44: Storage Well Royalties & Rents | G44: 0 | AQ44: 0 | AR44: 0
A45: 45 | B45: 826-OP | C45: Rents | G45: 0 | AQ45: 0 | AR45: 0
A46: 46
A47: 47 | B47: 830-MT | C47: Supervision & Engineering | G47: 0 | AQ47: =SUM(H47:AP47) -> 0 | AR47: =G47+AQ47 -> 0
A48: 48 | B48: 831-MT | C48: Maps & Records | G48: 0 | AQ48: 0 | AR48: 0
A49: 49 | B49: 832-MT | C49: Wells Expenses | G49: 0 | AQ49: 0 | AR49: 0
A50: 50 | B50: 833-MT | C50: Lines Expenses | G50: 0 | AQ50: 0 | AR50: 0
A51: 51 | B51: 834-MT | C51: Compressor Station Expenses | G51: 0 | AQ51: 0 | AR51: 0
A52: 52 | B52: 835-MT | C52: Compressor Station Fuel & Power | G52: 0 | AQ52: 0 | AR52: 0
A53: 53 | B53: 836-MT | C53: Measuring and Regulator Station Expenses | G53: 0 | AQ53: 0 | AR53: 0
A54: 54 | B54: 837-MT | C54: Other Equipment | G54: 274000 | AQ54: 0 | AR54: 274000 | AT54: =ROUND(AR54/1000,0)*1000 -> 274000
A55: 55 | C55: Total Underground Storage Expenses | F55: =SUM(F35:F51)+SUM(F52:F54) -> 5025 | G55: =SUM(G35:G54) -> 585000 | H55: 0 | I55: 0 | J55: 200000 | K55: 0 | L55: 0 | M55: 0 | N55: 0 | O55: 0 | P55: 0 | Q55: 0 | R55: 0 | S55: 0 | T55: 0 | U55: 0 | V55: 0 | W55: 0 | X55: 0 | Y55: 0 | Z55: 0 | AA55: 0 | AB55: 0 | AC55: 0 | AD55: 0 | AE55: 0 | AF55: 0 | AG55: 0 | AH55: 0 | AK55: =SUM(AK35:AK54) -> 0 | AL55: 0 | AM55: 0 | AN55: 0 | AO55: 0 | AP55: 0 | AQ55: 200000 | AR55: 785000 | AS55: =IF(ROUND(SUM(G55:AP55),0)=ROUND(AR55,0),"ok","crossfoot error") -> ok | AT55: =SUM(AT35:AT54)/1000 -> 785 | AU55: ='[1]LEAD SHEETS-DO NOT ENTER'!$AJ$28 -> 785 | AV55: =AT55-AU55 -> 0
A56: 56
A57: 57
A58: 59
A59: 60
A60: 61 | B60: =$B$1 -> Proforma | J60: =$J$1 -> Natural Gas Utility | R60: Natural Gas Utility | Z60: Natural Gas Utility | AK60: =$J$1 -> Natural Gas Utility | AN60: =$S$1 -> 0
A61: 62 | B61: =$B$2 -> Pro Forma Results of Operations | E61: Operation and Maintenance Expenses | P61: =$E61 -> Operation and Maintenance Expenses | Z61: =$E61 -> Operation and Maintenance Expenses
A62: 63 | B62: =$B$3 -> Company Base Case
A63: 64
A64: 65 | G64: =G5 -> 1 | H64: 1.01 | I64: 1.02 | J64: 1.03 | K64: 2.01 | L64: 2.02 | M64: 2.03 | N64: 2.04 | O64: 2.05 | P64: 2.06 | Q64: 2.07 | R64: 2.08 | S64: 2.09 | T64: 2.1 | U64: 2.11 | V64: 2.12 | W64: 2.13 | X64: 3 | Y64: 3.01 | Z64: 3.02 | AA64: 3.03 | AB64: 3.04 | AC64: 3.05 | AD64: 3.06 | AE64: 4 | AF64: 4.01 | AG64: 4.02 | AH64: 4.03 | AK64: =AK$5 -> (ak) | AL64: (al) | AM64: (am) | AN64: (an) | AO64: (ao) | AP64: (ap) | AQ64: (aq) | AR64: (ar) | AS64: (as) | AT64: (at)
